Workbook

Sheet Aylık Yİ-ÜFE (hidden)
E1: Yurt İçi Üretici Fiyat Endeksi (2003=100) | F1: Yurt İçi Üretici Fiyat Endeksi (2003=100)
A2: 2005 | B2: Ocak | C2: 2005-Ocak | D2: 2005-1 | E2: 114.83 | F2: 114.83
A3: 2005 | B3: Şubat | C3: 2005-Şubat | D3: 2005-2 | E3: 114.81 | F3: 114.81
A4: 2005 | B4: Mart | C4: 2005-Mart | D4: 2005-3 | E4: 117.25 | F4: 117.25
A5: 2005 | B5: Nisan | C5: 2005-Nisan | D5: 2005-4 | E5: 119.62 | F5: 119.62
A6: 2005 | B6: Mayıs | C6: 2005-Mayıs | D6: 2005-5 | E6: 119.23 | F6: 119.23
A7: 2005 | B7: Haziran | C7: 2005-Haziran | D7: 2005-6 | E7: 119.64 | F7: 119.64
A8: 2005 | B8: Temmuz | C8: 2005-Temmuz | D8: 2005-7 | E8: 119.33 | F8: 119.33
A9: 2005 | B9: Ağustos | C9: 2005-Ağustos | D9: 2005-8 | E9: 121.4 | F9: 121.4
A10: 2005 | B10: Eylül | C10: 2005-Eylül | D10: 2005-9 | E10: 123.4 | F10: 123.4
A11: 2005 | B11: Ekim | C11: 2005-Ekim | D11: 2005-10 | E11: 124.22 | F11: 124.22
A12: 2005 | B12: Kasım | C12: 2005-Kasım | D12: 2005-11 | E12: 121.4 | F12: 121.4
A13: 2005 | B13: Aralık | C13: 2005-Aralık | D13: 2005-12 | E13: 121.14 | F13: 121.14
A14: 2006 | B14: Ocak | C14: 2006-Ocak | D14: 2006-1 | E14: 123.51 | F14: 123.51
A15: 2006 | B15: Şubat | C15: 2006-Şubat | D15: 2006-2 | E15: 123.83 | F15: 123.83
A16: 2006 | B16: Mart | C16: 2006-Mart | D16: 2006-3 | E16: 124.14 | F16: 124.14
A17: 2006 | B17: Nisan | C17: 2006-Nisan | D17: 2006-4 | E17: 126.54 | F17: 126.54
A18: 2006 | B18: Mayıs | C18: 2006-Mayıs | D18: 2006-5 | E18: 130.05 | F18: 130.05
A19: 2006 | B19: Haziran | C19: 2006-Haziran | D19: 2006-6 | E19: 135.28 | F19: 135.28
A20: 2006 | B20: Temmuz | C20: 2006-Temmuz | D20: 2006-7 | E20: 136.45 | F20: 136.45
A21: 2006 | B21: Ağustos | C21: 2006-Ağustos | D21: 2006-8 | E21: 135.43 | F21: 135.43
A22: 2006 | B22: Eylül | C22: 2006-Eylül | D22: 2006-9 | E22: 135.11 | F22: 135.11
A23: 2006 | B23: Ekim | C23: 2006-Ekim | D23: 2006-10 | E23: 135.73 | F23: 135.73
A24: 2006 | B24: Kasım | C24: 2006-Kasım | D24: 2006-11 | E24: 135.33 | F24: 135.33
A25: 2006 | B25: Aralık | C25: 2006-Aralık | D25: 2006-12 | E25: 135.16 | F25: 135.16
A26: 2007 | B26: Ocak | C26: 2007-Ocak | D26: 2007-1 | E26: 135.09 | F26: 135.09
A27: 2007 | B27: Şubat | C27: 2007-Şubat | D27: 2007-2 | E27: 136.37 | F27: 136.37
A28: 2007 | B28: Mart | C28: 2007-Mart | D28: 2007-3 | E28: 137.7 | F28: 137.7
A29: 2007 | B29: Nisan | C29: 2007-Nisan | D29: 2007-4 | E29: 138.8 | F29: 138.8
A30: 2007 | B30: Mayıs | C30: 2007-Mayıs | D30: 2007-5 | E30: 139.34 | F30: 139.34
A31: 2007 | B31: Haziran | C31: 2007-Haziran | D31: 2007-6 | E31: 139.19 | F31: 139.19
A32: 2007 | B32: Temmuz | C32: 2007-Temmuz | D32: 2007-7 | E32: 139.28 | F32: 139.28
A33: 2007 | B33: Ağustos | C33: 2007-Ağustos | D33: 2007-8 | E33: 140.47 | F33: 140.47
A34: 2007 | B34: Eylül | C34: 2007-Eylül | D34: 2007-9 | E34: 141.9 | F34: 141.9
A35: 2007 | B35: Ekim | C35: 2007-Ekim | D35: 2007-10 | E35: 141.71 | F35: 141.71
A36: 2007 | B36: Kasım | C36: 2007-Kasım | D36: 2007-11 | E36: 142.98 | F36: 142.98
A37: 2007 | B37: Aralık | C37: 2007-Aralık | D37: 2007-12 | E37: 143.19 | F37: 143.19
A38: 2008 | B38: Ocak | C38: 2008-Ocak | D38: 2008-1 | E38: 143.8 | F38: 143.8
A39: 2008 | B39: Şubat | C39: 2008-Şubat | D39: 2008-2 | E39: 147.48 | F39: 147.48
A40: 2008 | B40: Mart | C40: 2008-Mart | D40: 2008-3 | E40: 152.16 | F40: 152.16
A41: 2008 | B41: Nisan | C41: 2008-Nisan | D41: 2008-4 | E41: 159 | F41: 159
A42: 2008 | B42: Mayıs | C42: 2008-Mayıs | D42: 2008-5 | E42: 162.37 | F42: 162.37
A43: 2008 | B43: Haziran | C43: 2008-Haziran | D43: 2008-6 | E43: 162.9 | F43: 162.9
A44: 2008 | B44: Temmuz | C44: 2008-Temmuz | D44: 2008-7 | E44: 164.93 | F44: 164.93
A45: 2008 | B45: Ağustos | C45: 2008-Ağustos | D45: 2008-8 | E45: 161.07 | F45: 161.07
A46: 2008 | B46: Eylül | C46: 2008-Eylül | D46: 2008-9 | E46: 159.63 | F46: 159.63
A47: 2008 | B47: Ekim | C47: 2008-Ekim | D47: 2008-10 | E47: 160.54 | F47: 160.54
A48: 2008 | B48: Kasım | C48: 2008-Kasım | D48: 2008-11 | E48: 160.49 | F48: 160.49
A49: 2008 | B49: Aralık | C49: 2008-Aralık | D49: 2008-12 | E49: 154.8 | F49: 154.8
A50: 2009 | B50: Ocak | C50: 2009-Ocak | D50: 2009-1 | E50: 155.16 | F50: 155.16
A51: 2009 | B51: Şubat | C51: 2009-Şubat | D51: 2009-2 | E51: 156.97 | F51: 156.97
A52: 2009 | B52: Mart | C52: 2009-Mart | D52: 2009-3 | E52: 157.43 | F52: 157.43
A53: 2009 | B53: Nisan | C53: 2009-Nisan | D53: 2009-4 | E53: 158.45 | F53: 158.45
A54: 2009 | B54: Mayıs | C54: 2009-Mayıs | D54: 2009-5 | E54: 158.37 | F54: 158.37
A55: 2009 | B55: Haziran | C55: 2009-Haziran | D55: 2009-6 | E55: 159.86 | F55: 159.86
A56: 2009 | B56: Temmuz | C56: 2009-Temmuz | D56: 2009-7 | E56: 158.74 | F56: 158.74
A57: 2009 | B57: Ağustos | C57: 2009-Ağustos | D57: 2009-8 | E57: 159.4 | F57: 159.4
A58: 2009 | B58: Eylül | C58: 2009-Eylül | D58: 2009-9 | E58: 160.38 | F58: 160.38
A59: 2009 | B59: Ekim | C59: 2009-Ekim | D59: 2009-10 | E59: 160.84 | F59: 160.84
A60: 2009 | B60: Kasım | C60: 2009-Kasım | D60: 2009-11 | E60: 162.92 | F60: 162.92
A61: 2009 | B61: Aralık | C61: 2009-Aralık | D61: 2009-12 | E61: 163.98 | F61: 163.98
A62: 2010 | B62: Ocak | C62: 2010-Ocak | D62: 2010-1 | E62: 164.94 | F62: 164.94
A63: 2010 | B63: Şubat | C63: 2010-Şubat | D63: 2010-2 | E63: 167.68 | F63: 167.68
A64: 2010 | B64: Mart | C64: 2010-Mart | D64: 2010-3 | E64: 170.94 | F64: 170.94
A65: 2010 | B65: Nisan | C65: 2010-Nisan | D65: 2010-4 | E65: 174.96 | F65: 174.96
A66: 2010 | B66: Mayıs | C66: 2010-Mayıs | D66: 2010-5 | E66: 172.95 | F66: 172.95
A67: 2010 | B67: Haziran | C67: 2010-Haziran | D67: 2010-6 | E67: 172.08 | F67: 172.08
A68: 2010 | B68: Temmuz | C68: 2010-Temmuz | D68: 2010-7 | E68: 171.81 | F68: 171.81
A69: 2010 | B69: Ağustos | C69: 2010-Ağustos | D69: 2010-8 | E69: 173.79 | F69: 173.79
A70: 2010 | B70: Eylül | C70: 2010-Eylül | D70: 2010-9 | E70: 174.67 | F70: 174.67
A71: 2010 | B71: Ekim | C71: 2010-Ekim | D71: 2010-10 | E71: 176.78 | F71: 176.78
A72: 2010 | B72: Kasım | C72: 2010-Kasım | D72: 2010-11 | E72: 176.23 | F72: 176.23
A73: 2010 | B73: Aralık | C73: 2010-Aralık | D73: 2010-12 | E73: 178.54 | F73: 178.54
A74: 2011 | B74: Ocak | C74: 2011-Ocak | D74: 2011-1 | E74: 182.75 | F74: 182.75
A75: 2011 | B75: Şubat | C75: 2011-Şubat | D75: 2011-2 | E75: 185.9 | F75: 185.9
A76: 2011 | B76: Mart | C76: 2011-Mart | D76: 2011-3 | E76: 188.17 | F76: 188.17
A77: 2011 | B77: Nisan | C77: 2011-Nisan | D77: 2011-4 | E77: 189.32 | F77: 189.32
A78: 2011 | B78: Mayıs | C78: 2011-Mayıs | D78: 2011-5 | E78: 189.61 | F78: 189.61
A79: 2011 | B79: Haziran | C79: 2011-Haziran | D79: 2011-6 | E79: 189.62 | F79: 189.62
A80: 2011 | B80: Temmuz | C80: 2011-Temmuz | D80: 2011-7 | E80: 189.57 | F80: 189.57
A81: 2011 | B81: Ağustos | C81: 2011-Ağustos | D81: 2011-8 | E81: 192.91 | F81: 192.91
A82: 2011 | B82: Eylül | C82: 2011-Eylül | D82: 2011-9 | E82: 195.89 | F82: 195.89
A83: 2011 | B83: Ekim | C83: 2011-Ekim | D83: 2011-10 | E83: 199.03 | F83: 199.03
A84: 2011 | B84: Kasım | C84: 2011-Kasım | D84: 2011-11 | E84: 200.32 | F84: 200.32
A85: 2011 | B85: Aralık | C85: 2011-Aralık | D85: 2011-12 | E85: 202.33 | F85: 202.33
A86: 2012 | B86: Ocak | C86: 2012-Ocak | D86: 2012-1 | E86: 203.1 | F86: 203.1
A87: 2012 | B87: Şubat | C87: 2012-Şubat | D87: 2012-2 | E87: 202.91 | F87: 202.91
A88: 2012 | B88: Mart | C88: 2012-Mart | D88: 2012-3 | E88: 203.64 | F88: 203.64
A89: 2012 | B89: Nisan | C89: 2012-Nisan | D89: 2012-4 | E89: 203.81 | F89: 203.81
A90: 2012 | B90: Mayıs | C90: 2012-Mayıs | D90: 2012-5 | E90: 204.89 | F90: 204.89
A91: 2012 | B91: Haziran | C91: 2012-Haziran | D91: 2012-6 | E91: 201.83 | F91: 201.83
A92: 2012 | B92: Temmuz | C92: 2012-Temmuz | D92: 2012-7 | E92: 201.2 | F92: 201.2
A93: 2012 | B93: Ağustos | C93: 2012-Ağustos | D93: 2012-8 | E93: 201.71 | F93: 201.71
A94: 2012 | B94: Eylül | C94: 2012-Eylül | D94: 2012-9 | E94: 203.79 | F94: 203.79
A95: 2012 | B95: Ekim | C95: 2012-Ekim | D95: 2012-10 | E95: 204.15 | F95: 204.15
A96: 2012 | B96: Kasım | C96: 2012-Kasım | D96: 2012-11 | E96: 207.54 | F96: 207.54
A97: 2012 | B97: Aralık | C97: 2012-Aralık | D97: 2012-12 | E97: 207.29 | F97: 207.29
A98: 2013 | B98: Ocak | C98: 2013-Ocak | D98: 2013-1 | E98: 206.91 | F98: 206.91
A99: 2013 | B99: Şubat | C99: 2013-Şubat | D99: 2013-2 | E99: 206.65 | F99: 206.65
A100: 2013 | B100: Mart | C100: 2013-Mart | D100: 2013-3 | E100: 208.33 | F100: 208.33
A101: 2013 | B101: Nisan | C101: 2013-Nisan | D101: 2013-4 | E101: 207.27 | F101: 207.27
A102: 2013 | B102: Mayıs | C102: 2013-Mayıs | D102: 2013-5 | E102: 209.34 | F102: 209.34
A103: 2013 | B103: Haziran | C103: 2013-Haziran | D103: 2013-6 | E103: 212.39 | F103: 212.39
A104: 2013 | B104: Temmuz | C104: 2013-Temmuz | D104: 2013-7 | E104: 214.5 | F104: 214.5
A105: 2013 | B105: Ağustos | C105: 2013-Ağustos | D105: 2013-8 | E105: 214.59 | F105: 214.59
A106: 2013 | B106: Eylül | C106: 2013-Eylül | D106: 2013-9 | E106: 216.48 | F106: 216.48
A107: 2013 | B107: Ekim | C107: 2013-Ekim | D107: 2013-10 | E107: 217.97 | F107: 217.97
A108: 2013 | B108: Kasım | C108: 2013-Kasım | D108: 2013-11 | E108: 219.31 | F108: 219.31
A109: 2013 | B109: Aralık | C109: 2013-Aralık | D109: 2013-12 | E109: 221.74 | F109: 221.74
A110: 2014 | B110: Ocak | C110: 2014-Ocak | D110: 2014-1 | E110: 229.1 | F110: 229.1
A111: 2014 | B111: Şubat | C111: 2014-Şubat | D111: 2014-2 | E111: 232.27 | F111: 232.27
A112: 2014 | B112: Mart | C112: 2014-Mart | D112: 2014-3 | E112: 233.98 | F112: 233.98
A113: 2014 | B113: Nisan | C113: 2014-Nisan | D113: 2014-4 | E113: 234.18 | F113: 234.18
A114: 2014 | B114: Mayıs | C114: 2014-Mayıs | D114: 2014-5 | E114: 232.96 | F114: 232.96
A115: 2014 | B115: Haziran | C115: 2014-Haziran | D115: 2014-6 | E115: 233.09 | F115: 233.09
A116: 2014 | B116: Temmuz | C116: 2014-Temmuz | D116: 2014-7 | E116: 234.79 | F116: 234.79
A117: 2014 | B117: Ağustos | C117: 2014-Ağustos | D117: 2014-8 | E117: 235.78 | F117: 235.78
A118: 2014 | B118: Eylül | C118: 2014-Eylül | D118: 2014-9 | E118: 237.79 | F118: 237.79
A119: 2014 | B119: Ekim | C119: 2014-Ekim | D119: 2014-10 | E119: 239.97 | F119: 239.97
A120: 2014 | B120: Kasım | C120: 2014-Kasım | D120: 2014-11 | E120: 237.65 | F120: 237.65
A121: 2014 | B121: Aralık | C121: 2014-Aralık | D121: 2014-12 | E121: 235.84 | F121: 235.84
A122: 2015 | B122: Ocak | C122: 2015-Ocak | D122: 2015-1 | E122: 236.61 | F122: 236.61
A123: 2015 | B123: Şubat | C123: 2015-Şubat | D123: 2015-2 | E123: 239.46 | F123: 239.46
A124: 2015 | B124: Mart | C124: 2015-Mart | D124: 2015-3 | E124: 241.97 | F124: 241.97
A125: 2015 | B125: Nisan | C125: 2015-Nisan | D125: 2015-4 | E125: 245.42 | F125: 245.42
A126: 2015 | B126: Mayıs | C126: 2015-Mayıs | D126: 2015-5 | E126: 248.15 | F126: 248.15
A127: 2015 | B127: Haziran | C127: 2015-Haziran | D127: 2015-6 | E127: 248.78 | F127: 248.78
A128: 2015 | B128: Temmuz | C128: 2015-Temmuz | D128: 2015-7 | E128: 247.99 | F128: 247.99
A129: 2015 | B129: Ağustos | C129: 2015-Ağustos | D129: 2015-8 | E129: 250.43 | F129: 250.43
A130: 2015 | B130: Eylül | C130: 2015-Eylül | D130: 2015-9 | E130: 254.25 | F130: 254.25
A131: 2015 | B131: Ekim | C131: 2015-Ekim | D131: 2015-10 | E131: 253.74 | F131: 253.74
A132: 2015 | B132: Kasım | C132: 2015-Kasım | D132: 2015-11 | E132: 250.13 | F132: 250.13
A133: 2015 | B133: Aralık | C133: 2015-Aralık | D133: 2015-12 | E133: 249.31 | F133: 249.31
A134: 2016 | B134: Ocak | C134: 2016-Ocak | D134: 2016-1 | E134: 250.67 | F134: 250.67
A135: 2016 | B135: Şubat | C135: 2016-Şubat | D135: 2016-2 | E135: 250.16 | F135: 250.16
A136: 2016 | B136: Mart | C136: 2016-Mart | D136: 2016-3 | E136: 251.17 | F136: 251.17
A137: 2016 | B137: Nisan | C137: 2016-Nisan | D137: 2016-4 | E137: 252.47 | F137: 252.47
A138: 2016 | B138: Mayıs | C138: 2016-Mayıs | D138: 2016-5 | E138: 256.21 | F138: 256.21
A139: 2016 | B139: Haziran | C139: 2016-Haziran | D139: 2016-6 | E139: 257.27 | F139: 257.27
A140: 2016 | B140: Temmuz | C140: 2016-Temmuz | D140: 2016-7 | E140: 257.81 | F140: 257.81
A141: 2016 | B141: Ağustos | C141: 2016-Ağustos | D141: 2016-8 | E141: 258.01 | F141: 258.01
A142: 2016 | B142: Eylül | C142: 2016-Eylül | D142: 2016-9 | E142: 258.77 | F142: 258.77
A143: 2016 | B143: Ekim | C143: 2016-Ekim | D143: 2016-10 | E143: 260.94 | F143: 260.94
A144: 2016 | B144: Kasım | C144: 2016-Kasım | D144: 2016-11 | E144: 266.16 | F144: 266.16
A145: 2016 | B145: Aralık | C145: 2016-Aralık | D145: 2016-12 | E145: 274.09 | F145: 274.09
A146: 2017 | B146: Ocak | C146: 2017-Ocak | D146: 2017-1 | E146: 284.99 | F146: 284.99
A147: 2017 | B147: Şubat | C147: 2017-Şubat | D147: 2017-2 | E147: 288.59 | F147: 288.59
A148: 2017 | B148: Mart | C148: 2017-Mart | D148: 2017-3 | E148: 291.58 | F148: 291.58
A149: 2017 | B149: Nisan | C149: 2017-Nisan | D149: 2017-4 | E149: 293.79 | F149: 293.79
A150: 2017 | B150: Mayıs | C150: 2017-Mayıs | D150: 2017-5 | E150: 295.31 | F150: 295.31
A151: 2017 | B151: Haziran | C151: 2017-Haziran | D151: 2017-6 | E151: 295.52 | F151: 295.52
A152: 2017 | B152: Temmuz | C152: 2017-Temmuz | D152: 2017-7 | E152: 297.65 | F152: 297.65
A153: 2017 | B153: Ağustos | C153: 2017-Ağustos | D153: 2017-8 | E153: 300.18 | F153: 300.18
A154: 2017 | B154: Eylül | C154: 2017-Eylül | D154: 2017-9 | E154: 300.9 | F154: 300.9
A155: 2017 | B155: Ekim | C155: 2017-Ekim | D155: 2017-10 | E155: 306.04 | F155: 306.04
A156: 2017 | B156: Kasım | C156: 2017-Kasım | D156: 2017-11 | E156: 312.21 | F156: 312.21
A157: 2017 | B157: Aralık | C157: 2017-Aralık | D157: 2017-12 | E157: 316.48 | F157: 316.48
A158: 2018 | B158: Ocak | C158: 2018-Ocak | D158: 2018-1 | E158: 319.6 | F158: 319.6
A159: 2018 | B159: Şubat | C159: 2018-Şubat | D159: 2018-2 | E159: 328.17 | F159: 328.17
A160: 2018 | B160: Mart | C160: 2018-Mart | D160: 2018-3 | E160: 333.21 | F160: 333.21
A161: 2018 | B161: Nisan | C161: 2018-Nisan | D161: 2018-4 | E161: 341.88 | F161: 341.88
A162: 2018 | B162: Mayıs | C162: 2018-Mayıs | D162: 2018-5 | E162: 354.85 | F162: 354.85
A163: 2018 | B163: Haziran | C163: 2018-Haziran | D163: 2018-6 | E163: 365.6 | F163: 365.6
A164: 2018 | B164: Temmuz | C164: 2018-Temmuz | D164: 2018-7 | E164: 372.06 | F164: 372.06
A165: 2018 | B165: Ağustos | C165: 2018-Ağustos | D165: 2018-8 | E165: 396.62 | F165: 396.62
A166: 2018 | B166: Eylül | C166: 2018-Eylül | D166: 2018-9 | E166: 439.78 | F166: 439.78
A167: 2018 | B167: Ekim | C167: 2018-Ekim | D167: 2018-10 | E167: 443.78 | F167: 443.78
A168: 2018 | B168: Kasım | C168: 2018-Kasım | D168: 2018-11 | E168: 432.55 | F168: 432.55
A169: 2018 | B169: Aralık | C169: 2018-Aralık | D169: 2018-12 | E169: 422.94 | F169: 422.94
A170: 2019 | B170: Ocak | C170: 2019-Ocak | D170: 2019-1 | E170: 424.86 | F170: 424.86
A171: 2019 | B171: Şubat | C171: 2019-Şubat | D171: 2019-2 | E171: 425.26 | F171: 425.26
A172: 2019 | B172: Mart | C172: 2019-Mart | D172: 2019-3 | E172: 431.98 | F172: 431.98
A173: 2019 | B173: Nisan | C173: 2019-Nisan | D173: 2019-4 | E173: 444.85 | F173: 444.85
A174: 2019 | B174: Mayıs | C174: 2019-Mayıs | D174: 2019-5 | E174: 456.74 | F174: 456.74
A175: 2019 | B175: Haziran | C175: 2019-Haziran | D175: 2019-6 | E175: 457.16 | F175: 457.16
A176: 2019 | B176: Temmuz | C176: 2019-Temmuz | D176: 2019-7 | E176: 452.63 | F176: 452.63
A177: 2019 | B177: Ağustos | C177: 2019-Ağustos | D177: 2019-8 | E177: 449.96 | F177: 449.96
A178: 2019 | B178: Eylül | C178: 2019-Eylül | D178: 2019-9 | E178: 450.55 | F178: 450.55
A179: 2019 | B179: Ekim | C179: 2019-Ekim | D179: 2019-10 | E179: 451.31 | F179: 451.31
A180: 2019 | B180: Kasım | C180: 2019-Kasım | D180: 2019-11 | E180: 450.97 | F180: 450.97
A181: 2019 | B181: Aralık | C181: 2019-Aralık | D181: 2019-12 | E181: 454.08 | F181: 454.08
A182: 2020 | B182: Ocak | C182: 2020-Ocak | D182: 2020-1 | E182: 462.42 | F182: 462.42
A183: 2020 | B183: Şubat | C183: 2020-Şubat | D183: 2020-2 | E183: 464.64 | F183: 464.64
A184: 2020 | B184: Mart | C184: 2020-Mart | D184: 2020-3 | E184: 468.69 | F184: 468.69
A185: 2020 | B185: Nisan | C185: 2020-Nisan | D185: 2020-4 | E185: 474.69 | F185: 474.69
A186: 2020 | B186: Mayıs | C186: 2020-Mayıs | D186: 2020-5 | E186: 482.02 | F186: 482.02
A187: 2020 | B187: Haziran | C187: 2020-Haziran | D187: 2020-6 | E187: 485.37 | F187: 485.37
A188: 2020 | B188: Temmuz | C188: 2020-Temmuz | D188: 2020-7 | E188: 490.33 | F188: 490.33
A189: 2020 | B189: Ağustos | C189: 2020-Ağustos | D189: 2020-8 | E189: 501.85 | F189: 501.85
A190: 2020 | B190: Eylül | C190: 2020-Eylül | D190: 2020-9 | E190: 515.13 | F190: 515.13
A191: 2020 | B191: Ekim | C191: 2020-Ekim | D191: 2020-10 | E191: 533.44 | F191: 533.44
A192: 2020 | B192: Kasım | C192: 2020-Kasım | D192: 2020-11 | E192: 555.18 | F192: 555.18
A193: 2020 | B193: Aralık | C193: 2020-Aralık | D193: 2020-12 | E193: 568.27 | F193: 568.27
A194: 2021 | B194: Ocak | C194: 2021-Ocak | D194: 2021-1 | E194: 583.38 | F194: 583.38
A195: 2021 | B195: Şubat | C195: 2021-Şubat | D195: 2021-2 | E195: 590.52 | F195: 590.52
A196: 2021 | B196: Mart | C196: 2021-Mart | D196: 2021-3 | E196: 614.93 | F196: 614.93
A197: 2021 | B197: Nisan | C197: 2021-Nisan | D197: 2021-4 | E197: 641.63 | F197: 641.63
A198: 2021 | B198: Mayıs | C198: 2021-Mayıs | D198: 2021-5 | E198: 666.79 | F198: 666.79
A199: 2021 | B199: Haziran | C199: 2021-Haziran | D199: 2021-6 | E199: 693.54 | F199: 693.54
A200: 2021 | B200: Temmuz | C200: 2021-Temmuz | D200: 2021-7 | E200: 710.61 | F200: 710.61
... 69 more rows

Sheet DOLDURULMASI GEREKEN TABLO
C1: * | E1: *
C2: İKTİSADİ KIYMETİN NİTELİĞİ | D2: 2026 / 2. GEÇİCİ VERGİ DÖNEMİNE AİT MÜK.298 Ç YENİDEN DEĞERLEMESİ İÇİN | E2: 250- Arazi ve Arsalar | H2: ÖNEMLİ NOTLAR: * 31.12.2025 VE ÖNCESİNDE BİLANÇODA BULUNAN VARLIKLAR LİSTEYE ALINMALIDIR. / 2026 YILI İÇİN MÜK. 298 Ç YE GÖRE YAPILACAK YENİDEN DEĞERLEMELER AÇISINDAN 2026 YILINDA EDİNİLEN VARLIKLAR LİSTEYE ALINMAMALIDIR. ** 1.1.2026 TEN ÖNCE AMORTİSMAN SÜRESİNİ DOLDURMUŞ OLANLAR LİSTEYE ALINMAMALIDIR. *** İLK YILDAN SONRAKİ VE MALİYETE EKLENMİŞ OLAN KREDİ FAİZLERİ İLE KUR FARKLARI MÜK.298 Ç İÇİN BU TÜR MALİYET UNSURLARI YENİDEN DEĞERLEMEYE TABİ TUTULMAYACAKTIR. **** İNŞA OLUNAN BİNALARDA, ARSA MALİYETİ ARSANIN AKTİFLEŞTİRİLDİĞİ, DİĞER MALİYET UNSURLARI İSE BİNANIN AKTİFLEŞTİRİLDİĞİ TARİH İKTİSAP TARİHİ ALANINA AYRI AYRI YAZILACAKTIR.
C3: Amortismana tabi olmayan gayrimenkul (boş arazi ve boş arsalar) | E3: 251- Yer altı Yerüstü Düzenleri
C4: Amortismana tabi gayrimenkul (gayrimenkullerin mütemmim cüzüleri ve teferruatı dahil) | E4: 252- Binalar
C5: Tesis ve arazi düzenlemeleri (tarım işletmelerinde vücuda getirilen meyvalık, dutluk, fındıklık, zeytinlik ve güllüklerle incir bahçeleri ve bağlar gibi tarım tesisleri dahil) | E5: 253- Tesis Makine ve Cihazlar
C6: Makinalar | E6: 254- Taşıtlar
A7: ALIM | C7: Gemiler | E7: 255- Demirbaşlar
A8: TARİHİ | C8: Taşıtlar | E8: 256- Diğer Maddi Duran Varlıklar
C9: Tesis ve arazi düzenlemeleri (tarım işletmelerinde vücuda getirilen meyvalık, dutluk, fındıklık, zeytinlik ve güllüklerle incir bahçeleri ve bağlar gibi tarım tesisleri dahil) | E9: 260- Haklar
C10: Demirbaşlar | E10: 261- Şerefiye
C11: Özel maliyet bedelleri | E11: 262- Kuruluş Ve Örgütlenme Giderleri
C12: Diğer amortismana tabi iktisadi kıymetler (şerefiye, aktifleştirilen ilk tesis ve taazzuv giderleri, araştırma-geliştirme harcamaları, sinema filmleri gibi) | E12: 263- Araştırma ve Geliştirme Giderleri
E13: 264- Özel Maliyetler | N13: =O13 -> 46022 | O13: 2025-12-31
E14: 267- Diğer Maddi Olmayan Duran Varlıklar | H14: =I14 -> 46022 | I14: 2025-12-31 | J14: =K14 -> 46387 | K14: 2026-12-31 | N14: =O14 -> 46112 | O14: 2026-03-31
E15: 271- Arama Giderleri | H15: =I15 -> 45657 | I15: 2024-12-31 | K15: AMORTİSMANA TABİ DEĞİL | N15: =O15 -> 46203 | O15: 2026-06-30
E16: 272- Hazırlık Ve Geliştirme Giderleri | H16: 2026 YILINDA ALINANLAR HARİÇ | K16: NORMAL AMORTİSMAN | L16: EVET | M16: EVET | N16: =O16 -> 46295 | O16: 2026-09-30
E17: 277- Diğer Özel Tükenmeye Tabi Varlıklar | H17: ÖMRÜNÜ TAMAMLAYANLAR HARİÇ | K17: AZALAN BAKİYELERE GÖRE AMORTİSMAN | L17: HAYIR | M17: HAYIR | N17: =O17 -> 46387 | O17: 2026-12-31
B19: SIRA NO | C19: İKTİSADİ KIYMETİN NİTELİĞİ | D19: İKTİSADİ KIYMETİN ADI | E19: MUHASEBE ANA HESAP KODU | F19: İKTİSADİ KIYMETİN AKTİFLEŞTİRİLDİĞİ YILDAN SONRAKİ YILLARDA MALİYETE ATILAN KUR FARKI, KREDİ FAİZ NİTELİĞİNDE MİDİR? | G19: EKONOMİK ÖMRÜ | H19: İKTİSAPTARİHİ | I19: İKTİSAP TARİHİ KONTROLÜ (2026 YILINDAN ÖNCE AKTİFE ALINMASI DURUMU KONTROLÜ) | J19: ATİK İN İKTİSAP DEĞERİ 31.12.2025 VE ÖNCESİNDE İKTİSAP OLUNAN İKTİSADİ KIYMETLER İÇİN 31.12.205 TARİHİ İTİBARİYLE KAYITLARDA OLAN DEĞERİ DİKKATE ALINIR (ÖNCEKİ YILLARDA YAPILAN ENFLASYON DÜZELTMESİ VEYA 2025 SONUNDA YAPILAN YENİDEN DEĞERLEME SONRASI DEĞERİ) | K19: AMORTİSMAN YÖNTEMİ | L19: KIST AMORTİSMANA TABİ Mİ | M19: YENİDEN DEĞERLEME TARİHİ | N19: MÜK. 298 Ç YENİDEN DEĞERLEME ORANI
A21: 2006-06-23 | B21: 1 | E21: 260- Haklar | F21: HAYIR | G21: 5 | H21: 2023-10-09 | I21: =IF(AND(H21>46022,H21<=46387),"2026 YILINDA İKTİSAP EDİLEN KIYMETLER İÇİN 2026 YILINDA MÜK.298 Ç YE GÖRE YENİDEN DEĞERLEME YAPILAMAZ", "MÜK.298 Ç YE GÖRE İLGİLİ GEÇİCİ VERGİ DÖNEMİNE AİT YDO İLE YD YAPILABİLİR") -> MÜK.298 Ç YE GÖRE İLGİLİ GEÇİCİ VERGİ DÖNEMİNE AİT YDO İLE YD YAPILABİLİR | J21: 1000000 | K21: AZALAN BAKİYELERE GÖRE AMORTİSMAN | L21: HAYIR | M21: 2026-06-30 | N21: =TRUNC(IF(M21=46022,'Aylık Yİ-ÜFE'!$N$251,IF(M21=46112,'Aylık Yİ-ÜFE'!$T$268,IF(M21=46203,'Aylık Yİ-ÜFE'!$U$271,IF(M21=46295,'Aylık Yİ-ÜFE'!$V$274, IF(M21=46387,'Aylık Yİ-ÜFE'!$X$275))))),5) -> 0.1151
A22: 2006-08-02 | B22: 2 | E22: 255- Demirbaşlar | F22: HAYIR | G22: 5 | H22: 2024-06-01 | I22: =IF(AND(H22>46022,H22<=46387),"2026 YILINDA İKTİSAP EDİLEN KIYMETLER İÇİN 2026 YILINDA MÜK.298 Ç YE GÖRE YENİDEN DEĞERLEME YAPILAMAZ", "MÜK.298 Ç YE GÖRE İLGİLİ GEÇİCİ VERGİ DÖNEMİNE AİT YDO İLE YD YAPILABİLİR") -> MÜK.298 Ç YE GÖRE İLGİLİ GEÇİCİ VERGİ DÖNEMİNE AİT YDO İLE YD YAPILABİLİR | J22: 1000000 | K22: NORMAL AMORTİSMAN | L22: HAYIR | M22: 2026-06-30 | N22: =TRUNC(IF(M22=46022,'Aylık Yİ-ÜFE'!$N$251,IF(M22=46112,'Aylık Yİ-ÜFE'!$T$268,IF(M22=46203,'Aylık Yİ-ÜFE'!$U$271,IF(M22=46295,'Aylık Yİ-ÜFE'!$V$274, IF(M22=46387,'Aylık Yİ-ÜFE'!$X$275))))),5) -> 0.1151
A23: 2011-07-08 | B23: 3 | E23: 254- Taşıtlar | F23: HAYIR | G23: 5 | H23: 2025-05-10 | I23: MÜK.298 Ç YE GÖRE İLGİLİ GEÇİCİ VERGİ DÖNEMİNE AİT YDO İLE YD YAPILABİLİR | J23: 1000000 | K23: NORMAL AMORTİSMAN | L23: EVET | M23: 2026-06-30 | N23: =TRUNC(IF(M23=46022,'Aylık Yİ-ÜFE'!$N$251,IF(M23=46112,'Aylık Yİ-ÜFE'!$T$268,IF(M23=46203,'Aylık Yİ-ÜFE'!$U$271,IF(M23=46295,'Aylık Yİ-ÜFE'!$V$274, IF(M23=46387,'Aylık Yİ-ÜFE'!$X$275))))),5) -> 0.1151
A24: 2008-10-09 | B24: 4 | E24: 253- Tesis Makine ve Cihazlar | F24: HAYIR | G24: 5 | H24: 2026-01-10 | I24: 2026 YILINDA İKTİSAP EDİLEN KIYMETLER İÇİN 2026 YILINDA MÜK.298 Ç YE GÖRE YENİDEN DEĞERLEME YAPILAMAZ | J24: 1000000 | K24: AZALAN BAKİYELERE GÖRE AMORTİSMAN | L24: HAYIR | M24: 2026-06-30 | N24: =TRUNC(IF(M24=46022,'Aylık Yİ-ÜFE'!$N$251,IF(M24=46112,'Aylık Yİ-ÜFE'!$T$268,IF(M24=46203,'Aylık Yİ-ÜFE'!$U$271,IF(M24=46295,'Aylık Yİ-ÜFE'!$V$274, IF(M24=46387,'Aylık Yİ-ÜFE'!$X$275))))),5) -> 0.1151
A25: 2000-01-01 | B25: 5 | E25: 250- Arazi ve Arsalar | F25: HAYIR | G25: 100 | H25: 2019-07-01 | I25: MÜK.298 Ç YE GÖRE İLGİLİ GEÇİCİ VERGİ DÖNEMİNE AİT YDO İLE YD YAPILABİLİR | J25: 1000000 | K25: AMORTİSMANA TABİ DEĞİL | L25: HAYIR | M25: 2026-06-30 | N25: =TRUNC(IF(M25=46022,'Aylık Yİ-ÜFE'!$N$251,IF(M25=46112,'Aylık Yİ-ÜFE'!$T$268,IF(M25=46203,'Aylık Yİ-ÜFE'!$U$271,IF(M25=46295,'Aylık Yİ-ÜFE'!$V$274, IF(M25=46387,'Aylık Yİ-ÜFE'!$X$275))))),5) -> 0.1151
A26: 2016-11-04 | B26: 6 | E26: 260- Haklar | F26: HAYIR | G26: 15 | H26: 2020-04-10 | I26: MÜK.298 Ç YE GÖRE İLGİLİ GEÇİCİ VERGİ DÖNEMİNE AİT YDO İLE YD YAPILABİLİR | J26: 1000000 | K26: NORMAL AMORTİSMAN | L26: HAYIR | M26: 2026-06-30 | N26: =TRUNC(IF(M26=46022,'Aylık Yİ-ÜFE'!$N$251,IF(M26=46112,'Aylık Yİ-ÜFE'!$T$268,IF(M26=46203,'Aylık Yİ-ÜFE'!$U$271,IF(M26=46295,'Aylık Yİ-ÜFE'!$V$274, IF(M26=46387,'Aylık Yİ-ÜFE'!$X$275))))),5) -> 0.1151
A27: 2016-11-10 | B27: 7 | E27: 254- Taşıtlar | F27: HAYIR | G27: 5 | H27: 2023-06-08 | I27: MÜK.298 Ç YE GÖRE İLGİLİ GEÇİCİ VERGİ DÖNEMİNE AİT YDO İLE YD YAPILABİLİR | J27: 1000000 | K27: NORMAL AMORTİSMAN | L27: EVET | M27: 2026-06-30 | N27: =TRUNC(IF(M27=46022,'Aylık Yİ-ÜFE'!$N$251,IF(M27=46112,'Aylık Yİ-ÜFE'!$T$268,IF(M27=46203,'Aylık Yİ-ÜFE'!$U$271,IF(M27=46295,'Aylık Yİ-ÜFE'!$V$274, IF(M27=46387,'Aylık Yİ-ÜFE'!$X$275))))),5) -> 0.1151
A28: 2016-11-18 | B28: 8 | E28: 254- Taşıtlar | F28: HAYIR | G28: 5 | H28: 2021-12-21 | I28: MÜK.298 Ç YE GÖRE İLGİLİ GEÇİCİ VERGİ DÖNEMİNE AİT YDO İLE YD YAPILABİLİR | J28: 1000000 | K28: NORMAL AMORTİSMAN | L28: HAYIR | M28: 2026-06-30 | N28: =TRUNC(IF(M28=46022,'Aylık Yİ-ÜFE'!$N$251,IF(M28=46112,'Aylık Yİ-ÜFE'!$T$268,IF(M28=46203,'Aylık Yİ-ÜFE'!$U$271,IF(M28=46295,'Aylık Yİ-ÜFE'!$V$274, IF(M28=46387,'Aylık Yİ-ÜFE'!$X$275))))),5) -> 0.1151
A29: 2016-11-30 | B29: 9 | E29: 254- Taşıtlar | F29: HAYIR | G29: 5 | H29: 2021-12-21 | I29: MÜK.298 Ç YE GÖRE İLGİLİ GEÇİCİ VERGİ DÖNEMİNE AİT YDO İLE YD YAPILABİLİR | J29: 1000000 | K29: AZALAN BAKİYELERE GÖRE AMORTİSMAN | L29: EVET | M29: 2026-06-30 | N29: =TRUNC(IF(M29=46022,'Aylık Yİ-ÜFE'!$N$251,IF(M29=46112,'Aylık Yİ-ÜFE'!$T$268,IF(M29=46203,'Aylık Yİ-ÜFE'!$U$271,IF(M29=46295,'Aylık Yİ-ÜFE'!$V$274, IF(M29=46387,'Aylık Yİ-ÜFE'!$X$275))))),5) -> 0.1151
A30: 2016-11-30 | B30: 10 | E30: 254- Taşıtlar | F30: HAYIR | G30: 5 | H30: 2023-10-09 | I30: MÜK.298 Ç YE GÖRE İLGİLİ GEÇİCİ VERGİ DÖNEMİNE AİT YDO İLE YD YAPILABİLİR | J30: 1000000 | K30: AZALAN BAKİYELERE GÖRE AMORTİSMAN | L30: EVET | M30: 2026-06-30 | N30: =TRUNC(IF(M30=46022,'Aylık Yİ-ÜFE'!$N$251,IF(M30=46112,'Aylık Yİ-ÜFE'!$T$268,IF(M30=46203,'Aylık Yİ-ÜFE'!$U$271,IF(M30=46295,'Aylık Yİ-ÜFE'!$V$274, IF(M30=46387,'Aylık Yİ-ÜFE'!$X$275))))),5) -> 0.1151
A31: 2016-11-30 | B31: 11 | I31: MÜK.298 Ç YE GÖRE İLGİLİ GEÇİCİ VERGİ DÖNEMİNE AİT YDO İLE YD YAPILABİLİR | M31: 2026-06-30 | N31: =TRUNC(IF(M31=46022,'Aylık Yİ-ÜFE'!$N$251,IF(M31=46112,'Aylık Yİ-ÜFE'!$T$268,IF(M31=46203,'Aylık Yİ-ÜFE'!$U$271,IF(M31=46295,'Aylık Yİ-ÜFE'!$V$274, IF(M31=46387,'Aylık Yİ-ÜFE'!$X$275))))),5) -> 0.1151
A32: 2016-11-30 | B32: 12 | I32: MÜK.298 Ç YE GÖRE İLGİLİ GEÇİCİ VERGİ DÖNEMİNE AİT YDO İLE YD YAPILABİLİR | M32: 2026-06-30 | N32: =TRUNC(IF(M32=46022,'Aylık Yİ-ÜFE'!$N$251,IF(M32=46112,'Aylık Yİ-ÜFE'!$T$268,IF(M32=46203,'Aylık Yİ-ÜFE'!$U$271,IF(M32=46295,'Aylık Yİ-ÜFE'!$V$274, IF(M32=46387,'Aylık Yİ-ÜFE'!$X$275))))),5) -> 0.1151
A33: 2016-12-05 | B33: 13 | I33: MÜK.298 Ç YE GÖRE İLGİLİ GEÇİCİ VERGİ DÖNEMİNE AİT YDO İLE YD YAPILABİLİR | M33: 2026-06-30 | N33: =TRUNC(IF(M33=46022,'Aylık Yİ-ÜFE'!$N$251,IF(M33=46112,'Aylık Yİ-ÜFE'!$T$268,IF(M33=46203,'Aylık Yİ-ÜFE'!$U$271,IF(M33=46295,'Aylık Yİ-ÜFE'!$V$274, IF(M33=46387,'Aylık Yİ-ÜFE'!$X$275))))),5) -> 0.1151
A34: 2016-12-05 | B34: 14 | I34: MÜK.298 Ç YE GÖRE İLGİLİ GEÇİCİ VERGİ DÖNEMİNE AİT YDO İLE YD YAPILABİLİR | M34: 2026-06-30 | N34: =TRUNC(IF(M34=46022,'Aylık Yİ-ÜFE'!$N$251,IF(M34=46112,'Aylık Yİ-ÜFE'!$T$268,IF(M34=46203,'Aylık Yİ-ÜFE'!$U$271,IF(M34=46295,'Aylık Yİ-ÜFE'!$V$274, IF(M34=46387,'Aylık Yİ-ÜFE'!$X$275))))),5) -> 0.1151
A35: 2017-02-04 | B35: 15 | I35: MÜK.298 Ç YE GÖRE İLGİLİ GEÇİCİ VERGİ DÖNEMİNE AİT YDO İLE YD YAPILABİLİR | M35: 2026-06-30 | N35: =TRUNC(IF(M35=46022,'Aylık Yİ-ÜFE'!$N$251,IF(M35=46112,'Aylık Yİ-ÜFE'!$T$268,IF(M35=46203,'Aylık Yİ-ÜFE'!$U$271,IF(M35=46295,'Aylık Yİ-ÜFE'!$V$274, IF(M35=46387,'Aylık Yİ-ÜFE'!$X$275))))),5) -> 0.1151
A36: 2017-02-28 | B36: 16 | I36: MÜK.298 Ç YE GÖRE İLGİLİ GEÇİCİ VERGİ DÖNEMİNE AİT YDO İLE YD YAPILABİLİR | M36: 2026-06-30 | N36: =TRUNC(IF(M36=46022,'Aylık Yİ-ÜFE'!$N$251,IF(M36=46112,'Aylık Yİ-ÜFE'!$T$268,IF(M36=46203,'Aylık Yİ-ÜFE'!$U$271,IF(M36=46295,'Aylık Yİ-ÜFE'!$V$274, IF(M36=46387,'Aylık Yİ-ÜFE'!$X$275))))),5) -> 0.1151
A37: 2001-01-01 | B37: 17 | I37: MÜK.298 Ç YE GÖRE İLGİLİ GEÇİCİ VERGİ DÖNEMİNE AİT YDO İLE YD YAPILABİLİR | M37: 2026-06-30 | N37: =TRUNC(IF(M37=46022,'Aylık Yİ-ÜFE'!$N$251,IF(M37=46112,'Aylık Yİ-ÜFE'!$T$268,IF(M37=46203,'Aylık Yİ-ÜFE'!$U$271,IF(M37=46295,'Aylık Yİ-ÜFE'!$V$274, IF(M37=46387,'Aylık Yİ-ÜFE'!$X$275))))),5) -> 0.1151
A38: 2017-04-07 | B38: 18 | I38: MÜK.298 Ç YE GÖRE İLGİLİ GEÇİCİ VERGİ DÖNEMİNE AİT YDO İLE YD YAPILABİLİR | M38: 2026-06-30 | N38: =TRUNC(IF(M38=46022,'Aylık Yİ-ÜFE'!$N$251,IF(M38=46112,'Aylık Yİ-ÜFE'!$T$268,IF(M38=46203,'Aylık Yİ-ÜFE'!$U$271,IF(M38=46295,'Aylık Yİ-ÜFE'!$V$274, IF(M38=46387,'Aylık Yİ-ÜFE'!$X$275))))),5) -> 0.1151
A39: 2017-10-17 | B39: 19 | I39: MÜK.298 Ç YE GÖRE İLGİLİ GEÇİCİ VERGİ DÖNEMİNE AİT YDO İLE YD YAPILABİLİR | M39: 2026-06-30 | N39: =TRUNC(IF(M39=46022,'Aylık Yİ-ÜFE'!$N$251,IF(M39=46112,'Aylık Yİ-ÜFE'!$T$268,IF(M39=46203,'Aylık Yİ-ÜFE'!$U$271,IF(M39=46295,'Aylık Yİ-ÜFE'!$V$274, IF(M39=46387,'Aylık Yİ-ÜFE'!$X$275))))),5) -> 0.1151
A40: 2018-05-28 | B40: 20 | I40: MÜK.298 Ç YE GÖRE İLGİLİ GEÇİCİ VERGİ DÖNEMİNE AİT YDO İLE YD YAPILABİLİR | M40: 2026-06-30 | N40: =TRUNC(IF(M40=46022,'Aylık Yİ-ÜFE'!$N$251,IF(M40=46112,'Aylık Yİ-ÜFE'!$T$268,IF(M40=46203,'Aylık Yİ-ÜFE'!$U$271,IF(M40=46295,'Aylık Yİ-ÜFE'!$V$274, IF(M40=46387,'Aylık Yİ-ÜFE'!$X$275))))),5) -> 0.1151
A41: 2018-05-28 | B41: 21 | I41: MÜK.298 Ç YE GÖRE İLGİLİ GEÇİCİ VERGİ DÖNEMİNE AİT YDO İLE YD YAPILABİLİR | M41: 2026-06-30 | N41: =TRUNC(IF(M41=46022,'Aylık Yİ-ÜFE'!$N$251,IF(M41=46112,'Aylık Yİ-ÜFE'!$T$268,IF(M41=46203,'Aylık Yİ-ÜFE'!$U$271,IF(M41=46295,'Aylık Yİ-ÜFE'!$V$274, IF(M41=46387,'Aylık Yİ-ÜFE'!$X$275))))),5) -> 0.1151
A42: 2018-05-25 | B42: 22 | I42: MÜK.298 Ç YE GÖRE İLGİLİ GEÇİCİ VERGİ DÖNEMİNE AİT YDO İLE YD YAPILABİLİR | M42: 2026-06-30 | N42: =TRUNC(IF(M42=46022,'Aylık Yİ-ÜFE'!$N$251,IF(M42=46112,'Aylık Yİ-ÜFE'!$T$268,IF(M42=46203,'Aylık Yİ-ÜFE'!$U$271,IF(M42=46295,'Aylık Yİ-ÜFE'!$V$274, IF(M42=46387,'Aylık Yİ-ÜFE'!$X$275))))),5) -> 0.1151
A43: 2018-05-31 | B43: 23 | I43: MÜK.298 Ç YE GÖRE İLGİLİ GEÇİCİ VERGİ DÖNEMİNE AİT YDO İLE YD YAPILABİLİR | M43: 2026-06-30 | N43: =TRUNC(IF(M43=46022,'Aylık Yİ-ÜFE'!$N$251,IF(M43=46112,'Aylık Yİ-ÜFE'!$T$268,IF(M43=46203,'Aylık Yİ-ÜFE'!$U$271,IF(M43=46295,'Aylık Yİ-ÜFE'!$V$274, IF(M43=46387,'Aylık Yİ-ÜFE'!$X$275))))),5) -> 0.1151
A44: 2018-05-31 | B44: 24 | I44: MÜK.298 Ç YE GÖRE İLGİLİ GEÇİCİ VERGİ DÖNEMİNE AİT YDO İLE YD YAPILABİLİR | M44: 2026-06-30 | N44: =TRUNC(IF(M44=46022,'Aylık Yİ-ÜFE'!$N$251,IF(M44=46112,'Aylık Yİ-ÜFE'!$T$268,IF(M44=46203,'Aylık Yİ-ÜFE'!$U$271,IF(M44=46295,'Aylık Yİ-ÜFE'!$V$274, IF(M44=46387,'Aylık Yİ-ÜFE'!$X$275))))),5) -> 0.1151
A45: 2019-10-01 | B45: 25 | I45: MÜK.298 Ç YE GÖRE İLGİLİ GEÇİCİ VERGİ DÖNEMİNE AİT YDO İLE YD YAPILABİLİR | M45: 2026-06-30 | N45: =TRUNC(IF(M45=46022,'Aylık Yİ-ÜFE'!$N$251,IF(M45=46112,'Aylık Yİ-ÜFE'!$T$268,IF(M45=46203,'Aylık Yİ-ÜFE'!$U$271,IF(M45=46295,'Aylık Yİ-ÜFE'!$V$274, IF(M45=46387,'Aylık Yİ-ÜFE'!$X$275))))),5) -> 0.1151
A46: 2019-10-09 | B46: 26 | I46: MÜK.298 Ç YE GÖRE İLGİLİ GEÇİCİ VERGİ DÖNEMİNE AİT YDO İLE YD YAPILABİLİR | M46: 2026-06-30 | N46: =TRUNC(IF(M46=46022,'Aylık Yİ-ÜFE'!$N$251,IF(M46=46112,'Aylık Yİ-ÜFE'!$T$268,IF(M46=46203,'Aylık Yİ-ÜFE'!$U$271,IF(M46=46295,'Aylık Yİ-ÜFE'!$V$274, IF(M46=46387,'Aylık Yİ-ÜFE'!$X$275))))),5) -> 0.1151
A47: 2019-10-12 | B47: 27 | I47: MÜK.298 Ç YE GÖRE İLGİLİ GEÇİCİ VERGİ DÖNEMİNE AİT YDO İLE YD YAPILABİLİR | M47: 2026-06-30 | N47: =TRUNC(IF(M47=46022,'Aylık Yİ-ÜFE'!$N$251,IF(M47=46112,'Aylık Yİ-ÜFE'!$T$268,IF(M47=46203,'Aylık Yİ-ÜFE'!$U$271,IF(M47=46295,'Aylık Yİ-ÜFE'!$V$274, IF(M47=46387,'Aylık Yİ-ÜFE'!$X$275))))),5) -> 0.1151
A48: 2001-01-01 | B48: 28 | I48: MÜK.298 Ç YE GÖRE İLGİLİ GEÇİCİ VERGİ DÖNEMİNE AİT YDO İLE YD YAPILABİLİR | M48: 2026-06-30 | N48: =TRUNC(IF(M48=46022,'Aylık Yİ-ÜFE'!$N$251,IF(M48=46112,'Aylık Yİ-ÜFE'!$T$268,IF(M48=46203,'Aylık Yİ-ÜFE'!$U$271,IF(M48=46295,'Aylık Yİ-ÜFE'!$V$274, IF(M48=46387,'Aylık Yİ-ÜFE'!$X$275))))),5) -> 0.1151
A49: 2006-01-01 | B49: 29 | I49: MÜK.298 Ç YE GÖRE İLGİLİ GEÇİCİ VERGİ DÖNEMİNE AİT YDO İLE YD YAPILABİLİR | M49: 2026-06-30 | N49: =TRUNC(IF(M49=46022,'Aylık Yİ-ÜFE'!$N$251,IF(M49=46112,'Aylık Yİ-ÜFE'!$T$268,IF(M49=46203,'Aylık Yİ-ÜFE'!$U$271,IF(M49=46295,'Aylık Yİ-ÜFE'!$V$274, IF(M49=46387,'Aylık Yİ-ÜFE'!$X$275))))),5) -> 0.1151
A50: 2006-01-01 | B50: 30 | I50: MÜK.298 Ç YE GÖRE İLGİLİ GEÇİCİ VERGİ DÖNEMİNE AİT YDO İLE YD YAPILABİLİR | M50: 2026-06-30 | N50: =TRUNC(IF(M50=46022,'Aylık Yİ-ÜFE'!$N$251,IF(M50=46112,'Aylık Yİ-ÜFE'!$T$268,IF(M50=46203,'Aylık Yİ-ÜFE'!$U$271,IF(M50=46295,'Aylık Yİ-ÜFE'!$V$274, IF(M50=46387,'Aylık Yİ-ÜFE'!$X$275))))),5) -> 0.1151
A51: 2018-06-26 | B51: 31 | I51: MÜK.298 Ç YE GÖRE İLGİLİ GEÇİCİ VERGİ DÖNEMİNE AİT YDO İLE YD YAPILABİLİR | M51: 2026-06-30 | N51: =TRUNC(IF(M51=46022,'Aylık Yİ-ÜFE'!$N$251,IF(M51=46112,'Aylık Yİ-ÜFE'!$T$268,IF(M51=46203,'Aylık Yİ-ÜFE'!$U$271,IF(M51=46295,'Aylık Yİ-ÜFE'!$V$274, IF(M51=46387,'Aylık Yİ-ÜFE'!$X$275))))),5) -> 0.1151
A52: 2018-08-02 | B52: 32 | I52: MÜK.298 Ç YE GÖRE İLGİLİ GEÇİCİ VERGİ DÖNEMİNE AİT YDO İLE YD YAPILABİLİR | M52: 2026-06-30 | N52: =TRUNC(IF(M52=46022,'Aylık Yİ-ÜFE'!$N$251,IF(M52=46112,'Aylık Yİ-ÜFE'!$T$268,IF(M52=46203,'Aylık Yİ-ÜFE'!$U$271,IF(M52=46295,'Aylık Yİ-ÜFE'!$V$274, IF(M52=46387,'Aylık Yİ-ÜFE'!$X$275))))),5) -> 0.1151
A53: 2018-08-03 | B53: 33 | I53: MÜK.298 Ç YE GÖRE İLGİLİ GEÇİCİ VERGİ DÖNEMİNE AİT YDO İLE YD YAPILABİLİR | M53: 2026-06-30 | N53: =TRUNC(IF(M53=46022,'Aylık Yİ-ÜFE'!$N$251,IF(M53=46112,'Aylık Yİ-ÜFE'!$T$268,IF(M53=46203,'Aylık Yİ-ÜFE'!$U$271,IF(M53=46295,'Aylık Yİ-ÜFE'!$V$274, IF(M53=46387,'Aylık Yİ-ÜFE'!$X$275))))),5) -> 0.1151
A54: 2018-08-03 | B54: 34 | I54: MÜK.298 Ç YE GÖRE İLGİLİ GEÇİCİ VERGİ DÖNEMİNE AİT YDO İLE YD YAPILABİLİR | M54: 2026-06-30 | N54: =TRUNC(IF(M54=46022,'Aylık Yİ-ÜFE'!$N$251,IF(M54=46112,'Aylık Yİ-ÜFE'!$T$268,IF(M54=46203,'Aylık Yİ-ÜFE'!$U$271,IF(M54=46295,'Aylık Yİ-ÜFE'!$V$274, IF(M54=46387,'Aylık Yİ-ÜFE'!$X$275))))),5) -> 0.1151
A55: 2018-07-31 | B55: 35 | I55: MÜK.298 Ç YE GÖRE İLGİLİ GEÇİCİ VERGİ DÖNEMİNE AİT YDO İLE YD YAPILABİLİR | M55: 2026-06-30 | N55: =TRUNC(IF(M55=46022,'Aylık Yİ-ÜFE'!$N$251,IF(M55=46112,'Aylık Yİ-ÜFE'!$T$268,IF(M55=46203,'Aylık Yİ-ÜFE'!$U$271,IF(M55=46295,'Aylık Yİ-ÜFE'!$V$274, IF(M55=46387,'Aylık Yİ-ÜFE'!$X$275))))),5) -> 0.1151
A56: 2018-08-27 | B56: 36 | I56: MÜK.298 Ç YE GÖRE İLGİLİ GEÇİCİ VERGİ DÖNEMİNE AİT YDO İLE YD YAPILABİLİR | M56: 2026-06-30 | N56: =TRUNC(IF(M56=46022,'Aylık Yİ-ÜFE'!$N$251,IF(M56=46112,'Aylık Yİ-ÜFE'!$T$268,IF(M56=46203,'Aylık Yİ-ÜFE'!$U$271,IF(M56=46295,'Aylık Yİ-ÜFE'!$V$274, IF(M56=46387,'Aylık Yİ-ÜFE'!$X$275))))),5) -> 0.1151
A57: 2018-09-13 | B57: 37 | I57: MÜK.298 Ç YE GÖRE İLGİLİ GEÇİCİ VERGİ DÖNEMİNE AİT YDO İLE YD YAPILABİLİR | M57: 2026-06-30 | N57: =TRUNC(IF(M57=46022,'Aylık Yİ-ÜFE'!$N$251,IF(M57=46112,'Aylık Yİ-ÜFE'!$T$268,IF(M57=46203,'Aylık Yİ-ÜFE'!$U$271,IF(M57=46295,'Aylık Yİ-ÜFE'!$V$274, IF(M57=46387,'Aylık Yİ-ÜFE'!$X$275))))),5) -> 0.1151
A58: 2018-09-21 | B58: 38 | I58: MÜK.298 Ç YE GÖRE İLGİLİ GEÇİCİ VERGİ DÖNEMİNE AİT YDO İLE YD YAPILABİLİR | M58: 2026-06-30 | N58: =TRUNC(IF(M58=46022,'Aylık Yİ-ÜFE'!$N$251,IF(M58=46112,'Aylık Yİ-ÜFE'!$T$268,IF(M58=46203,'Aylık Yİ-ÜFE'!$U$271,IF(M58=46295,'Aylık Yİ-ÜFE'!$V$274, IF(M58=46387,'Aylık Yİ-ÜFE'!$X$275))))),5) -> 0.1151
A59: 2019-05-15 | B59: 39 | I59: MÜK.298 Ç YE GÖRE İLGİLİ GEÇİCİ VERGİ DÖNEMİNE AİT YDO İLE YD YAPILABİLİR | M59: 2026-06-30 | N59: =TRUNC(IF(M59=46022,'Aylık Yİ-ÜFE'!$N$251,IF(M59=46112,'Aylık Yİ-ÜFE'!$T$268,IF(M59=46203,'Aylık Yİ-ÜFE'!$U$271,IF(M59=46295,'Aylık Yİ-ÜFE'!$V$274, IF(M59=46387,'Aylık Yİ-ÜFE'!$X$275))))),5) -> 0.1151
A60: 2019-09-14 | B60: 40 | I60: MÜK.298 Ç YE GÖRE İLGİLİ GEÇİCİ VERGİ DÖNEMİNE AİT YDO İLE YD YAPILABİLİR | M60: 2026-06-30 | N60: =TRUNC(IF(M60=46022,'Aylık Yİ-ÜFE'!$N$251,IF(M60=46112,'Aylık Yİ-ÜFE'!$T$268,IF(M60=46203,'Aylık Yİ-ÜFE'!$U$271,IF(M60=46295,'Aylık Yİ-ÜFE'!$V$274, IF(M60=46387,'Aylık Yİ-ÜFE'!$X$275))))),5) -> 0.1151
A61: 2019-09-15 | B61: 41 | I61: MÜK.298 Ç YE GÖRE İLGİLİ GEÇİCİ VERGİ DÖNEMİNE AİT YDO İLE YD YAPILABİLİR | M61: 2026-06-30 | N61: =TRUNC(IF(M61=46022,'Aylık Yİ-ÜFE'!$N$251,IF(M61=46112,'Aylık Yİ-ÜFE'!$T$268,IF(M61=46203,'Aylık Yİ-ÜFE'!$U$271,IF(M61=46295,'Aylık Yİ-ÜFE'!$V$274, IF(M61=46387,'Aylık Yİ-ÜFE'!$X$275))))),5) -> 0.1151
A62: 2019-09-24 | B62: 42 | I62: MÜK.298 Ç YE GÖRE İLGİLİ GEÇİCİ VERGİ DÖNEMİNE AİT YDO İLE YD YAPILABİLİR | M62: 2026-06-30 | N62: =TRUNC(IF(M62=46022,'Aylık Yİ-ÜFE'!$N$251,IF(M62=46112,'Aylık Yİ-ÜFE'!$T$268,IF(M62=46203,'Aylık Yİ-ÜFE'!$U$271,IF(M62=46295,'Aylık Yİ-ÜFE'!$V$274, IF(M62=46387,'Aylık Yİ-ÜFE'!$X$275))))),5) -> 0.1151
A63: 2019-10-01 | B63: 43 | I63: MÜK.298 Ç YE GÖRE İLGİLİ GEÇİCİ VERGİ DÖNEMİNE AİT YDO İLE YD YAPILABİLİR | M63: 2026-06-30 | N63: =TRUNC(IF(M63=46022,'Aylık Yİ-ÜFE'!$N$251,IF(M63=46112,'Aylık Yİ-ÜFE'!$T$268,IF(M63=46203,'Aylık Yİ-ÜFE'!$U$271,IF(M63=46295,'Aylık Yİ-ÜFE'!$V$274, IF(M63=46387,'Aylık Yİ-ÜFE'!$X$275))))),5) -> 0.1151
A64: 2019-10-15 | B64: 44 | I64: MÜK.298 Ç YE GÖRE İLGİLİ GEÇİCİ VERGİ DÖNEMİNE AİT YDO İLE YD YAPILABİLİR | M64: 2026-06-30 | N64: =TRUNC(IF(M64=46022,'Aylık Yİ-ÜFE'!$N$251,IF(M64=46112,'Aylık Yİ-ÜFE'!$T$268,IF(M64=46203,'Aylık Yİ-ÜFE'!$U$271,IF(M64=46295,'Aylık Yİ-ÜFE'!$V$274, IF(M64=46387,'Aylık Yİ-ÜFE'!$X$275))))),5) -> 0.1151
A65: 2020-05-29 | B65: 45 | I65: MÜK.298 Ç YE GÖRE İLGİLİ GEÇİCİ VERGİ DÖNEMİNE AİT YDO İLE YD YAPILABİLİR | M65: 2026-06-30 | N65: =TRUNC(IF(M65=46022,'Aylık Yİ-ÜFE'!$N$251,IF(M65=46112,'Aylık Yİ-ÜFE'!$T$268,IF(M65=46203,'Aylık Yİ-ÜFE'!$U$271,IF(M65=46295,'Aylık Yİ-ÜFE'!$V$274, IF(M65=46387,'Aylık Yİ-ÜFE'!$X$275))))),5) -> 0.1151
A66: 2020-07-13 | B66: 46 | I66: MÜK.298 Ç YE GÖRE İLGİLİ GEÇİCİ VERGİ DÖNEMİNE AİT YDO İLE YD YAPILABİLİR | M66: 2026-06-30 | N66: =TRUNC(IF(M66=46022,'Aylık Yİ-ÜFE'!$N$251,IF(M66=46112,'Aylık Yİ-ÜFE'!$T$268,IF(M66=46203,'Aylık Yİ-ÜFE'!$U$271,IF(M66=46295,'Aylık Yİ-ÜFE'!$V$274, IF(M66=46387,'Aylık Yİ-ÜFE'!$X$275))))),5) -> 0.1151
A67: 2020-07-20 | B67: 47 | I67: MÜK.298 Ç YE GÖRE İLGİLİ GEÇİCİ VERGİ DÖNEMİNE AİT YDO İLE YD YAPILABİLİR | M67: 2026-06-30 | N67: =TRUNC(IF(M67=46022,'Aylık Yİ-ÜFE'!$N$251,IF(M67=46112,'Aylık Yİ-ÜFE'!$T$268,IF(M67=46203,'Aylık Yİ-ÜFE'!$U$271,IF(M67=46295,'Aylık Yİ-ÜFE'!$V$274, IF(M67=46387,'Aylık Yİ-ÜFE'!$X$275))))),5) -> 0.1151
A68: 2020-07-16 | B68: 48 | I68: MÜK.298 Ç YE GÖRE İLGİLİ GEÇİCİ VERGİ DÖNEMİNE AİT YDO İLE YD YAPILABİLİR | M68: 2026-06-30 | N68: =TRUNC(IF(M68=46022,'Aylık Yİ-ÜFE'!$N$251,IF(M68=46112,'Aylık Yİ-ÜFE'!$T$268,IF(M68=46203,'Aylık Yİ-ÜFE'!$U$271,IF(M68=46295,'Aylık Yİ-ÜFE'!$V$274, IF(M68=46387,'Aylık Yİ-ÜFE'!$X$275))))),5) -> 0.1151
A69: 2020-07-22 | B69: 49 | I69: MÜK.298 Ç YE GÖRE İLGİLİ GEÇİCİ VERGİ DÖNEMİNE AİT YDO İLE YD YAPILABİLİR | M69: 2026-06-30 | N69: =TRUNC(IF(M69=46022,'Aylık Yİ-ÜFE'!$N$251,IF(M69=46112,'Aylık Yİ-ÜFE'!$T$268,IF(M69=46203,'Aylık Yİ-ÜFE'!$U$271,IF(M69=46295,'Aylık Yİ-ÜFE'!$V$274, IF(M69=46387,'Aylık Yİ-ÜFE'!$X$275))))),5) -> 0.1151
A70: 2020-07-30 | B70: 50 | I70: MÜK.298 Ç YE GÖRE İLGİLİ GEÇİCİ VERGİ DÖNEMİNE AİT YDO İLE YD YAPILABİLİR | M70: 2026-06-30 | N70: =TRUNC(IF(M70=46022,'Aylık Yİ-ÜFE'!$N$251,IF(M70=46112,'Aylık Yİ-ÜFE'!$T$268,IF(M70=46203,'Aylık Yİ-ÜFE'!$U$271,IF(M70=46295,'Aylık Yİ-ÜFE'!$V$274, IF(M70=46387,'Aylık Yİ-ÜFE'!$X$275))))),5) -> 0.1151
A71: 2020-07-30 | B71: 51 | I71: MÜK.298 Ç YE GÖRE İLGİLİ GEÇİCİ VERGİ DÖNEMİNE AİT YDO İLE YD YAPILABİLİR | M71: 2026-06-30 | N71: =TRUNC(IF(M71=46022,'Aylık Yİ-ÜFE'!$N$251,IF(M71=46112,'Aylık Yİ-ÜFE'!$T$268,IF(M71=46203,'Aylık Yİ-ÜFE'!$U$271,IF(M71=46295,'Aylık Yİ-ÜFE'!$V$274, IF(M71=46387,'Aylık Yİ-ÜFE'!$X$275))))),5) -> 0.1151
A72: 2020-08-24 | B72: 52 | I72: MÜK.298 Ç YE GÖRE İLGİLİ GEÇİCİ VERGİ DÖNEMİNE AİT YDO İLE YD YAPILABİLİR | M72: 2026-06-30 | N72: =TRUNC(IF(M72=46022,'Aylık Yİ-ÜFE'!$N$251,IF(M72=46112,'Aylık Yİ-ÜFE'!$T$268,IF(M72=46203,'Aylık Yİ-ÜFE'!$U$271,IF(M72=46295,'Aylık Yİ-ÜFE'!$V$274, IF(M72=46387,'Aylık Yİ-ÜFE'!$X$275))))),5) -> 0.1151
A73: 2020-10-14 | B73: 53 | I73: MÜK.298 Ç YE GÖRE İLGİLİ GEÇİCİ VERGİ DÖNEMİNE AİT YDO İLE YD YAPILABİLİR | M73: 2026-06-30 | N73: =TRUNC(IF(M73=46022,'Aylık Yİ-ÜFE'!$N$251,IF(M73=46112,'Aylık Yİ-ÜFE'!$T$268,IF(M73=46203,'Aylık Yİ-ÜFE'!$U$271,IF(M73=46295,'Aylık Yİ-ÜFE'!$V$274, IF(M73=46387,'Aylık Yİ-ÜFE'!$X$275))))),5) -> 0.1151
A74: 2021-01-22 | B74: 54 | I74: MÜK.298 Ç YE GÖRE İLGİLİ GEÇİCİ VERGİ DÖNEMİNE AİT YDO İLE YD YAPILABİLİR | M74: 2026-06-30 | N74: =TRUNC(IF(M74=46022,'Aylık Yİ-ÜFE'!$N$251,IF(M74=46112,'Aylık Yİ-ÜFE'!$T$268,IF(M74=46203,'Aylık Yİ-ÜFE'!$U$271,IF(M74=46295,'Aylık Yİ-ÜFE'!$V$274, IF(M74=46387,'Aylık Yİ-ÜFE'!$X$275))))),5) -> 0.1151
A75: 2021-03-31 | B75: 55 | I75: MÜK.298 Ç YE GÖRE İLGİLİ GEÇİCİ VERGİ DÖNEMİNE AİT YDO İLE YD YAPILABİLİR | M75: 2026-06-30 | N75: =TRUNC(IF(M75=46022,'Aylık Yİ-ÜFE'!$N$251,IF(M75=46112,'Aylık Yİ-ÜFE'!$T$268,IF(M75=46203,'Aylık Yİ-ÜFE'!$U$271,IF(M75=46295,'Aylık Yİ-ÜFE'!$V$274, IF(M75=46387,'Aylık Yİ-ÜFE'!$X$275))))),5) -> 0.1151
A76: 2021-03-31 | B76: 56 | I76: MÜK.298 Ç YE GÖRE İLGİLİ GEÇİCİ VERGİ DÖNEMİNE AİT YDO İLE YD YAPILABİLİR | M76: 2026-06-30 | N76: =TRUNC(IF(M76=46022,'Aylık Yİ-ÜFE'!$N$251,IF(M76=46112,'Aylık Yİ-ÜFE'!$T$268,IF(M76=46203,'Aylık Yİ-ÜFE'!$U$271,IF(M76=46295,'Aylık Yİ-ÜFE'!$V$274, IF(M76=46387,'Aylık Yİ-ÜFE'!$X$275))))),5) -> 0.1151
A77: 2021-06-09 | B77: 57 | I77: MÜK.298 Ç YE GÖRE İLGİLİ GEÇİCİ VERGİ DÖNEMİNE AİT YDO İLE YD YAPILABİLİR | M77: 2026-06-30 | N77: =TRUNC(IF(M77=46022,'Aylık Yİ-ÜFE'!$N$251,IF(M77=46112,'Aylık Yİ-ÜFE'!$T$268,IF(M77=46203,'Aylık Yİ-ÜFE'!$U$271,IF(M77=46295,'Aylık Yİ-ÜFE'!$V$274, IF(M77=46387,'Aylık Yİ-ÜFE'!$X$275))))),5) -> 0.1151
A78: 2021-10-20 | B78: 58 | I78: MÜK.298 Ç YE GÖRE İLGİLİ GEÇİCİ VERGİ DÖNEMİNE AİT YDO İLE YD YAPILABİLİR | M78: 2026-06-30 | N78: =TRUNC(IF(M78=46022,'Aylık Yİ-ÜFE'!$N$251,IF(M78=46112,'Aylık Yİ-ÜFE'!$T$268,IF(M78=46203,'Aylık Yİ-ÜFE'!$U$271,IF(M78=46295,'Aylık Yİ-ÜFE'!$V$274, IF(M78=46387,'Aylık Yİ-ÜFE'!$X$275))))),5) -> 0.1151
A79: 2021-11-09 | B79: 59 | I79: MÜK.298 Ç YE GÖRE İLGİLİ GEÇİCİ VERGİ DÖNEMİNE AİT YDO İLE YD YAPILABİLİR | M79: 2026-06-30 | N79: =TRUNC(IF(M79=46022,'Aylık Yİ-ÜFE'!$N$251,IF(M79=46112,'Aylık Yİ-ÜFE'!$T$268,IF(M79=46203,'Aylık Yİ-ÜFE'!$U$271,IF(M79=46295,'Aylık Yİ-ÜFE'!$V$274, IF(M79=46387,'Aylık Yİ-ÜFE'!$X$275))))),5) -> 0.1151
A80: 2021-11-20 | B80: 60 | I80: MÜK.298 Ç YE GÖRE İLGİLİ GEÇİCİ VERGİ DÖNEMİNE AİT YDO İLE YD YAPILABİLİR | M80: 2026-06-30 | N80: =TRUNC(IF(M80=46022,'Aylık Yİ-ÜFE'!$N$251,IF(M80=46112,'Aylık Yİ-ÜFE'!$T$268,IF(M80=46203,'Aylık Yİ-ÜFE'!$U$271,IF(M80=46295,'Aylık Yİ-ÜFE'!$V$274, IF(M80=46387,'Aylık Yİ-ÜFE'!$X$275))))),5) -> 0.1151
A81: 2021-11-26 | B81: 61 | I81: MÜK.298 Ç YE GÖRE İLGİLİ GEÇİCİ VERGİ DÖNEMİNE AİT YDO İLE YD YAPILABİLİR | M81: 2026-06-30 | N81: =TRUNC(IF(M81=46022,'Aylık Yİ-ÜFE'!$N$251,IF(M81=46112,'Aylık Yİ-ÜFE'!$T$268,IF(M81=46203,'Aylık Yİ-ÜFE'!$U$271,IF(M81=46295,'Aylık Yİ-ÜFE'!$V$274, IF(M81=46387,'Aylık Yİ-ÜFE'!$X$275))))),5) -> 0.1151
A82: 2021-12-17 | B82: 62 | I82: MÜK.298 Ç YE GÖRE İLGİLİ GEÇİCİ VERGİ DÖNEMİNE AİT YDO İLE YD YAPILABİLİR | M82: 2026-06-30 | N82: =TRUNC(IF(M82=46022,'Aylık Yİ-ÜFE'!$N$251,IF(M82=46112,'Aylık Yİ-ÜFE'!$T$268,IF(M82=46203,'Aylık Yİ-ÜFE'!$U$271,IF(M82=46295,'Aylık Yİ-ÜFE'!$V$274, IF(M82=46387,'Aylık Yİ-ÜFE'!$X$275))))),5) -> 0.1151
A83: 2021-12-24 | B83: 63 | I83: MÜK.298 Ç YE GÖRE İLGİLİ GEÇİCİ VERGİ DÖNEMİNE AİT YDO İLE YD YAPILABİLİR | M83: 2026-06-30 | N83: =TRUNC(IF(M83=46022,'Aylık Yİ-ÜFE'!$N$251,IF(M83=46112,'Aylık Yİ-ÜFE'!$T$268,IF(M83=46203,'Aylık Yİ-ÜFE'!$U$271,IF(M83=46295,'Aylık Yİ-ÜFE'!$V$274, IF(M83=46387,'Aylık Yİ-ÜFE'!$X$275))))),5) -> 0.1151
A84: 2021-12-25 | B84: 64 | I84: MÜK.298 Ç YE GÖRE İLGİLİ GEÇİCİ VERGİ DÖNEMİNE AİT YDO İLE YD YAPILABİLİR | M84: 2026-06-30 | N84: =TRUNC(IF(M84=46022,'Aylık Yİ-ÜFE'!$N$251,IF(M84=46112,'Aylık Yİ-ÜFE'!$T$268,IF(M84=46203,'Aylık Yİ-ÜFE'!$U$271,IF(M84=46295,'Aylık Yİ-ÜFE'!$V$274, IF(M84=46387,'Aylık Yİ-ÜFE'!$X$275))))),5) -> 0.1151
B85: 65 | I85: MÜK.298 Ç YE GÖRE İLGİLİ GEÇİCİ VERGİ DÖNEMİNE AİT YDO İLE YD YAPILABİLİR | M85: 2026-06-30 | N85: =TRUNC(IF(M85=46022,'Aylık Yİ-ÜFE'!$N$251,IF(M85=46112,'Aylık Yİ-ÜFE'!$T$268,IF(M85=46203,'Aylık Yİ-ÜFE'!$U$271,IF(M85=46295,'Aylık Yİ-ÜFE'!$V$274, IF(M85=46387,'Aylık Yİ-ÜFE'!$X$275))))),5) -> 0.1151
B86: 66 | I86: =IF(AND(H86>46022,H86<=46387),"2026 YILINDA İKTİSAP EDİLEN KIYMETLER İÇİN 2026 YILINDA MÜK.298 Ç YE GÖRE YENİDEN DEĞERLEME YAPILAMAZ", "MÜK.298 Ç YE GÖRE İLGİLİ GEÇİCİ VERGİ DÖNEMİNE AİT YDO İLE YD YAPILABİLİR") -> MÜK.298 Ç YE GÖRE İLGİLİ GEÇİCİ VERGİ DÖNEMİNE AİT YDO İLE YD YAPILABİLİR | M86: 2026-06-30 | N86: =TRUNC(IF(M86=46022,'Aylık Yİ-ÜFE'!$N$251,IF(M86=46112,'Aylık Yİ-ÜFE'!$T$268,IF(M86=46203,'Aylık Yİ-ÜFE'!$U$271,IF(M86=46295,'Aylık Yİ-ÜFE'!$V$274, IF(M86=46387,'Aylık Yİ-ÜFE'!$X$275))))),5) -> 0.1151
B87: 67 | I87: MÜK.298 Ç YE GÖRE İLGİLİ GEÇİCİ VERGİ DÖNEMİNE AİT YDO İLE YD YAPILABİLİR | M87: 2026-06-30 | N87: =TRUNC(IF(M87=46022,'Aylık Yİ-ÜFE'!$N$251,IF(M87=46112,'Aylık Yİ-ÜFE'!$T$268,IF(M87=46203,'Aylık Yİ-ÜFE'!$U$271,IF(M87=46295,'Aylık Yİ-ÜFE'!$V$274, IF(M87=46387,'Aylık Yİ-ÜFE'!$X$275))))),5) -> 0.1151
B88: 68 | I88: MÜK.298 Ç YE GÖRE İLGİLİ GEÇİCİ VERGİ DÖNEMİNE AİT YDO İLE YD YAPILABİLİR | M88: 2026-06-30 | N88: =TRUNC(IF(M88=46022,'Aylık Yİ-ÜFE'!$N$251,IF(M88=46112,'Aylık Yİ-ÜFE'!$T$268,IF(M88=46203,'Aylık Yİ-ÜFE'!$U$271,IF(M88=46295,'Aylık Yİ-ÜFE'!$V$274, IF(M88=46387,'Aylık Yİ-ÜFE'!$X$275))))),5) -> 0.1151
B89: 69 | I89: MÜK.298 Ç YE GÖRE İLGİLİ GEÇİCİ VERGİ DÖNEMİNE AİT YDO İLE YD YAPILABİLİR | M89: 2026-06-30 | N89: =TRUNC(IF(M89=46022,'Aylık Yİ-ÜFE'!$N$251,IF(M89=46112,'Aylık Yİ-ÜFE'!$T$268,IF(M89=46203,'Aylık Yİ-ÜFE'!$U$271,IF(M89=46295,'Aylık Yİ-ÜFE'!$V$274, IF(M89=46387,'Aylık Yİ-ÜFE'!$X$275))))),5) -> 0.1151
B90: 70 | I90: MÜK.298 Ç YE GÖRE İLGİLİ GEÇİCİ VERGİ DÖNEMİNE AİT YDO İLE YD YAPILABİLİR | M90: 2026-06-30 | N90: =TRUNC(IF(M90=46022,'Aylık Yİ-ÜFE'!$N$251,IF(M90=46112,'Aylık Yİ-ÜFE'!$T$268,IF(M90=46203,'Aylık Yİ-ÜFE'!$U$271,IF(M90=46295,'Aylık Yİ-ÜFE'!$V$274, IF(M90=46387,'Aylık Yİ-ÜFE'!$X$275))))),5) -> 0.1151
B91: 71 | I91: MÜK.298 Ç YE GÖRE İLGİLİ GEÇİCİ VERGİ DÖNEMİNE AİT YDO İLE YD YAPILABİLİR | M91: 2026-06-30 | N91: =TRUNC(IF(M91=46022,'Aylık Yİ-ÜFE'!$N$251,IF(M91=46112,'Aylık Yİ-ÜFE'!$T$268,IF(M91=46203,'Aylık Yİ-ÜFE'!$U$271,IF(M91=46295,'Aylık Yİ-ÜFE'!$V$274, IF(M91=46387,'Aylık Yİ-ÜFE'!$X$275))))),5) -> 0.1151
B92: 72 | I92: MÜK.298 Ç YE GÖRE İLGİLİ GEÇİCİ VERGİ DÖNEMİNE AİT YDO İLE YD YAPILABİLİR | M92: 2026-06-30 | N92: =TRUNC(IF(M92=46022,'Aylık Yİ-ÜFE'!$N$251,IF(M92=46112,'Aylık Yİ-ÜFE'!$T$268,IF(M92=46203,'Aylık Yİ-ÜFE'!$U$271,IF(M92=46295,'Aylık Yİ-ÜFE'!$V$274, IF(M92=46387,'Aylık Yİ-ÜFE'!$X$275))))),5) -> 0.1151
B93: 73 | I93: MÜK.298 Ç YE GÖRE İLGİLİ GEÇİCİ VERGİ DÖNEMİNE AİT YDO İLE YD YAPILABİLİR | M93: 2026-06-30 | N93: =TRUNC(IF(M93=46022,'Aylık Yİ-ÜFE'!$N$251,IF(M93=46112,'Aylık Yİ-ÜFE'!$T$268,IF(M93=46203,'Aylık Yİ-ÜFE'!$U$271,IF(M93=46295,'Aylık Yİ-ÜFE'!$V$274, IF(M93=46387,'Aylık Yİ-ÜFE'!$X$275))))),5) -> 0.1151
B94: 74 | I94: MÜK.298 Ç YE GÖRE İLGİLİ GEÇİCİ VERGİ DÖNEMİNE AİT YDO İLE YD YAPILABİLİR | M94: 2026-06-30 | N94: =TRUNC(IF(M94=46022,'Aylık Yİ-ÜFE'!$N$251,IF(M94=46112,'Aylık Yİ-ÜFE'!$T$268,IF(M94=46203,'Aylık Yİ-ÜFE'!$U$271,IF(M94=46295,'Aylık Yİ-ÜFE'!$V$274, IF(M94=46387,'Aylık Yİ-ÜFE'!$X$275))))),5) -> 0.1151
B95: 75 | I95: MÜK.298 Ç YE GÖRE İLGİLİ GEÇİCİ VERGİ DÖNEMİNE AİT YDO İLE YD YAPILABİLİR | M95: 2026-06-30 | N95: =TRUNC(IF(M95=46022,'Aylık Yİ-ÜFE'!$N$251,IF(M95=46112,'Aylık Yİ-ÜFE'!$T$268,IF(M95=46203,'Aylık Yİ-ÜFE'!$U$271,IF(M95=46295,'Aylık Yİ-ÜFE'!$V$274, IF(M95=46387,'Aylık Yİ-ÜFE'!$X$275))))),5) -> 0.1151
B96: 76 | I96: MÜK.298 Ç YE GÖRE İLGİLİ GEÇİCİ VERGİ DÖNEMİNE AİT YDO İLE YD YAPILABİLİR | M96: 2026-06-30 | N96: =TRUNC(IF(M96=46022,'Aylık Yİ-ÜFE'!$N$251,IF(M96=46112,'Aylık Yİ-ÜFE'!$T$268,IF(M96=46203,'Aylık Yİ-ÜFE'!$U$271,IF(M96=46295,'Aylık Yİ-ÜFE'!$V$274, IF(M96=46387,'Aylık Yİ-ÜFE'!$X$275))))),5) -> 0.1151
B97: 77 | I97: MÜK.298 Ç YE GÖRE İLGİLİ GEÇİCİ VERGİ DÖNEMİNE AİT YDO İLE YD YAPILABİLİR | M97: 2026-06-30 | N97: =TRUNC(IF(M97=46022,'Aylık Yİ-ÜFE'!$N$251,IF(M97=46112,'Aylık Yİ-ÜFE'!$T$268,IF(M97=46203,'Aylık Yİ-ÜFE'!$U$271,IF(M97=46295,'Aylık Yİ-ÜFE'!$V$274, IF(M97=46387,'Aylık Yİ-ÜFE'!$X$275))))),5) -> 0.1151
B98: 78 | I98: MÜK.298 Ç YE GÖRE İLGİLİ GEÇİCİ VERGİ DÖNEMİNE AİT YDO İLE YD YAPILABİLİR | M98: 2026-06-30 | N98: =TRUNC(IF(M98=46022,'Aylık Yİ-ÜFE'!$N$251,IF(M98=46112,'Aylık Yİ-ÜFE'!$T$268,IF(M98=46203,'Aylık Yİ-ÜFE'!$U$271,IF(M98=46295,'Aylık Yİ-ÜFE'!$V$274, IF(M98=46387,'Aylık Yİ-ÜFE'!$X$275))))),5) -> 0.1151
B99: 79 | I99: MÜK.298 Ç YE GÖRE İLGİLİ GEÇİCİ VERGİ DÖNEMİNE AİT YDO İLE YD YAPILABİLİR | M99: 2026-06-30 | N99: =TRUNC(IF(M99=46022,'Aylık Yİ-ÜFE'!$N$251,IF(M99=46112,'Aylık Yİ-ÜFE'!$T$268,IF(M99=46203,'Aylık Yİ-ÜFE'!$U$271,IF(M99=46295,'Aylık Yİ-ÜFE'!$V$274, IF(M99=46387,'Aylık Yİ-ÜFE'!$X$275))))),5) -> 0.1151
B100: 80 | I100: MÜK.298 Ç YE GÖRE İLGİLİ GEÇİCİ VERGİ DÖNEMİNE AİT YDO İLE YD YAPILABİLİR | M100: 2026-06-30 | N100: =TRUNC(IF(M100=46022,'Aylık Yİ-ÜFE'!$N$251,IF(M100=46112,'Aylık Yİ-ÜFE'!$T$268,IF(M100=46203,'Aylık Yİ-ÜFE'!$U$271,IF(M100=46295,'Aylık Yİ-ÜFE'!$V$274, IF(M100=46387,'Aylık Yİ-ÜFE'!$X$275))))),5) -> 0.1151
B101: 81 | I101: MÜK.298 Ç YE GÖRE İLGİLİ GEÇİCİ VERGİ DÖNEMİNE AİT YDO İLE YD YAPILABİLİR | M101: 2026-06-30 | N101: =TRUNC(IF(M101=46022,'Aylık Yİ-ÜFE'!$N$251,IF(M101=46112,'Aylık Yİ-ÜFE'!$T$268,IF(M101=46203,'Aylık Yİ-ÜFE'!$U$271,IF(M101=46295,'Aylık Yİ-ÜFE'!$V$274, IF(M101=46387,'Aylık Yİ-ÜFE'!$X$275))))),5) -> 0.1151
B102: 82 | I102: MÜK.298 Ç YE GÖRE İLGİLİ GEÇİCİ VERGİ DÖNEMİNE AİT YDO İLE YD YAPILABİLİR | M102: 2026-06-30 | N102: =TRUNC(IF(M102=46022,'Aylık Yİ-ÜFE'!$N$251,IF(M102=46112,'Aylık Yİ-ÜFE'!$T$268,IF(M102=46203,'Aylık Yİ-ÜFE'!$U$271,IF(M102=46295,'Aylık Yİ-ÜFE'!$V$274, IF(M102=46387,'Aylık Yİ-ÜFE'!$X$275))))),5) -> 0.1151
B103: 83 | I103: MÜK.298 Ç YE GÖRE İLGİLİ GEÇİCİ VERGİ DÖNEMİNE AİT YDO İLE YD YAPILABİLİR | M103: 2026-06-30 | N103: =TRUNC(IF(M103=46022,'Aylık Yİ-ÜFE'!$N$251,IF(M103=46112,'Aylık Yİ-ÜFE'!$T$268,IF(M103=46203,'Aylık Yİ-ÜFE'!$U$271,IF(M103=46295,'Aylık Yİ-ÜFE'!$V$274, IF(M103=46387,'Aylık Yİ-ÜFE'!$X$275))))),5) -> 0.1151
B104: 84 | I104: MÜK.298 Ç YE GÖRE İLGİLİ GEÇİCİ VERGİ DÖNEMİNE AİT YDO İLE YD YAPILABİLİR | M104: 2026-06-30 | N104: =TRUNC(IF(M104=46022,'Aylık Yİ-ÜFE'!$N$251,IF(M104=46112,'Aylık Yİ-ÜFE'!$T$268,IF(M104=46203,'Aylık Yİ-ÜFE'!$U$271,IF(M104=46295,'Aylık Yİ-ÜFE'!$V$274, IF(M104=46387,'Aylık Yİ-ÜFE'!$X$275))))),5) -> 0.1151
B105: 85 | I105: MÜK.298 Ç YE GÖRE İLGİLİ GEÇİCİ VERGİ DÖNEMİNE AİT YDO İLE YD YAPILABİLİR | M105: 2026-06-30 | N105: =TRUNC(IF(M105=46022,'Aylık Yİ-ÜFE'!$N$251,IF(M105=46112,'Aylık Yİ-ÜFE'!$T$268,IF(M105=46203,'Aylık Yİ-ÜFE'!$U$271,IF(M105=46295,'Aylık Yİ-ÜFE'!$V$274, IF(M105=46387,'Aylık Yİ-ÜFE'!$X$275))))),5) -> 0.1151
B106: 86 | I106: MÜK.298 Ç YE GÖRE İLGİLİ GEÇİCİ VERGİ DÖNEMİNE AİT YDO İLE YD YAPILABİLİR | M106: 2026-06-30 | N106: =TRUNC(IF(M106=46022,'Aylık Yİ-ÜFE'!$N$251,IF(M106=46112,'Aylık Yİ-ÜFE'!$T$268,IF(M106=46203,'Aylık Yİ-ÜFE'!$U$271,IF(M106=46295,'Aylık Yİ-ÜFE'!$V$274, IF(M106=46387,'Aylık Yİ-ÜFE'!$X$275))))),5) -> 0.1151
A107: 2013-09-30 | B107: 87 | I107: MÜK.298 Ç YE GÖRE İLGİLİ GEÇİCİ VERGİ DÖNEMİNE AİT YDO İLE YD YAPILABİLİR | M107: 2026-06-30 | N107: =TRUNC(IF(M107=46022,'Aylık Yİ-ÜFE'!$N$251,IF(M107=46112,'Aylık Yİ-ÜFE'!$T$268,IF(M107=46203,'Aylık Yİ-ÜFE'!$U$271,IF(M107=46295,'Aylık Yİ-ÜFE'!$V$274, IF(M107=46387,'Aylık Yİ-ÜFE'!$X$275))))),5) -> 0.1151
A108: 2013-09-30 | B108: 88 | I108: MÜK.298 Ç YE GÖRE İLGİLİ GEÇİCİ VERGİ DÖNEMİNE AİT YDO İLE YD YAPILABİLİR | M108: 2026-06-30 | N108: =TRUNC(IF(M108=46022,'Aylık Yİ-ÜFE'!$N$251,IF(M108=46112,'Aylık Yİ-ÜFE'!$T$268,IF(M108=46203,'Aylık Yİ-ÜFE'!$U$271,IF(M108=46295,'Aylık Yİ-ÜFE'!$V$274, IF(M108=46387,'Aylık Yİ-ÜFE'!$X$275))))),5) -> 0.1151
A109: 2014-07-18 | B109: 89 | I109: MÜK.298 Ç YE GÖRE İLGİLİ GEÇİCİ VERGİ DÖNEMİNE AİT YDO İLE YD YAPILABİLİR | M109: 2026-06-30 | N109: =TRUNC(IF(M109=46022,'Aylık Yİ-ÜFE'!$N$251,IF(M109=46112,'Aylık Yİ-ÜFE'!$T$268,IF(M109=46203,'Aylık Yİ-ÜFE'!$U$271,IF(M109=46295,'Aylık Yİ-ÜFE'!$V$274, IF(M109=46387,'Aylık Yİ-ÜFE'!$X$275))))),5) -> 0.1151
A110: 2014-08-11 | B110: 90 | I110: MÜK.298 Ç YE GÖRE İLGİLİ GEÇİCİ VERGİ DÖNEMİNE AİT YDO İLE YD YAPILABİLİR | M110: 2026-06-30 | N110: =TRUNC(IF(M110=46022,'Aylık Yİ-ÜFE'!$N$251,IF(M110=46112,'Aylık Yİ-ÜFE'!$T$268,IF(M110=46203,'Aylık Yİ-ÜFE'!$U$271,IF(M110=46295,'Aylık Yİ-ÜFE'!$V$274, IF(M110=46387,'Aylık Yİ-ÜFE'!$X$275))))),5) -> 0.1151
A111: 2014-08-11 | B111: 91 | I111: MÜK.298 Ç YE GÖRE İLGİLİ GEÇİCİ VERGİ DÖNEMİNE AİT YDO İLE YD YAPILABİLİR | M111: 2026-06-30 | N111: =TRUNC(IF(M111=46022,'Aylık Yİ-ÜFE'!$N$251,IF(M111=46112,'Aylık Yİ-ÜFE'!$T$268,IF(M111=46203,'Aylık Yİ-ÜFE'!$U$271,IF(M111=46295,'Aylık Yİ-ÜFE'!$V$274, IF(M111=46387,'Aylık Yİ-ÜFE'!$X$275))))),5) -> 0.1151
A112: 2014-08-11 | B112: 92 | I112: MÜK.298 Ç YE GÖRE İLGİLİ GEÇİCİ VERGİ DÖNEMİNE AİT YDO İLE YD YAPILABİLİR | M112: 2026-06-30 | N112: =TRUNC(IF(M112=46022,'Aylık Yİ-ÜFE'!$N$251,IF(M112=46112,'Aylık Yİ-ÜFE'!$T$268,IF(M112=46203,'Aylık Yİ-ÜFE'!$U$271,IF(M112=46295,'Aylık Yİ-ÜFE'!$V$274, IF(M112=46387,'Aylık Yİ-ÜFE'!$X$275))))),5) -> 0.1151
A113: 2014-08-11 | B113: 93 | I113: MÜK.298 Ç YE GÖRE İLGİLİ GEÇİCİ VERGİ DÖNEMİNE AİT YDO İLE YD YAPILABİLİR | M113: 2026-06-30 | N113: =TRUNC(IF(M113=46022,'Aylık Yİ-ÜFE'!$N$251,IF(M113=46112,'Aylık Yİ-ÜFE'!$T$268,IF(M113=46203,'Aylık Yİ-ÜFE'!$U$271,IF(M113=46295,'Aylık Yİ-ÜFE'!$V$274, IF(M113=46387,'Aylık Yİ-ÜFE'!$X$275))))),5) -> 0.1151
A114: 2014-08-11 | B114: 94 | I114: MÜK.298 Ç YE GÖRE İLGİLİ GEÇİCİ VERGİ DÖNEMİNE AİT YDO İLE YD YAPILABİLİR | M114: 2026-06-30 | N114: =TRUNC(IF(M114=46022,'Aylık Yİ-ÜFE'!$N$251,IF(M114=46112,'Aylık Yİ-ÜFE'!$T$268,IF(M114=46203,'Aylık Yİ-ÜFE'!$U$271,IF(M114=46295,'Aylık Yİ-ÜFE'!$V$274, IF(M114=46387,'Aylık Yİ-ÜFE'!$X$275))))),5) -> 0.1151
A115: 2014-08-11 | B115: 95 | I115: MÜK.298 Ç YE GÖRE İLGİLİ GEÇİCİ VERGİ DÖNEMİNE AİT YDO İLE YD YAPILABİLİR | M115: 2026-06-30 | N115: =TRUNC(IF(M115=46022,'Aylık Yİ-ÜFE'!$N$251,IF(M115=46112,'Aylık Yİ-ÜFE'!$T$268,IF(M115=46203,'Aylık Yİ-ÜFE'!$U$271,IF(M115=46295,'Aylık Yİ-ÜFE'!$V$274, IF(M115=46387,'Aylık Yİ-ÜFE'!$X$275))))),5) -> 0.1151
A116: 2014-08-11 | B116: 96 | I116: MÜK.298 Ç YE GÖRE İLGİLİ GEÇİCİ VERGİ DÖNEMİNE AİT YDO İLE YD YAPILABİLİR | M116: 2026-06-30 | N116: =TRUNC(IF(M116=46022,'Aylık Yİ-ÜFE'!$N$251,IF(M116=46112,'Aylık Yİ-ÜFE'!$T$268,IF(M116=46203,'Aylık Yİ-ÜFE'!$U$271,IF(M116=46295,'Aylık Yİ-ÜFE'!$V$274, IF(M116=46387,'Aylık Yİ-ÜFE'!$X$275))))),5) -> 0.1151
A117: 2014-08-11 | B117: 97 | I117: MÜK.298 Ç YE GÖRE İLGİLİ GEÇİCİ VERGİ DÖNEMİNE AİT YDO İLE YD YAPILABİLİR | M117: 2026-06-30 | N117: =TRUNC(IF(M117=46022,'Aylık Yİ-ÜFE'!$N$251,IF(M117=46112,'Aylık Yİ-ÜFE'!$T$268,IF(M117=46203,'Aylık Yİ-ÜFE'!$U$271,IF(M117=46295,'Aylık Yİ-ÜFE'!$V$274, IF(M117=46387,'Aylık Yİ-ÜFE'!$X$275))))),5) -> 0.1151
A118: 2014-08-11 | B118: 98 | I118: MÜK.298 Ç YE GÖRE İLGİLİ GEÇİCİ VERGİ DÖNEMİNE AİT YDO İLE YD YAPILABİLİR | M118: 2026-06-30 | N118: =TRUNC(IF(M118=46022,'Aylık Yİ-ÜFE'!$N$251,IF(M118=46112,'Aylık Yİ-ÜFE'!$T$268,IF(M118=46203,'Aylık Yİ-ÜFE'!$U$271,IF(M118=46295,'Aylık Yİ-ÜFE'!$V$274, IF(M118=46387,'Aylık Yİ-ÜFE'!$X$275))))),5) -> 0.1151
A119: 2014-08-11 | B119: 99 | I119: MÜK.298 Ç YE GÖRE İLGİLİ GEÇİCİ VERGİ DÖNEMİNE AİT YDO İLE YD YAPILABİLİR | M119: 2026-06-30 | N119: =TRUNC(IF(M119=46022,'Aylık Yİ-ÜFE'!$N$251,IF(M119=46112,'Aylık Yİ-ÜFE'!$T$268,IF(M119=46203,'Aylık Yİ-ÜFE'!$U$271,IF(M119=46295,'Aylık Yİ-ÜFE'!$V$274, IF(M119=46387,'Aylık Yİ-ÜFE'!$X$275))))),5) -> 0.1151
A120: 2014-08-11 | B120: 100 | I120: MÜK.298 Ç YE GÖRE İLGİLİ GEÇİCİ VERGİ DÖNEMİNE AİT YDO İLE YD YAPILABİLİR | M120: 2026-06-30 | N120: =TRUNC(IF(M120=46022,'Aylık Yİ-ÜFE'!$N$251,IF(M120=46112,'Aylık Yİ-ÜFE'!$T$268,IF(M120=46203,'Aylık Yİ-ÜFE'!$U$271,IF(M120=46295,'Aylık Yİ-ÜFE'!$V$274, IF(M120=46387,'Aylık Yİ-ÜFE'!$X$275))))),5) -> 0.1151
A121: 2014-08-11 | B121: 101 | I121: MÜK.298 Ç YE GÖRE İLGİLİ GEÇİCİ VERGİ DÖNEMİNE AİT YDO İLE YD YAPILABİLİR | M121: 2026-06-30 | N121: =TRUNC(IF(M121=46022,'Aylık Yİ-ÜFE'!$N$251,IF(M121=46112,'Aylık Yİ-ÜFE'!$T$268,IF(M121=46203,'Aylık Yİ-ÜFE'!$U$271,IF(M121=46295,'Aylık Yİ-ÜFE'!$V$274, IF(M121=46387,'Aylık Yİ-ÜFE'!$X$275))))),5) -> 0.1151
A122: 2014-08-11 | B122: 102 | I122: MÜK.298 Ç YE GÖRE İLGİLİ GEÇİCİ VERGİ DÖNEMİNE AİT YDO İLE YD YAPILABİLİR | M122: 2026-06-30 | N122: =TRUNC(IF(M122=46022,'Aylık Yİ-ÜFE'!$N$251,IF(M122=46112,'Aylık Yİ-ÜFE'!$T$268,IF(M122=46203,'Aylık Yİ-ÜFE'!$U$271,IF(M122=46295,'Aylık Yİ-ÜFE'!$V$274, IF(M122=46387,'Aylık Yİ-ÜFE'!$X$275))))),5) -> 0.1151
A123: 2014-08-11 | B123: 103 | I123: MÜK.298 Ç YE GÖRE İLGİLİ GEÇİCİ VERGİ DÖNEMİNE AİT YDO İLE YD YAPILABİLİR | M123: 2026-06-30 | N123: =TRUNC(IF(M123=46022,'Aylık Yİ-ÜFE'!$N$251,IF(M123=46112,'Aylık Yİ-ÜFE'!$T$268,IF(M123=46203,'Aylık Yİ-ÜFE'!$U$271,IF(M123=46295,'Aylık Yİ-ÜFE'!$V$274, IF(M123=46387,'Aylık Yİ-ÜFE'!$X$275))))),5) -> 0.1151
A124: 2014-08-11 | B124: 104 | I124: MÜK.298 Ç YE GÖRE İLGİLİ GEÇİCİ VERGİ DÖNEMİNE AİT YDO İLE YD YAPILABİLİR | M124: 2026-06-30 | N124: =TRUNC(IF(M124=46022,'Aylık Yİ-ÜFE'!$N$251,IF(M124=46112,'Aylık Yİ-ÜFE'!$T$268,IF(M124=46203,'Aylık Yİ-ÜFE'!$U$271,IF(M124=46295,'Aylık Yİ-ÜFE'!$V$274, IF(M124=46387,'Aylık Yİ-ÜFE'!$X$275))))),5) -> 0.1151
A125: 2014-08-11 | B125: 105 | I125: MÜK.298 Ç YE GÖRE İLGİLİ GEÇİCİ VERGİ DÖNEMİNE AİT YDO İLE YD YAPILABİLİR | M125: 2026-06-30 | N125: =TRUNC(IF(M125=46022,'Aylık Yİ-ÜFE'!$N$251,IF(M125=46112,'Aylık Yİ-ÜFE'!$T$268,IF(M125=46203,'Aylık Yİ-ÜFE'!$U$271,IF(M125=46295,'Aylık Yİ-ÜFE'!$V$274, IF(M125=46387,'Aylık Yİ-ÜFE'!$X$275))))),5) -> 0.1151
A126: 2014-08-11 | B126: 106 | I126: MÜK.298 Ç YE GÖRE İLGİLİ GEÇİCİ VERGİ DÖNEMİNE AİT YDO İLE YD YAPILABİLİR | M126: 2026-06-30 | N126: =TRUNC(IF(M126=46022,'Aylık Yİ-ÜFE'!$N$251,IF(M126=46112,'Aylık Yİ-ÜFE'!$T$268,IF(M126=46203,'Aylık Yİ-ÜFE'!$U$271,IF(M126=46295,'Aylık Yİ-ÜFE'!$V$274, IF(M126=46387,'Aylık Yİ-ÜFE'!$X$275))))),5) -> 0.1151
A127: 2014-08-11 | B127: 107 | I127: MÜK.298 Ç YE GÖRE İLGİLİ GEÇİCİ VERGİ DÖNEMİNE AİT YDO İLE YD YAPILABİLİR | M127: 2026-06-30 | N127: =TRUNC(IF(M127=46022,'Aylık Yİ-ÜFE'!$N$251,IF(M127=46112,'Aylık Yİ-ÜFE'!$T$268,IF(M127=46203,'Aylık Yİ-ÜFE'!$U$271,IF(M127=46295,'Aylık Yİ-ÜFE'!$V$274, IF(M127=46387,'Aylık Yİ-ÜFE'!$X$275))))),5) -> 0.1151
A128: 2014-08-11 | B128: 108 | I128: MÜK.298 Ç YE GÖRE İLGİLİ GEÇİCİ VERGİ DÖNEMİNE AİT YDO İLE YD YAPILABİLİR | M128: 2026-06-30 | N128: =TRUNC(IF(M128=46022,'Aylık Yİ-ÜFE'!$N$251,IF(M128=46112,'Aylık Yİ-ÜFE'!$T$268,IF(M128=46203,'Aylık Yİ-ÜFE'!$U$271,IF(M128=46295,'Aylık Yİ-ÜFE'!$V$274, IF(M128=46387,'Aylık Yİ-ÜFE'!$X$275))))),5) -> 0.1151
A129: 2014-09-04 | B129: 109 | I129: MÜK.298 Ç YE GÖRE İLGİLİ GEÇİCİ VERGİ DÖNEMİNE AİT YDO İLE YD YAPILABİLİR | M129: 2026-06-30 | N129: =TRUNC(IF(M129=46022,'Aylık Yİ-ÜFE'!$N$251,IF(M129=46112,'Aylık Yİ-ÜFE'!$T$268,IF(M129=46203,'Aylık Yİ-ÜFE'!$U$271,IF(M129=46295,'Aylık Yİ-ÜFE'!$V$274, IF(M129=46387,'Aylık Yİ-ÜFE'!$X$275))))),5) -> 0.1151
A130: 2014-09-04 | B130: 110 | I130: MÜK.298 Ç YE GÖRE İLGİLİ GEÇİCİ VERGİ DÖNEMİNE AİT YDO İLE YD YAPILABİLİR | M130: 2026-06-30 | N130: =TRUNC(IF(M130=46022,'Aylık Yİ-ÜFE'!$N$251,IF(M130=46112,'Aylık Yİ-ÜFE'!$T$268,IF(M130=46203,'Aylık Yİ-ÜFE'!$U$271,IF(M130=46295,'Aylık Yİ-ÜFE'!$V$274, IF(M130=46387,'Aylık Yİ-ÜFE'!$X$275))))),5) -> 0.1151
A131: 2014-09-04 | B131: 111 | I131: MÜK.298 Ç YE GÖRE İLGİLİ GEÇİCİ VERGİ DÖNEMİNE AİT YDO İLE YD YAPILABİLİR | M131: 2026-06-30 | N131: =TRUNC(IF(M131=46022,'Aylık Yİ-ÜFE'!$N$251,IF(M131=46112,'Aylık Yİ-ÜFE'!$T$268,IF(M131=46203,'Aylık Yİ-ÜFE'!$U$271,IF(M131=46295,'Aylık Yİ-ÜFE'!$V$274, IF(M131=46387,'Aylık Yİ-ÜFE'!$X$275))))),5) -> 0.1151
A132: 2014-09-04 | B132: 112 | I132: MÜK.298 Ç YE GÖRE İLGİLİ GEÇİCİ VERGİ DÖNEMİNE AİT YDO İLE YD YAPILABİLİR | M132: 2026-06-30 | N132: =TRUNC(IF(M132=46022,'Aylık Yİ-ÜFE'!$N$251,IF(M132=46112,'Aylık Yİ-ÜFE'!$T$268,IF(M132=46203,'Aylık Yİ-ÜFE'!$U$271,IF(M132=46295,'Aylık Yİ-ÜFE'!$V$274, IF(M132=46387,'Aylık Yİ-ÜFE'!$X$275))))),5) -> 0.1151
A133: 2014-09-04 | B133: 113 | I133: MÜK.298 Ç YE GÖRE İLGİLİ GEÇİCİ VERGİ DÖNEMİNE AİT YDO İLE YD YAPILABİLİR | M133: 2026-06-30 | N133: =TRUNC(IF(M133=46022,'Aylık Yİ-ÜFE'!$N$251,IF(M133=46112,'Aylık Yİ-ÜFE'!$T$268,IF(M133=46203,'Aylık Yİ-ÜFE'!$U$271,IF(M133=46295,'Aylık Yİ-ÜFE'!$V$274, IF(M133=46387,'Aylık Yİ-ÜFE'!$X$275))))),5) -> 0.1151
A134: 2014-09-04 | B134: 114 | I134: MÜK.298 Ç YE GÖRE İLGİLİ GEÇİCİ VERGİ DÖNEMİNE AİT YDO İLE YD YAPILABİLİR | M134: 2026-06-30 | N134: =TRUNC(IF(M134=46022,'Aylık Yİ-ÜFE'!$N$251,IF(M134=46112,'Aylık Yİ-ÜFE'!$T$268,IF(M134=46203,'Aylık Yİ-ÜFE'!$U$271,IF(M134=46295,'Aylık Yİ-ÜFE'!$V$274, IF(M134=46387,'Aylık Yİ-ÜFE'!$X$275))))),5) -> 0.1151
A135: 2014-09-04 | B135: 115 | I135: MÜK.298 Ç YE GÖRE İLGİLİ GEÇİCİ VERGİ DÖNEMİNE AİT YDO İLE YD YAPILABİLİR | M135: 2026-06-30 | N135: =TRUNC(IF(M135=46022,'Aylık Yİ-ÜFE'!$N$251,IF(M135=46112,'Aylık Yİ-ÜFE'!$T$268,IF(M135=46203,'Aylık Yİ-ÜFE'!$U$271,IF(M135=46295,'Aylık Yİ-ÜFE'!$V$274, IF(M135=46387,'Aylık Yİ-ÜFE'!$X$275))))),5) -> 0.1151
A136: 2014-09-04 | B136: 116 | I136: MÜK.298 Ç YE GÖRE İLGİLİ GEÇİCİ VERGİ DÖNEMİNE AİT YDO İLE YD YAPILABİLİR | M136: 2026-06-30 | N136: =TRUNC(IF(M136=46022,'Aylık Yİ-ÜFE'!$N$251,IF(M136=46112,'Aylık Yİ-ÜFE'!$T$268,IF(M136=46203,'Aylık Yİ-ÜFE'!$U$271,IF(M136=46295,'Aylık Yİ-ÜFE'!$V$274, IF(M136=46387,'Aylık Yİ-ÜFE'!$X$275))))),5) -> 0.1151
A137: 2014-09-04 | B137: 117 | I137: MÜK.298 Ç YE GÖRE İLGİLİ GEÇİCİ VERGİ DÖNEMİNE AİT YDO İLE YD YAPILABİLİR | M137: 2026-06-30 | N137: =TRUNC(IF(M137=46022,'Aylık Yİ-ÜFE'!$N$251,IF(M137=46112,'Aylık Yİ-ÜFE'!$T$268,IF(M137=46203,'Aylık Yİ-ÜFE'!$U$271,IF(M137=46295,'Aylık Yİ-ÜFE'!$V$274, IF(M137=46387,'Aylık Yİ-ÜFE'!$X$275))))),5) -> 0.1151
A138: 2014-09-04 | B138: 118 | I138: MÜK.298 Ç YE GÖRE İLGİLİ GEÇİCİ VERGİ DÖNEMİNE AİT YDO İLE YD YAPILABİLİR | M138: 2026-06-30 | N138: =TRUNC(IF(M138=46022,'Aylık Yİ-ÜFE'!$N$251,IF(M138=46112,'Aylık Yİ-ÜFE'!$T$268,IF(M138=46203,'Aylık Yİ-ÜFE'!$U$271,IF(M138=46295,'Aylık Yİ-ÜFE'!$V$274, IF(M138=46387,'Aylık Yİ-ÜFE'!$X$275))))),5) -> 0.1151
A139: 2014-09-04 | B139: 119 | I139: MÜK.298 Ç YE GÖRE İLGİLİ GEÇİCİ VERGİ DÖNEMİNE AİT YDO İLE YD YAPILABİLİR | M139: 2026-06-30 | N139: =TRUNC(IF(M139=46022,'Aylık Yİ-ÜFE'!$N$251,IF(M139=46112,'Aylık Yİ-ÜFE'!$T$268,IF(M139=46203,'Aylık Yİ-ÜFE'!$U$271,IF(M139=46295,'Aylık Yİ-ÜFE'!$V$274, IF(M139=46387,'Aylık Yİ-ÜFE'!$X$275))))),5) -> 0.1151
A140: 2014-09-04 | B140: 120 | I140: MÜK.298 Ç YE GÖRE İLGİLİ GEÇİCİ VERGİ DÖNEMİNE AİT YDO İLE YD YAPILABİLİR | M140: 2026-06-30 | N140: =TRUNC(IF(M140=46022,'Aylık Yİ-ÜFE'!$N$251,IF(M140=46112,'Aylık Yİ-ÜFE'!$T$268,IF(M140=46203,'Aylık Yİ-ÜFE'!$U$271,IF(M140=46295,'Aylık Yİ-ÜFE'!$V$274, IF(M140=46387,'Aylık Yİ-ÜFE'!$X$275))))),5) -> 0.1151
A141: 2014-09-04 | B141: 121 | I141: MÜK.298 Ç YE GÖRE İLGİLİ GEÇİCİ VERGİ DÖNEMİNE AİT YDO İLE YD YAPILABİLİR | M141: 2026-06-30 | N141: =TRUNC(IF(M141=46022,'Aylık Yİ-ÜFE'!$N$251,IF(M141=46112,'Aylık Yİ-ÜFE'!$T$268,IF(M141=46203,'Aylık Yİ-ÜFE'!$U$271,IF(M141=46295,'Aylık Yİ-ÜFE'!$V$274, IF(M141=46387,'Aylık Yİ-ÜFE'!$X$275))))),5) -> 0.1151
A142: 2014-09-04 | B142: 122 | I142: MÜK.298 Ç YE GÖRE İLGİLİ GEÇİCİ VERGİ DÖNEMİNE AİT YDO İLE YD YAPILABİLİR | M142: 2026-06-30 | N142: =TRUNC(IF(M142=46022,'Aylık Yİ-ÜFE'!$N$251,IF(M142=46112,'Aylık Yİ-ÜFE'!$T$268,IF(M142=46203,'Aylık Yİ-ÜFE'!$U$271,IF(M142=46295,'Aylık Yİ-ÜFE'!$V$274, IF(M142=46387,'Aylık Yİ-ÜFE'!$X$275))))),5) -> 0.1151
A143: 2014-09-04 | B143: 123 | I143: MÜK.298 Ç YE GÖRE İLGİLİ GEÇİCİ VERGİ DÖNEMİNE AİT YDO İLE YD YAPILABİLİR | M143: 2026-06-30 | N143: =TRUNC(IF(M143=46022,'Aylık Yİ-ÜFE'!$N$251,IF(M143=46112,'Aylık Yİ-ÜFE'!$T$268,IF(M143=46203,'Aylık Yİ-ÜFE'!$U$271,IF(M143=46295,'Aylık Yİ-ÜFE'!$V$274, IF(M143=46387,'Aylık Yİ-ÜFE'!$X$275))))),5) -> 0.1151
A144: 2014-09-04 | B144: 124 | I144: MÜK.298 Ç YE GÖRE İLGİLİ GEÇİCİ VERGİ DÖNEMİNE AİT YDO İLE YD YAPILABİLİR | M144: 2026-06-30 | N144: =TRUNC(IF(M144=46022,'Aylık Yİ-ÜFE'!$N$251,IF(M144=46112,'Aylık Yİ-ÜFE'!$T$268,IF(M144=46203,'Aylık Yİ-ÜFE'!$U$271,IF(M144=46295,'Aylık Yİ-ÜFE'!$V$274, IF(M144=46387,'Aylık Yİ-ÜFE'!$X$275))))),5) -> 0.1151
A145: 2014-09-04 | B145: 125 | I145: MÜK.298 Ç YE GÖRE İLGİLİ GEÇİCİ VERGİ DÖNEMİNE AİT YDO İLE YD YAPILABİLİR | M145: 2026-06-30 | N145: =TRUNC(IF(M145=46022,'Aylık Yİ-ÜFE'!$N$251,IF(M145=46112,'Aylık Yİ-ÜFE'!$T$268,IF(M145=46203,'Aylık Yİ-ÜFE'!$U$271,IF(M145=46295,'Aylık Yİ-ÜFE'!$V$274, IF(M145=46387,'Aylık Yİ-ÜFE'!$X$275))))),5) -> 0.1151
A146: 2014-09-04 | B146: 126 | I146: MÜK.298 Ç YE GÖRE İLGİLİ GEÇİCİ VERGİ DÖNEMİNE AİT YDO İLE YD YAPILABİLİR | M146: 2026-06-30 | N146: =TRUNC(IF(M146=46022,'Aylık Yİ-ÜFE'!$N$251,IF(M146=46112,'Aylık Yİ-ÜFE'!$T$268,IF(M146=46203,'Aylık Yİ-ÜFE'!$U$271,IF(M146=46295,'Aylık Yİ-ÜFE'!$V$274, IF(M146=46387,'Aylık Yİ-ÜFE'!$X$275))))),5) -> 0.1151
A147: 2014-09-04 | B147: 127 | I147: MÜK.298 Ç YE GÖRE İLGİLİ GEÇİCİ VERGİ DÖNEMİNE AİT YDO İLE YD YAPILABİLİR | M147: 2026-06-30 | N147: =TRUNC(IF(M147=46022,'Aylık Yİ-ÜFE'!$N$251,IF(M147=46112,'Aylık Yİ-ÜFE'!$T$268,IF(M147=46203,'Aylık Yİ-ÜFE'!$U$271,IF(M147=46295,'Aylık Yİ-ÜFE'!$V$274, IF(M147=46387,'Aylık Yİ-ÜFE'!$X$275))))),5) -> 0.1151
A148: 2014-09-04 | B148: 128 | I148: MÜK.298 Ç YE GÖRE İLGİLİ GEÇİCİ VERGİ DÖNEMİNE AİT YDO İLE YD YAPILABİLİR | M148: 2026-06-30 | N148: =TRUNC(IF(M148=46022,'Aylık Yİ-ÜFE'!$N$251,IF(M148=46112,'Aylık Yİ-ÜFE'!$T$268,IF(M148=46203,'Aylık Yİ-ÜFE'!$U$271,IF(M148=46295,'Aylık Yİ-ÜFE'!$V$274, IF(M148=46387,'Aylık Yİ-ÜFE'!$X$275))))),5) -> 0.1151
A149: 2014-09-04 | B149: 129 | I149: MÜK.298 Ç YE GÖRE İLGİLİ GEÇİCİ VERGİ DÖNEMİNE AİT YDO İLE YD YAPILABİLİR | M149: 2026-06-30 | N149: =TRUNC(IF(M149=46022,'Aylık Yİ-ÜFE'!$N$251,IF(M149=46112,'Aylık Yİ-ÜFE'!$T$268,IF(M149=46203,'Aylık Yİ-ÜFE'!$U$271,IF(M149=46295,'Aylık Yİ-ÜFE'!$V$274, IF(M149=46387,'Aylık Yİ-ÜFE'!$X$275))))),5) -> 0.1151
A150: 2014-09-04 | B150: 130 | I150: =IF(AND(H150>46022,H150<=46387),"2026 YILINDA İKTİSAP EDİLEN KIYMETLER İÇİN 2026 YILINDA MÜK.298 Ç YE GÖRE YENİDEN DEĞERLEME YAPILAMAZ", "MÜK.298 Ç YE GÖRE İLGİLİ GEÇİCİ VERGİ DÖNEMİNE AİT YDO İLE YD YAPILABİLİR") -> MÜK.298 Ç YE GÖRE İLGİLİ GEÇİCİ VERGİ DÖNEMİNE AİT YDO İLE YD YAPILABİLİR | M150: 2026-06-30 | N150: =TRUNC(IF(M150=46022,'Aylık Yİ-ÜFE'!$N$251,IF(M150=46112,'Aylık Yİ-ÜFE'!$T$268,IF(M150=46203,'Aylık Yİ-ÜFE'!$U$271,IF(M150=46295,'Aylık Yİ-ÜFE'!$V$274, IF(M150=46387,'Aylık Yİ-ÜFE'!$X$275))))),5) -> 0.1151
A151: 2014-09-04 | B151: 131 | I151: MÜK.298 Ç YE GÖRE İLGİLİ GEÇİCİ VERGİ DÖNEMİNE AİT YDO İLE YD YAPILABİLİR | M151: 2026-06-30 | N151: =TRUNC(IF(M151=46022,'Aylık Yİ-ÜFE'!$N$251,IF(M151=46112,'Aylık Yİ-ÜFE'!$T$268,IF(M151=46203,'Aylık Yİ-ÜFE'!$U$271,IF(M151=46295,'Aylık Yİ-ÜFE'!$V$274, IF(M151=46387,'Aylık Yİ-ÜFE'!$X$275))))),5) -> 0.1151
A152: 2014-09-04 | B152: 132 | I152: MÜK.298 Ç YE GÖRE İLGİLİ GEÇİCİ VERGİ DÖNEMİNE AİT YDO İLE YD YAPILABİLİR | M152: 2026-06-30 | N152: =TRUNC(IF(M152=46022,'Aylık Yİ-ÜFE'!$N$251,IF(M152=46112,'Aylık Yİ-ÜFE'!$T$268,IF(M152=46203,'Aylık Yİ-ÜFE'!$U$271,IF(M152=46295,'Aylık Yİ-ÜFE'!$V$274, IF(M152=46387,'Aylık Yİ-ÜFE'!$X$275))))),5) -> 0.1151
A153: 2014-07-02 | B153: 133 | I153: MÜK.298 Ç YE GÖRE İLGİLİ GEÇİCİ VERGİ DÖNEMİNE AİT YDO İLE YD YAPILABİLİR | M153: 2026-06-30 | N153: =TRUNC(IF(M153=46022,'Aylık Yİ-ÜFE'!$N$251,IF(M153=46112,'Aylık Yİ-ÜFE'!$T$268,IF(M153=46203,'Aylık Yİ-ÜFE'!$U$271,IF(M153=46295,'Aylık Yİ-ÜFE'!$V$274, IF(M153=46387,'Aylık Yİ-ÜFE'!$X$275))))),5) -> 0.1151
A154: 2014-07-02 | B154: 134 | I154: MÜK.298 Ç YE GÖRE İLGİLİ GEÇİCİ VERGİ DÖNEMİNE AİT YDO İLE YD YAPILABİLİR | M154: 2026-06-30 | N154: =TRUNC(IF(M154=46022,'Aylık Yİ-ÜFE'!$N$251,IF(M154=46112,'Aylık Yİ-ÜFE'!$T$268,IF(M154=46203,'Aylık Yİ-ÜFE'!$U$271,IF(M154=46295,'Aylık Yİ-ÜFE'!$V$274, IF(M154=46387,'Aylık Yİ-ÜFE'!$X$275))))),5) -> 0.1151
A155: 2014-07-02 | B155: 135 | I155: MÜK.298 Ç YE GÖRE İLGİLİ GEÇİCİ VERGİ DÖNEMİNE AİT YDO İLE YD YAPILABİLİR | M155: 2026-06-30 | N155: =TRUNC(IF(M155=46022,'Aylık Yİ-ÜFE'!$N$251,IF(M155=46112,'Aylık Yİ-ÜFE'!$T$268,IF(M155=46203,'Aylık Yİ-ÜFE'!$U$271,IF(M155=46295,'Aylık Yİ-ÜFE'!$V$274, IF(M155=46387,'Aylık Yİ-ÜFE'!$X$275))))),5) -> 0.1151
A156: 2014-07-02 | B156: 136 | I156: MÜK.298 Ç YE GÖRE İLGİLİ GEÇİCİ VERGİ DÖNEMİNE AİT YDO İLE YD YAPILABİLİR | M156: 2026-06-30 | N156: =TRUNC(IF(M156=46022,'Aylık Yİ-ÜFE'!$N$251,IF(M156=46112,'Aylık Yİ-ÜFE'!$T$268,IF(M156=46203,'Aylık Yİ-ÜFE'!$U$271,IF(M156=46295,'Aylık Yİ-ÜFE'!$V$274, IF(M156=46387,'Aylık Yİ-ÜFE'!$X$275))))),5) -> 0.1151
A157: 2014-07-02 | B157: 137 | I157: MÜK.298 Ç YE GÖRE İLGİLİ GEÇİCİ VERGİ DÖNEMİNE AİT YDO İLE YD YAPILABİLİR | M157: 2026-06-30 | N157: =TRUNC(IF(M157=46022,'Aylık Yİ-ÜFE'!$N$251,IF(M157=46112,'Aylık Yİ-ÜFE'!$T$268,IF(M157=46203,'Aylık Yİ-ÜFE'!$U$271,IF(M157=46295,'Aylık Yİ-ÜFE'!$V$274, IF(M157=46387,'Aylık Yİ-ÜFE'!$X$275))))),5) -> 0.1151
A158: 2014-07-11 | B158: 138 | I158: MÜK.298 Ç YE GÖRE İLGİLİ GEÇİCİ VERGİ DÖNEMİNE AİT YDO İLE YD YAPILABİLİR | M158: 2026-06-30 | N158: =TRUNC(IF(M158=46022,'Aylık Yİ-ÜFE'!$N$251,IF(M158=46112,'Aylık Yİ-ÜFE'!$T$268,IF(M158=46203,'Aylık Yİ-ÜFE'!$U$271,IF(M158=46295,'Aylık Yİ-ÜFE'!$V$274, IF(M158=46387,'Aylık Yİ-ÜFE'!$X$275))))),5) -> 0.1151
A159: 2014-07-11 | B159: 139 | I159: MÜK.298 Ç YE GÖRE İLGİLİ GEÇİCİ VERGİ DÖNEMİNE AİT YDO İLE YD YAPILABİLİR | M159: 2026-06-30 | N159: =TRUNC(IF(M159=46022,'Aylık Yİ-ÜFE'!$N$251,IF(M159=46112,'Aylık Yİ-ÜFE'!$T$268,IF(M159=46203,'Aylık Yİ-ÜFE'!$U$271,IF(M159=46295,'Aylık Yİ-ÜFE'!$V$274, IF(M159=46387,'Aylık Yİ-ÜFE'!$X$275))))),5) -> 0.1151
A160: 2014-10-17 | B160: 140 | I160: MÜK.298 Ç YE GÖRE İLGİLİ GEÇİCİ VERGİ DÖNEMİNE AİT YDO İLE YD YAPILABİLİR | M160: 2026-06-30 | N160: =TRUNC(IF(M160=46022,'Aylık Yİ-ÜFE'!$N$251,IF(M160=46112,'Aylık Yİ-ÜFE'!$T$268,IF(M160=46203,'Aylık Yİ-ÜFE'!$U$271,IF(M160=46295,'Aylık Yİ-ÜFE'!$V$274, IF(M160=46387,'Aylık Yİ-ÜFE'!$X$275))))),5) -> 0.1151
A161: 2014-10-17 | B161: 141 | I161: MÜK.298 Ç YE GÖRE İLGİLİ GEÇİCİ VERGİ DÖNEMİNE AİT YDO İLE YD YAPILABİLİR | M161: 2026-06-30 | N161: =TRUNC(IF(M161=46022,'Aylık Yİ-ÜFE'!$N$251,IF(M161=46112,'Aylık Yİ-ÜFE'!$T$268,IF(M161=46203,'Aylık Yİ-ÜFE'!$U$271,IF(M161=46295,'Aylık Yİ-ÜFE'!$V$274, IF(M161=46387,'Aylık Yİ-ÜFE'!$X$275))))),5) -> 0.1151
A162: 2014-10-28 | B162: 142 | I162: MÜK.298 Ç YE GÖRE İLGİLİ GEÇİCİ VERGİ DÖNEMİNE AİT YDO İLE YD YAPILABİLİR | M162: 2026-06-30 | N162: =TRUNC(IF(M162=46022,'Aylık Yİ-ÜFE'!$N$251,IF(M162=46112,'Aylık Yİ-ÜFE'!$T$268,IF(M162=46203,'Aylık Yİ-ÜFE'!$U$271,IF(M162=46295,'Aylık Yİ-ÜFE'!$V$274, IF(M162=46387,'Aylık Yİ-ÜFE'!$X$275))))),5) -> 0.1151
A163: 2014-10-28 | B163: 143 | I163: MÜK.298 Ç YE GÖRE İLGİLİ GEÇİCİ VERGİ DÖNEMİNE AİT YDO İLE YD YAPILABİLİR | M163: 2026-06-30 | N163: =TRUNC(IF(M163=46022,'Aylık Yİ-ÜFE'!$N$251,IF(M163=46112,'Aylık Yİ-ÜFE'!$T$268,IF(M163=46203,'Aylık Yİ-ÜFE'!$U$271,IF(M163=46295,'Aylık Yİ-ÜFE'!$V$274, IF(M163=46387,'Aylık Yİ-ÜFE'!$X$275))))),5) -> 0.1151
A164: 2014-10-28 | B164: 144 | I164: MÜK.298 Ç YE GÖRE İLGİLİ GEÇİCİ VERGİ DÖNEMİNE AİT YDO İLE YD YAPILABİLİR | M164: 2026-06-30 | N164: =TRUNC(IF(M164=46022,'Aylık Yİ-ÜFE'!$N$251,IF(M164=46112,'Aylık Yİ-ÜFE'!$T$268,IF(M164=46203,'Aylık Yİ-ÜFE'!$U$271,IF(M164=46295,'Aylık Yİ-ÜFE'!$V$274, IF(M164=46387,'Aylık Yİ-ÜFE'!$X$275))))),5) -> 0.1151
A165: 2014-10-28 | B165: 145 | I165: MÜK.298 Ç YE GÖRE İLGİLİ GEÇİCİ VERGİ DÖNEMİNE AİT YDO İLE YD YAPILABİLİR | M165: 2026-06-30 | N165: =TRUNC(IF(M165=46022,'Aylık Yİ-ÜFE'!$N$251,IF(M165=46112,'Aylık Yİ-ÜFE'!$T$268,IF(M165=46203,'Aylık Yİ-ÜFE'!$U$271,IF(M165=46295,'Aylık Yİ-ÜFE'!$V$274, IF(M165=46387,'Aylık Yİ-ÜFE'!$X$275))))),5) -> 0.1151
A166: 2014-10-28 | B166: 146 | I166: MÜK.298 Ç YE GÖRE İLGİLİ GEÇİCİ VERGİ DÖNEMİNE AİT YDO İLE YD YAPILABİLİR | M166: 2026-06-30 | N166: =TRUNC(IF(M166=46022,'Aylık Yİ-ÜFE'!$N$251,IF(M166=46112,'Aylık Yİ-ÜFE'!$T$268,IF(M166=46203,'Aylık Yİ-ÜFE'!$U$271,IF(M166=46295,'Aylık Yİ-ÜFE'!$V$274, IF(M166=46387,'Aylık Yİ-ÜFE'!$X$275))))),5) -> 0.1151
A167: 2014-10-28 | B167: 147 | I167: MÜK.298 Ç YE GÖRE İLGİLİ GEÇİCİ VERGİ DÖNEMİNE AİT YDO İLE YD YAPILABİLİR | M167: 2026-06-30 | N167: =TRUNC(IF(M167=46022,'Aylık Yİ-ÜFE'!$N$251,IF(M167=46112,'Aylık Yİ-ÜFE'!$T$268,IF(M167=46203,'Aylık Yİ-ÜFE'!$U$271,IF(M167=46295,'Aylık Yİ-ÜFE'!$V$274, IF(M167=46387,'Aylık Yİ-ÜFE'!$X$275))))),5) -> 0.1151
A168: 2014-10-28 | B168: 148 | I168: MÜK.298 Ç YE GÖRE İLGİLİ GEÇİCİ VERGİ DÖNEMİNE AİT YDO İLE YD YAPILABİLİR | M168: 2026-06-30 | N168: =TRUNC(IF(M168=46022,'Aylık Yİ-ÜFE'!$N$251,IF(M168=46112,'Aylık Yİ-ÜFE'!$T$268,IF(M168=46203,'Aylık Yİ-ÜFE'!$U$271,IF(M168=46295,'Aylık Yİ-ÜFE'!$V$274, IF(M168=46387,'Aylık Yİ-ÜFE'!$X$275))))),5) -> 0.1151
A169: 2014-10-28 | B169: 149 | I169: MÜK.298 Ç YE GÖRE İLGİLİ GEÇİCİ VERGİ DÖNEMİNE AİT YDO İLE YD YAPILABİLİR | M169: 2026-06-30 | N169: =TRUNC(IF(M169=46022,'Aylık Yİ-ÜFE'!$N$251,IF(M169=46112,'Aylık Yİ-ÜFE'!$T$268,IF(M169=46203,'Aylık Yİ-ÜFE'!$U$271,IF(M169=46295,'Aylık Yİ-ÜFE'!$V$274, IF(M169=46387,'Aylık Yİ-ÜFE'!$X$275))))),5) -> 0.1151
A170: 2014-10-28 | B170: 150 | I170: MÜK.298 Ç YE GÖRE İLGİLİ GEÇİCİ VERGİ DÖNEMİNE AİT YDO İLE YD YAPILABİLİR | M170: 2026-06-30 | N170: =TRUNC(IF(M170=46022,'Aylık Yİ-ÜFE'!$N$251,IF(M170=46112,'Aylık Yİ-ÜFE'!$T$268,IF(M170=46203,'Aylık Yİ-ÜFE'!$U$271,IF(M170=46295,'Aylık Yİ-ÜFE'!$V$274, IF(M170=46387,'Aylık Yİ-ÜFE'!$X$275))))),5) -> 0.1151
A171: 2014-10-28 | B171: 151 | I171: MÜK.298 Ç YE GÖRE İLGİLİ GEÇİCİ VERGİ DÖNEMİNE AİT YDO İLE YD YAPILABİLİR | M171: 2026-06-30 | N171: =TRUNC(IF(M171=46022,'Aylık Yİ-ÜFE'!$N$251,IF(M171=46112,'Aylık Yİ-ÜFE'!$T$268,IF(M171=46203,'Aylık Yİ-ÜFE'!$U$271,IF(M171=46295,'Aylık Yİ-ÜFE'!$V$274, IF(M171=46387,'Aylık Yİ-ÜFE'!$X$275))))),5) -> 0.1151
A172: 2014-10-28 | B172: 152 | I172: MÜK.298 Ç YE GÖRE İLGİLİ GEÇİCİ VERGİ DÖNEMİNE AİT YDO İLE YD YAPILABİLİR | M172: 2026-06-30 | N172: =TRUNC(IF(M172=46022,'Aylık Yİ-ÜFE'!$N$251,IF(M172=46112,'Aylık Yİ-ÜFE'!$T$268,IF(M172=46203,'Aylık Yİ-ÜFE'!$U$271,IF(M172=46295,'Aylık Yİ-ÜFE'!$V$274, IF(M172=46387,'Aylık Yİ-ÜFE'!$X$275))))),5) -> 0.1151
A173: 2014-10-28 | B173: 153 | I173: MÜK.298 Ç YE GÖRE İLGİLİ GEÇİCİ VERGİ DÖNEMİNE AİT YDO İLE YD YAPILABİLİR | M173: 2026-06-30 | N173: =TRUNC(IF(M173=46022,'Aylık Yİ-ÜFE'!$N$251,IF(M173=46112,'Aylık Yİ-ÜFE'!$T$268,IF(M173=46203,'Aylık Yİ-ÜFE'!$U$271,IF(M173=46295,'Aylık Yİ-ÜFE'!$V$274, IF(M173=46387,'Aylık Yİ-ÜFE'!$X$275))))),5) -> 0.1151
A174: 2014-10-28 | B174: 154 | I174: MÜK.298 Ç YE GÖRE İLGİLİ GEÇİCİ VERGİ DÖNEMİNE AİT YDO İLE YD YAPILABİLİR | M174: 2026-06-30 | N174: =TRUNC(IF(M174=46022,'Aylık Yİ-ÜFE'!$N$251,IF(M174=46112,'Aylık Yİ-ÜFE'!$T$268,IF(M174=46203,'Aylık Yİ-ÜFE'!$U$271,IF(M174=46295,'Aylık Yİ-ÜFE'!$V$274, IF(M174=46387,'Aylık Yİ-ÜFE'!$X$275))))),5) -> 0.1151
A175: 2014-10-28 | B175: 155 | I175: MÜK.298 Ç YE GÖRE İLGİLİ GEÇİCİ VERGİ DÖNEMİNE AİT YDO İLE YD YAPILABİLİR | M175: 2026-06-30 | N175: =TRUNC(IF(M175=46022,'Aylık Yİ-ÜFE'!$N$251,IF(M175=46112,'Aylık Yİ-ÜFE'!$T$268,IF(M175=46203,'Aylık Yİ-ÜFE'!$U$271,IF(M175=46295,'Aylık Yİ-ÜFE'!$V$274, IF(M175=46387,'Aylık Yİ-ÜFE'!$X$275))))),5) -> 0.1151
A176: 2014-10-28 | B176: 156 | I176: MÜK.298 Ç YE GÖRE İLGİLİ GEÇİCİ VERGİ DÖNEMİNE AİT YDO İLE YD YAPILABİLİR | M176: 2026-06-30 | N176: =TRUNC(IF(M176=46022,'Aylık Yİ-ÜFE'!$N$251,IF(M176=46112,'Aylık Yİ-ÜFE'!$T$268,IF(M176=46203,'Aylık Yİ-ÜFE'!$U$271,IF(M176=46295,'Aylık Yİ-ÜFE'!$V$274, IF(M176=46387,'Aylık Yİ-ÜFE'!$X$275))))),5) -> 0.1151
A177: 2014-10-28 | B177: 157 | I177: MÜK.298 Ç YE GÖRE İLGİLİ GEÇİCİ VERGİ DÖNEMİNE AİT YDO İLE YD YAPILABİLİR | M177: 2026-06-30 | N177: =TRUNC(IF(M177=46022,'Aylık Yİ-ÜFE'!$N$251,IF(M177=46112,'Aylık Yİ-ÜFE'!$T$268,IF(M177=46203,'Aylık Yİ-ÜFE'!$U$271,IF(M177=46295,'Aylık Yİ-ÜFE'!$V$274, IF(M177=46387,'Aylık Yİ-ÜFE'!$X$275))))),5) -> 0.1151
A178: 2014-10-28 | B178: 158 | I178: MÜK.298 Ç YE GÖRE İLGİLİ GEÇİCİ VERGİ DÖNEMİNE AİT YDO İLE YD YAPILABİLİR | M178: 2026-06-30 | N178: =TRUNC(IF(M178=46022,'Aylık Yİ-ÜFE'!$N$251,IF(M178=46112,'Aylık Yİ-ÜFE'!$T$268,IF(M178=46203,'Aylık Yİ-ÜFE'!$U$271,IF(M178=46295,'Aylık Yİ-ÜFE'!$V$274, IF(M178=46387,'Aylık Yİ-ÜFE'!$X$275))))),5) -> 0.1151
A179: 2014-10-28 | B179: 159 | I179: MÜK.298 Ç YE GÖRE İLGİLİ GEÇİCİ VERGİ DÖNEMİNE AİT YDO İLE YD YAPILABİLİR | M179: 2026-06-30 | N179: =TRUNC(IF(M179=46022,'Aylık Yİ-ÜFE'!$N$251,IF(M179=46112,'Aylık Yİ-ÜFE'!$T$268,IF(M179=46203,'Aylık Yİ-ÜFE'!$U$271,IF(M179=46295,'Aylık Yİ-ÜFE'!$V$274, IF(M179=46387,'Aylık Yİ-ÜFE'!$X$275))))),5) -> 0.1151
A180: 2014-10-28 | B180: 160 | I180: MÜK.298 Ç YE GÖRE İLGİLİ GEÇİCİ VERGİ DÖNEMİNE AİT YDO İLE YD YAPILABİLİR | M180: 2026-06-30 | N180: =TRUNC(IF(M180=46022,'Aylık Yİ-ÜFE'!$N$251,IF(M180=46112,'Aylık Yİ-ÜFE'!$T$268,IF(M180=46203,'Aylık Yİ-ÜFE'!$U$271,IF(M180=46295,'Aylık Yİ-ÜFE'!$V$274, IF(M180=46387,'Aylık Yİ-ÜFE'!$X$275))))),5) -> 0.1151
A181: 2014-10-03 | B181: 161 | I181: MÜK.298 Ç YE GÖRE İLGİLİ GEÇİCİ VERGİ DÖNEMİNE AİT YDO İLE YD YAPILABİLİR | M181: 2026-06-30 | N181: =TRUNC(IF(M181=46022,'Aylık Yİ-ÜFE'!$N$251,IF(M181=46112,'Aylık Yİ-ÜFE'!$T$268,IF(M181=46203,'Aylık Yİ-ÜFE'!$U$271,IF(M181=46295,'Aylık Yİ-ÜFE'!$V$274, IF(M181=46387,'Aylık Yİ-ÜFE'!$X$275))))),5) -> 0.1151
A182: 2014-10-03 | B182: 162 | I182: MÜK.298 Ç YE GÖRE İLGİLİ GEÇİCİ VERGİ DÖNEMİNE AİT YDO İLE YD YAPILABİLİR | M182: 2026-06-30 | N182: =TRUNC(IF(M182=46022,'Aylık Yİ-ÜFE'!$N$251,IF(M182=46112,'Aylık Yİ-ÜFE'!$T$268,IF(M182=46203,'Aylık Yİ-ÜFE'!$U$271,IF(M182=46295,'Aylık Yİ-ÜFE'!$V$274, IF(M182=46387,'Aylık Yİ-ÜFE'!$X$275))))),5) -> 0.1151
A183: 2014-10-03 | B183: 163 | I183: MÜK.298 Ç YE GÖRE İLGİLİ GEÇİCİ VERGİ DÖNEMİNE AİT YDO İLE YD YAPILABİLİR | M183: 2026-06-30 | N183: =TRUNC(IF(M183=46022,'Aylık Yİ-ÜFE'!$N$251,IF(M183=46112,'Aylık Yİ-ÜFE'!$T$268,IF(M183=46203,'Aylık Yİ-ÜFE'!$U$271,IF(M183=46295,'Aylık Yİ-ÜFE'!$V$274, IF(M183=46387,'Aylık Yİ-ÜFE'!$X$275))))),5) -> 0.1151
A184: 2014-10-03 | B184: 164 | I184: MÜK.298 Ç YE GÖRE İLGİLİ GEÇİCİ VERGİ DÖNEMİNE AİT YDO İLE YD YAPILABİLİR | M184: 2026-06-30 | N184: =TRUNC(IF(M184=46022,'Aylık Yİ-ÜFE'!$N$251,IF(M184=46112,'Aylık Yİ-ÜFE'!$T$268,IF(M184=46203,'Aylık Yİ-ÜFE'!$U$271,IF(M184=46295,'Aylık Yİ-ÜFE'!$V$274, IF(M184=46387,'Aylık Yİ-ÜFE'!$X$275))))),5) -> 0.1151
A185: 2014-10-03 | B185: 165 | I185: MÜK.298 Ç YE GÖRE İLGİLİ GEÇİCİ VERGİ DÖNEMİNE AİT YDO İLE YD YAPILABİLİR | M185: 2026-06-30 | N185: =TRUNC(IF(M185=46022,'Aylık Yİ-ÜFE'!$N$251,IF(M185=46112,'Aylık Yİ-ÜFE'!$T$268,IF(M185=46203,'Aylık Yİ-ÜFE'!$U$271,IF(M185=46295,'Aylık Yİ-ÜFE'!$V$274, IF(M185=46387,'Aylık Yİ-ÜFE'!$X$275))))),5) -> 0.1151
A186: 2014-10-03 | B186: 166 | I186: MÜK.298 Ç YE GÖRE İLGİLİ GEÇİCİ VERGİ DÖNEMİNE AİT YDO İLE YD YAPILABİLİR | M186: 2026-06-30 | N186: =TRUNC(IF(M186=46022,'Aylık Yİ-ÜFE'!$N$251,IF(M186=46112,'Aylık Yİ-ÜFE'!$T$268,IF(M186=46203,'Aylık Yİ-ÜFE'!$U$271,IF(M186=46295,'Aylık Yİ-ÜFE'!$V$274, IF(M186=46387,'Aylık Yİ-ÜFE'!$X$275))))),5) -> 0.1151
A187: 2014-10-03 | B187: 167 | I187: MÜK.298 Ç YE GÖRE İLGİLİ GEÇİCİ VERGİ DÖNEMİNE AİT YDO İLE YD YAPILABİLİR | M187: 2026-06-30 | N187: =TRUNC(IF(M187=46022,'Aylık Yİ-ÜFE'!$N$251,IF(M187=46112,'Aylık Yİ-ÜFE'!$T$268,IF(M187=46203,'Aylık Yİ-ÜFE'!$U$271,IF(M187=46295,'Aylık Yİ-ÜFE'!$V$274, IF(M187=46387,'Aylık Yİ-ÜFE'!$X$275))))),5) -> 0.1151
A188: 2014-10-03 | B188: 168 | I188: MÜK.298 Ç YE GÖRE İLGİLİ GEÇİCİ VERGİ DÖNEMİNE AİT YDO İLE YD YAPILABİLİR | M188: 2026-06-30 | N188: =TRUNC(IF(M188=46022,'Aylık Yİ-ÜFE'!$N$251,IF(M188=46112,'Aylık Yİ-ÜFE'!$T$268,IF(M188=46203,'Aylık Yİ-ÜFE'!$U$271,IF(M188=46295,'Aylık Yİ-ÜFE'!$V$274, IF(M188=46387,'Aylık Yİ-ÜFE'!$X$275))))),5) -> 0.1151
A189: 2014-10-03 | B189: 169 | I189: MÜK.298 Ç YE GÖRE İLGİLİ GEÇİCİ VERGİ DÖNEMİNE AİT YDO İLE YD YAPILABİLİR | M189: 2026-06-30 | N189: =TRUNC(IF(M189=46022,'Aylık Yİ-ÜFE'!$N$251,IF(M189=46112,'Aylık Yİ-ÜFE'!$T$268,IF(M189=46203,'Aylık Yİ-ÜFE'!$U$271,IF(M189=46295,'Aylık Yİ-ÜFE'!$V$274, IF(M189=46387,'Aylık Yİ-ÜFE'!$X$275))))),5) -> 0.1151
A190: 2014-10-03 | B190: 170 | I190: MÜK.298 Ç YE GÖRE İLGİLİ GEÇİCİ VERGİ DÖNEMİNE AİT YDO İLE YD YAPILABİLİR | M190: 2026-06-30 | N190: =TRUNC(IF(M190=46022,'Aylık Yİ-ÜFE'!$N$251,IF(M190=46112,'Aylık Yİ-ÜFE'!$T$268,IF(M190=46203,'Aylık Yİ-ÜFE'!$U$271,IF(M190=46295,'Aylık Yİ-ÜFE'!$V$274, IF(M190=46387,'Aylık Yİ-ÜFE'!$X$275))))),5) -> 0.1151
A191: 2014-10-03 | B191: 171 | I191: MÜK.298 Ç YE GÖRE İLGİLİ GEÇİCİ VERGİ DÖNEMİNE AİT YDO İLE YD YAPILABİLİR | M191: 2026-06-30 | N191: =TRUNC(IF(M191=46022,'Aylık Yİ-ÜFE'!$N$251,IF(M191=46112,'Aylık Yİ-ÜFE'!$T$268,IF(M191=46203,'Aylık Yİ-ÜFE'!$U$271,IF(M191=46295,'Aylık Yİ-ÜFE'!$V$274, IF(M191=46387,'Aylık Yİ-ÜFE'!$X$275))))),5) -> 0.1151
A192: 2014-10-03 | B192: 172 | I192: MÜK.298 Ç YE GÖRE İLGİLİ GEÇİCİ VERGİ DÖNEMİNE AİT YDO İLE YD YAPILABİLİR | M192: 2026-06-30 | N192: =TRUNC(IF(M192=46022,'Aylık Yİ-ÜFE'!$N$251,IF(M192=46112,'Aylık Yİ-ÜFE'!$T$268,IF(M192=46203,'Aylık Yİ-ÜFE'!$U$271,IF(M192=46295,'Aylık Yİ-ÜFE'!$V$274, IF(M192=46387,'Aylık Yİ-ÜFE'!$X$275))))),5) -> 0.1151
A193: 2014-10-03 | B193: 173 | I193: MÜK.298 Ç YE GÖRE İLGİLİ GEÇİCİ VERGİ DÖNEMİNE AİT YDO İLE YD YAPILABİLİR | M193: 2026-06-30 | N193: =TRUNC(IF(M193=46022,'Aylık Yİ-ÜFE'!$N$251,IF(M193=46112,'Aylık Yİ-ÜFE'!$T$268,IF(M193=46203,'Aylık Yİ-ÜFE'!$U$271,IF(M193=46295,'Aylık Yİ-ÜFE'!$V$274, IF(M193=46387,'Aylık Yİ-ÜFE'!$X$275))))),5) -> 0.1151
A194: 2014-10-03 | B194: 174 | I194: MÜK.298 Ç YE GÖRE İLGİLİ GEÇİCİ VERGİ DÖNEMİNE AİT YDO İLE YD YAPILABİLİR | M194: 2026-06-30 | N194: =TRUNC(IF(M194=46022,'Aylık Yİ-ÜFE'!$N$251,IF(M194=46112,'Aylık Yİ-ÜFE'!$T$268,IF(M194=46203,'Aylık Yİ-ÜFE'!$U$271,IF(M194=46295,'Aylık Yİ-ÜFE'!$V$274, IF(M194=46387,'Aylık Yİ-ÜFE'!$X$275))))),5) -> 0.1151
A195: 2014-10-03 | B195: 175 | I195: MÜK.298 Ç YE GÖRE İLGİLİ GEÇİCİ VERGİ DÖNEMİNE AİT YDO İLE YD YAPILABİLİR | M195: 2026-06-30 | N195: =TRUNC(IF(M195=46022,'Aylık Yİ-ÜFE'!$N$251,IF(M195=46112,'Aylık Yİ-ÜFE'!$T$268,IF(M195=46203,'Aylık Yİ-ÜFE'!$U$271,IF(M195=46295,'Aylık Yİ-ÜFE'!$V$274, IF(M195=46387,'Aylık Yİ-ÜFE'!$X$275))))),5) -> 0.1151
A196: 2014-10-03 | B196: 176 | I196: MÜK.298 Ç YE GÖRE İLGİLİ GEÇİCİ VERGİ DÖNEMİNE AİT YDO İLE YD YAPILABİLİR | M196: 2026-06-30 | N196: =TRUNC(IF(M196=46022,'Aylık Yİ-ÜFE'!$N$251,IF(M196=46112,'Aylık Yİ-ÜFE'!$T$268,IF(M196=46203,'Aylık Yİ-ÜFE'!$U$271,IF(M196=46295,'Aylık Yİ-ÜFE'!$V$274, IF(M196=46387,'Aylık Yİ-ÜFE'!$X$275))))),5) -> 0.1151
A197: 2014-10-03 | B197: 177 | I197: MÜK.298 Ç YE GÖRE İLGİLİ GEÇİCİ VERGİ DÖNEMİNE AİT YDO İLE YD YAPILABİLİR | M197: 2026-06-30 | N197: =TRUNC(IF(M197=46022,'Aylık Yİ-ÜFE'!$N$251,IF(M197=46112,'Aylık Yİ-ÜFE'!$T$268,IF(M197=46203,'Aylık Yİ-ÜFE'!$U$271,IF(M197=46295,'Aylık Yİ-ÜFE'!$V$274, IF(M197=46387,'Aylık Yİ-ÜFE'!$X$275))))),5) -> 0.1151
A198: 2014-10-03 | B198: 178 | I198: MÜK.298 Ç YE GÖRE İLGİLİ GEÇİCİ VERGİ DÖNEMİNE AİT YDO İLE YD YAPILABİLİR | M198: 2026-06-30 | N198: =TRUNC(IF(M198=46022,'Aylık Yİ-ÜFE'!$N$251,IF(M198=46112,'Aylık Yİ-ÜFE'!$T$268,IF(M198=46203,'Aylık Yİ-ÜFE'!$U$271,IF(M198=46295,'Aylık Yİ-ÜFE'!$V$274, IF(M198=46387,'Aylık Yİ-ÜFE'!$X$275))))),5) -> 0.1151
A199: 2014-10-03 | B199: 179 | I199: MÜK.298 Ç YE GÖRE İLGİLİ GEÇİCİ VERGİ DÖNEMİNE AİT YDO İLE YD YAPILABİLİR | M199: 2026-06-30 | N199: =TRUNC(IF(M199=46022,'Aylık Yİ-ÜFE'!$N$251,IF(M199=46112,'Aylık Yİ-ÜFE'!$T$268,IF(M199=46203,'Aylık Yİ-ÜFE'!$U$271,IF(M199=46295,'Aylık Yİ-ÜFE'!$V$274, IF(M199=46387,'Aylık Yİ-ÜFE'!$X$275))))),5) -> 0.1151
A200: 2014-10-03 | B200: 180 | I200: MÜK.298 Ç YE GÖRE İLGİLİ GEÇİCİ VERGİ DÖNEMİNE AİT YDO İLE YD YAPILABİLİR | M200: 2026-06-30 | N200: =TRUNC(IF(M200=46022,'Aylık Yİ-ÜFE'!$N$251,IF(M200=46112,'Aylık Yİ-ÜFE'!$T$268,IF(M200=46203,'Aylık Yİ-ÜFE'!$U$271,IF(M200=46295,'Aylık Yİ-ÜFE'!$V$274, IF(M200=46387,'Aylık Yİ-ÜFE'!$X$275))))),5) -> 0.1151
A201: 2014-10-03 | B201: 181 | I201: MÜK.298 Ç YE GÖRE İLGİLİ GEÇİCİ VERGİ DÖNEMİNE AİT YDO İLE YD YAPILABİLİR | M201: 2026-06-30 | N201: =TRUNC(IF(M201=46022,'Aylık Yİ-ÜFE'!$N$251,IF(M201=46112,'Aylık Yİ-ÜFE'!$T$268,IF(M201=46203,'Aylık Yİ-ÜFE'!$U$271,IF(M201=46295,'Aylık Yİ-ÜFE'!$V$274, IF(M201=46387,'Aylık Yİ-ÜFE'!$X$275))))),5) -> 0.1151
A202: 2014-10-03 | B202: 182 | I202: MÜK.298 Ç YE GÖRE İLGİLİ GEÇİCİ VERGİ DÖNEMİNE AİT YDO İLE YD YAPILABİLİR | M202: 2026-06-30 | N202: =TRUNC(IF(M202=46022,'Aylık Yİ-ÜFE'!$N$251,IF(M202=46112,'Aylık Yİ-ÜFE'!$T$268,IF(M202=46203,'Aylık Yİ-ÜFE'!$U$271,IF(M202=46295,'Aylık Yİ-ÜFE'!$V$274, IF(M202=46387,'Aylık Yİ-ÜFE'!$X$275))))),5) -> 0.1151
... 4298 more rows

Sheet MÜK 298 Ç
B2: 30.06.2026 TARİHİNDE MÜK. 298 Ç YE GÖRE YD YAPILACAK OLMASI DURUMUNDA BU TABLO DİKKATE ALINACAKTIR.
B4: ÖNEMLİ NOTLAR: * 31.12.2025 VE ÖNCESİNDE BİLANÇODA BULUNAN VARLIKLAR LİSTEYE ALINMALIDIR. / 2026 YILI İÇİN MÜK. 298 Ç YE GÖRE YAPILACAK YENİDEN DEĞERLEMELER AÇISINDAN 2026 YILINDA EDİNİLEN VARLIKLAR LİSTEYE ALINMAMALIDIR. ** 1.1.2026 TEN ÖNCE AMORTİSMAN SÜRESİNİ DOLDURMUŞ OLANLAR LİSTEYE ALINMAMALIDIR. *** İLK YILDAN SONRAKİ VE MALİYETE EKLENMİŞ OLAN KREDİ FAİZLERİ İLE KUR FARKLARI MÜK.298 Ç İÇİN BU TÜR MALİYET UNSURLARI YENİDEN DEĞERLEMEYE TABİ TUTULMAYACAKTIR. **** İNŞA OLUNAN BİNALARDA, ARSA MALİYETİ ARSANIN AKTİFLEŞTİRİLDİĞİ, DİĞER MALİYET UNSURLARI İSE BİNANIN AKTİFLEŞTİRİLDİĞİ TARİH İKTİSAP TARİHİ ALANINA AYRI AYRI YAZILACAKTIR. | K4: =SUM(K8:K10007) -> 10000000 | R4: =SUM(R8:R10007) -> 4718000 | S4: =SUM(S8:S10007) -> 10000000 | T4: =SUM(T8:T10007) -> 4718000 | U4: =SUM(U8:U10007) -> 5282000 | Y4: =SUM(Y8:Y10007) -> 10920800 | Z4: =SUM(Z8:Z10007) -> 5261041.8 | AA4: =SUM(AA8:AA10007) -> 5659758.2 | AB4: =SUM(AB8:AB3007) -> 920800 | AC4: =SUM(AC8:AC10007) -> 543041.8 | AD4: =SUM(AD8:AD10007) -> 377758.2 | AN4: =SUM(AN8:AN10007) -> 5292761.44 | AO4: =SUM(AO8:AO10007) -> 5261041.8 | AP4: 1146819.64 | AQ4: 0 | AR4: 1146819.64
B5: MÜKERRER 298 Ç YE GÖRE YAPILAN YD SONUCU
B6: SIRA NO | C6: İKTİSADİ KIYMETİN ADI | D6: MUHASEBE ANA HESAP KODU | E6: İKTİSADİ KIYMETİN AKTİFLEŞTİRİLDİĞİ YILDAN SONRAKİ YILLARDA MALİYETE ATILAN KUR FARKI, KREDİ FAİZ NİTELİĞİNDE MİDİR? | F6: EKONOMİK ÖMRÜ (YIL) | G6: AMORTİSMAN ORANI YILIK | H6: İKTİSAP TARİHİ | I6: YENİDEN DEĞERLEME İŞLEMİNİN YAPILMASI SIRASINDA (YD ARTIŞI TUTARININ HESABINDA) DİKKATE ALINACAK TARİH BU TARİH 01.01.2026 OLARAK DİKKATE ALINACAKTIR ( 2026 DÖNEMİNİN BAŞI İTİBARİYLE MALİYET VE AYRILMASI GEREKEN AMORTİSMAN TUTARLARININ TESPİTİ İÇİN DÖNEM BAŞI TARİH OLAN 01.01.2026 DİKKATE ALINACAKTIR. | J6: İKTİSAP TARİHİ KONTROLÜ (2025 YILINDAN ÖNCE AKTİFE ALINMIŞ OLMA DURUMU) (2025 YILINDA AKTİFE ALINAN KIYMETLER İÇİN MÜK.298 Ç YE GÖRE YD YAPILAMAZ) | K6: ATİK İN İKTİSAP DEĞERİ 31.12.2025 VE ÖNCESİNDE İKTİSAP OLUNAN İKTİSADİ KIYMETLER İÇİN 31.12.205 TARİHİ İTİBARİYLE KAYITLARDA OLAN DEĞERİ DİKKATE ALINIR (ÖNCEKİ YILLARDA YAPILAN ENFLASYON DÜZELTMESİ VEYA 2025 SONUNDA YAPILAN YENİDEN DEĞERLEME SONRASI DEĞERİ) | L6: AMORTİSMAN YÖNTEMİ | M6: KIST AMORTİSMANA TABİ Mİ (SADECE BİNEK OTOMOBİLLER) | N6: AMORTİSMAN HESABI İÇİN GEÇEN SÜRE (GÜN) AYRILMIŞ SAYILAN AMORTİSMAN TUTARININ DÖNEM BAŞI TUTARININ HESABI İÇİN | O6: NORMAL AMORTİSMAN SÜRESİ (YIL OLARAK) AYRILMIŞ SAYILAN AMORTİSMAN TUTARININ DÖNEM BAŞI TUTARININ HESABI İÇİN | P6: KIST AMORTİSMAN SÜRESİ YIL OLARAK AYRILMIŞ SAYILAN AMORTİSMAN TUTARININ DÖNEM BAŞI TUTARININ HESABI İÇİN | Q6: HESAPLAMALARDA DİKKATE ALINAN AMORTİSMAN SÜRESİ YIL SÜRESİ AYRILMIŞ SAYILAN AMORTİSMAN TUTARININ DÖNEM BAŞI TUTARININ HESABI İÇİN | R6: HESAPLAMADA DİKKATE ALINACAK 01.01.2026 TARİHİ İTİBARİYLE AYRILMASI GEREKEN AMORTİSMAN TUTARI (AYRILMAMIŞ OLANLAR DAHİL) | S6: MÜK 298 Ç ----YD ÖNCESİ | W6: YENİDEN DEĞERLEME ORANI | Y6: MÜK. 298 Ç YD SONRASI | AB6: MALİYET TE ORTAYA ÇIKAN ARTIŞ | AC6: AMORTİSMANDA ORTAYA ÇIKAN ARTIŞ | AD6: NET DEĞER ARTIŞI FAZLA AYRILABİLECEK TOPLAM AMORTİSMAN TUTARI | AF6: AMORTİSMAN HESABI İÇİN PARAMETRELER (2026/2 GEÇİCİ DÖNEMİ İÇİN) | AN6: 2026 2. GEÇİCİ VERGİ DÖNEMİ İTİBARİYLE AYRILMASI GEREKEN TOPLAM AMORTİSMAN TUTARI) | AO6: YD İLE BİRİKMİŞ AMORTİSMAN TUTARININ ULAŞTIĞI DEĞER/TUTAR YENİ DÖNEM AMORTİSMANI AYRILMADAN ÖNCEKİ TUTAR | AP6: 2026 /2. GEÇİCİ DÖNEMİ İTİBARİYLE AYRILMASI GEREKEN İLAVE AMORTİSMAN TUTARI | AQ6: KIST AMORTİSMAN NEDENİYLE İLK YIL AYRILMAMIŞ OLAN AMORTİSMAN TUTARININ YD SONRASI HALİ (YD İLE BULUNAN MALİYET BEDELİ DİKKATE ALINMIŞTIR) | AR6: BU DÖNEM AYRILMASI GEREKEN AMORTİSMAN TUTARI (İLK YIL AYRILAMAYAN TUTARA İLAVE OLARAK)
S7: YD ÖNCESİ MALİYET BEDELİ | T7: HESAPLAMADA DİKKATE ALINACAK TARİH İTİBARİYLE AMORTİSMAN TUTARI | U7: NET AKTİF DEĞERİ | W7: YDO--ARAZİ VE ARSALAR AMORTİSMANA TABİ OLMADIĞINDAN VE 2025 YILINDA İKTİSAP OLUNAN KIYMETLER İÇİN YD YAPILAMAYACAĞINDAN DOLAYI % 0 OLARAK KABUL EDİLMİŞTİR. | X7: YD ORANI (KATSAYISI) | Y7: YD SONRASI MALİYET BEDELİ | Z7: YD SONRASI AMORTİSMAN TUTARI (YENİ DÖNEMİN AMORTİSMANI HENÜZ AYRILMADAN ÖNCEKİ KÜMÜLATİF TUTAR) | AA7: YD SONRASI NET AKTİF DEĞERİ (YD SONRASI) | AF7: İKTİSAP TARİHİ | AG7: YENİDEN DEĞERLEME TARİH | AH7: AMORTİSMAN YÖNTEMİ | AI7: KIST AMORTİSMANA TABİ Mİ (SADECE BİNEK OTOMOBİLLER) | AJ7: AMORTİSMAN HESABI İÇİN GEÇEN SÜRE (GÜN) (HESAPLAMADA DİKKATE ALINACAK TARİHE KADAR) | AK7: NORMAL AMORTİSMAN SÜRESİ (YIL OLARAK) | AL7: KIST AMORTİSMAN SÜRESİ YIL OLARAK | AM7: HESAPLAMALARDA DİKKATE ALINAN AMORTİSMAN SÜRESİ YIL SÜRESİ
B8: 1 | C8: ='DOLDURULMASI GEREKEN TABLO'!D21 -> 0 | D8: ='DOLDURULMASI GEREKEN TABLO'!E21 -> 260- Haklar | E8: ='DOLDURULMASI GEREKEN TABLO'!F21 -> HAYIR | F8: ='DOLDURULMASI GEREKEN TABLO'!G21 -> 5 | G8: =IFERROR(IF(L8="AZALAN BAKİYELERE GÖRE AMORTİSMAN",MIN(1/F8,1/4),1/F8),0) -> 0.2 | H8: ='DOLDURULMASI GEREKEN TABLO'!H21 -> 2023-10-09 | I8: 2026-01-01 | J8: ='DOLDURULMASI GEREKEN TABLO'!I21 -> MÜK.298 Ç YE GÖRE İLGİLİ GEÇİCİ VERGİ DÖNEMİNE AİT YDO İLE YD YAPILABİLİR | K8: ='DOLDURULMASI GEREKEN TABLO'!J21 -> 1000000 | L8: ='DOLDURULMASI GEREKEN TABLO'!K21 -> AZALAN BAKİYELERE GÖRE AMORTİSMAN | M8: ='DOLDURULMASI GEREKEN TABLO'!L21 -> HAYIR | N8: =MAX(IFERROR((I8-H8)+1,0),0) -> 816 | O8: =IFERROR( MIN(YEAR(I8)-YEAR(H8),F8),0) -> 3 | P8: =MAX(IFERROR(MIN((( (YEAR(I8)-YEAR(H8))*12+(MONTH(I8)-MONTH(H8)))/12),F8),0),0) -> 2.25 | Q8: =IF(AND(M8="EVET",O8<F8),P8,O8) -> 3 | R8: =IFERROR(IF(D8="250- Arazi ve Arsalar",0, IF(Q8=F8,K8, IF(AND(L8="NORMAL AMORTİSMAN",M8="HAYIR"),K8*G8*Q8, IF(AND(L8="NORMAL AMORTİSMAN",M8="EVET"),K8*G8*Q8, IF(AND(L8="AZALAN BAKİYELERE GÖRE AMORTİSMAN",M8="HAYIR"),VDB(K8,0,IF(F8<=4,4,F8),0,Q8,2,TRUE), IF(AND(L8="AZALAN BAKİYELERE GÖRE AMORTİSMAN",M8="EVET",Q8<=1),(DDB(K8,0,IF(F8<=4,4,F8),1,2)/12)*(12-MONTH(H8)+1), IF(AND(L8="AZALAN BAKİYELERE GÖRE AMORTİSMAN",M8="EVET",AND(Q8<=2,Q8>1)),(DDB(K8,0,IF(F8<=4,4,F8),1,2)/12)*(12-MONTH(H8)+1)+DDB(K8,0,IF(F8<=4,4,F8),2,2), IF(AND(L8="AZALAN BAKİYELERE GÖRE AMORTİSMAN",M8="EVET",AND(Q8<=3,Q8>2)),(DDB(K8,0,IF(F8<=4,4,F8),1,2)/12)*(12-MONTH(H8)+1)+DDB(K8,0,IF(F8<=4,4,F8),2,2)+DDB(K8,0,IF(F8<=4,4,F8),3,2), IF(AND(L8="AZALAN BAKİYELERE GÖRE AMORTİSMAN",M8="EVET",AND(Q8<=4,Q8>3)),(DDB(K8,0,IF(F8<=4,4,F8),1,2)/12)*(12-MONTH(H8)+1)+DDB(K8,0,IF(F8<=4,4,F8),2,2)+DDB(K8,0,IF(F8<=4,4,F8),3,2)+DDB(K8,0,IF(F8<=4,4,F8),4,2), IF(AND(L8="AZALAN BAKİYELERE GÖRE AMORTİSMAN",M8="EVET",AND(Q8<=5,Q8>4)),K8,0)))))))))),0) -> 784000 | S8: =K8 -> 1000000 | T8: =R8 -> 784000 | U8: =S8-T8 -> 216000 | W8: =IF(OR(D8="250- Arazi ve Arsalar",YEAR(H8)=2026),0,TRUNC('DOLDURULMASI GEREKEN TABLO'!N21,4)) -> 0.1151 | X8: =IF(E8="HAYIR",(1+W8),1) -> 1.1151 | Y8: =X8*S8 -> 1115100 | Z8: =T8*X8 -> 874238.4 | AA8: =Y8-Z8 -> 240861.6 | AB8: =IFERROR(IF(Y8-S8<0,0,Y8-S8),0) -> 115100 | AC8: =IFERROR(IF(Z8-T8<0,0,Z8-T8),0) -> 90238.4 | AD8: =IFERROR(IF((AB8-AC8)<0,0,(AB8-AC8)),0) -> 24861.6 | AF8: =H8 -> 2023-10-09 | AG8: ='DOLDURULMASI GEREKEN TABLO'!M21 -> 2026-06-30 | AH8: =L8 -> AZALAN BAKİYELERE GÖRE AMORTİSMAN | AI8: =M8 -> HAYIR | AJ8: =(AG8-AF8)+1 -> 996 | AK8: =YEAR(AG8)-YEAR(AF8)+1 -> 4 | AL8: =(((YEAR(AG8)-YEAR(AF8))*12)+(MONTH(AG8)-MONTH(AF8)+1))/12 -> 2.75 | AM8: =IF( AND(AI8="EVET",AK8<F8),AL8, AK8) -> 4 | AN8: =IFERROR( IF(D8="250- Arazi ve Arsalar",0, IF(AK8=F8,Y8, IF(AND(L8="NORMAL AMORTİSMAN",M8="HAYIR"),Y8*G8*IF(AK8>1,AK8-0.5,AK8), IF(AND(L8="NORMAL AMORTİSMAN",M8="EVET"), Y8*G8*IF(AK8>1,AK8-0.5,AK8), IF(AND(L8="AZALAN BAKİYELERE GÖRE AMORTİSMAN",M8="HAYIR"),VDB(Y8,0,IF(F8<=4,4,F8),0,IF(AK8>1,AK8-0.5,AK8),2,TRUE), IF(AND(L8="AZALAN BAKİYELERE GÖRE AMORTİSMAN",M8="EVET",AK8<1), (DDB(Y8,0,IF(F8<=4,4,F8),1,2)/12)*(12-MONTH(H8)+1), IF(AND(L8="AZALAN BAKİYELERE GÖRE AMORTİSMAN",M8="EVET",AND(AK8<=2,AK8>1)), (DDB(Y8,0,IF(F8<=4,4,F8),1,2)/12)*(12-MONTH(H8)+1) + DDB(Y8,0,IF(F8<=4,4,F8),2,2)/4*2, IF(AND(L8="AZALAN BAKİYELERE GÖRE AMORTİSMAN",M8="EVET",AND(AK8<=3,AK8>2)), (DDB(Y8,0,IF(F8<=4,4,F8),1,2)/12)*(12-MONTH(H8)+1)+DDB(Y8,0,IF(F8<=4,4,F8),2,2)+ DDB(Y8,0,IF(F8<=4,4,F8),3,2)/4*2, IF(AND(L8="AZALAN BAKİYELERE GÖRE AMORTİSMAN",M8="EVET",AND(AK8<=4,AK8>3)), (DDB(Y8,0,IF(F8<=4,4,F8),1,2)/12)*(12-MONTH(H8)+1)+DDB(Y8,0,IF(F8<=4,4,F8),2,2)+DDB(Y8,0,IF(F8<=4,4,F8),3,2)+DDB(Y8,0,IF(F8<=4,4,F8),4,2)/4*2, IF(AND(L8="AZALAN BAKİYELERE GÖRE AMORTİSMAN",M8="EVET",AND(AK8<=5,AK8>4)), ((DDB(Y8,0,IF(F8<=4,4,F8),1,2)/12)*(12-MONTH(H8)+1) + DDB(Y8,0,IF(F8<=4,4,F8),2,2) + DDB(Y8,0,IF(F8<=4,4,F8),3,2)+ DDB(Y8,0,IF(F8<=4,4,F8),4,2))+ Y8- ( (DDB(Y8,0,IF(F8<=4,4,F8),1,2)/12)*(12-MONTH(H8)+1) + DDB(Y8,0,IF(F8<=4,4,F8),2,2) + DDB(Y8,0,IF(F8<=4,4,F8),3,2)+ DDB(Y8,0,IF(F8<=4,4,F8),4,2)), DDB(Y8,0,IF(F8<=4,4,F8),AK8-0.5,2) ) ) ) ) ) ) ) ) ) ), 0) -> 922410.72 | AO8: =Z8 -> 874238.4 | AP8: =IF(AN8-AO8<=0,0,AN8-AO8) -> 48172.32 | AQ8: =IF(AND(AM8=F8, AH8="AZALAN BAKİYELERE GÖRE AMORTİSMAN",AI8="EVET"),(DDB(Y8,0,IF(F8<=4,4,F8),1,2)/12)*(12-(12-MONTH(H8)+1)),IF(AND(AM8=F8,AH8="NORMAL AMORTİSMAN",AI8="EVET"),(Y8*(G8*2)/12)*(12-(12-MONTH(H8)+1)))) -> FALSE | AR8: =MAX( AP8-AQ8,0) -> 48172.32
B9: 2 | C9: ='DOLDURULMASI GEREKEN TABLO'!D22 -> 0 | D9: ='DOLDURULMASI GEREKEN TABLO'!E22 -> 255- Demirbaşlar | E9: ='DOLDURULMASI GEREKEN TABLO'!F22 -> HAYIR | F9: ='DOLDURULMASI GEREKEN TABLO'!G22 -> 5 | G9: =IFERROR(IF(L9="AZALAN BAKİYELERE GÖRE AMORTİSMAN",MIN(1/F9,1/4),1/F9),0) -> 0.2 | H9: ='DOLDURULMASI GEREKEN TABLO'!H22 -> 2024-06-01 | I9: 2026-01-01 | J9: ='DOLDURULMASI GEREKEN TABLO'!I22 -> MÜK.298 Ç YE GÖRE İLGİLİ GEÇİCİ VERGİ DÖNEMİNE AİT YDO İLE YD YAPILABİLİR | K9: ='DOLDURULMASI GEREKEN TABLO'!J22 -> 1000000 | L9: ='DOLDURULMASI GEREKEN TABLO'!K22 -> NORMAL AMORTİSMAN | M9: ='DOLDURULMASI GEREKEN TABLO'!L22 -> HAYIR | N9: =MAX( IFERROR((I9-H9)+1,0),0) -> 580 | O9: =IFERROR( MIN(YEAR(I9)-YEAR(H9),F9),0) -> 2 | P9: =MAX(IFERROR(MIN((( (YEAR(I9)-YEAR(H9))*12+(MONTH(I9)-MONTH(H9)))/12),F9),0),0) -> 1.583333333 | Q9: =IF(AND(M9="EVET",O9<F9),P9,O9) -> 2 | R9: =IFERROR(IF(D9="250- Arazi ve Arsalar",0, IF(Q9=F9,K9, IF(AND(L9="NORMAL AMORTİSMAN",M9="HAYIR"),K9*G9*Q9, IF(AND(L9="NORMAL AMORTİSMAN",M9="EVET"),K9*G9*Q9, IF(AND(L9="AZALAN BAKİYELERE GÖRE AMORTİSMAN",M9="HAYIR"),VDB(K9,0,IF(F9<=4,4,F9),0,Q9,2,TRUE), IF(AND(L9="AZALAN BAKİYELERE GÖRE AMORTİSMAN",M9="EVET",Q9<=1),(DDB(K9,0,IF(F9<=4,4,F9),1,2)/12)*(12-MONTH(H9)+1), IF(AND(L9="AZALAN BAKİYELERE GÖRE AMORTİSMAN",M9="EVET",AND(Q9<=2,Q9>1)),(DDB(K9,0,IF(F9<=4,4,F9),1,2)/12)*(12-MONTH(H9)+1)+DDB(K9,0,IF(F9<=4,4,F9),2,2), IF(AND(L9="AZALAN BAKİYELERE GÖRE AMORTİSMAN",M9="EVET",AND(Q9<=3,Q9>2)),(DDB(K9,0,IF(F9<=4,4,F9),1,2)/12)*(12-MONTH(H9)+1)+DDB(K9,0,IF(F9<=4,4,F9),2,2)+DDB(K9,0,IF(F9<=4,4,F9),3,2), IF(AND(L9="AZALAN BAKİYELERE GÖRE AMORTİSMAN",M9="EVET",AND(Q9<=4,Q9>3)),(DDB(K9,0,IF(F9<=4,4,F9),1,2)/12)*(12-MONTH(H9)+1)+DDB(K9,0,IF(F9<=4,4,F9),2,2)+DDB(K9,0,IF(F9<=4,4,F9),3,2)+DDB(K9,0,IF(F9<=4,4,F9),4,2), IF(AND(L9="AZALAN BAKİYELERE GÖRE AMORTİSMAN",M9="EVET",AND(Q9<=5,Q9>4)),K9,0)))))))))),0) -> 400000 | S9: =K9 -> 1000000 | T9: =R9 -> 400000 | U9: =S9-T9 -> 600000 | W9: =IF(OR(D9="250- Arazi ve Arsalar",YEAR(H9)=2026),0,TRUNC('DOLDURULMASI GEREKEN TABLO'!N22,4)) -> 0.1151 | X9: =IF(E9="HAYIR",(1+W9),1) -> 1.1151 | Y9: =X9*S9 -> 1115100 | Z9: =T9*X9 -> 446040 | AA9: =Y9-Z9 -> 669060 | AB9: =IFERROR(IF(Y9-S9<0,0,Y9-S9),0) -> 115100 | AC9: =IFERROR(IF(Z9-T9<0,0,Z9-T9),0) -> 46040 | AD9: =IFERROR(IF((AB9-AC9)<0,0,(AB9-AC9)),0) -> 69060 | AF9: =H9 -> 2024-06-01 | AG9: ='DOLDURULMASI GEREKEN TABLO'!M22 -> 2026-06-30 | AH9: =L9 -> NORMAL AMORTİSMAN | AI9: =M9 -> HAYIR | AJ9: =(AG9-AF9)+1 -> 760 | AK9: =YEAR(AG9)-YEAR(AF9)+1 -> 3 | AL9: =(((YEAR(AG9)-YEAR(AF9))*12)+(MONTH(AG9)-MONTH(AF9)+1))/12 -> 2.083333333 | AM9: =IF( AND(AI9="EVET",AK9<F9),AL9, AK9) -> 3 | AN9: =IFERROR( IF(D9="250- Arazi ve Arsalar",0, IF(AK9=F9,Y9, IF(AND(L9="NORMAL AMORTİSMAN",M9="HAYIR"),Y9*G9*IF(AK9>1,AK9-0.5,AK9), IF(AND(L9="NORMAL AMORTİSMAN",M9="EVET"), Y9*G9*IF(AK9>1,AK9-0.5,AK9), IF(AND(L9="AZALAN BAKİYELERE GÖRE AMORTİSMAN",M9="HAYIR"),VDB(Y9,0,IF(F9<=4,4,F9),0,IF(AK9>1,AK9-0.5,AK9),2,TRUE), IF(AND(L9="AZALAN BAKİYELERE GÖRE AMORTİSMAN",M9="EVET",AK9<1), (DDB(Y9,0,IF(F9<=4,4,F9),1,2)/12)*(12-MONTH(H9)+1), IF(AND(L9="AZALAN BAKİYELERE GÖRE AMORTİSMAN",M9="EVET",AND(AK9<=2,AK9>1)), (DDB(Y9,0,IF(F9<=4,4,F9),1,2)/12)*(12-MONTH(H9)+1) + DDB(Y9,0,IF(F9<=4,4,F9),2,2)/4*2, IF(AND(L9="AZALAN BAKİYELERE GÖRE AMORTİSMAN",M9="EVET",AND(AK9<=3,AK9>2)), (DDB(Y9,0,IF(F9<=4,4,F9),1,2)/12)*(12-MONTH(H9)+1)+DDB(Y9,0,IF(F9<=4,4,F9),2,2)+ DDB(Y9,0,IF(F9<=4,4,F9),3,2)/4*2, IF(AND(L9="AZALAN BAKİYELERE GÖRE AMORTİSMAN",M9="EVET",AND(AK9<=4,AK9>3)), (DDB(Y9,0,IF(F9<=4,4,F9),1,2)/12)*(12-MONTH(H9)+1)+DDB(Y9,0,IF(F9<=4,4,F9),2,2)+DDB(Y9,0,IF(F9<=4,4,F9),3,2)+DDB(Y9,0,IF(F9<=4,4,F9),4,2)/4*2, IF(AND(L9="AZALAN BAKİYELERE GÖRE AMORTİSMAN",M9="EVET",AND(AK9<=5,AK9>4)), ((DDB(Y9,0,IF(F9<=4,4,F9),1,2)/12)*(12-MONTH(H9)+1) + DDB(Y9,0,IF(F9<=4,4,F9),2,2) + DDB(Y9,0,IF(F9<=4,4,F9),3,2)+ DDB(Y9,0,IF(F9<=4,4,F9),4,2))+ Y9- ( (DDB(Y9,0,IF(F9<=4,4,F9),1,2)/12)*(12-MONTH(H9)+1) + DDB(Y9,0,IF(F9<=4,4,F9),2,2) + DDB(Y9,0,IF(F9<=4,4,F9),3,2)+ DDB(Y9,0,IF(F9<=4,4,F9),4,2)), DDB(Y9,0,IF(F9<=4,4,F9),AK9-0.5,2) ) ) ) ) ) ) ) ) ) ), 0) -> 557550 | AO9: =Z9 -> 446040 | AP9: =IF(AN9-AO9<=0,0,AN9-AO9) -> 111510 | AQ9: FALSE | AR9: 111510
B10: 3 | C10: ='DOLDURULMASI GEREKEN TABLO'!D23 -> 0 | D10: ='DOLDURULMASI GEREKEN TABLO'!E23 -> 254- Taşıtlar | E10: ='DOLDURULMASI GEREKEN TABLO'!F23 -> HAYIR | F10: ='DOLDURULMASI GEREKEN TABLO'!G23 -> 5 | G10: 0.2 | H10: ='DOLDURULMASI GEREKEN TABLO'!H23 -> 2025-05-10 | I10: 2026-01-01 | J10: ='DOLDURULMASI GEREKEN TABLO'!I23 -> MÜK.298 Ç YE GÖRE İLGİLİ GEÇİCİ VERGİ DÖNEMİNE AİT YDO İLE YD YAPILABİLİR | K10: ='DOLDURULMASI GEREKEN TABLO'!J23 -> 1000000 | L10: ='DOLDURULMASI GEREKEN TABLO'!K23 -> NORMAL AMORTİSMAN | M10: ='DOLDURULMASI GEREKEN TABLO'!L23 -> EVET | N10: =MAX( IFERROR((I10-H10)+1,0),0) -> 237 | O10: 1 | P10: 0.6666666667 | Q10: 0.6666666667 | R10: 133333.3333 | S10: 1000000 | T10: =R10 -> 133333.3333 | U10: 866666.6667 | W10: =IF(OR(D10="250- Arazi ve Arsalar",YEAR(H10)=2026),0,TRUNC('DOLDURULMASI GEREKEN TABLO'!N23,4)) -> 0.1151 | X10: =IF(E10="HAYIR",(1+W10),1) -> 1.1151 | Y10: 1115100 | Z10: =T10*X10 -> 148680 | AA10: 966420 | AB10: 115100 | AC10: 15346.66667 | AD10: 99753.33333 | AF10: 2025-05-10 | AG10: ='DOLDURULMASI GEREKEN TABLO'!M23 -> 2026-06-30 | AH10: NORMAL AMORTİSMAN | AI10: EVET | AJ10: =(AG10-AF10)+1 -> 417 | AK10: =YEAR(AG10)-YEAR(AF10)+1 -> 2 | AL10: =(((YEAR(AG10)-YEAR(AF10))*12)+(MONTH(AG10)-MONTH(AF10)+1))/12 -> 1.166666667 | AM10: 1.166666667 | AN10: 334530 | AO10: =Z10 -> 148680 | AP10: 185850 | AQ10: FALSE | AR10: 185850
B11: 4 | C11: ='DOLDURULMASI GEREKEN TABLO'!D24 -> 0 | D11: ='DOLDURULMASI GEREKEN TABLO'!E24 -> 253- Tesis Makine ve Cihazlar | E11: ='DOLDURULMASI GEREKEN TABLO'!F24 -> HAYIR | F11: ='DOLDURULMASI GEREKEN TABLO'!G24 -> 5 | G11: 0.2 | H11: ='DOLDURULMASI GEREKEN TABLO'!H24 -> 2026-01-10 | I11: 2026-01-01 | J11: ='DOLDURULMASI GEREKEN TABLO'!I24 -> 2026 YILINDA İKTİSAP EDİLEN KIYMETLER İÇİN 2026 YILINDA MÜK.298 Ç YE GÖRE YENİDEN DEĞERLEME YAPILAMAZ | K11: ='DOLDURULMASI GEREKEN TABLO'!J24 -> 1000000 | L11: ='DOLDURULMASI GEREKEN TABLO'!K24 -> AZALAN BAKİYELERE GÖRE AMORTİSMAN | M11: ='DOLDURULMASI GEREKEN TABLO'!L24 -> HAYIR | N11: 0 | O11: 0 | P11: 0 | Q11: 0 | R11: 0 | S11: 1000000 | T11: 0 | U11: 1000000 | W11: =IF(OR(D11="250- Arazi ve Arsalar",YEAR(H11)=2026),0,TRUNC('DOLDURULMASI GEREKEN TABLO'!N24,4)) -> 0 | X11: 1 | Y11: 1000000 | Z11: 0 | AA11: 1000000 | AB11: 0 | AC11: 0 | AD11: 0 | AF11: 2026-01-10 | AG11: ='DOLDURULMASI GEREKEN TABLO'!M24 -> 2026-06-30 | AH11: AZALAN BAKİYELERE GÖRE AMORTİSMAN | AI11: HAYIR | AJ11: 172 | AK11: 1 | AL11: 0.5 | AM11: 1 | AN11: 400000 | AO11: 0 | AP11: 400000 | AQ11: FALSE | AR11: 400000
B12: 5 | C12: ='DOLDURULMASI GEREKEN TABLO'!D25 -> 0 | D12: ='DOLDURULMASI GEREKEN TABLO'!E25 -> 250- Arazi ve Arsalar | E12: ='DOLDURULMASI GEREKEN TABLO'!F25 -> HAYIR | F12: ='DOLDURULMASI GEREKEN TABLO'!G25 -> 100 | G12: 0.01 | H12: ='DOLDURULMASI GEREKEN TABLO'!H25 -> 2019-07-01 | I12: 2026-01-01 | J12: ='DOLDURULMASI GEREKEN TABLO'!I25 -> MÜK.298 Ç YE GÖRE İLGİLİ GEÇİCİ VERGİ DÖNEMİNE AİT YDO İLE YD YAPILABİLİR | K12: ='DOLDURULMASI GEREKEN TABLO'!J25 -> 1000000 | L12: ='DOLDURULMASI GEREKEN TABLO'!K25 -> AMORTİSMANA TABİ DEĞİL | M12: ='DOLDURULMASI GEREKEN TABLO'!L25 -> HAYIR | N12: 2377 | O12: 7 | P12: 6.5 | Q12: 7 | R12: 0 | S12: 1000000 | T12: 0 | U12: 1000000 | W12: =IF(OR(D12="250- Arazi ve Arsalar",YEAR(H12)=2026),0,TRUNC('DOLDURULMASI GEREKEN TABLO'!N25,4)) -> 0 | X12: 1 | Y12: 1000000 | Z12: 0 | AA12: 1000000 | AB12: 0 | AC12: 0 | AD12: 0 | AF12: 2019-07-01 | AG12: ='DOLDURULMASI GEREKEN TABLO'!M25 -> 2026-06-30 | AH12: AMORTİSMANA TABİ DEĞİL | AI12: HAYIR | AJ12: 2557 | AK12: 8 | AL12: 7 | AM12: 8 | AN12: 0 | AO12: 0 | AP12: 0 | AQ12: FALSE | AR12: 0
B13: 6 | C13: ='DOLDURULMASI GEREKEN TABLO'!D26 -> 0 | D13: ='DOLDURULMASI GEREKEN TABLO'!E26 -> 260- Haklar | E13: ='DOLDURULMASI GEREKEN TABLO'!F26 -> HAYIR | F13: ='DOLDURULMASI GEREKEN TABLO'!G26 -> 15 | G13: 0.06666666667 | H13: ='DOLDURULMASI GEREKEN TABLO'!H26 -> 2020-04-10 | I13: 2026-01-01 | J13: ='DOLDURULMASI GEREKEN TABLO'!I26 -> MÜK.298 Ç YE GÖRE İLGİLİ GEÇİCİ VERGİ DÖNEMİNE AİT YDO İLE YD YAPILABİLİR | K13: ='DOLDURULMASI GEREKEN TABLO'!J26 -> 1000000 | L13: ='DOLDURULMASI GEREKEN TABLO'!K26 -> NORMAL AMORTİSMAN | M13: ='DOLDURULMASI GEREKEN TABLO'!L26 -> HAYIR | N13: 2093 | O13: 6 | P13: 5.75 | Q13: 6 | R13: 400000 | S13: 1000000 | T13: 400000 | U13: 600000 | W13: =IF(OR(D13="250- Arazi ve Arsalar",YEAR(H13)=2026),0,TRUNC('DOLDURULMASI GEREKEN TABLO'!N26,4)) -> 0.1151 | X13: 1.1151 | Y13: 1115100 | Z13: 446040 | AA13: 669060 | AB13: 115100 | AC13: 46040 | AD13: 69060 | AF13: 2020-04-10 | AG13: ='DOLDURULMASI GEREKEN TABLO'!M26 -> 2026-06-30 | AH13: NORMAL AMORTİSMAN | AI13: HAYIR | AJ13: 2273 | AK13: 7 | AL13: 6.25 | AM13: 7 | AN13: 483210 | AO13: 446040 | AP13: 37170 | AQ13: FALSE | AR13: 37170
B14: 7 | C14: ='DOLDURULMASI GEREKEN TABLO'!D27 -> 0 | D14: ='DOLDURULMASI GEREKEN TABLO'!E27 -> 254- Taşıtlar | E14: ='DOLDURULMASI GEREKEN TABLO'!F27 -> HAYIR | F14: ='DOLDURULMASI GEREKEN TABLO'!G27 -> 5 | G14: 0.2 | H14: ='DOLDURULMASI GEREKEN TABLO'!H27 -> 2023-06-08 | I14: 2026-01-01 | J14: ='DOLDURULMASI GEREKEN TABLO'!I27 -> MÜK.298 Ç YE GÖRE İLGİLİ GEÇİCİ VERGİ DÖNEMİNE AİT YDO İLE YD YAPILABİLİR | K14: ='DOLDURULMASI GEREKEN TABLO'!J27 -> 1000000 | L14: ='DOLDURULMASI GEREKEN TABLO'!K27 -> NORMAL AMORTİSMAN | M14: ='DOLDURULMASI GEREKEN TABLO'!L27 -> EVET | N14: 939 | O14: 3 | P14: 2.583333333 | Q14: 2.583333333 | R14: =IFERROR(IF(D14="250- Arazi ve Arsalar",0, IF(Q14=F14,K14, IF(AND(L14="NORMAL AMORTİSMAN",M14="HAYIR"),K14*G14*Q14, IF(AND(L14="NORMAL AMORTİSMAN",M14="EVET"),K14*G14*Q14, IF(AND(L14="AZALAN BAKİYELERE GÖRE AMORTİSMAN",M14="HAYIR"),VDB(K14,0,IF(F14<=4,4,F14),0,Q14,2,TRUE), IF(AND(L14="AZALAN BAKİYELERE GÖRE AMORTİSMAN",M14="EVET",Q14<=1),(DDB(K14,0,IF(F14<=4,4,F14),1,2)/12)*(12-MONTH(H14)+1), IF(AND(L14="AZALAN BAKİYELERE GÖRE AMORTİSMAN",M14="EVET",AND(Q14<=2,Q14>1)),(DDB(K14,0,IF(F14<=4,4,F14),1,2)/12)*(12-MONTH(H14)+1)+ DDB(K14,0,IF(F14<=4,4,F14),2,2), IF(AND(L14="AZALAN BAKİYELERE GÖRE AMORTİSMAN",M14="EVET",AND(Q14<=3,Q14>2)),(DDB(K14,0,IF(F14<=4,4,F14),1,2)/12)*(12-MONTH(H14)+1)+DDB(K14,0,IF(F14<=4,4,F14),2,2)+DDB(K14,0,IF(F14<=4,4,F14),3,2), IF(AND(L14="AZALAN BAKİYELERE GÖRE AMORTİSMAN",M14="EVET",AND(Q14<=4,Q14>3)),(DDB(K14,0,IF(F14<=4,4,F14),1,2)/12)*(12-MONTH(H14)+1)+DDB(K14,0,IF(F14<=4,4,F14),2,2)+DDB(K14,0,IF(F14<=4,4,F14),3,2)+DDB(K14,0,IF(F14<=4,4,F14),4,2), IF(AND(L14="AZALAN BAKİYELERE GÖRE AMORTİSMAN",M14="EVET",AND(Q14<=5,Q14>4)),K14,0)))))))))),0) -> 516666.6667 | S14: 1000000 | T14: 516666.6667 | U14: 483333.3333 | W14: =IF(OR(D14="250- Arazi ve Arsalar",YEAR(H14)=2026),0,TRUNC('DOLDURULMASI GEREKEN TABLO'!N27,4)) -> 0.1151 | X14: 1.1151 | Y14: 1115100 | Z14: =T14*X14 -> 576135 | AA14: =Y14-Z14 -> 538965 | AB14: =IFERROR(IF(Y14-S14<0,0,Y14-S14),0) -> 115100 | AC14: =IFERROR(IF(Z14-T14<0,0,Z14-T14),0) -> 59468.33333 | AD14: =IFERROR(IF((AB14-AC14)<0,0,(AB14-AC14)),0) -> 55631.66667 | AF14: 2023-06-08 | AG14: ='DOLDURULMASI GEREKEN TABLO'!M27 -> 2026-06-30 | AH14: NORMAL AMORTİSMAN | AI14: EVET | AJ14: 1119 | AK14: 4 | AL14: 3.083333333 | AM14: 3.083333333 | AN14: 780570 | AO14: 576135 | AP14: 204435 | AQ14: FALSE | AR14: 204435
B15: 8 | C15: ='DOLDURULMASI GEREKEN TABLO'!D28 -> 0 | D15: ='DOLDURULMASI GEREKEN TABLO'!E28 -> 254- Taşıtlar | E15: ='DOLDURULMASI GEREKEN TABLO'!F28 -> HAYIR | F15: ='DOLDURULMASI GEREKEN TABLO'!G28 -> 5 | G15: 0.2 | H15: ='DOLDURULMASI GEREKEN TABLO'!H28 -> 2021-12-21 | I15: 2026-01-01 | J15: ='DOLDURULMASI GEREKEN TABLO'!I28 -> MÜK.298 Ç YE GÖRE İLGİLİ GEÇİCİ VERGİ DÖNEMİNE AİT YDO İLE YD YAPILABİLİR | K15: ='DOLDURULMASI GEREKEN TABLO'!J28 -> 1000000 | L15: ='DOLDURULMASI GEREKEN TABLO'!K28 -> NORMAL AMORTİSMAN | M15: ='DOLDURULMASI GEREKEN TABLO'!L28 -> HAYIR | N15: 1473 | O15: 5 | P15: 4.083333333 | Q15: 5 | R15: 1000000 | S15: 1000000 | T15: 1000000 | U15: 0 | W15: =IF(OR(D15="250- Arazi ve Arsalar",YEAR(H15)=2026),0,TRUNC('DOLDURULMASI GEREKEN TABLO'!N28,4)) -> 0.1151 | X15: 1.1151 | Y15: 1115100 | Z15: 1115100 | AA15: 0 | AB15: 115100 | AC15: 115100 | AD15: 0 | AF15: 2021-12-21 | AG15: ='DOLDURULMASI GEREKEN TABLO'!M28 -> 2026-06-30 | AH15: NORMAL AMORTİSMAN | AI15: HAYIR | AJ15: 1653 | AK15: 6 | AL15: 4.583333333 | AM15: 6 | AN15: 1226610 | AO15: 1115100 | AP15: 111510 | AQ15: FALSE | AR15: 111510
B16: 9 | C16: ='DOLDURULMASI GEREKEN TABLO'!D29 -> 0 | D16: ='DOLDURULMASI GEREKEN TABLO'!E29 -> 254- Taşıtlar | E16: ='DOLDURULMASI GEREKEN TABLO'!F29 -> HAYIR | F16: ='DOLDURULMASI GEREKEN TABLO'!G29 -> 5 | G16: 0.2 | H16: ='DOLDURULMASI GEREKEN TABLO'!H29 -> 2021-12-21 | I16: 2026-01-01 | J16: ='DOLDURULMASI GEREKEN TABLO'!I29 -> MÜK.298 Ç YE GÖRE İLGİLİ GEÇİCİ VERGİ DÖNEMİNE AİT YDO İLE YD YAPILABİLİR | K16: ='DOLDURULMASI GEREKEN TABLO'!J29 -> 1000000 | L16: ='DOLDURULMASI GEREKEN TABLO'!K29 -> AZALAN BAKİYELERE GÖRE AMORTİSMAN | M16: ='DOLDURULMASI GEREKEN TABLO'!L29 -> EVET | N16: =MAX( IFERROR((I16-H16)+1,0),0) -> 1473 | O16: 5 | P16: 4.083333333 | Q16: 5 | R16: 1000000 | S16: 1000000 | T16: 1000000 | U16: 0 | W16: =IF(OR(D16="250- Arazi ve Arsalar",YEAR(H16)=2026),0,TRUNC('DOLDURULMASI GEREKEN TABLO'!N29,4)) -> 0.1151 | X16: 1.1151 | Y16: 1115100 | Z16: 1115100 | AA16: 0 | AB16: 115100 | AC16: 115100 | AD16: 0 | AF16: 2021-12-21 | AG16: ='DOLDURULMASI GEREKEN TABLO'!M29 -> 2026-06-30 | AH16: AZALAN BAKİYELERE GÖRE AMORTİSMAN | AI16: EVET | AJ16: 1653 | AK16: 6 | AL16: 4.583333333 | AM16: 6 | AN16: 0 | AO16: =Z16 -> 1115100 | AP16: 0 | AQ16: =IF(AND(AM16=F16, AH16="AZALAN BAKİYELERE GÖRE AMORTİSMAN",AI16="EVET"),(DDB(Y16,0,IF(F16<=4,4,F16),1,2)/12)*(12-(12-MONTH(H16)+1)),IF(AND(AM16=F16,AH16="NORMAL AMORTİSMAN",AI16="EVET"),(Y16*(G16*2)/12)*(12-(12-MONTH(H16)+1)))) -> FALSE | AR16: =MAX( AP16-AQ16,0) -> 0
B17: 10 | C17: ='DOLDURULMASI GEREKEN TABLO'!D30 -> 0 | D17: ='DOLDURULMASI GEREKEN TABLO'!E30 -> 254- Taşıtlar | E17: ='DOLDURULMASI GEREKEN TABLO'!F30 -> HAYIR | F17: ='DOLDURULMASI GEREKEN TABLO'!G30 -> 5 | G17: 0.2 | H17: ='DOLDURULMASI GEREKEN TABLO'!H30 -> 2023-10-09 | I17: 2026-01-01 | J17: ='DOLDURULMASI GEREKEN TABLO'!I30 -> MÜK.298 Ç YE GÖRE İLGİLİ GEÇİCİ VERGİ DÖNEMİNE AİT YDO İLE YD YAPILABİLİR | K17: ='DOLDURULMASI GEREKEN TABLO'!J30 -> 1000000 | L17: ='DOLDURULMASI GEREKEN TABLO'!K30 -> AZALAN BAKİYELERE GÖRE AMORTİSMAN | M17: ='DOLDURULMASI GEREKEN TABLO'!L30 -> EVET | N17: =MAX( IFERROR((I17-H17)+1,0),0) -> 816 | O17: 3 | P17: 2.25 | Q17: 2.25 | R17: 484000 | S17: 1000000 | T17: 484000 | U17: 516000 | W17: =IF(OR(D17="250- Arazi ve Arsalar",YEAR(H17)=2026),0,TRUNC('DOLDURULMASI GEREKEN TABLO'!N30,4)) -> 0.1151 | X17: 1.1151 | Y17: 1115100 | Z17: 539708.4 | AA17: 575391.6 | AB17: 115100 | AC17: 55708.4 | AD17: 59391.6 | AF17: 2023-10-09 | AG17: ='DOLDURULMASI GEREKEN TABLO'!M30 -> 2026-06-30 | AH17: AZALAN BAKİYELERE GÖRE AMORTİSMAN | AI17: EVET | AJ17: 996 | AK17: 4 | AL17: 2.75 | AM17: =IF(AI17="EVET",AL17,AK17) -> 2.75 | AN17: 587880.72 | AO17: =Z17 -> 539708.4 | AP17: 48172.32 | AQ17: =IF(AND(AM17=F17, AH17="AZALAN BAKİYELERE GÖRE AMORTİSMAN",AI17="EVET"),(DDB(Y17,0,IF(F17<=4,4,F17),1,2)/12)*(12-(12-MONTH(H17)+1)),IF(AND(AM17=F17,AH17="NORMAL AMORTİSMAN",AI17="EVET"),(Y17*(G17*2)/12)*(12-(12-MONTH(H17)+1)))) -> FALSE | AR17: =MAX( AP17-AQ17,0) -> 48172.32
B18: 11 | C18: ='DOLDURULMASI GEREKEN TABLO'!D31 -> 0 | D18: ='DOLDURULMASI GEREKEN TABLO'!E31 -> 0 | E18: ='DOLDURULMASI GEREKEN TABLO'!F31 -> 0 | F18: ='DOLDURULMASI GEREKEN TABLO'!G31 -> 0 | G18: 0 | H18: ='DOLDURULMASI GEREKEN TABLO'!H31 -> 00:00:00 | I18: 2026-01-01 | J18: ='DOLDURULMASI GEREKEN TABLO'!I31 -> MÜK.298 Ç YE GÖRE İLGİLİ GEÇİCİ VERGİ DÖNEMİNE AİT YDO İLE YD YAPILABİLİR | K18: ='DOLDURULMASI GEREKEN TABLO'!J31 -> 0 | L18: ='DOLDURULMASI GEREKEN TABLO'!K31 -> 0 | M18: ='DOLDURULMASI GEREKEN TABLO'!L31 -> 0 | N18: 46024 | O18: 0 | P18: 0 | Q18: 0 | R18: 0 | S18: 0 | T18: 0 | U18: 0 | W18: =IF(OR(D18="250- Arazi ve Arsalar",YEAR(H18)=2026),0,TRUNC('DOLDURULMASI GEREKEN TABLO'!N31,4)) -> 0.1151 | X18: 1 | Y18: 0 | Z18: 0 | AA18: 0 | AB18: 0 | AC18: 0 | AD18: 0 | AF18: 00:00:00 | AG18: ='DOLDURULMASI GEREKEN TABLO'!M31 -> 2026-06-30 | AH18: 0 | AI18: 0 | AJ18: 46204 | AK18: 127 | AL18: 126.5 | AM18: 127 | AN18: 0 | AO18: 0 | AP18: 0 | AQ18: FALSE | AR18: 0
B19: 12 | C19: ='DOLDURULMASI GEREKEN TABLO'!D32 -> 0 | D19: ='DOLDURULMASI GEREKEN TABLO'!E32 -> 0 | E19: ='DOLDURULMASI GEREKEN TABLO'!F32 -> 0 | F19: ='DOLDURULMASI GEREKEN TABLO'!G32 -> 0 | G19: 0 | H19: ='DOLDURULMASI GEREKEN TABLO'!H32 -> 00:00:00 | I19: 2026-01-01 | J19: ='DOLDURULMASI GEREKEN TABLO'!I32 -> MÜK.298 Ç YE GÖRE İLGİLİ GEÇİCİ VERGİ DÖNEMİNE AİT YDO İLE YD YAPILABİLİR | K19: ='DOLDURULMASI GEREKEN TABLO'!J32 -> 0 | L19: ='DOLDURULMASI GEREKEN TABLO'!K32 -> 0 | M19: ='DOLDURULMASI GEREKEN TABLO'!L32 -> 0 | N19: 46024 | O19: 0 | P19: 0 | Q19: 0 | R19: 0 | S19: 0 | T19: 0 | U19: 0 | W19: =IF(OR(D19="250- Arazi ve Arsalar",YEAR(H19)=2026),0,TRUNC('DOLDURULMASI GEREKEN TABLO'!N32,4)) -> 0.1151 | X19: 1 | Y19: 0 | Z19: 0 | AA19: 0 | AB19: 0 | AC19: 0 | AD19: 0 | AF19: 00:00:00 | AG19: ='DOLDURULMASI GEREKEN TABLO'!M32 -> 2026-06-30 | AH19: 0 | AI19: 0 | AJ19: 46204 | AK19: 127 | AL19: 126.5 | AM19: 127 | AN19: 0 | AO19: 0 | AP19: 0 | AQ19: FALSE | AR19: 0
B20: 13 | C20: ='DOLDURULMASI GEREKEN TABLO'!D33 -> 0 | D20: ='DOLDURULMASI GEREKEN TABLO'!E33 -> 0 | E20: ='DOLDURULMASI GEREKEN TABLO'!F33 -> 0 | F20: ='DOLDURULMASI GEREKEN TABLO'!G33 -> 0 | G20: 0 | H20: ='DOLDURULMASI GEREKEN TABLO'!H33 -> 00:00:00 | I20: 2026-01-01 | J20: ='DOLDURULMASI GEREKEN TABLO'!I33 -> MÜK.298 Ç YE GÖRE İLGİLİ GEÇİCİ VERGİ DÖNEMİNE AİT YDO İLE YD YAPILABİLİR | K20: ='DOLDURULMASI GEREKEN TABLO'!J33 -> 0 | L20: ='DOLDURULMASI GEREKEN TABLO'!K33 -> 0 | M20: ='DOLDURULMASI GEREKEN TABLO'!L33 -> 0 | N20: 46024 | O20: 0 | P20: 0 | Q20: 0 | R20: 0 | S20: 0 | T20: 0 | U20: 0 | W20: =IF(OR(D20="250- Arazi ve Arsalar",YEAR(H20)=2026),0,TRUNC('DOLDURULMASI GEREKEN TABLO'!N33,4)) -> 0.1151 | X20: 1 | Y20: 0 | Z20: 0 | AA20: 0 | AB20: 0 | AC20: 0 | AD20: 0 | AF20: 00:00:00 | AG20: ='DOLDURULMASI GEREKEN TABLO'!M33 -> 2026-06-30 | AH20: 0 | AI20: 0 | AJ20: 46204 | AK20: 127 | AL20: 126.5 | AM20: 127 | AN20: 0 | AO20: 0 | AP20: 0 | AQ20: FALSE | AR20: 0
B21: 14 | C21: ='DOLDURULMASI GEREKEN TABLO'!D34 -> 0 | D21: ='DOLDURULMASI GEREKEN TABLO'!E34 -> 0 | E21: ='DOLDURULMASI GEREKEN TABLO'!F34 -> 0 | F21: ='DOLDURULMASI GEREKEN TABLO'!G34 -> 0 | G21: 0 | H21: ='DOLDURULMASI GEREKEN TABLO'!H34 -> 00:00:00 | I21: 2026-01-01 | J21: ='DOLDURULMASI GEREKEN TABLO'!I34 -> MÜK.298 Ç YE GÖRE İLGİLİ GEÇİCİ VERGİ DÖNEMİNE AİT YDO İLE YD YAPILABİLİR | K21: ='DOLDURULMASI GEREKEN TABLO'!J34 -> 0 | L21: ='DOLDURULMASI GEREKEN TABLO'!K34 -> 0 | M21: ='DOLDURULMASI GEREKEN TABLO'!L34 -> 0 | N21: 46024 | O21: 0 | P21: 0 | Q21: 0 | R21: 0 | S21: 0 | T21: 0 | U21: 0 | W21: =IF(OR(D21="250- Arazi ve Arsalar",YEAR(H21)=2026),0,TRUNC('DOLDURULMASI GEREKEN TABLO'!N34,4)) -> 0.1151 | X21: 1 | Y21: 0 | Z21: 0 | AA21: 0 | AB21: 0 | AC21: 0 | AD21: 0 | AF21: 00:00:00 | AG21: ='DOLDURULMASI GEREKEN TABLO'!M34 -> 2026-06-30 | AH21: 0 | AI21: 0 | AJ21: 46204 | AK21: 127 | AL21: 126.5 | AM21: 127 | AN21: 0 | AO21: 0 | AP21: 0 | AQ21: FALSE | AR21: 0
B22: 15 | C22: ='DOLDURULMASI GEREKEN TABLO'!D35 -> 0 | D22: ='DOLDURULMASI GEREKEN TABLO'!E35 -> 0 | E22: ='DOLDURULMASI GEREKEN TABLO'!F35 -> 0 | F22: ='DOLDURULMASI GEREKEN TABLO'!G35 -> 0 | G22: 0 | H22: ='DOLDURULMASI GEREKEN TABLO'!H35 -> 00:00:00 | I22: 2026-01-01 | J22: ='DOLDURULMASI GEREKEN TABLO'!I35 -> MÜK.298 Ç YE GÖRE İLGİLİ GEÇİCİ VERGİ DÖNEMİNE AİT YDO İLE YD YAPILABİLİR | K22: ='DOLDURULMASI GEREKEN TABLO'!J35 -> 0 | L22: ='DOLDURULMASI GEREKEN TABLO'!K35 -> 0 | M22: ='DOLDURULMASI GEREKEN TABLO'!L35 -> 0 | N22: 46024 | O22: 0 | P22: 0 | Q22: 0 | R22: 0 | S22: 0 | T22: 0 | U22: 0 | W22: =IF(OR(D22="250- Arazi ve Arsalar",YEAR(H22)=2026),0,TRUNC('DOLDURULMASI GEREKEN TABLO'!N35,4)) -> 0.1151 | X22: 1 | Y22: 0 | Z22: 0 | AA22: 0 | AB22: 0 | AC22: 0 | AD22: 0 | AF22: 00:00:00 | AG22: ='DOLDURULMASI GEREKEN TABLO'!M35 -> 2026-06-30 | AH22: 0 | AI22: 0 | AJ22: 46204 | AK22: 127 | AL22: 126.5 | AM22: 127 | AN22: 0 | AO22: 0 | AP22: 0 | AQ22: FALSE | AR22: 0
B23: 16 | C23: ='DOLDURULMASI GEREKEN TABLO'!D36 -> 0 | D23: ='DOLDURULMASI GEREKEN TABLO'!E36 -> 0 | E23: ='DOLDURULMASI GEREKEN TABLO'!F36 -> 0 | F23: ='DOLDURULMASI GEREKEN TABLO'!G36 -> 0 | G23: 0 | H23: ='DOLDURULMASI GEREKEN TABLO'!H36 -> 00:00:00 | I23: 2026-01-01 | J23: ='DOLDURULMASI GEREKEN TABLO'!I36 -> MÜK.298 Ç YE GÖRE İLGİLİ GEÇİCİ VERGİ DÖNEMİNE AİT YDO İLE YD YAPILABİLİR | K23: ='DOLDURULMASI GEREKEN TABLO'!J36 -> 0 | L23: ='DOLDURULMASI GEREKEN TABLO'!K36 -> 0 | M23: ='DOLDURULMASI GEREKEN TABLO'!L36 -> 0 | N23: 46024 | O23: 0 | P23: 0 | Q23: 0 | R23: 0 | S23: 0 | T23: 0 | U23: 0 | W23: =IF(OR(D23="250- Arazi ve Arsalar",YEAR(H23)=2026),0,TRUNC('DOLDURULMASI GEREKEN TABLO'!N36,4)) -> 0.1151 | X23: 1 | Y23: 0 | Z23: 0 | AA23: 0 | AB23: 0 | AC23: 0 | AD23: 0 | AF23: 00:00:00 | AG23: ='DOLDURULMASI GEREKEN TABLO'!M36 -> 2026-06-30 | AH23: 0 | AI23: 0 | AJ23: 46204 | AK23: 127 | AL23: 126.5 | AM23: 127 | AN23: 0 | AO23: 0 | AP23: 0 | AQ23: FALSE | AR23: 0
B24: 17 | C24: ='DOLDURULMASI GEREKEN TABLO'!D37 -> 0 | D24: ='DOLDURULMASI GEREKEN TABLO'!E37 -> 0 | E24: ='DOLDURULMASI GEREKEN TABLO'!F37 -> 0 | F24: ='DOLDURULMASI GEREKEN TABLO'!G37 -> 0 | G24: 0 | H24: ='DOLDURULMASI GEREKEN TABLO'!H37 -> 00:00:00 | I24: 2026-01-01 | J24: ='DOLDURULMASI GEREKEN TABLO'!I37 -> MÜK.298 Ç YE GÖRE İLGİLİ GEÇİCİ VERGİ DÖNEMİNE AİT YDO İLE YD YAPILABİLİR | K24: ='DOLDURULMASI GEREKEN TABLO'!J37 -> 0 | L24: ='DOLDURULMASI GEREKEN TABLO'!K37 -> 0 | M24: ='DOLDURULMASI GEREKEN TABLO'!L37 -> 0 | N24: 46024 | O24: 0 | P24: 0 | Q24: 0 | R24: 0 | S24: 0 | T24: 0 | U24: 0 | W24: =IF(OR(D24="250- Arazi ve Arsalar",YEAR(H24)=2026),0,TRUNC('DOLDURULMASI GEREKEN TABLO'!N37,4)) -> 0.1151 | X24: 1 | Y24: 0 | Z24: 0 | AA24: 0 | AB24: 0 | AC24: 0 | AD24: 0 | AF24: 00:00:00 | AG24: ='DOLDURULMASI GEREKEN TABLO'!M37 -> 2026-06-30 | AH24: 0 | AI24: 0 | AJ24: 46204 | AK24: 127 | AL24: 126.5 | AM24: 127 | AN24: 0 | AO24: 0 | AP24: 0 | AQ24: FALSE | AR24: 0
B25: 18 | C25: ='DOLDURULMASI GEREKEN TABLO'!D38 -> 0 | D25: ='DOLDURULMASI GEREKEN TABLO'!E38 -> 0 | E25: ='DOLDURULMASI GEREKEN TABLO'!F38 -> 0 | F25: ='DOLDURULMASI GEREKEN TABLO'!G38 -> 0 | G25: 0 | H25: ='DOLDURULMASI GEREKEN TABLO'!H38 -> 00:00:00 | I25: 2026-01-01 | J25: ='DOLDURULMASI GEREKEN TABLO'!I38 -> MÜK.298 Ç YE GÖRE İLGİLİ GEÇİCİ VERGİ DÖNEMİNE AİT YDO İLE YD YAPILABİLİR | K25: ='DOLDURULMASI GEREKEN TABLO'!J38 -> 0 | L25: ='DOLDURULMASI GEREKEN TABLO'!K38 -> 0 | M25: ='DOLDURULMASI GEREKEN TABLO'!L38 -> 0 | N25: 46024 | O25: 0 | P25: 0 | Q25: 0 | R25: 0 | S25: 0 | T25: 0 | U25: 0 | W25: =IF(OR(D25="250- Arazi ve Arsalar",YEAR(H25)=2026),0,TRUNC('DOLDURULMASI GEREKEN TABLO'!N38,4)) -> 0.1151 | X25: 1 | Y25: 0 | Z25: 0 | AA25: 0 | AB25: 0 | AC25: 0 | AD25: 0 | AF25: 00:00:00 | AG25: ='DOLDURULMASI GEREKEN TABLO'!M38 -> 2026-06-30 | AH25: 0 | AI25: 0 | AJ25: 46204 | AK25: 127 | AL25: 126.5 | AM25: 127 | AN25: 0 | AO25: 0 | AP25: 0 | AQ25: FALSE | AR25: 0
B26: 19 | C26: ='DOLDURULMASI GEREKEN TABLO'!D39 -> 0 | D26: ='DOLDURULMASI GEREKEN TABLO'!E39 -> 0 | E26: ='DOLDURULMASI GEREKEN TABLO'!F39 -> 0 | F26: ='DOLDURULMASI GEREKEN TABLO'!G39 -> 0 | G26: 0 | H26: ='DOLDURULMASI GEREKEN TABLO'!H39 -> 00:00:00 | I26: 2026-01-01 | J26: ='DOLDURULMASI GEREKEN TABLO'!I39 -> MÜK.298 Ç YE GÖRE İLGİLİ GEÇİCİ VERGİ DÖNEMİNE AİT YDO İLE YD YAPILABİLİR | K26: ='DOLDURULMASI GEREKEN TABLO'!J39 -> 0 | L26: ='DOLDURULMASI GEREKEN TABLO'!K39 -> 0 | M26: ='DOLDURULMASI GEREKEN TABLO'!L39 -> 0 | N26: 46024 | O26: 0 | P26: 0 | Q26: 0 | R26: 0 | S26: 0 | T26: 0 | U26: 0 | W26: =IF(OR(D26="250- Arazi ve Arsalar",YEAR(H26)=2026),0,TRUNC('DOLDURULMASI GEREKEN TABLO'!N39,4)) -> 0.1151 | X26: 1 | Y26: 0 | Z26: 0 | AA26: 0 | AB26: 0 | AC26: 0 | AD26: 0 | AF26: 00:00:00 | AG26: ='DOLDURULMASI GEREKEN TABLO'!M39 -> 2026-06-30 | AH26: 0 | AI26: 0 | AJ26: 46204 | AK26: 127 | AL26: 126.5 | AM26: 127 | AN26: 0 | AO26: 0 | AP26: 0 | AQ26: FALSE | AR26: 0
B27: 20 | C27: ='DOLDURULMASI GEREKEN TABLO'!D40 -> 0 | D27: ='DOLDURULMASI GEREKEN TABLO'!E40 -> 0 | E27: ='DOLDURULMASI GEREKEN TABLO'!F40 -> 0 | F27: ='DOLDURULMASI GEREKEN TABLO'!G40 -> 0 | G27: 0 | H27: ='DOLDURULMASI GEREKEN TABLO'!H40 -> 00:00:00 | I27: 2026-01-01 | J27: ='DOLDURULMASI GEREKEN TABLO'!I40 -> MÜK.298 Ç YE GÖRE İLGİLİ GEÇİCİ VERGİ DÖNEMİNE AİT YDO İLE YD YAPILABİLİR | K27: ='DOLDURULMASI GEREKEN TABLO'!J40 -> 0 | L27: ='DOLDURULMASI GEREKEN TABLO'!K40 -> 0 | M27: ='DOLDURULMASI GEREKEN TABLO'!L40 -> 0 | N27: 46024 | O27: 0 | P27: 0 | Q27: 0 | R27: 0 | S27: 0 | T27: 0 | U27: 0 | W27: =IF(OR(D27="250- Arazi ve Arsalar",YEAR(H27)=2026),0,TRUNC('DOLDURULMASI GEREKEN TABLO'!N40,4)) -> 0.1151 | X27: 1 | Y27: 0 | Z27: 0 | AA27: 0 | AB27: 0 | AC27: 0 | AD27: 0 | AF27: 00:00:00 | AG27: ='DOLDURULMASI GEREKEN TABLO'!M40 -> 2026-06-30 | AH27: 0 | AI27: 0 | AJ27: 46204 | AK27: 127 | AL27: 126.5 | AM27: 127 | AN27: 0 | AO27: 0 | AP27: 0 | AQ27: FALSE | AR27: 0
B28: 21 | C28: ='DOLDURULMASI GEREKEN TABLO'!D41 -> 0 | D28: ='DOLDURULMASI GEREKEN TABLO'!E41 -> 0 | E28: ='DOLDURULMASI GEREKEN TABLO'!F41 -> 0 | F28: ='DOLDURULMASI GEREKEN TABLO'!G41 -> 0 | G28: 0 | H28: ='DOLDURULMASI GEREKEN TABLO'!H41 -> 00:00:00 | I28: 2026-01-01 | J28: ='DOLDURULMASI GEREKEN TABLO'!I41 -> MÜK.298 Ç YE GÖRE İLGİLİ GEÇİCİ VERGİ DÖNEMİNE AİT YDO İLE YD YAPILABİLİR | K28: ='DOLDURULMASI GEREKEN TABLO'!J41 -> 0 | L28: ='DOLDURULMASI GEREKEN TABLO'!K41 -> 0 | M28: ='DOLDURULMASI GEREKEN TABLO'!L41 -> 0 | N28: 46024 | O28: 0 | P28: 0 | Q28: 0 | R28: 0 | S28: 0 | T28: 0 | U28: 0 | W28: =IF(OR(D28="250- Arazi ve Arsalar",YEAR(H28)=2026),0,TRUNC('DOLDURULMASI GEREKEN TABLO'!N41,4)) -> 0.1151 | X28: 1 | Y28: 0 | Z28: 0 | AA28: 0 | AB28: 0 | AC28: 0 | AD28: 0 | AF28: 00:00:00 | AG28: ='DOLDURULMASI GEREKEN TABLO'!M41 -> 2026-06-30 | AH28: 0 | AI28: 0 | AJ28: 46204 | AK28: 127 | AL28: 126.5 | AM28: 127 | AN28: 0 | AO28: 0 | AP28: 0 | AQ28: FALSE | AR28: 0
B29: 22 | C29: ='DOLDURULMASI GEREKEN TABLO'!D42 -> 0 | D29: ='DOLDURULMASI GEREKEN TABLO'!E42 -> 0 | E29: ='DOLDURULMASI GEREKEN TABLO'!F42 -> 0 | F29: ='DOLDURULMASI GEREKEN TABLO'!G42 -> 0 | G29: 0 | H29: ='DOLDURULMASI GEREKEN TABLO'!H42 -> 00:00:00 | I29: 2026-01-01 | J29: ='DOLDURULMASI GEREKEN TABLO'!I42 -> MÜK.298 Ç YE GÖRE İLGİLİ GEÇİCİ VERGİ DÖNEMİNE AİT YDO İLE YD YAPILABİLİR | K29: ='DOLDURULMASI GEREKEN TABLO'!J42 -> 0 | L29: ='DOLDURULMASI GEREKEN TABLO'!K42 -> 0 | M29: ='DOLDURULMASI GEREKEN TABLO'!L42 -> 0 | N29: 46024 | O29: 0 | P29: 0 | Q29: 0 | R29: 0 | S29: 0 | T29: 0 | U29: 0 | W29: =IF(OR(D29="250- Arazi ve Arsalar",YEAR(H29)=2026),0,TRUNC('DOLDURULMASI GEREKEN TABLO'!N42,4)) -> 0.1151 | X29: 1 | Y29: 0 | Z29: 0 | AA29: 0 | AB29: 0 | AC29: 0 | AD29: 0 | AF29: 00:00:00 | AG29: ='DOLDURULMASI GEREKEN TABLO'!M42 -> 2026-06-30 | AH29: 0 | AI29: 0 | AJ29: 46204 | AK29: 127 | AL29: 126.5 | AM29: 127 | AN29: 0 | AO29: 0 | AP29: 0 | AQ29: FALSE | AR29: 0
B30: 23 | C30: ='DOLDURULMASI GEREKEN TABLO'!D43 -> 0 | D30: ='DOLDURULMASI GEREKEN TABLO'!E43 -> 0 | E30: ='DOLDURULMASI GEREKEN TABLO'!F43 -> 0 | F30: ='DOLDURULMASI GEREKEN TABLO'!G43 -> 0 | G30: 0 | H30: ='DOLDURULMASI GEREKEN TABLO'!H43 -> 00:00:00 | I30: 2026-01-01 | J30: ='DOLDURULMASI GEREKEN TABLO'!I43 -> MÜK.298 Ç YE GÖRE İLGİLİ GEÇİCİ VERGİ DÖNEMİNE AİT YDO İLE YD YAPILABİLİR | K30: ='DOLDURULMASI GEREKEN TABLO'!J43 -> 0 | L30: ='DOLDURULMASI GEREKEN TABLO'!K43 -> 0 | M30: ='DOLDURULMASI GEREKEN TABLO'!L43 -> 0 | N30: 46024 | O30: 0 | P30: 0 | Q30: 0 | R30: 0 | S30: 0 | T30: 0 | U30: 0 | W30: =IF(OR(D30="250- Arazi ve Arsalar",YEAR(H30)=2026),0,TRUNC('DOLDURULMASI GEREKEN TABLO'!N43,4)) -> 0.1151 | X30: 1 | Y30: 0 | Z30: 0 | AA30: 0 | AB30: 0 | AC30: 0 | AD30: 0 | AF30: 00:00:00 | AG30: ='DOLDURULMASI GEREKEN TABLO'!M43 -> 2026-06-30 | AH30: 0 | AI30: 0 | AJ30: 46204 | AK30: 127 | AL30: 126.5 | AM30: 127 | AN30: 0 | AO30: 0 | AP30: 0 | AQ30: FALSE | AR30: 0
B31: 24 | C31: ='DOLDURULMASI GEREKEN TABLO'!D44 -> 0 | D31: ='DOLDURULMASI GEREKEN TABLO'!E44 -> 0 | E31: ='DOLDURULMASI GEREKEN TABLO'!F44 -> 0 | F31: ='DOLDURULMASI GEREKEN TABLO'!G44 -> 0 | G31: 0 | H31: ='DOLDURULMASI GEREKEN TABLO'!H44 -> 00:00:00 | I31: 2026-01-01 | J31: ='DOLDURULMASI GEREKEN TABLO'!I44 -> MÜK.298 Ç YE GÖRE İLGİLİ GEÇİCİ VERGİ DÖNEMİNE AİT YDO İLE YD YAPILABİLİR | K31: ='DOLDURULMASI GEREKEN TABLO'!J44 -> 0 | L31: ='DOLDURULMASI GEREKEN TABLO'!K44 -> 0 | M31: ='DOLDURULMASI GEREKEN TABLO'!L44 -> 0 | N31: 46024 | O31: 0 | P31: 0 | Q31: 0 | R31: 0 | S31: 0 | T31: 0 | U31: 0 | W31: =IF(OR(D31="250- Arazi ve Arsalar",YEAR(H31)=2026),0,TRUNC('DOLDURULMASI GEREKEN TABLO'!N44,4)) -> 0.1151 | X31: 1 | Y31: 0 | Z31: 0 | AA31: 0 | AB31: 0 | AC31: 0 | AD31: 0 | AF31: 00:00:00 | AG31: ='DOLDURULMASI GEREKEN TABLO'!M44 -> 2026-06-30 | AH31: 0 | AI31: 0 | AJ31: 46204 | AK31: 127 | AL31: 126.5 | AM31: 127 | AN31: 0 | AO31: 0 | AP31: 0 | AQ31: FALSE | AR31: 0
B32: 25 | C32: ='DOLDURULMASI GEREKEN TABLO'!D45 -> 0 | D32: ='DOLDURULMASI GEREKEN TABLO'!E45 -> 0 | E32: ='DOLDURULMASI GEREKEN TABLO'!F45 -> 0 | F32: ='DOLDURULMASI GEREKEN TABLO'!G45 -> 0 | G32: 0 | H32: ='DOLDURULMASI GEREKEN TABLO'!H45 -> 00:00:00 | I32: 2026-01-01 | J32: ='DOLDURULMASI GEREKEN TABLO'!I45 -> MÜK.298 Ç YE GÖRE İLGİLİ GEÇİCİ VERGİ DÖNEMİNE AİT YDO İLE YD YAPILABİLİR | K32: ='DOLDURULMASI GEREKEN TABLO'!J45 -> 0 | L32: ='DOLDURULMASI GEREKEN TABLO'!K45 -> 0 | M32: ='DOLDURULMASI GEREKEN TABLO'!L45 -> 0 | N32: 46024 | O32: 0 | P32: 0 | Q32: 0 | R32: 0 | S32: 0 | T32: 0 | U32: 0 | W32: =IF(OR(D32="250- Arazi ve Arsalar",YEAR(H32)=2026),0,TRUNC('DOLDURULMASI GEREKEN TABLO'!N45,4)) -> 0.1151 | X32: 1 | Y32: 0 | Z32: 0 | AA32: 0 | AB32: 0 | AC32: 0 | AD32: 0 | AF32: 00:00:00 | AG32: ='DOLDURULMASI GEREKEN TABLO'!M45 -> 2026-06-30 | AH32: 0 | AI32: 0 | AJ32: 46204 | AK32: 127 | AL32: 126.5 | AM32: 127 | AN32: 0 | AO32: 0 | AP32: 0 | AQ32: FALSE | AR32: 0
B33: 26 | C33: ='DOLDURULMASI GEREKEN TABLO'!D46 -> 0 | D33: ='DOLDURULMASI GEREKEN TABLO'!E46 -> 0 | E33: ='DOLDURULMASI GEREKEN TABLO'!F46 -> 0 | F33: ='DOLDURULMASI GEREKEN TABLO'!G46 -> 0 | G33: 0 | H33: ='DOLDURULMASI GEREKEN TABLO'!H46 -> 00:00:00 | I33: 2026-01-01 | J33: ='DOLDURULMASI GEREKEN TABLO'!I46 -> MÜK.298 Ç YE GÖRE İLGİLİ GEÇİCİ VERGİ DÖNEMİNE AİT YDO İLE YD YAPILABİLİR | K33: ='DOLDURULMASI GEREKEN TABLO'!J46 -> 0 | L33: ='DOLDURULMASI GEREKEN TABLO'!K46 -> 0 | M33: ='DOLDURULMASI GEREKEN TABLO'!L46 -> 0 | N33: 46024 | O33: 0 | P33: 0 | Q33: 0 | R33: 0 | S33: 0 | T33: 0 | U33: 0 | W33: =IF(OR(D33="250- Arazi ve Arsalar",YEAR(H33)=2026),0,TRUNC('DOLDURULMASI GEREKEN TABLO'!N46,4)) -> 0.1151 | X33: 1 | Y33: 0 | Z33: 0 | AA33: 0 | AB33: 0 | AC33: 0 | AD33: 0 | AF33: 00:00:00 | AG33: ='DOLDURULMASI GEREKEN TABLO'!M46 -> 2026-06-30 | AH33: 0 | AI33: 0 | AJ33: 46204 | AK33: 127 | AL33: 126.5 | AM33: 127 | AN33: 0 | AO33: 0 | AP33: 0 | AQ33: FALSE | AR33: 0
B34: 27 | C34: ='DOLDURULMASI GEREKEN TABLO'!D47 -> 0 | D34: ='DOLDURULMASI GEREKEN TABLO'!E47 -> 0 | E34: ='DOLDURULMASI GEREKEN TABLO'!F47 -> 0 | F34: ='DOLDURULMASI GEREKEN TABLO'!G47 -> 0 | G34: 0 | H34: ='DOLDURULMASI GEREKEN TABLO'!H47 -> 00:00:00 | I34: 2026-01-01 | J34: ='DOLDURULMASI GEREKEN TABLO'!I47 -> MÜK.298 Ç YE GÖRE İLGİLİ GEÇİCİ VERGİ DÖNEMİNE AİT YDO İLE YD YAPILABİLİR | K34: ='DOLDURULMASI GEREKEN TABLO'!J47 -> 0 | L34: ='DOLDURULMASI GEREKEN TABLO'!K47 -> 0 | M34: ='DOLDURULMASI GEREKEN TABLO'!L47 -> 0 | N34: 46024 | O34: 0 | P34: 0 | Q34: 0 | R34: 0 | S34: 0 | T34: 0 | U34: 0 | W34: =IF(OR(D34="250- Arazi ve Arsalar",YEAR(H34)=2026),0,TRUNC('DOLDURULMASI GEREKEN TABLO'!N47,4)) -> 0.1151 | X34: 1 | Y34: 0 | Z34: 0 | AA34: 0 | AB34: 0 | AC34: 0 | AD34: 0 | AF34: 00:00:00 | AG34: ='DOLDURULMASI GEREKEN TABLO'!M47 -> 2026-06-30 | AH34: 0 | AI34: 0 | AJ34: 46204 | AK34: 127 | AL34: 126.5 | AM34: 127 | AN34: 0 | AO34: 0 | AP34: 0 | AQ34: FALSE | AR34: 0
B35: 28 | C35: ='DOLDURULMASI GEREKEN TABLO'!D48 -> 0 | D35: ='DOLDURULMASI GEREKEN TABLO'!E48 -> 0 | E35: ='DOLDURULMASI GEREKEN TABLO'!F48 -> 0 | F35: ='DOLDURULMASI GEREKEN TABLO'!G48 -> 0 | G35: 0 | H35: ='DOLDURULMASI GEREKEN TABLO'!H48 -> 00:00:00 | I35: 2026-01-01 | J35: ='DOLDURULMASI GEREKEN TABLO'!I48 -> MÜK.298 Ç YE GÖRE İLGİLİ GEÇİCİ VERGİ DÖNEMİNE AİT YDO İLE YD YAPILABİLİR | K35: ='DOLDURULMASI GEREKEN TABLO'!J48 -> 0 | L35: ='DOLDURULMASI GEREKEN TABLO'!K48 -> 0 | M35: ='DOLDURULMASI GEREKEN TABLO'!L48 -> 0 | N35: 46024 | O35: 0 | P35: 0 | Q35: 0 | R35: 0 | S35: 0 | T35: 0 | U35: 0 | W35: =IF(OR(D35="250- Arazi ve Arsalar",YEAR(H35)=2026),0,TRUNC('DOLDURULMASI GEREKEN TABLO'!N48,4)) -> 0.1151 | X35: 1 | Y35: 0 | Z35: 0 | AA35: 0 | AB35: 0 | AC35: 0 | AD35: 0 | AF35: 00:00:00 | AG35: ='DOLDURULMASI GEREKEN TABLO'!M48 -> 2026-06-30 | AH35: 0 | AI35: 0 | AJ35: 46204 | AK35: 127 | AL35: 126.5 | AM35: 127 | AN35: 0 | AO35: 0 | AP35: 0 | AQ35: FALSE | AR35: 0
B36: 29 | C36: ='DOLDURULMASI GEREKEN TABLO'!D49 -> 0 | D36: ='DOLDURULMASI GEREKEN TABLO'!E49 -> 0 | E36: ='DOLDURULMASI GEREKEN TABLO'!F49 -> 0 | F36: ='DOLDURULMASI GEREKEN TABLO'!G49 -> 0 | G36: 0 | H36: ='DOLDURULMASI GEREKEN TABLO'!H49 -> 00:00:00 | I36: 2026-01-01 | J36: ='DOLDURULMASI GEREKEN TABLO'!I49 -> MÜK.298 Ç YE GÖRE İLGİLİ GEÇİCİ VERGİ DÖNEMİNE AİT YDO İLE YD YAPILABİLİR | K36: ='DOLDURULMASI GEREKEN TABLO'!J49 -> 0 | L36: ='DOLDURULMASI GEREKEN TABLO'!K49 -> 0 | M36: ='DOLDURULMASI GEREKEN TABLO'!L49 -> 0 | N36: 46024 | O36: 0 | P36: 0 | Q36: 0 | R36: 0 | S36: 0 | T36: 0 | U36: 0 | W36: =IF(OR(D36="250- Arazi ve Arsalar",YEAR(H36)=2026),0,TRUNC('DOLDURULMASI GEREKEN TABLO'!N49,4)) -> 0.1151 | X36: 1 | Y36: 0 | Z36: 0 | AA36: 0 | AB36: 0 | AC36: 0 | AD36: 0 | AF36: 00:00:00 | AG36: ='DOLDURULMASI GEREKEN TABLO'!M49 -> 2026-06-30 | AH36: 0 | AI36: 0 | AJ36: 46204 | AK36: 127 | AL36: 126.5 | AM36: 127 | AN36: 0 | AO36: 0 | AP36: 0 | AQ36: FALSE | AR36: 0
B37: 30 | C37: ='DOLDURULMASI GEREKEN TABLO'!D50 -> 0 | D37: ='DOLDURULMASI GEREKEN TABLO'!E50 -> 0 | E37: ='DOLDURULMASI GEREKEN TABLO'!F50 -> 0 | F37: ='DOLDURULMASI GEREKEN TABLO'!G50 -> 0 | G37: 0 | H37: ='DOLDURULMASI GEREKEN TABLO'!H50 -> 00:00:00 | I37: 2026-01-01 | J37: ='DOLDURULMASI GEREKEN TABLO'!I50 -> MÜK.298 Ç YE GÖRE İLGİLİ GEÇİCİ VERGİ DÖNEMİNE AİT YDO İLE YD YAPILABİLİR | K37: ='DOLDURULMASI GEREKEN TABLO'!J50 -> 0 | L37: ='DOLDURULMASI GEREKEN TABLO'!K50 -> 0 | M37: ='DOLDURULMASI GEREKEN TABLO'!L50 -> 0 | N37: 46024 | O37: 0 | P37: 0 | Q37: 0 | R37: 0 | S37: 0 | T37: 0 | U37: 0 | W37: =IF(OR(D37="250- Arazi ve Arsalar",YEAR(H37)=2026),0,TRUNC('DOLDURULMASI GEREKEN TABLO'!N50,4)) -> 0.1151 | X37: 1 | Y37: 0 | Z37: 0 | AA37: 0 | AB37: 0 | AC37: 0 | AD37: 0 | AF37: 00:00:00 | AG37: ='DOLDURULMASI GEREKEN TABLO'!M50 -> 2026-06-30 | AH37: 0 | AI37: 0 | AJ37: 46204 | AK37: 127 | AL37: 126.5 | AM37: 127 | AN37: 0 | AO37: 0 | AP37: 0 | AQ37: FALSE | AR37: 0
B38: 31 | C38: ='DOLDURULMASI GEREKEN TABLO'!D51 -> 0 | D38: ='DOLDURULMASI GEREKEN TABLO'!E51 -> 0 | E38: ='DOLDURULMASI GEREKEN TABLO'!F51 -> 0 | F38: ='DOLDURULMASI GEREKEN TABLO'!G51 -> 0 | G38: 0 | H38: ='DOLDURULMASI GEREKEN TABLO'!H51 -> 00:00:00 | I38: 2026-01-01 | J38: ='DOLDURULMASI GEREKEN TABLO'!I51 -> MÜK.298 Ç YE GÖRE İLGİLİ GEÇİCİ VERGİ DÖNEMİNE AİT YDO İLE YD YAPILABİLİR | K38: ='DOLDURULMASI GEREKEN TABLO'!J51 -> 0 | L38: ='DOLDURULMASI GEREKEN TABLO'!K51 -> 0 | M38: ='DOLDURULMASI GEREKEN TABLO'!L51 -> 0 | N38: 46024 | O38: 0 | P38: 0 | Q38: 0 | R38: 0 | S38: 0 | T38: 0 | U38: 0 | W38: =IF(OR(D38="250- Arazi ve Arsalar",YEAR(H38)=2026),0,TRUNC('DOLDURULMASI GEREKEN TABLO'!N51,4)) -> 0.1151 | X38: 1 | Y38: 0 | Z38: 0 | AA38: 0 | AB38: 0 | AC38: 0 | AD38: 0 | AF38: 00:00:00 | AG38: ='DOLDURULMASI GEREKEN TABLO'!M51 -> 2026-06-30 | AH38: 0 | AI38: 0 | AJ38: 46204 | AK38: 127 | AL38: 126.5 | AM38: 127 | AN38: 0 | AO38: 0 | AP38: 0 | AQ38: FALSE | AR38: 0
B39: 32 | C39: ='DOLDURULMASI GEREKEN TABLO'!D52 -> 0 | D39: ='DOLDURULMASI GEREKEN TABLO'!E52 -> 0 | E39: ='DOLDURULMASI GEREKEN TABLO'!F52 -> 0 | F39: ='DOLDURULMASI GEREKEN TABLO'!G52 -> 0 | G39: 0 | H39: ='DOLDURULMASI GEREKEN TABLO'!H52 -> 00:00:00 | I39: 2026-01-01 | J39: ='DOLDURULMASI GEREKEN TABLO'!I52 -> MÜK.298 Ç YE GÖRE İLGİLİ GEÇİCİ VERGİ DÖNEMİNE AİT YDO İLE YD YAPILABİLİR | K39: ='DOLDURULMASI GEREKEN TABLO'!J52 -> 0 | L39: ='DOLDURULMASI GEREKEN TABLO'!K52 -> 0 | M39: ='DOLDURULMASI GEREKEN TABLO'!L52 -> 0 | N39: 46024 | O39: 0 | P39: 0 | Q39: 0 | R39: 0 | S39: 0 | T39: 0 | U39: 0 | W39: =IF(OR(D39="250- Arazi ve Arsalar",YEAR(H39)=2026),0,TRUNC('DOLDURULMASI GEREKEN TABLO'!N52,4)) -> 0.1151 | X39: 1 | Y39: 0 | Z39: 0 | AA39: 0 | AB39: 0 | AC39: 0 | AD39: 0 | AF39: 00:00:00 | AG39: ='DOLDURULMASI GEREKEN TABLO'!M52 -> 2026-06-30 | AH39: 0 | AI39: 0 | AJ39: 46204 | AK39: 127 | AL39: 126.5 | AM39: 127 | AN39: 0 | AO39: 0 | AP39: 0 | AQ39: FALSE | AR39: 0
B40: 33 | C40: ='DOLDURULMASI GEREKEN TABLO'!D53 -> 0 | D40: ='DOLDURULMASI GEREKEN TABLO'!E53 -> 0 | E40: ='DOLDURULMASI GEREKEN TABLO'!F53 -> 0 | F40: ='DOLDURULMASI GEREKEN TABLO'!G53 -> 0 | G40: 0 | H40: ='DOLDURULMASI GEREKEN TABLO'!H53 -> 00:00:00 | I40: 2026-01-01 | J40: ='DOLDURULMASI GEREKEN TABLO'!I53 -> MÜK.298 Ç YE GÖRE İLGİLİ GEÇİCİ VERGİ DÖNEMİNE AİT YDO İLE YD YAPILABİLİR | K40: ='DOLDURULMASI GEREKEN TABLO'!J53 -> 0 | L40: ='DOLDURULMASI GEREKEN TABLO'!K53 -> 0 | M40: ='DOLDURULMASI GEREKEN TABLO'!L53 -> 0 | N40: 46024 | O40: 0 | P40: 0 | Q40: 0 | R40: 0 | S40: 0 | T40: 0 | U40: 0 | W40: =IF(OR(D40="250- Arazi ve Arsalar",YEAR(H40)=2026),0,TRUNC('DOLDURULMASI GEREKEN TABLO'!N53,4)) -> 0.1151 | X40: 1 | Y40: 0 | Z40: 0 | AA40: 0 | AB40: 0 | AC40: 0 | AD40: 0 | AF40: 00:00:00 | AG40: ='DOLDURULMASI GEREKEN TABLO'!M53 -> 2026-06-30 | AH40: 0 | AI40: 0 | AJ40: 46204 | AK40: 127 | AL40: 126.5 | AM40: 127 | AN40: 0 | AO40: 0 | AP40: 0 | AQ40: FALSE | AR40: 0
B41: 34 | C41: ='DOLDURULMASI GEREKEN TABLO'!D54 -> 0 | D41: ='DOLDURULMASI GEREKEN TABLO'!E54 -> 0 | E41: ='DOLDURULMASI GEREKEN TABLO'!F54 -> 0 | F41: ='DOLDURULMASI GEREKEN TABLO'!G54 -> 0 | G41: 0 | H41: ='DOLDURULMASI GEREKEN TABLO'!H54 -> 00:00:00 | I41: 2026-01-01 | J41: ='DOLDURULMASI GEREKEN TABLO'!I54 -> MÜK.298 Ç YE GÖRE İLGİLİ GEÇİCİ VERGİ DÖNEMİNE AİT YDO İLE YD YAPILABİLİR | K41: ='DOLDURULMASI GEREKEN TABLO'!J54 -> 0 | L41: ='DOLDURULMASI GEREKEN TABLO'!K54 -> 0 | M41: ='DOLDURULMASI GEREKEN TABLO'!L54 -> 0 | N41: 46024 | O41: 0 | P41: 0 | Q41: 0 | R41: 0 | S41: 0 | T41: 0 | U41: 0 | W41: =IF(OR(D41="250- Arazi ve Arsalar",YEAR(H41)=2026),0,TRUNC('DOLDURULMASI GEREKEN TABLO'!N54,4)) -> 0.1151 | X41: 1 | Y41: 0 | Z41: 0 | AA41: 0 | AB41: 0 | AC41: 0 | AD41: 0 | AF41: 00:00:00 | AG41: ='DOLDURULMASI GEREKEN TABLO'!M54 -> 2026-06-30 | AH41: 0 | AI41: 0 | AJ41: 46204 | AK41: 127 | AL41: 126.5 | AM41: 127 | AN41: 0 | AO41: 0 | AP41: 0 | AQ41: FALSE | AR41: 0
B42: 35 | C42: ='DOLDURULMASI GEREKEN TABLO'!D55 -> 0 | D42: ='DOLDURULMASI GEREKEN TABLO'!E55 -> 0 | E42: ='DOLDURULMASI GEREKEN TABLO'!F55 -> 0 | F42: ='DOLDURULMASI GEREKEN TABLO'!G55 -> 0 | G42: 0 | H42: ='DOLDURULMASI GEREKEN TABLO'!H55 -> 00:00:00 | I42: 2026-01-01 | J42: ='DOLDURULMASI GEREKEN TABLO'!I55 -> MÜK.298 Ç YE GÖRE İLGİLİ GEÇİCİ VERGİ DÖNEMİNE AİT YDO İLE YD YAPILABİLİR | K42: ='DOLDURULMASI GEREKEN TABLO'!J55 -> 0 | L42: ='DOLDURULMASI GEREKEN TABLO'!K55 -> 0 | M42: ='DOLDURULMASI GEREKEN TABLO'!L55 -> 0 | N42: 46024 | O42: 0 | P42: 0 | Q42: 0 | R42: 0 | S42: 0 | T42: 0 | U42: 0 | W42: =IF(OR(D42="250- Arazi ve Arsalar",YEAR(H42)=2026),0,TRUNC('DOLDURULMASI GEREKEN TABLO'!N55,4)) -> 0.1151 | X42: 1 | Y42: 0 | Z42: 0 | AA42: 0 | AB42: 0 | AC42: 0 | AD42: 0 | AF42: 00:00:00 | AG42: ='DOLDURULMASI GEREKEN TABLO'!M55 -> 2026-06-30 | AH42: 0 | AI42: 0 | AJ42: 46204 | AK42: 127 | AL42: 126.5 | AM42: 127 | AN42: 0 | AO42: 0 | AP42: 0 | AQ42: FALSE | AR42: 0
B43: 36 | C43: ='DOLDURULMASI GEREKEN TABLO'!D56 -> 0 | D43: ='DOLDURULMASI GEREKEN TABLO'!E56 -> 0 | E43: ='DOLDURULMASI GEREKEN TABLO'!F56 -> 0 | F43: ='DOLDURULMASI GEREKEN TABLO'!G56 -> 0 | G43: 0 | H43: ='DOLDURULMASI GEREKEN TABLO'!H56 -> 00:00:00 | I43: 2026-01-01 | J43: ='DOLDURULMASI GEREKEN TABLO'!I56 -> MÜK.298 Ç YE GÖRE İLGİLİ GEÇİCİ VERGİ DÖNEMİNE AİT YDO İLE YD YAPILABİLİR | K43: ='DOLDURULMASI GEREKEN TABLO'!J56 -> 0 | L43: ='DOLDURULMASI GEREKEN TABLO'!K56 -> 0 | M43: ='DOLDURULMASI GEREKEN TABLO'!L56 -> 0 | N43: 46024 | O43: 0 | P43: 0 | Q43: 0 | R43: 0 | S43: 0 | T43: 0 | U43: 0 | W43: =IF(OR(D43="250- Arazi ve Arsalar",YEAR(H43)=2026),0,TRUNC('DOLDURULMASI GEREKEN TABLO'!N56,4)) -> 0.1151 | X43: 1 | Y43: 0 | Z43: 0 | AA43: 0 | AB43: 0 | AC43: 0 | AD43: 0 | AF43: 00:00:00 | AG43: ='DOLDURULMASI GEREKEN TABLO'!M56 -> 2026-06-30 | AH43: 0 | AI43: 0 | AJ43: 46204 | AK43: 127 | AL43: 126.5 | AM43: 127 | AN43: 0 | AO43: 0 | AP43: 0 | AQ43: FALSE | AR43: 0
B44: 37 | C44: ='DOLDURULMASI GEREKEN TABLO'!D57 -> 0 | D44: ='DOLDURULMASI GEREKEN TABLO'!E57 -> 0 | E44: ='DOLDURULMASI GEREKEN TABLO'!F57 -> 0 | F44: ='DOLDURULMASI GEREKEN TABLO'!G57 -> 0 | G44: 0 | H44: ='DOLDURULMASI GEREKEN TABLO'!H57 -> 00:00:00 | I44: 2026-01-01 | J44: ='DOLDURULMASI GEREKEN TABLO'!I57 -> MÜK.298 Ç YE GÖRE İLGİLİ GEÇİCİ VERGİ DÖNEMİNE AİT YDO İLE YD YAPILABİLİR | K44: ='DOLDURULMASI GEREKEN TABLO'!J57 -> 0 | L44: ='DOLDURULMASI GEREKEN TABLO'!K57 -> 0 | M44: ='DOLDURULMASI GEREKEN TABLO'!L57 -> 0 | N44: 46024 | O44: 0 | P44: 0 | Q44: 0 | R44: 0 | S44: 0 | T44: 0 | U44: 0 | W44: =IF(OR(D44="250- Arazi ve Arsalar",YEAR(H44)=2026),0,TRUNC('DOLDURULMASI GEREKEN TABLO'!N57,4)) -> 0.1151 | X44: 1 | Y44: 0 | Z44: 0 | AA44: 0 | AB44: 0 | AC44: 0 | AD44: 0 | AF44: 00:00:00 | AG44: ='DOLDURULMASI GEREKEN TABLO'!M57 -> 2026-06-30 | AH44: 0 | AI44: 0 | AJ44: 46204 | AK44: 127 | AL44: 126.5 | AM44: 127 | AN44: 0 | AO44: 0 | AP44: 0 | AQ44: FALSE | AR44: 0
B45: 38 | C45: ='DOLDURULMASI GEREKEN TABLO'!D58 -> 0 | D45: ='DOLDURULMASI GEREKEN TABLO'!E58 -> 0 | E45: ='DOLDURULMASI GEREKEN TABLO'!F58 -> 0 | F45: ='DOLDURULMASI GEREKEN TABLO'!G58 -> 0 | G45: 0 | H45: ='DOLDURULMASI GEREKEN TABLO'!H58 -> 00:00:00 | I45: 2026-01-01 | J45: ='DOLDURULMASI GEREKEN TABLO'!I58 -> MÜK.298 Ç YE GÖRE İLGİLİ GEÇİCİ VERGİ DÖNEMİNE AİT YDO İLE YD YAPILABİLİR | K45: ='DOLDURULMASI GEREKEN TABLO'!J58 -> 0 | L45: ='DOLDURULMASI GEREKEN TABLO'!K58 -> 0 | M45: ='DOLDURULMASI GEREKEN TABLO'!L58 -> 0 | N45: 46024 | O45: 0 | P45: 0 | Q45: 0 | R45: 0 | S45: 0 | T45: 0 | U45: 0 | W45: =IF(OR(D45="250- Arazi ve Arsalar",YEAR(H45)=2026),0,TRUNC('DOLDURULMASI GEREKEN TABLO'!N58,4)) -> 0.1151 | X45: 1 | Y45: 0 | Z45: 0 | AA45: 0 | AB45: 0 | AC45: 0 | AD45: 0 | AF45: 00:00:00 | AG45: ='DOLDURULMASI GEREKEN TABLO'!M58 -> 2026-06-30 | AH45: 0 | AI45: 0 | AJ45: 46204 | AK45: 127 | AL45: 126.5 | AM45: 127 | AN45: 0 | AO45: 0 | AP45: 0 | AQ45: FALSE | AR45: 0
B46: 39 | C46: ='DOLDURULMASI GEREKEN TABLO'!D59 -> 0 | D46: ='DOLDURULMASI GEREKEN TABLO'!E59 -> 0 | E46: ='DOLDURULMASI GEREKEN TABLO'!F59 -> 0 | F46: ='DOLDURULMASI GEREKEN TABLO'!G59 -> 0 | G46: 0 | H46: ='DOLDURULMASI GEREKEN TABLO'!H59 -> 00:00:00 | I46: 2026-01-01 | J46: ='DOLDURULMASI GEREKEN TABLO'!I59 -> MÜK.298 Ç YE GÖRE İLGİLİ GEÇİCİ VERGİ DÖNEMİNE AİT YDO İLE YD YAPILABİLİR | K46: ='DOLDURULMASI GEREKEN TABLO'!J59 -> 0 | L46: ='DOLDURULMASI GEREKEN TABLO'!K59 -> 0 | M46: ='DOLDURULMASI GEREKEN TABLO'!L59 -> 0 | N46: 46024 | O46: 0 | P46: 0 | Q46: 0 | R46: 0 | S46: 0 | T46: 0 | U46: 0 | W46: =IF(OR(D46="250- Arazi ve Arsalar",YEAR(H46)=2026),0,TRUNC('DOLDURULMASI GEREKEN TABLO'!N59,4)) -> 0.1151 | X46: 1 | Y46: 0 | Z46: 0 | AA46: 0 | AB46: 0 | AC46: 0 | AD46: 0 | AF46: 00:00:00 | AG46: ='DOLDURULMASI GEREKEN TABLO'!M59 -> 2026-06-30 | AH46: 0 | AI46: 0 | AJ46: 46204 | AK46: 127 | AL46: 126.5 | AM46: 127 | AN46: 0 | AO46: 0 | AP46: 0 | AQ46: FALSE | AR46: 0
B47: 40 | C47: ='DOLDURULMASI GEREKEN TABLO'!D60 -> 0 | D47: ='DOLDURULMASI GEREKEN TABLO'!E60 -> 0 | E47: ='DOLDURULMASI GEREKEN TABLO'!F60 -> 0 | F47: ='DOLDURULMASI GEREKEN TABLO'!G60 -> 0 | G47: 0 | H47: ='DOLDURULMASI GEREKEN TABLO'!H60 -> 00:00:00 | I47: 2026-01-01 | J47: ='DOLDURULMASI GEREKEN TABLO'!I60 -> MÜK.298 Ç YE GÖRE İLGİLİ GEÇİCİ VERGİ DÖNEMİNE AİT YDO İLE YD YAPILABİLİR | K47: ='DOLDURULMASI GEREKEN TABLO'!J60 -> 0 | L47: ='DOLDURULMASI GEREKEN TABLO'!K60 -> 0 | M47: ='DOLDURULMASI GEREKEN TABLO'!L60 -> 0 | N47: 46024 | O47: 0 | P47: 0 | Q47: 0 | R47: 0 | S47: 0 | T47: 0 | U47: 0 | W47: =IF(OR(D47="250- Arazi ve Arsalar",YEAR(H47)=2026),0,TRUNC('DOLDURULMASI GEREKEN TABLO'!N60,4)) -> 0.1151 | X47: 1 | Y47: 0 | Z47: 0 | AA47: 0 | AB47: 0 | AC47: 0 | AD47: 0 | AF47: 00:00:00 | AG47: ='DOLDURULMASI GEREKEN TABLO'!M60 -> 2026-06-30 | AH47: 0 | AI47: 0 | AJ47: 46204 | AK47: 127 | AL47: 126.5 | AM47: 127 | AN47: 0 | AO47: 0 | AP47: 0 | AQ47: FALSE | AR47: 0
B48: 41 | C48: ='DOLDURULMASI GEREKEN TABLO'!D61 -> 0 | D48: ='DOLDURULMASI GEREKEN TABLO'!E61 -> 0 | E48: ='DOLDURULMASI GEREKEN TABLO'!F61 -> 0 | F48: ='DOLDURULMASI GEREKEN TABLO'!G61 -> 0 | G48: 0 | H48: ='DOLDURULMASI GEREKEN TABLO'!H61 -> 00:00:00 | I48: 2026-01-01 | J48: ='DOLDURULMASI GEREKEN TABLO'!I61 -> MÜK.298 Ç YE GÖRE İLGİLİ GEÇİCİ VERGİ DÖNEMİNE AİT YDO İLE YD YAPILABİLİR | K48: ='DOLDURULMASI GEREKEN TABLO'!J61 -> 0 | L48: ='DOLDURULMASI GEREKEN TABLO'!K61 -> 0 | M48: ='DOLDURULMASI GEREKEN TABLO'!L61 -> 0 | N48: 46024 | O48: 0 | P48: 0 | Q48: 0 | R48: 0 | S48: 0 | T48: 0 | U48: 0 | W48: =IF(OR(D48="250- Arazi ve Arsalar",YEAR(H48)=2026),0,TRUNC('DOLDURULMASI GEREKEN TABLO'!N61,4)) -> 0.1151 | X48: 1 | Y48: 0 | Z48: 0 | AA48: 0 | AB48: 0 | AC48: 0 | AD48: 0 | AF48: 00:00:00 | AG48: ='DOLDURULMASI GEREKEN TABLO'!M61 -> 2026-06-30 | AH48: 0 | AI48: 0 | AJ48: 46204 | AK48: 127 | AL48: 126.5 | AM48: 127 | AN48: 0 | AO48: 0 | AP48: 0 | AQ48: FALSE | AR48: 0
B49: 42 | C49: ='DOLDURULMASI GEREKEN TABLO'!D62 -> 0 | D49: ='DOLDURULMASI GEREKEN TABLO'!E62 -> 0 | E49: ='DOLDURULMASI GEREKEN TABLO'!F62 -> 0 | F49: ='DOLDURULMASI GEREKEN TABLO'!G62 -> 0 | G49: 0 | H49: ='DOLDURULMASI GEREKEN TABLO'!H62 -> 00:00:00 | I49: 2026-01-01 | J49: ='DOLDURULMASI GEREKEN TABLO'!I62 -> MÜK.298 Ç YE GÖRE İLGİLİ GEÇİCİ VERGİ DÖNEMİNE AİT YDO İLE YD YAPILABİLİR | K49: ='DOLDURULMASI GEREKEN TABLO'!J62 -> 0 | L49: ='DOLDURULMASI GEREKEN TABLO'!K62 -> 0 | M49: ='DOLDURULMASI GEREKEN TABLO'!L62 -> 0 | N49: 46024 | O49: 0 | P49: 0 | Q49: 0 | R49: 0 | S49: 0 | T49: 0 | U49: 0 | W49: =IF(OR(D49="250- Arazi ve Arsalar",YEAR(H49)=2026),0,TRUNC('DOLDURULMASI GEREKEN TABLO'!N62,4)) -> 0.1151 | X49: 1 | Y49: 0 | Z49: 0 | AA49: 0 | AB49: 0 | AC49: 0 | AD49: 0 | AF49: 00:00:00 | AG49: ='DOLDURULMASI GEREKEN TABLO'!M62 -> 2026-06-30 | AH49: 0 | AI49: 0 | AJ49: 46204 | AK49: 127 | AL49: 126.5 | AM49: 127 | AN49: 0 | AO49: 0 | AP49: 0 | AQ49: FALSE | AR49: 0
B50: 43 | C50: ='DOLDURULMASI GEREKEN TABLO'!D63 -> 0 | D50: ='DOLDURULMASI GEREKEN TABLO'!E63 -> 0 | E50: ='DOLDURULMASI GEREKEN TABLO'!F63 -> 0 | F50: ='DOLDURULMASI GEREKEN TABLO'!G63 -> 0 | G50: 0 | H50: ='DOLDURULMASI GEREKEN TABLO'!H63 -> 00:00:00 | I50: 2026-01-01 | J50: ='DOLDURULMASI GEREKEN TABLO'!I63 -> MÜK.298 Ç YE GÖRE İLGİLİ GEÇİCİ VERGİ DÖNEMİNE AİT YDO İLE YD YAPILABİLİR | K50: ='DOLDURULMASI GEREKEN TABLO'!J63 -> 0 | L50: ='DOLDURULMASI GEREKEN TABLO'!K63 -> 0 | M50: ='DOLDURULMASI GEREKEN TABLO'!L63 -> 0 | N50: 46024 | O50: 0 | P50: 0 | Q50: 0 | R50: 0 | S50: 0 | T50: 0 | U50: 0 | W50: =IF(OR(D50="250- Arazi ve Arsalar",YEAR(H50)=2026),0,TRUNC('DOLDURULMASI GEREKEN TABLO'!N63,4)) -> 0.1151 | X50: 1 | Y50: 0 | Z50: 0 | AA50: 0 | AB50: 0 | AC50: 0 | AD50: 0 | AF50: 00:00:00 | AG50: ='DOLDURULMASI GEREKEN TABLO'!M63 -> 2026-06-30 | AH50: 0 | AI50: 0 | AJ50: 46204 | AK50: 127 | AL50: 126.5 | AM50: 127 | AN50: 0 | AO50: 0 | AP50: 0 | AQ50: FALSE | AR50: 0
B51: 44 | C51: ='DOLDURULMASI GEREKEN TABLO'!D64 -> 0 | D51: ='DOLDURULMASI GEREKEN TABLO'!E64 -> 0 | E51: ='DOLDURULMASI GEREKEN TABLO'!F64 -> 0 | F51: ='DOLDURULMASI GEREKEN TABLO'!G64 -> 0 | G51: 0 | H51: ='DOLDURULMASI GEREKEN TABLO'!H64 -> 00:00:00 | I51: 2026-01-01 | J51: ='DOLDURULMASI GEREKEN TABLO'!I64 -> MÜK.298 Ç YE GÖRE İLGİLİ GEÇİCİ VERGİ DÖNEMİNE AİT YDO İLE YD YAPILABİLİR | K51: ='DOLDURULMASI GEREKEN TABLO'!J64 -> 0 | L51: ='DOLDURULMASI GEREKEN TABLO'!K64 -> 0 | M51: ='DOLDURULMASI GEREKEN TABLO'!L64 -> 0 | N51: 46024 | O51: 0 | P51: 0 | Q51: 0 | R51: 0 | S51: 0 | T51: 0 | U51: 0 | W51: =IF(OR(D51="250- Arazi ve Arsalar",YEAR(H51)=2026),0,TRUNC('DOLDURULMASI GEREKEN TABLO'!N64,4)) -> 0.1151 | X51: 1 | Y51: 0 | Z51: 0 | AA51: 0 | AB51: 0 | AC51: 0 | AD51: 0 | AF51: 00:00:00 | AG51: ='DOLDURULMASI GEREKEN TABLO'!M64 -> 2026-06-30 | AH51: 0 | AI51: 0 | AJ51: 46204 | AK51: 127 | AL51: 126.5 | AM51: 127 | AN51: 0 | AO51: 0 | AP51: 0 | AQ51: FALSE | AR51: 0
B52: 45 | C52: ='DOLDURULMASI GEREKEN TABLO'!D65 -> 0 | D52: ='DOLDURULMASI GEREKEN TABLO'!E65 -> 0 | E52: ='DOLDURULMASI GEREKEN TABLO'!F65 -> 0 | F52: ='DOLDURULMASI GEREKEN TABLO'!G65 -> 0 | G52: 0 | H52: ='DOLDURULMASI GEREKEN TABLO'!H65 -> 00:00:00 | I52: 2026-01-01 | J52: ='DOLDURULMASI GEREKEN TABLO'!I65 -> MÜK.298 Ç YE GÖRE İLGİLİ GEÇİCİ VERGİ DÖNEMİNE AİT YDO İLE YD YAPILABİLİR | K52: ='DOLDURULMASI GEREKEN TABLO'!J65 -> 0 | L52: ='DOLDURULMASI GEREKEN TABLO'!K65 -> 0 | M52: ='DOLDURULMASI GEREKEN TABLO'!L65 -> 0 | N52: 46024 | O52: 0 | P52: 0 | Q52: 0 | R52: 0 | S52: 0 | T52: 0 | U52: 0 | W52: =IF(OR(D52="250- Arazi ve Arsalar",YEAR(H52)=2026),0,TRUNC('DOLDURULMASI GEREKEN TABLO'!N65,4)) -> 0.1151 | X52: 1 | Y52: 0 | Z52: 0 | AA52: 0 | AB52: 0 | AC52: 0 | AD52: 0 | AF52: 00:00:00 | AG52: ='DOLDURULMASI GEREKEN TABLO'!M65 -> 2026-06-30 | AH52: 0 | AI52: 0 | AJ52: 46204 | AK52: 127 | AL52: 126.5 | AM52: 127 | AN52: 0 | AO52: 0 | AP52: 0 | AQ52: FALSE | AR52: 0
B53: 46 | C53: ='DOLDURULMASI GEREKEN TABLO'!D66 -> 0 | D53: ='DOLDURULMASI GEREKEN TABLO'!E66 -> 0 | E53: ='DOLDURULMASI GEREKEN TABLO'!F66 -> 0 | F53: ='DOLDURULMASI GEREKEN TABLO'!G66 -> 0 | G53: 0 | H53: ='DOLDURULMASI GEREKEN TABLO'!H66 -> 00:00:00 | I53: 2026-01-01 | J53: ='DOLDURULMASI GEREKEN TABLO'!I66 -> MÜK.298 Ç YE GÖRE İLGİLİ GEÇİCİ VERGİ DÖNEMİNE AİT YDO İLE YD YAPILABİLİR | K53: ='DOLDURULMASI GEREKEN TABLO'!J66 -> 0 | L53: ='DOLDURULMASI GEREKEN TABLO'!K66 -> 0 | M53: ='DOLDURULMASI GEREKEN TABLO'!L66 -> 0 | N53: 46024 | O53: 0 | P53: 0 | Q53: 0 | R53: 0 | S53: 0 | T53: 0 | U53: 0 | W53: =IF(OR(D53="250- Arazi ve Arsalar",YEAR(H53)=2026),0,TRUNC('DOLDURULMASI GEREKEN TABLO'!N66,4)) -> 0.1151 | X53: 1 | Y53: 0 | Z53: 0 | AA53: 0 | AB53: 0 | AC53: 0 | AD53: 0 | AF53: 00:00:00 | AG53: ='DOLDURULMASI GEREKEN TABLO'!M66 -> 2026-06-30 | AH53: 0 | AI53: 0 | AJ53: 46204 | AK53: 127 | AL53: 126.5 | AM53: 127 | AN53: 0 | AO53: 0 | AP53: 0 | AQ53: FALSE | AR53: 0
B54: 47 | C54: ='DOLDURULMASI GEREKEN TABLO'!D67 -> 0 | D54: ='DOLDURULMASI GEREKEN TABLO'!E67 -> 0 | E54: ='DOLDURULMASI GEREKEN TABLO'!F67 -> 0 | F54: ='DOLDURULMASI GEREKEN TABLO'!G67 -> 0 | G54: 0 | H54: ='DOLDURULMASI GEREKEN TABLO'!H67 -> 00:00:00 | I54: 2026-01-01 | J54: ='DOLDURULMASI GEREKEN TABLO'!I67 -> MÜK.298 Ç YE GÖRE İLGİLİ GEÇİCİ VERGİ DÖNEMİNE AİT YDO İLE YD YAPILABİLİR | K54: ='DOLDURULMASI GEREKEN TABLO'!J67 -> 0 | L54: ='DOLDURULMASI GEREKEN TABLO'!K67 -> 0 | M54: ='DOLDURULMASI GEREKEN TABLO'!L67 -> 0 | N54: 46024 | O54: 0 | P54: 0 | Q54: 0 | R54: 0 | S54: 0 | T54: 0 | U54: 0 | W54: =IF(OR(D54="250- Arazi ve Arsalar",YEAR(H54)=2026),0,TRUNC('DOLDURULMASI GEREKEN TABLO'!N67,4)) -> 0.1151 | X54: 1 | Y54: 0 | Z54: 0 | AA54: 0 | AB54: 0 | AC54: 0 | AD54: 0 | AF54: 00:00:00 | AG54: ='DOLDURULMASI GEREKEN TABLO'!M67 -> 2026-06-30 | AH54: 0 | AI54: 0 | AJ54: 46204 | AK54: 127 | AL54: 126.5 | AM54: 127 | AN54: 0 | AO54: 0 | AP54: 0 | AQ54: FALSE | AR54: 0
B55: 48 | C55: ='DOLDURULMASI GEREKEN TABLO'!D68 -> 0 | D55: ='DOLDURULMASI GEREKEN TABLO'!E68 -> 0 | E55: ='DOLDURULMASI GEREKEN TABLO'!F68 -> 0 | F55: ='DOLDURULMASI GEREKEN TABLO'!G68 -> 0 | G55: 0 | H55: ='DOLDURULMASI GEREKEN TABLO'!H68 -> 00:00:00 | I55: 2026-01-01 | J55: ='DOLDURULMASI GEREKEN TABLO'!I68 -> MÜK.298 Ç YE GÖRE İLGİLİ GEÇİCİ VERGİ DÖNEMİNE AİT YDO İLE YD YAPILABİLİR | K55: ='DOLDURULMASI GEREKEN TABLO'!J68 -> 0 | L55: ='DOLDURULMASI GEREKEN TABLO'!K68 -> 0 | M55: ='DOLDURULMASI GEREKEN TABLO'!L68 -> 0 | N55: 46024 | O55: 0 | P55: 0 | Q55: 0 | R55: 0 | S55: 0 | T55: 0 | U55: 0 | W55: =IF(OR(D55="250- Arazi ve Arsalar",YEAR(H55)=2026),0,TRUNC('DOLDURULMASI GEREKEN TABLO'!N68,4)) -> 0.1151 | X55: 1 | Y55: 0 | Z55: 0 | AA55: 0 | AB55: 0 | AC55: 0 | AD55: 0 | AF55: 00:00:00 | AG55: ='DOLDURULMASI GEREKEN TABLO'!M68 -> 2026-06-30 | AH55: 0 | AI55: 0 | AJ55: 46204 | AK55: 127 | AL55: 126.5 | AM55: 127 | AN55: 0 | AO55: 0 | AP55: 0 | AQ55: FALSE | AR55: 0
B56: 49 | C56: ='DOLDURULMASI GEREKEN TABLO'!D69 -> 0 | D56: ='DOLDURULMASI GEREKEN TABLO'!E69 -> 0 | E56: ='DOLDURULMASI GEREKEN TABLO'!F69 -> 0 | F56: ='DOLDURULMASI GEREKEN TABLO'!G69 -> 0 | G56: 0 | H56: ='DOLDURULMASI GEREKEN TABLO'!H69 -> 00:00:00 | I56: 2026-01-01 | J56: ='DOLDURULMASI GEREKEN TABLO'!I69 -> MÜK.298 Ç YE GÖRE İLGİLİ GEÇİCİ VERGİ DÖNEMİNE AİT YDO İLE YD YAPILABİLİR | K56: ='DOLDURULMASI GEREKEN TABLO'!J69 -> 0 | L56: ='DOLDURULMASI GEREKEN TABLO'!K69 -> 0 | M56: ='DOLDURULMASI GEREKEN TABLO'!L69 -> 0 | N56: 46024 | O56: 0 | P56: 0 | Q56: 0 | R56: 0 | S56: 0 | T56: 0 | U56: 0 | W56: =IF(OR(D56="250- Arazi ve Arsalar",YEAR(H56)=2026),0,TRUNC('DOLDURULMASI GEREKEN TABLO'!N69,4)) -> 0.1151 | X56: 1 | Y56: 0 | Z56: 0 | AA56: 0 | AB56: 0 | AC56: 0 | AD56: 0 | AF56: 00:00:00 | AG56: ='DOLDURULMASI GEREKEN TABLO'!M69 -> 2026-06-30 | AH56: 0 | AI56: 0 | AJ56: 46204 | AK56: 127 | AL56: 126.5 | AM56: 127 | AN56: 0 | AO56: 0 | AP56: 0 | AQ56: FALSE | AR56: 0
B57: 50 | C57: ='DOLDURULMASI GEREKEN TABLO'!D70 -> 0 | D57: ='DOLDURULMASI GEREKEN TABLO'!E70 -> 0 | E57: ='DOLDURULMASI GEREKEN TABLO'!F70 -> 0 | F57: ='DOLDURULMASI GEREKEN TABLO'!G70 -> 0 | G57: 0 | H57: ='DOLDURULMASI GEREKEN TABLO'!H70 -> 00:00:00 | I57: 2026-01-01 | J57: ='DOLDURULMASI GEREKEN TABLO'!I70 -> MÜK.298 Ç YE GÖRE İLGİLİ GEÇİCİ VERGİ DÖNEMİNE AİT YDO İLE YD YAPILABİLİR | K57: ='DOLDURULMASI GEREKEN TABLO'!J70 -> 0 | L57: ='DOLDURULMASI GEREKEN TABLO'!K70 -> 0 | M57: ='DOLDURULMASI GEREKEN TABLO'!L70 -> 0 | N57: 46024 | O57: 0 | P57: 0 | Q57: 0 | R57: 0 | S57: 0 | T57: 0 | U57: 0 | W57: =IF(OR(D57="250- Arazi ve Arsalar",YEAR(H57)=2026),0,TRUNC('DOLDURULMASI GEREKEN TABLO'!N70,4)) -> 0.1151 | X57: 1 | Y57: 0 | Z57: 0 | AA57: 0 | AB57: 0 | AC57: 0 | AD57: 0 | AF57: 00:00:00 | AG57: ='DOLDURULMASI GEREKEN TABLO'!M70 -> 2026-06-30 | AH57: 0 | AI57: 0 | AJ57: 46204 | AK57: 127 | AL57: 126.5 | AM57: 127 | AN57: 0 | AO57: 0 | AP57: 0 | AQ57: FALSE | AR57: 0
B58: 51 | C58: ='DOLDURULMASI GEREKEN TABLO'!D71 -> 0 | D58: ='DOLDURULMASI GEREKEN TABLO'!E71 -> 0 | E58: ='DOLDURULMASI GEREKEN TABLO'!F71 -> 0 | F58: ='DOLDURULMASI GEREKEN TABLO'!G71 -> 0 | G58: 0 | H58: ='DOLDURULMASI GEREKEN TABLO'!H71 -> 00:00:00 | I58: 2026-01-01 | J58: ='DOLDURULMASI GEREKEN TABLO'!I71 -> MÜK.298 Ç YE GÖRE İLGİLİ GEÇİCİ VERGİ DÖNEMİNE AİT YDO İLE YD YAPILABİLİR | K58: ='DOLDURULMASI GEREKEN TABLO'!J71 -> 0 | L58: ='DOLDURULMASI GEREKEN TABLO'!K71 -> 0 | M58: ='DOLDURULMASI GEREKEN TABLO'!L71 -> 0 | N58: 46024 | O58: 0 | P58: 0 | Q58: 0 | R58: 0 | S58: 0 | T58: 0 | U58: 0 | W58: =IF(OR(D58="250- Arazi ve Arsalar",YEAR(H58)=2026),0,TRUNC('DOLDURULMASI GEREKEN TABLO'!N71,4)) -> 0.1151 | X58: 1 | Y58: 0 | Z58: 0 | AA58: 0 | AB58: 0 | AC58: 0 | AD58: 0 | AF58: 00:00:00 | AG58: ='DOLDURULMASI GEREKEN TABLO'!M71 -> 2026-06-30 | AH58: 0 | AI58: 0 | AJ58: 46204 | AK58: 127 | AL58: 126.5 | AM58: 127 | AN58: 0 | AO58: 0 | AP58: 0 | AQ58: FALSE | AR58: 0
B59: 52 | C59: ='DOLDURULMASI GEREKEN TABLO'!D72 -> 0 | D59: ='DOLDURULMASI GEREKEN TABLO'!E72 -> 0 | E59: ='DOLDURULMASI GEREKEN TABLO'!F72 -> 0 | F59: ='DOLDURULMASI GEREKEN TABLO'!G72 -> 0 | G59: 0 | H59: ='DOLDURULMASI GEREKEN TABLO'!H72 -> 00:00:00 | I59: 2026-01-01 | J59: ='DOLDURULMASI GEREKEN TABLO'!I72 -> MÜK.298 Ç YE GÖRE İLGİLİ GEÇİCİ VERGİ DÖNEMİNE AİT YDO İLE YD YAPILABİLİR | K59: ='DOLDURULMASI GEREKEN TABLO'!J72 -> 0 | L59: ='DOLDURULMASI GEREKEN TABLO'!K72 -> 0 | M59: ='DOLDURULMASI GEREKEN TABLO'!L72 -> 0 | N59: 46024 | O59: 0 | P59: 0 | Q59: 0 | R59: 0 | S59: 0 | T59: 0 | U59: 0 | W59: =IF(OR(D59="250- Arazi ve Arsalar",YEAR(H59)=2026),0,TRUNC('DOLDURULMASI GEREKEN TABLO'!N72,4)) -> 0.1151 | X59: 1 | Y59: 0 | Z59: 0 | AA59: 0 | AB59: 0 | AC59: 0 | AD59: 0 | AF59: 00:00:00 | AG59: ='DOLDURULMASI GEREKEN TABLO'!M72 -> 2026-06-30 | AH59: 0 | AI59: 0 | AJ59: 46204 | AK59: 127 | AL59: 126.5 | AM59: 127 | AN59: 0 | AO59: 0 | AP59: 0 | AQ59: FALSE | AR59: 0
B60: 53 | C60: ='DOLDURULMASI GEREKEN TABLO'!D73 -> 0 | D60: ='DOLDURULMASI GEREKEN TABLO'!E73 -> 0 | E60: ='DOLDURULMASI GEREKEN TABLO'!F73 -> 0 | F60: ='DOLDURULMASI GEREKEN TABLO'!G73 -> 0 | G60: 0 | H60: ='DOLDURULMASI GEREKEN TABLO'!H73 -> 00:00:00 | I60: 2026-01-01 | J60: ='DOLDURULMASI GEREKEN TABLO'!I73 -> MÜK.298 Ç YE GÖRE İLGİLİ GEÇİCİ VERGİ DÖNEMİNE AİT YDO İLE YD YAPILABİLİR | K60: ='DOLDURULMASI GEREKEN TABLO'!J73 -> 0 | L60: ='DOLDURULMASI GEREKEN TABLO'!K73 -> 0 | M60: ='DOLDURULMASI GEREKEN TABLO'!L73 -> 0 | N60: 46024 | O60: 0 | P60: 0 | Q60: 0 | R60: 0 | S60: 0 | T60: 0 | U60: 0 | W60: =IF(OR(D60="250- Arazi ve Arsalar",YEAR(H60)=2026),0,TRUNC('DOLDURULMASI GEREKEN TABLO'!N73,4)) -> 0.1151 | X60: 1 | Y60: 0 | Z60: 0 | AA60: 0 | AB60: 0 | AC60: 0 | AD60: 0 | AF60: 00:00:00 | AG60: ='DOLDURULMASI GEREKEN TABLO'!M73 -> 2026-06-30 | AH60: 0 | AI60: 0 | AJ60: 46204 | AK60: 127 | AL60: 126.5 | AM60: 127 | AN60: 0 | AO60: 0 | AP60: 0 | AQ60: FALSE | AR60: 0
B61: 54 | C61: ='DOLDURULMASI GEREKEN TABLO'!D74 -> 0 | D61: ='DOLDURULMASI GEREKEN TABLO'!E74 -> 0 | E61: ='DOLDURULMASI GEREKEN TABLO'!F74 -> 0 | F61: ='DOLDURULMASI GEREKEN TABLO'!G74 -> 0 | G61: 0 | H61: ='DOLDURULMASI GEREKEN TABLO'!H74 -> 00:00:00 | I61: 2026-01-01 | J61: ='DOLDURULMASI GEREKEN TABLO'!I74 -> MÜK.298 Ç YE GÖRE İLGİLİ GEÇİCİ VERGİ DÖNEMİNE AİT YDO İLE YD YAPILABİLİR | K61: ='DOLDURULMASI GEREKEN TABLO'!J74 -> 0 | L61: ='DOLDURULMASI GEREKEN TABLO'!K74 -> 0 | M61: ='DOLDURULMASI GEREKEN TABLO'!L74 -> 0 | N61: 46024 | O61: 0 | P61: 0 | Q61: 0 | R61: 0 | S61: 0 | T61: 0 | U61: 0 | W61: =IF(OR(D61="250- Arazi ve Arsalar",YEAR(H61)=2026),0,TRUNC('DOLDURULMASI GEREKEN TABLO'!N74,4)) -> 0.1151 | X61: 1 | Y61: 0 | Z61: 0 | AA61: 0 | AB61: 0 | AC61: 0 | AD61: 0 | AF61: 00:00:00 | AG61: ='DOLDURULMASI GEREKEN TABLO'!M74 -> 2026-06-30 | AH61: 0 | AI61: 0 | AJ61: 46204 | AK61: 127 | AL61: 126.5 | AM61: 127 | AN61: 0 | AO61: 0 | AP61: 0 | AQ61: FALSE | AR61: 0
B62: 55 | C62: ='DOLDURULMASI GEREKEN TABLO'!D75 -> 0 | D62: ='DOLDURULMASI GEREKEN TABLO'!E75 -> 0 | E62: ='DOLDURULMASI GEREKEN TABLO'!F75 -> 0 | F62: ='DOLDURULMASI GEREKEN TABLO'!G75 -> 0 | G62: 0 | H62: ='DOLDURULMASI GEREKEN TABLO'!H75 -> 00:00:00 | I62: 2026-01-01 | J62: ='DOLDURULMASI GEREKEN TABLO'!I75 -> MÜK.298 Ç YE GÖRE İLGİLİ GEÇİCİ VERGİ DÖNEMİNE AİT YDO İLE YD YAPILABİLİR | K62: ='DOLDURULMASI GEREKEN TABLO'!J75 -> 0 | L62: ='DOLDURULMASI GEREKEN TABLO'!K75 -> 0 | M62: ='DOLDURULMASI GEREKEN TABLO'!L75 -> 0 | N62: 46024 | O62: 0 | P62: 0 | Q62: 0 | R62: 0 | S62: 0 | T62: 0 | U62: 0 | W62: =IF(OR(D62="250- Arazi ve Arsalar",YEAR(H62)=2026),0,TRUNC('DOLDURULMASI GEREKEN TABLO'!N75,4)) -> 0.1151 | X62: 1 | Y62: 0 | Z62: 0 | AA62: 0 | AB62: 0 | AC62: 0 | AD62: 0 | AF62: 00:00:00 | AG62: ='DOLDURULMASI GEREKEN TABLO'!M75 -> 2026-06-30 | AH62: 0 | AI62: 0 | AJ62: 46204 | AK62: 127 | AL62: 126.5 | AM62: 127 | AN62: 0 | AO62: 0 | AP62: 0 | AQ62: FALSE | AR62: 0
B63: 56 | C63: ='DOLDURULMASI GEREKEN TABLO'!D76 -> 0 | D63: ='DOLDURULMASI GEREKEN TABLO'!E76 -> 0 | E63: ='DOLDURULMASI GEREKEN TABLO'!F76 -> 0 | F63: ='DOLDURULMASI GEREKEN TABLO'!G76 -> 0 | G63: 0 | H63: ='DOLDURULMASI GEREKEN TABLO'!H76 -> 00:00:00 | I63: 2026-01-01 | J63: ='DOLDURULMASI GEREKEN TABLO'!I76 -> MÜK.298 Ç YE GÖRE İLGİLİ GEÇİCİ VERGİ DÖNEMİNE AİT YDO İLE YD YAPILABİLİR | K63: ='DOLDURULMASI GEREKEN TABLO'!J76 -> 0 | L63: ='DOLDURULMASI GEREKEN TABLO'!K76 -> 0 | M63: ='DOLDURULMASI GEREKEN TABLO'!L76 -> 0 | N63: 46024 | O63: 0 | P63: 0 | Q63: 0 | R63: 0 | S63: 0 | T63: 0 | U63: 0 | W63: =IF(OR(D63="250- Arazi ve Arsalar",YEAR(H63)=2026),0,TRUNC('DOLDURULMASI GEREKEN TABLO'!N76,4)) -> 0.1151 | X63: 1 | Y63: 0 | Z63: 0 | AA63: 0 | AB63: 0 | AC63: 0 | AD63: 0 | AF63: 00:00:00 | AG63: ='DOLDURULMASI GEREKEN TABLO'!M76 -> 2026-06-30 | AH63: 0 | AI63: 0 | AJ63: 46204 | AK63: 127 | AL63: 126.5 | AM63: 127 | AN63: 0 | AO63: 0 | AP63: 0 | AQ63: FALSE | AR63: 0
B64: 57 | C64: ='DOLDURULMASI GEREKEN TABLO'!D77 -> 0 | D64: ='DOLDURULMASI GEREKEN TABLO'!E77 -> 0 | E64: ='DOLDURULMASI GEREKEN TABLO'!F77 -> 0 | F64: ='DOLDURULMASI GEREKEN TABLO'!G77 -> 0 | G64: 0 | H64: ='DOLDURULMASI GEREKEN TABLO'!H77 -> 00:00:00 | I64: 2026-01-01 | J64: ='DOLDURULMASI GEREKEN TABLO'!I77 -> MÜK.298 Ç YE GÖRE İLGİLİ GEÇİCİ VERGİ DÖNEMİNE AİT YDO İLE YD YAPILABİLİR | K64: ='DOLDURULMASI GEREKEN TABLO'!J77 -> 0 | L64: ='DOLDURULMASI GEREKEN TABLO'!K77 -> 0 | M64: ='DOLDURULMASI GEREKEN TABLO'!L77 -> 0 | N64: 46024 | O64: 0 | P64: 0 | Q64: 0 | R64: 0 | S64: 0 | T64: 0 | U64: 0 | W64: =IF(OR(D64="250- Arazi ve Arsalar",YEAR(H64)=2026),0,TRUNC('DOLDURULMASI GEREKEN TABLO'!N77,4)) -> 0.1151 | X64: 1 | Y64: 0 | Z64: 0 | AA64: 0 | AB64: 0 | AC64: 0 | AD64: 0 | AF64: 00:00:00 | AG64: ='DOLDURULMASI GEREKEN TABLO'!M77 -> 2026-06-30 | AH64: 0 | AI64: 0 | AJ64: 46204 | AK64: 127 | AL64: 126.5 | AM64: 127 | AN64: 0 | AO64: 0 | AP64: 0 | AQ64: FALSE | AR64: 0
B65: 58 | C65: ='DOLDURULMASI GEREKEN TABLO'!D78 -> 0 | D65: ='DOLDURULMASI GEREKEN TABLO'!E78 -> 0 | E65: ='DOLDURULMASI GEREKEN TABLO'!F78 -> 0 | F65: ='DOLDURULMASI GEREKEN TABLO'!G78 -> 0 | G65: 0 | H65: ='DOLDURULMASI GEREKEN TABLO'!H78 -> 00:00:00 | I65: 2026-01-01 | J65: ='DOLDURULMASI GEREKEN TABLO'!I78 -> MÜK.298 Ç YE GÖRE İLGİLİ GEÇİCİ VERGİ DÖNEMİNE AİT YDO İLE YD YAPILABİLİR | K65: ='DOLDURULMASI GEREKEN TABLO'!J78 -> 0 | L65: ='DOLDURULMASI GEREKEN TABLO'!K78 -> 0 | M65: ='DOLDURULMASI GEREKEN TABLO'!L78 -> 0 | N65: 46024 | O65: 0 | P65: 0 | Q65: 0 | R65: 0 | S65: 0 | T65: 0 | U65: 0 | W65: =IF(OR(D65="250- Arazi ve Arsalar",YEAR(H65)=2026),0,TRUNC('DOLDURULMASI GEREKEN TABLO'!N78,4)) -> 0.1151 | X65: 1 | Y65: 0 | Z65: 0 | AA65: 0 | AB65: 0 | AC65: 0 | AD65: 0 | AF65: 00:00:00 | AG65: ='DOLDURULMASI GEREKEN TABLO'!M78 -> 2026-06-30 | AH65: 0 | AI65: 0 | AJ65: 46204 | AK65: 127 | AL65: 126.5 | AM65: 127 | AN65: 0 | AO65: 0 | AP65: 0 | AQ65: FALSE | AR65: 0
B66: 59 | C66: ='DOLDURULMASI GEREKEN TABLO'!D79 -> 0 | D66: ='DOLDURULMASI GEREKEN TABLO'!E79 -> 0 | E66: ='DOLDURULMASI GEREKEN TABLO'!F79 -> 0 | F66: ='DOLDURULMASI GEREKEN TABLO'!G79 -> 0 | G66: 0 | H66: ='DOLDURULMASI GEREKEN TABLO'!H79 -> 00:00:00 | I66: 2026-01-01 | J66: ='DOLDURULMASI GEREKEN TABLO'!I79 -> MÜK.298 Ç YE GÖRE İLGİLİ GEÇİCİ VERGİ DÖNEMİNE AİT YDO İLE YD YAPILABİLİR | K66: ='DOLDURULMASI GEREKEN TABLO'!J79 -> 0 | L66: ='DOLDURULMASI GEREKEN TABLO'!K79 -> 0 | M66: ='DOLDURULMASI GEREKEN TABLO'!L79 -> 0 | N66: 46024 | O66: 0 | P66: 0 | Q66: 0 | R66: 0 | S66: 0 | T66: 0 | U66: 0 | W66: =IF(OR(D66="250- Arazi ve Arsalar",YEAR(H66)=2026),0,TRUNC('DOLDURULMASI GEREKEN TABLO'!N79,4)) -> 0.1151 | X66: 1 | Y66: 0 | Z66: 0 | AA66: 0 | AB66: 0 | AC66: 0 | AD66: 0 | AF66: 00:00:00 | AG66: ='DOLDURULMASI GEREKEN TABLO'!M79 -> 2026-06-30 | AH66: 0 | AI66: 0 | AJ66: 46204 | AK66: 127 | AL66: 126.5 | AM66: 127 | AN66: 0 | AO66: 0 | AP66: 0 | AQ66: FALSE | AR66: 0
B67: 60 | C67: ='DOLDURULMASI GEREKEN TABLO'!D80 -> 0 | D67: ='DOLDURULMASI GEREKEN TABLO'!E80 -> 0 | E67: ='DOLDURULMASI GEREKEN TABLO'!F80 -> 0 | F67: ='DOLDURULMASI GEREKEN TABLO'!G80 -> 0 | G67: 0 | H67: ='DOLDURULMASI GEREKEN TABLO'!H80 -> 00:00:00 | I67: 2026-01-01 | J67: ='DOLDURULMASI GEREKEN TABLO'!I80 -> MÜK.298 Ç YE GÖRE İLGİLİ GEÇİCİ VERGİ DÖNEMİNE AİT YDO İLE YD YAPILABİLİR | K67: ='DOLDURULMASI GEREKEN TABLO'!J80 -> 0 | L67: ='DOLDURULMASI GEREKEN TABLO'!K80 -> 0 | M67: ='DOLDURULMASI GEREKEN TABLO'!L80 -> 0 | N67: 46024 | O67: 0 | P67: 0 | Q67: 0 | R67: 0 | S67: 0 | T67: 0 | U67: 0 | W67: =IF(OR(D67="250- Arazi ve Arsalar",YEAR(H67)=2026),0,TRUNC('DOLDURULMASI GEREKEN TABLO'!N80,4)) -> 0.1151 | X67: 1 | Y67: 0 | Z67: 0 | AA67: 0 | AB67: 0 | AC67: 0 | AD67: 0 | AF67: 00:00:00 | AG67: ='DOLDURULMASI GEREKEN TABLO'!M80 -> 2026-06-30 | AH67: 0 | AI67: 0 | AJ67: 46204 | AK67: 127 | AL67: 126.5 | AM67: 127 | AN67: 0 | AO67: 0 | AP67: 0 | AQ67: FALSE | AR67: 0
B68: 61 | C68: ='DOLDURULMASI GEREKEN TABLO'!D81 -> 0 | D68: ='DOLDURULMASI GEREKEN TABLO'!E81 -> 0 | E68: ='DOLDURULMASI GEREKEN TABLO'!F81 -> 0 | F68: ='DOLDURULMASI GEREKEN TABLO'!G81 -> 0 | G68: 0 | H68: ='DOLDURULMASI GEREKEN TABLO'!H81 -> 00:00:00 | I68: 2026-01-01 | J68: ='DOLDURULMASI GEREKEN TABLO'!I81 -> MÜK.298 Ç YE GÖRE İLGİLİ GEÇİCİ VERGİ DÖNEMİNE AİT YDO İLE YD YAPILABİLİR | K68: ='DOLDURULMASI GEREKEN TABLO'!J81 -> 0 | L68: ='DOLDURULMASI GEREKEN TABLO'!K81 -> 0 | M68: ='DOLDURULMASI GEREKEN TABLO'!L81 -> 0 | N68: 46024 | O68: 0 | P68: 0 | Q68: 0 | R68: 0 | S68: 0 | T68: 0 | U68: 0 | W68: =IF(OR(D68="250- Arazi ve Arsalar",YEAR(H68)=2026),0,TRUNC('DOLDURULMASI GEREKEN TABLO'!N81,4)) -> 0.1151 | X68: 1 | Y68: 0 | Z68: 0 | AA68: 0 | AB68: 0 | AC68: 0 | AD68: 0 | AF68: 00:00:00 | AG68: ='DOLDURULMASI GEREKEN TABLO'!M81 -> 2026-06-30 | AH68: 0 | AI68: 0 | AJ68: 46204 | AK68: 127 | AL68: 126.5 | AM68: 127 | AN68: 0 | AO68: 0 | AP68: 0 | AQ68: FALSE | AR68: 0
B69: 62 | C69: ='DOLDURULMASI GEREKEN TABLO'!D82 -> 0 | D69: ='DOLDURULMASI GEREKEN TABLO'!E82 -> 0 | E69: ='DOLDURULMASI GEREKEN TABLO'!F82 -> 0 | F69: ='DOLDURULMASI GEREKEN TABLO'!G82 -> 0 | G69: 0 | H69: ='DOLDURULMASI GEREKEN TABLO'!H82 -> 00:00:00 | I69: 2026-01-01 | J69: ='DOLDURULMASI GEREKEN TABLO'!I82 -> MÜK.298 Ç YE GÖRE İLGİLİ GEÇİCİ VERGİ DÖNEMİNE AİT YDO İLE YD YAPILABİLİR | K69: ='DOLDURULMASI GEREKEN TABLO'!J82 -> 0 | L69: ='DOLDURULMASI GEREKEN TABLO'!K82 -> 0 | M69: ='DOLDURULMASI GEREKEN TABLO'!L82 -> 0 | N69: 46024 | O69: 0 | P69: 0 | Q69: 0 | R69: 0 | S69: 0 | T69: 0 | U69: 0 | W69: =IF(OR(D69="250- Arazi ve Arsalar",YEAR(H69)=2026),0,TRUNC('DOLDURULMASI GEREKEN TABLO'!N82,4)) -> 0.1151 | X69: 1 | Y69: 0 | Z69: 0 | AA69: 0 | AB69: 0 | AC69: 0 | AD69: 0 | AF69: 00:00:00 | AG69: ='DOLDURULMASI GEREKEN TABLO'!M82 -> 2026-06-30 | AH69: 0 | AI69: 0 | AJ69: 46204 | AK69: 127 | AL69: 126.5 | AM69: 127 | AN69: 0 | AO69: 0 | AP69: 0 | AQ69: FALSE | AR69: 0
B70: 63 | C70: ='DOLDURULMASI GEREKEN TABLO'!D83 -> 0 | D70: ='DOLDURULMASI GEREKEN TABLO'!E83 -> 0 | E70: ='DOLDURULMASI GEREKEN TABLO'!F83 -> 0 | F70: ='DOLDURULMASI GEREKEN TABLO'!G83 -> 0 | G70: 0 | H70: ='DOLDURULMASI GEREKEN TABLO'!H83 -> 00:00:00 | I70: 2026-01-01 | J70: ='DOLDURULMASI GEREKEN TABLO'!I83 -> MÜK.298 Ç YE GÖRE İLGİLİ GEÇİCİ VERGİ DÖNEMİNE AİT YDO İLE YD YAPILABİLİR | K70: ='DOLDURULMASI GEREKEN TABLO'!J83 -> 0 | L70: ='DOLDURULMASI GEREKEN TABLO'!K83 -> 0 | M70: ='DOLDURULMASI GEREKEN TABLO'!L83 -> 0 | N70: 46024 | O70: 0 | P70: 0 | Q70: 0 | R70: 0 | S70: 0 | T70: 0 | U70: 0 | W70: =IF(OR(D70="250- Arazi ve Arsalar",YEAR(H70)=2026),0,TRUNC('DOLDURULMASI GEREKEN TABLO'!N83,4)) -> 0.1151 | X70: 1 | Y70: 0 | Z70: 0 | AA70: 0 | AB70: 0 | AC70: 0 | AD70: 0 | AF70: 00:00:00 | AG70: ='DOLDURULMASI GEREKEN TABLO'!M83 -> 2026-06-30 | AH70: 0 | AI70: 0 | AJ70: 46204 | AK70: 127 | AL70: 126.5 | AM70: 127 | AN70: 0 | AO70: 0 | AP70: 0 | AQ70: FALSE | AR70: 0
B71: 64 | C71: ='DOLDURULMASI GEREKEN TABLO'!D84 -> 0 | D71: ='DOLDURULMASI GEREKEN TABLO'!E84 -> 0 | E71: ='DOLDURULMASI GEREKEN TABLO'!F84 -> 0 | F71: ='DOLDURULMASI GEREKEN TABLO'!G84 -> 0 | G71: 0 | H71: ='DOLDURULMASI GEREKEN TABLO'!H84 -> 00:00:00 | I71: 2026-01-01 | J71: ='DOLDURULMASI GEREKEN TABLO'!I84 -> MÜK.298 Ç YE GÖRE İLGİLİ GEÇİCİ VERGİ DÖNEMİNE AİT YDO İLE YD YAPILABİLİR | K71: ='DOLDURULMASI GEREKEN TABLO'!J84 -> 0 | L71: ='DOLDURULMASI GEREKEN TABLO'!K84 -> 0 | M71: ='DOLDURULMASI GEREKEN TABLO'!L84 -> 0 | N71: 46024 | O71: 0 | P71: 0 | Q71: 0 | R71: 0 | S71: 0 | T71: 0 | U71: 0 | W71: =IF(OR(D71="250- Arazi ve Arsalar",YEAR(H71)=2026),0,TRUNC('DOLDURULMASI GEREKEN TABLO'!N84,4)) -> 0.1151 | X71: 1 | Y71: 0 | Z71: 0 | AA71: 0 | AB71: 0 | AC71: 0 | AD71: 0 | AF71: 00:00:00 | AG71: ='DOLDURULMASI GEREKEN TABLO'!M84 -> 2026-06-30 | AH71: 0 | AI71: 0 | AJ71: 46204 | AK71: 127 | AL71: 126.5 | AM71: 127 | AN71: 0 | AO71: 0 | AP71: 0 | AQ71: FALSE | AR71: 0
B72: 65 | C72: ='DOLDURULMASI GEREKEN TABLO'!D85 -> 0 | D72: ='DOLDURULMASI GEREKEN TABLO'!E85 -> 0 | E72: ='DOLDURULMASI GEREKEN TABLO'!F85 -> 0 | F72: ='DOLDURULMASI GEREKEN TABLO'!G85 -> 0 | G72: 0 | H72: ='DOLDURULMASI GEREKEN TABLO'!H85 -> 00:00:00 | I72: 2026-01-01 | J72: ='DOLDURULMASI GEREKEN TABLO'!I85 -> MÜK.298 Ç YE GÖRE İLGİLİ GEÇİCİ VERGİ DÖNEMİNE AİT YDO İLE YD YAPILABİLİR | K72: ='DOLDURULMASI GEREKEN TABLO'!J85 -> 0 | L72: ='DOLDURULMASI GEREKEN TABLO'!K85 -> 0 | M72: ='DOLDURULMASI GEREKEN TABLO'!L85 -> 0 | N72: 46024 | O72: 0 | P72: 0 | Q72: 0 | R72: =IFERROR(IF(D72="250- Arazi ve Arsalar",0, IF(Q72=F72,K72, IF(AND(L72="NORMAL AMORTİSMAN",M72="HAYIR"),K72*G72*Q72, IF(AND(L72="NORMAL AMORTİSMAN",M72="EVET"),K72*G72*Q72, IF(AND(L72="AZALAN BAKİYELERE GÖRE AMORTİSMAN",M72="HAYIR"),VDB(K72,0,IF(F72<=4,4,F72),0,Q72,2,TRUE), IF(AND(L72="AZALAN BAKİYELERE GÖRE AMORTİSMAN",M72="EVET",Q72<=1),(DDB(K72,0,IF(F72<=4,4,F72),1,2)/12)*(12-MONTH(H72)+1), IF(AND(L72="AZALAN BAKİYELERE GÖRE AMORTİSMAN",M72="EVET",AND(Q72<=2,Q72>1)),(DDB(K72,0,IF(F72<=4,4,F72),1,2)/12)*(12-MONTH(H72)+1)+DDB(K72,0,IF(F72<=4,4,F72),2,2), IF(AND(L72="AZALAN BAKİYELERE GÖRE AMORTİSMAN",M72="EVET",AND(Q72<=3,Q72>2)),(DDB(K72,0,IF(F72<=4,4,F72),1,2)/12)*(12-MONTH(H72)+1)+DDB(K72,0,IF(F72<=4,4,F72),2,2)+DDB(K72,0,IF(F72<=4,4,F72),3,2), IF(AND(L72="AZALAN BAKİYELERE GÖRE AMORTİSMAN",M72="EVET",AND(Q72<=4,Q72>3)),(DDB(K72,0,IF(F72<=4,4,F72),1,2)/12)*(12-MONTH(H72)+1)+DDB(K72,0,IF(F72<=4,4,F72),2,2)+DDB(K72,0,IF(F72<=4,4,F72),3,2)+DDB(K72,0,IF(F72<=4,4,F72),4,2), IF(AND(L72="AZALAN BAKİYELERE GÖRE AMORTİSMAN",M72="EVET",AND(Q72<=5,Q72>4)),K72,0)))))))))),0) -> 0 | S72: 0 | T72: 0 | U72: 0 | W72: =IF(OR(D72="250- Arazi ve Arsalar",YEAR(H72)=2026),0,TRUNC('DOLDURULMASI GEREKEN TABLO'!N85,4)) -> 0.1151 | X72: 1 | Y72: 0 | Z72: 0 | AA72: 0 | AB72: 0 | AC72: 0 | AD72: 0 | AF72: 00:00:00 | AG72: ='DOLDURULMASI GEREKEN TABLO'!M85 -> 2026-06-30 | AH72: 0 | AI72: 0 | AJ72: 46204 | AK72: 127 | AL72: 126.5 | AM72: 127 | AN72: 0 | AO72: 0 | AP72: 0 | AQ72: FALSE | AR72: 0
B73: 66 | C73: ='DOLDURULMASI GEREKEN TABLO'!D86 -> 0 | D73: ='DOLDURULMASI GEREKEN TABLO'!E86 -> 0 | E73: ='DOLDURULMASI GEREKEN TABLO'!F86 -> 0 | F73: ='DOLDURULMASI GEREKEN TABLO'!G86 -> 0 | G73: =IFERROR(IF(L73="AZALAN BAKİYELERE GÖRE AMORTİSMAN",MIN(1/F73,1/4),1/F73),0) -> 0 | H73: ='DOLDURULMASI GEREKEN TABLO'!H86 -> 00:00:00 | I73: 2026-01-01 | J73: ='DOLDURULMASI GEREKEN TABLO'!I86 -> MÜK.298 Ç YE GÖRE İLGİLİ GEÇİCİ VERGİ DÖNEMİNE AİT YDO İLE YD YAPILABİLİR | K73: ='DOLDURULMASI GEREKEN TABLO'!J86 -> 0 | L73: ='DOLDURULMASI GEREKEN TABLO'!K86 -> 0 | M73: ='DOLDURULMASI GEREKEN TABLO'!L86 -> 0 | N73: =MAX( IFERROR((I73-H73)+1,0),0) -> 46024 | O73: =IFERROR( MIN(YEAR(I73)-YEAR(H73),F73),0) -> 0 | P73: =MAX(IFERROR(MIN((( (YEAR(I73)-YEAR(H73))*12+(MONTH(I73)-MONTH(H73)))/12),F73),0),0) -> 0 | Q73: =IF(AND(M73="EVET",O73<F73),P73,O73) -> 0 | R73: 0 | S73: =K73 -> 0 | T73: =R73 -> 0 | U73: =S73-T73 -> 0 | W73: =IF(OR(D73="250- Arazi ve Arsalar",YEAR(H73)=2026),0,TRUNC('DOLDURULMASI GEREKEN TABLO'!N86,4)) -> 0.1151 | X73: =IF(E73="HAYIR",(1+W73),1) -> 1 | Y73: =X73*S73 -> 0 | Z73: =T73*X73 -> 0 | AA73: =Y73-Z73 -> 0 | AB73: =IFERROR(IF(Y73-S73<0,0,Y73-S73),0) -> 0 | AC73: =IFERROR(IF(Z73-T73<0,0,Z73-T73),0) -> 0 | AD73: =IFERROR(IF((AB73-AC73)<0,0,(AB73-AC73)),0) -> 0 | AF73: =H73 -> 00:00:00 | AG73: ='DOLDURULMASI GEREKEN TABLO'!M86 -> 2026-06-30 | AH73: =L73 -> 0 | AI73: =M73 -> 0 | AJ73: =(AG73-AF73)+1 -> 46204 | AK73: =YEAR(AG73)-YEAR(AF73)+1 -> 127 | AL73: =(((YEAR(AG73)-YEAR(AF73))*12)+(MONTH(AG73)-MONTH(AF73)+1))/12 -> 126.5 | AM73: =IF(AI73="EVET",AL73,AK73) -> 127 | AN73: =IFERROR( IF(D73="250- Arazi ve Arsalar",0, IF(AK73=F73,Y73, IF(AND(L73="NORMAL AMORTİSMAN",M73="HAYIR"),Y73*G73*IF(AK73>1,AK73-0.5,AK73), IF(AND(L73="NORMAL AMORTİSMAN",M73="EVET"), Y73*G73*IF(AK73>1,AK73-0.5,AK73), IF(AND(L73="AZALAN BAKİYELERE GÖRE AMORTİSMAN",M73="HAYIR"),VDB(Y73,0,IF(F73<=4,4,F73),0,IF(AK73>1,AK73-0.5,AK73),2,TRUE), IF(AND(L73="AZALAN BAKİYELERE GÖRE AMORTİSMAN",M73="EVET",AK73<1), (DDB(Y73,0,IF(F73<=4,4,F73),1,2)/12)*(12-MONTH(H73)+1), IF(AND(L73="AZALAN BAKİYELERE GÖRE AMORTİSMAN",M73="EVET",AND(AK73<=2,AK73>1)), (DDB(Y73,0,IF(F73<=4,4,F73),1,2)/12)*(12-MONTH(H73)+1) + DDB(Y73,0,IF(F73<=4,4,F73),2,2)/4*2, IF(AND(L73="AZALAN BAKİYELERE GÖRE AMORTİSMAN",M73="EVET",AND(AK73<=3,AK73>2)), (DDB(Y73,0,IF(F73<=4,4,F73),1,2)/12)*(12-MONTH(H73)+1)+DDB(Y73,0,IF(F73<=4,4,F73),2,2)+ DDB(Y73,0,IF(F73<=4,4,F73),3,2)/4*2, IF(AND(L73="AZALAN BAKİYELERE GÖRE AMORTİSMAN",M73="EVET",AND(AK73<=4,AK73>3)), (DDB(Y73,0,IF(F73<=4,4,F73),1,2)/12)*(12-MONTH(H73)+1)+DDB(Y73,0,IF(F73<=4,4,F73),2,2)+DDB(Y73,0,IF(F73<=4,4,F73),3,2)+DDB(Y73,0,IF(F73<=4,4,F73),4,2)/4*2, IF(AND(L73="AZALAN BAKİYELERE GÖRE AMORTİSMAN",M73="EVET",AND(AK73<=5,AK73>4)), ((DDB(Y73,0,IF(F73<=4,4,F73),1,2)/12)*(12-MONTH(H73)+1) + DDB(Y73,0,IF(F73<=4,4,F73),2,2) + DDB(Y73,0,IF(F73<=4,4,F73),3,2)+ DDB(Y73,0,IF(F73<=4,4,F73),4,2))+ Y73- ( (DDB(Y73,0,IF(F73<=4,4,F73),1,2)/12)*(12-MONTH(H73)+1) + DDB(Y73,0,IF(F73<=4,4,F73),2,2) + DDB(Y73,0,IF(F73<=4,4,F73),3,2)+ DDB(Y73,0,IF(F73<=4,4,F73),4,2)), DDB(Y73,0,IF(F73<=4,4,F73),AK73-0.5,2) ) ) ) ) ) ) ) ) ) ), 0) -> 0 | AO73: 0 | AP73: =IF(AN73-AO73<=0,0,AN73-AO73) -> 0 | AQ73: FALSE | AR73: 0
B74: 67 | C74: ='DOLDURULMASI GEREKEN TABLO'!D87 -> 0 | D74: ='DOLDURULMASI GEREKEN TABLO'!E87 -> 0 | E74: ='DOLDURULMASI GEREKEN TABLO'!F87 -> 0 | F74: ='DOLDURULMASI GEREKEN TABLO'!G87 -> 0 | G74: 0 | H74: ='DOLDURULMASI GEREKEN TABLO'!H87 -> 00:00:00 | I74: 2026-01-01 | J74: ='DOLDURULMASI GEREKEN TABLO'!I87 -> MÜK.298 Ç YE GÖRE İLGİLİ GEÇİCİ VERGİ DÖNEMİNE AİT YDO İLE YD YAPILABİLİR | K74: ='DOLDURULMASI GEREKEN TABLO'!J87 -> 0 | L74: ='DOLDURULMASI GEREKEN TABLO'!K87 -> 0 | M74: ='DOLDURULMASI GEREKEN TABLO'!L87 -> 0 | N74: 46024 | O74: 0 | P74: 0 | Q74: 0 | R74: 0 | S74: 0 | T74: 0 | U74: 0 | W74: =IF(OR(D74="250- Arazi ve Arsalar",YEAR(H74)=2026),0,TRUNC('DOLDURULMASI GEREKEN TABLO'!N87,4)) -> 0.1151 | X74: 1 | Y74: 0 | Z74: 0 | AA74: 0 | AB74: 0 | AC74: 0 | AD74: 0 | AF74: 00:00:00 | AG74: ='DOLDURULMASI GEREKEN TABLO'!M87 -> 2026-06-30 | AH74: 0 | AI74: 0 | AJ74: 46204 | AK74: 127 | AL74: 126.5 | AM74: 127 | AN74: 0 | AO74: 0 | AP74: 0 | AQ74: FALSE | AR74: 0
B75: 68 | C75: ='DOLDURULMASI GEREKEN TABLO'!D88 -> 0 | D75: ='DOLDURULMASI GEREKEN TABLO'!E88 -> 0 | E75: ='DOLDURULMASI GEREKEN TABLO'!F88 -> 0 | F75: ='DOLDURULMASI GEREKEN TABLO'!G88 -> 0 | G75: 0 | H75: ='DOLDURULMASI GEREKEN TABLO'!H88 -> 00:00:00 | I75: 2026-01-01 | J75: ='DOLDURULMASI GEREKEN TABLO'!I88 -> MÜK.298 Ç YE GÖRE İLGİLİ GEÇİCİ VERGİ DÖNEMİNE AİT YDO İLE YD YAPILABİLİR | K75: ='DOLDURULMASI GEREKEN TABLO'!J88 -> 0 | L75: ='DOLDURULMASI GEREKEN TABLO'!K88 -> 0 | M75: ='DOLDURULMASI GEREKEN TABLO'!L88 -> 0 | N75: 46024 | O75: 0 | P75: 0 | Q75: 0 | R75: 0 | S75: 0 | T75: 0 | U75: 0 | W75: =IF(OR(D75="250- Arazi ve Arsalar",YEAR(H75)=2026),0,TRUNC('DOLDURULMASI GEREKEN TABLO'!N88,4)) -> 0.1151 | X75: 1 | Y75: 0 | Z75: 0 | AA75: 0 | AB75: 0 | AC75: 0 | AD75: 0 | AF75: 00:00:00 | AG75: ='DOLDURULMASI GEREKEN TABLO'!M88 -> 2026-06-30 | AH75: 0 | AI75: 0 | AJ75: 46204 | AK75: 127 | AL75: 126.5 | AM75: 127 | AN75: 0 | AO75: 0 | AP75: 0 | AQ75: FALSE | AR75: 0
B76: 69 | C76: ='DOLDURULMASI GEREKEN TABLO'!D89 -> 0 | D76: ='DOLDURULMASI GEREKEN TABLO'!E89 -> 0 | E76: ='DOLDURULMASI GEREKEN TABLO'!F89 -> 0 | F76: ='DOLDURULMASI GEREKEN TABLO'!G89 -> 0 | G76: 0 | H76: ='DOLDURULMASI GEREKEN TABLO'!H89 -> 00:00:00 | I76: 2026-01-01 | J76: ='DOLDURULMASI GEREKEN TABLO'!I89 -> MÜK.298 Ç YE GÖRE İLGİLİ GEÇİCİ VERGİ DÖNEMİNE AİT YDO İLE YD YAPILABİLİR | K76: ='DOLDURULMASI GEREKEN TABLO'!J89 -> 0 | L76: ='DOLDURULMASI GEREKEN TABLO'!K89 -> 0 | M76: ='DOLDURULMASI GEREKEN TABLO'!L89 -> 0 | N76: 46024 | O76: 0 | P76: 0 | Q76: 0 | R76: 0 | S76: 0 | T76: 0 | U76: 0 | W76: =IF(OR(D76="250- Arazi ve Arsalar",YEAR(H76)=2026),0,TRUNC('DOLDURULMASI GEREKEN TABLO'!N89,4)) -> 0.1151 | X76: 1 | Y76: 0 | Z76: 0 | AA76: 0 | AB76: 0 | AC76: 0 | AD76: 0 | AF76: 00:00:00 | AG76: ='DOLDURULMASI GEREKEN TABLO'!M89 -> 2026-06-30 | AH76: 0 | AI76: 0 | AJ76: 46204 | AK76: 127 | AL76: 126.5 | AM76: 127 | AN76: 0 | AO76: 0 | AP76: 0 | AQ76: FALSE | AR76: 0
B77: 70 | C77: ='DOLDURULMASI GEREKEN TABLO'!D90 -> 0 | D77: ='DOLDURULMASI GEREKEN TABLO'!E90 -> 0 | E77: ='DOLDURULMASI GEREKEN TABLO'!F90 -> 0 | F77: ='DOLDURULMASI GEREKEN TABLO'!G90 -> 0 | G77: 0 | H77: ='DOLDURULMASI GEREKEN TABLO'!H90 -> 00:00:00 | I77: 2026-01-01 | J77: ='DOLDURULMASI GEREKEN TABLO'!I90 -> MÜK.298 Ç YE GÖRE İLGİLİ GEÇİCİ VERGİ DÖNEMİNE AİT YDO İLE YD YAPILABİLİR | K77: ='DOLDURULMASI GEREKEN TABLO'!J90 -> 0 | L77: ='DOLDURULMASI GEREKEN TABLO'!K90 -> 0 | M77: ='DOLDURULMASI GEREKEN TABLO'!L90 -> 0 | N77: 46024 | O77: 0 | P77: 0 | Q77: 0 | R77: 0 | S77: 0 | T77: 0 | U77: 0 | W77: =IF(OR(D77="250- Arazi ve Arsalar",YEAR(H77)=2026),0,TRUNC('DOLDURULMASI GEREKEN TABLO'!N90,4)) -> 0.1151 | X77: 1 | Y77: 0 | Z77: 0 | AA77: 0 | AB77: 0 | AC77: 0 | AD77: 0 | AF77: 00:00:00 | AG77: ='DOLDURULMASI GEREKEN TABLO'!M90 -> 2026-06-30 | AH77: 0 | AI77: 0 | AJ77: 46204 | AK77: 127 | AL77: 126.5 | AM77: 127 | AN77: 0 | AO77: 0 | AP77: 0 | AQ77: FALSE | AR77: 0
B78: 71 | C78: ='DOLDURULMASI GEREKEN TABLO'!D91 -> 0 | D78: ='DOLDURULMASI GEREKEN TABLO'!E91 -> 0 | E78: ='DOLDURULMASI GEREKEN TABLO'!F91 -> 0 | F78: ='DOLDURULMASI GEREKEN TABLO'!G91 -> 0 | G78: 0 | H78: ='DOLDURULMASI GEREKEN TABLO'!H91 -> 00:00:00 | I78: 2026-01-01 | J78: ='DOLDURULMASI GEREKEN TABLO'!I91 -> MÜK.298 Ç YE GÖRE İLGİLİ GEÇİCİ VERGİ DÖNEMİNE AİT YDO İLE YD YAPILABİLİR | K78: ='DOLDURULMASI GEREKEN TABLO'!J91 -> 0 | L78: ='DOLDURULMASI GEREKEN TABLO'!K91 -> 0 | M78: ='DOLDURULMASI GEREKEN TABLO'!L91 -> 0 | N78: 46024 | O78: 0 | P78: 0 | Q78: 0 | R78: 0 | S78: 0 | T78: 0 | U78: 0 | W78: =IF(OR(D78="250- Arazi ve Arsalar",YEAR(H78)=2026),0,TRUNC('DOLDURULMASI GEREKEN TABLO'!N91,4)) -> 0.1151 | X78: 1 | Y78: 0 | Z78: 0 | AA78: 0 | AB78: 0 | AC78: 0 | AD78: 0 | AF78: 00:00:00 | AG78: ='DOLDURULMASI GEREKEN TABLO'!M91 -> 2026-06-30 | AH78: 0 | AI78: 0 | AJ78: 46204 | AK78: 127 | AL78: 126.5 | AM78: 127 | AN78: 0 | AO78: 0 | AP78: 0 | AQ78: FALSE | AR78: 0
B79: 72 | C79: ='DOLDURULMASI GEREKEN TABLO'!D92 -> 0 | D79: ='DOLDURULMASI GEREKEN TABLO'!E92 -> 0 | E79: ='DOLDURULMASI GEREKEN TABLO'!F92 -> 0 | F79: ='DOLDURULMASI GEREKEN TABLO'!G92 -> 0 | G79: 0 | H79: ='DOLDURULMASI GEREKEN TABLO'!H92 -> 00:00:00 | I79: 2026-01-01 | J79: ='DOLDURULMASI GEREKEN TABLO'!I92 -> MÜK.298 Ç YE GÖRE İLGİLİ GEÇİCİ VERGİ DÖNEMİNE AİT YDO İLE YD YAPILABİLİR | K79: ='DOLDURULMASI GEREKEN TABLO'!J92 -> 0 | L79: ='DOLDURULMASI GEREKEN TABLO'!K92 -> 0 | M79: ='DOLDURULMASI GEREKEN TABLO'!L92 -> 0 | N79: 46024 | O79: 0 | P79: 0 | Q79: 0 | R79: 0 | S79: 0 | T79: 0 | U79: 0 | W79: =IF(OR(D79="250- Arazi ve Arsalar",YEAR(H79)=2026),0,TRUNC('DOLDURULMASI GEREKEN TABLO'!N92,4)) -> 0.1151 | X79: 1 | Y79: 0 | Z79: 0 | AA79: 0 | AB79: 0 | AC79: 0 | AD79: 0 | AF79: 00:00:00 | AG79: ='DOLDURULMASI GEREKEN TABLO'!M92 -> 2026-06-30 | AH79: 0 | AI79: 0 | AJ79: 46204 | AK79: 127 | AL79: 126.5 | AM79: 127 | AN79: 0 | AO79: 0 | AP79: 0 | AQ79: FALSE | AR79: 0
B80: 73 | C80: ='DOLDURULMASI GEREKEN TABLO'!D93 -> 0 | D80: ='DOLDURULMASI GEREKEN TABLO'!E93 -> 0 | E80: ='DOLDURULMASI GEREKEN TABLO'!F93 -> 0 | F80: ='DOLDURULMASI GEREKEN TABLO'!G93 -> 0 | G80: 0 | H80: ='DOLDURULMASI GEREKEN TABLO'!H93 -> 00:00:00 | I80: 2026-01-01 | J80: ='DOLDURULMASI GEREKEN TABLO'!I93 -> MÜK.298 Ç YE GÖRE İLGİLİ GEÇİCİ VERGİ DÖNEMİNE AİT YDO İLE YD YAPILABİLİR | K80: ='DOLDURULMASI GEREKEN TABLO'!J93 -> 0 | L80: ='DOLDURULMASI GEREKEN TABLO'!K93 -> 0 | M80: ='DOLDURULMASI GEREKEN TABLO'!L93 -> 0 | N80: 46024 | O80: 0 | P80: 0 | Q80: 0 | R80: 0 | S80: 0 | T80: 0 | U80: 0 | W80: =IF(OR(D80="250- Arazi ve Arsalar",YEAR(H80)=2026),0,TRUNC('DOLDURULMASI GEREKEN TABLO'!N93,4)) -> 0.1151 | X80: 1 | Y80: 0 | Z80: 0 | AA80: 0 | AB80: 0 | AC80: 0 | AD80: 0 | AF80: 00:00:00 | AG80: ='DOLDURULMASI GEREKEN TABLO'!M93 -> 2026-06-30 | AH80: 0 | AI80: 0 | AJ80: 46204 | AK80: 127 | AL80: 126.5 | AM80: 127 | AN80: 0 | AO80: 0 | AP80: 0 | AQ80: FALSE | AR80: 0
B81: 74 | C81: ='DOLDURULMASI GEREKEN TABLO'!D94 -> 0 | D81: ='DOLDURULMASI GEREKEN TABLO'!E94 -> 0 | E81: ='DOLDURULMASI GEREKEN TABLO'!F94 -> 0 | F81: ='DOLDURULMASI GEREKEN TABLO'!G94 -> 0 | G81: 0 | H81: ='DOLDURULMASI GEREKEN TABLO'!H94 -> 00:00:00 | I81: 2026-01-01 | J81: ='DOLDURULMASI GEREKEN TABLO'!I94 -> MÜK.298 Ç YE GÖRE İLGİLİ GEÇİCİ VERGİ DÖNEMİNE AİT YDO İLE YD YAPILABİLİR | K81: ='DOLDURULMASI GEREKEN TABLO'!J94 -> 0 | L81: ='DOLDURULMASI GEREKEN TABLO'!K94 -> 0 | M81: ='DOLDURULMASI GEREKEN TABLO'!L94 -> 0 | N81: 46024 | O81: 0 | P81: 0 | Q81: 0 | R81: 0 | S81: 0 | T81: 0 | U81: 0 | W81: =IF(OR(D81="250- Arazi ve Arsalar",YEAR(H81)=2026),0,TRUNC('DOLDURULMASI GEREKEN TABLO'!N94,4)) -> 0.1151 | X81: 1 | Y81: 0 | Z81: 0 | AA81: 0 | AB81: 0 | AC81: 0 | AD81: 0 | AF81: 00:00:00 | AG81: ='DOLDURULMASI GEREKEN TABLO'!M94 -> 2026-06-30 | AH81: 0 | AI81: 0 | AJ81: 46204 | AK81: 127 | AL81: 126.5 | AM81: 127 | AN81: 0 | AO81: =Z81 -> 0 | AP81: 0 | AQ81: =IF(AND(AM81=F81, AH81="AZALAN BAKİYELERE GÖRE AMORTİSMAN",AI81="EVET"),(DDB(Y81,0,IF(F81<=4,4,F81),1,2)/12)*(12-(12-MONTH(H81)+1)),IF(AND(AM81=F81,AH81="NORMAL AMORTİSMAN",AI81="EVET"),(Y81*(G81*2)/12)*(12-(12-MONTH(H81)+1)))) -> FALSE | AR81: =MAX( AP81-AQ81,0) -> 0
B82: 75 | C82: ='DOLDURULMASI GEREKEN TABLO'!D95 -> 0 | D82: ='DOLDURULMASI GEREKEN TABLO'!E95 -> 0 | E82: ='DOLDURULMASI GEREKEN TABLO'!F95 -> 0 | F82: ='DOLDURULMASI GEREKEN TABLO'!G95 -> 0 | G82: 0 | H82: ='DOLDURULMASI GEREKEN TABLO'!H95 -> 00:00:00 | I82: 2026-01-01 | J82: ='DOLDURULMASI GEREKEN TABLO'!I95 -> MÜK.298 Ç YE GÖRE İLGİLİ GEÇİCİ VERGİ DÖNEMİNE AİT YDO İLE YD YAPILABİLİR | K82: ='DOLDURULMASI GEREKEN TABLO'!J95 -> 0 | L82: ='DOLDURULMASI GEREKEN TABLO'!K95 -> 0 | M82: ='DOLDURULMASI GEREKEN TABLO'!L95 -> 0 | N82: 46024 | O82: 0 | P82: 0 | Q82: 0 | R82: 0 | S82: 0 | T82: 0 | U82: 0 | W82: =IF(OR(D82="250- Arazi ve Arsalar",YEAR(H82)=2026),0,TRUNC('DOLDURULMASI GEREKEN TABLO'!N95,4)) -> 0.1151 | X82: 1 | Y82: 0 | Z82: 0 | AA82: 0 | AB82: 0 | AC82: 0 | AD82: 0 | AF82: 00:00:00 | AG82: ='DOLDURULMASI GEREKEN TABLO'!M95 -> 2026-06-30 | AH82: 0 | AI82: 0 | AJ82: 46204 | AK82: 127 | AL82: 126.5 | AM82: 127 | AN82: 0 | AO82: 0 | AP82: 0 | AQ82: FALSE | AR82: 0
B83: 76 | C83: ='DOLDURULMASI GEREKEN TABLO'!D96 -> 0 | D83: ='DOLDURULMASI GEREKEN TABLO'!E96 -> 0 | E83: ='DOLDURULMASI GEREKEN TABLO'!F96 -> 0 | F83: ='DOLDURULMASI GEREKEN TABLO'!G96 -> 0 | G83: 0 | H83: ='DOLDURULMASI GEREKEN TABLO'!H96 -> 00:00:00 | I83: 2026-01-01 | J83: ='DOLDURULMASI GEREKEN TABLO'!I96 -> MÜK.298 Ç YE GÖRE İLGİLİ GEÇİCİ VERGİ DÖNEMİNE AİT YDO İLE YD YAPILABİLİR | K83: ='DOLDURULMASI GEREKEN TABLO'!J96 -> 0 | L83: ='DOLDURULMASI GEREKEN TABLO'!K96 -> 0 | M83: ='DOLDURULMASI GEREKEN TABLO'!L96 -> 0 | N83: 46024 | O83: 0 | P83: 0 | Q83: 0 | R83: 0 | S83: 0 | T83: 0 | U83: 0 | W83: =IF(OR(D83="250- Arazi ve Arsalar",YEAR(H83)=2026),0,TRUNC('DOLDURULMASI GEREKEN TABLO'!N96,4)) -> 0.1151 | X83: 1 | Y83: 0 | Z83: 0 | AA83: 0 | AB83: 0 | AC83: 0 | AD83: 0 | AF83: 00:00:00 | AG83: ='DOLDURULMASI GEREKEN TABLO'!M96 -> 2026-06-30 | AH83: 0 | AI83: 0 | AJ83: 46204 | AK83: 127 | AL83: 126.5 | AM83: 127 | AN83: 0 | AO83: 0 | AP83: 0 | AQ83: FALSE | AR83: 0
B84: 77 | C84: ='DOLDURULMASI GEREKEN TABLO'!D97 -> 0 | D84: ='DOLDURULMASI GEREKEN TABLO'!E97 -> 0 | E84: ='DOLDURULMASI GEREKEN TABLO'!F97 -> 0 | F84: ='DOLDURULMASI GEREKEN TABLO'!G97 -> 0 | G84: 0 | H84: ='DOLDURULMASI GEREKEN TABLO'!H97 -> 00:00:00 | I84: 2026-01-01 | J84: ='DOLDURULMASI GEREKEN TABLO'!I97 -> MÜK.298 Ç YE GÖRE İLGİLİ GEÇİCİ VERGİ DÖNEMİNE AİT YDO İLE YD YAPILABİLİR | K84: ='DOLDURULMASI GEREKEN TABLO'!J97 -> 0 | L84: ='DOLDURULMASI GEREKEN TABLO'!K97 -> 0 | M84: ='DOLDURULMASI GEREKEN TABLO'!L97 -> 0 | N84: 46024 | O84: 0 | P84: 0 | Q84: 0 | R84: 0 | S84: 0 | T84: 0 | U84: 0 | W84: =IF(OR(D84="250- Arazi ve Arsalar",YEAR(H84)=2026),0,TRUNC('DOLDURULMASI GEREKEN TABLO'!N97,4)) -> 0.1151 | X84: 1 | Y84: 0 | Z84: 0 | AA84: 0 | AB84: 0 | AC84: 0 | AD84: 0 | AF84: 00:00:00 | AG84: ='DOLDURULMASI GEREKEN TABLO'!M97 -> 2026-06-30 | AH84: 0 | AI84: 0 | AJ84: 46204 | AK84: 127 | AL84: 126.5 | AM84: 127 | AN84: 0 | AO84: 0 | AP84: 0 | AQ84: FALSE | AR84: 0
B85: 78 | C85: ='DOLDURULMASI GEREKEN TABLO'!D98 -> 0 | D85: ='DOLDURULMASI GEREKEN TABLO'!E98 -> 0 | E85: ='DOLDURULMASI GEREKEN TABLO'!F98 -> 0 | F85: ='DOLDURULMASI GEREKEN TABLO'!G98 -> 0 | G85: 0 | H85: ='DOLDURULMASI GEREKEN TABLO'!H98 -> 00:00:00 | I85: 2026-01-01 | J85: ='DOLDURULMASI GEREKEN TABLO'!I98 -> MÜK.298 Ç YE GÖRE İLGİLİ GEÇİCİ VERGİ DÖNEMİNE AİT YDO İLE YD YAPILABİLİR | K85: ='DOLDURULMASI GEREKEN TABLO'!J98 -> 0 | L85: ='DOLDURULMASI GEREKEN TABLO'!K98 -> 0 | M85: ='DOLDURULMASI GEREKEN TABLO'!L98 -> 0 | N85: 46024 | O85: 0 | P85: 0 | Q85: 0 | R85: 0 | S85: 0 | T85: 0 | U85: 0 | W85: =IF(OR(D85="250- Arazi ve Arsalar",YEAR(H85)=2026),0,TRUNC('DOLDURULMASI GEREKEN TABLO'!N98,4)) -> 0.1151 | X85: 1 | Y85: 0 | Z85: 0 | AA85: 0 | AB85: 0 | AC85: 0 | AD85: 0 | AF85: 00:00:00 | AG85: ='DOLDURULMASI GEREKEN TABLO'!M98 -> 2026-06-30 | AH85: 0 | AI85: 0 | AJ85: 46204 | AK85: 127 | AL85: 126.5 | AM85: 127 | AN85: 0 | AO85: 0 | AP85: 0 | AQ85: FALSE | AR85: 0
B86: 79 | C86: ='DOLDURULMASI GEREKEN TABLO'!D99 -> 0 | D86: ='DOLDURULMASI GEREKEN TABLO'!E99 -> 0 | E86: ='DOLDURULMASI GEREKEN TABLO'!F99 -> 0 | F86: ='DOLDURULMASI GEREKEN TABLO'!G99 -> 0 | G86: 0 | H86: ='DOLDURULMASI GEREKEN TABLO'!H99 -> 00:00:00 | I86: 2026-01-01 | J86: ='DOLDURULMASI GEREKEN TABLO'!I99 -> MÜK.298 Ç YE GÖRE İLGİLİ GEÇİCİ VERGİ DÖNEMİNE AİT YDO İLE YD YAPILABİLİR | K86: ='DOLDURULMASI GEREKEN TABLO'!J99 -> 0 | L86: ='DOLDURULMASI GEREKEN TABLO'!K99 -> 0 | M86: ='DOLDURULMASI GEREKEN TABLO'!L99 -> 0 | N86: 46024 | O86: 0 | P86: 0 | Q86: 0 | R86: 0 | S86: 0 | T86: 0 | U86: 0 | W86: =IF(OR(D86="250- Arazi ve Arsalar",YEAR(H86)=2026),0,TRUNC('DOLDURULMASI GEREKEN TABLO'!N99,4)) -> 0.1151 | X86: 1 | Y86: 0 | Z86: 0 | AA86: 0 | AB86: 0 | AC86: 0 | AD86: 0 | AF86: 00:00:00 | AG86: ='DOLDURULMASI GEREKEN TABLO'!M99 -> 2026-06-30 | AH86: 0 | AI86: 0 | AJ86: 46204 | AK86: 127 | AL86: 126.5 | AM86: 127 | AN86: 0 | AO86: 0 | AP86: 0 | AQ86: FALSE | AR86: 0
B87: 80 | C87: ='DOLDURULMASI GEREKEN TABLO'!D100 -> 0 | D87: ='DOLDURULMASI GEREKEN TABLO'!E100 -> 0 | E87: ='DOLDURULMASI GEREKEN TABLO'!F100 -> 0 | F87: ='DOLDURULMASI GEREKEN TABLO'!G100 -> 0 | G87: 0 | H87: ='DOLDURULMASI GEREKEN TABLO'!H100 -> 00:00:00 | I87: 2026-01-01 | J87: ='DOLDURULMASI GEREKEN TABLO'!I100 -> MÜK.298 Ç YE GÖRE İLGİLİ GEÇİCİ VERGİ DÖNEMİNE AİT YDO İLE YD YAPILABİLİR | K87: ='DOLDURULMASI GEREKEN TABLO'!J100 -> 0 | L87: ='DOLDURULMASI GEREKEN TABLO'!K100 -> 0 | M87: ='DOLDURULMASI GEREKEN TABLO'!L100 -> 0 | N87: 46024 | O87: 0 | P87: 0 | Q87: 0 | R87: 0 | S87: 0 | T87: 0 | U87: 0 | W87: =IF(OR(D87="250- Arazi ve Arsalar",YEAR(H87)=2026),0,TRUNC('DOLDURULMASI GEREKEN TABLO'!N100,4)) -> 0.1151 | X87: 1 | Y87: 0 | Z87: 0 | AA87: 0 | AB87: 0 | AC87: 0 | AD87: 0 | AF87: 00:00:00 | AG87: ='DOLDURULMASI GEREKEN TABLO'!M100 -> 2026-06-30 | AH87: 0 | AI87: 0 | AJ87: 46204 | AK87: 127 | AL87: 126.5 | AM87: 127 | AN87: 0 | AO87: 0 | AP87: 0 | AQ87: FALSE | AR87: 0
B88: 81 | C88: ='DOLDURULMASI GEREKEN TABLO'!D101 -> 0 | D88: ='DOLDURULMASI GEREKEN TABLO'!E101 -> 0 | E88: ='DOLDURULMASI GEREKEN TABLO'!F101 -> 0 | F88: ='DOLDURULMASI GEREKEN TABLO'!G101 -> 0 | G88: 0 | H88: ='DOLDURULMASI GEREKEN TABLO'!H101 -> 00:00:00 | I88: 2026-01-01 | J88: ='DOLDURULMASI GEREKEN TABLO'!I101 -> MÜK.298 Ç YE GÖRE İLGİLİ GEÇİCİ VERGİ DÖNEMİNE AİT YDO İLE YD YAPILABİLİR | K88: ='DOLDURULMASI GEREKEN TABLO'!J101 -> 0 | L88: ='DOLDURULMASI GEREKEN TABLO'!K101 -> 0 | M88: ='DOLDURULMASI GEREKEN TABLO'!L101 -> 0 | N88: 46024 | O88: 0 | P88: 0 | Q88: 0 | R88: 0 | S88: 0 | T88: 0 | U88: 0 | W88: =IF(OR(D88="250- Arazi ve Arsalar",YEAR(H88)=2026),0,TRUNC('DOLDURULMASI GEREKEN TABLO'!N101,4)) -> 0.1151 | X88: 1 | Y88: 0 | Z88: 0 | AA88: 0 | AB88: 0 | AC88: 0 | AD88: 0 | AF88: 00:00:00 | AG88: ='DOLDURULMASI GEREKEN TABLO'!M101 -> 2026-06-30 | AH88: 0 | AI88: 0 | AJ88: 46204 | AK88: 127 | AL88: 126.5 | AM88: 127 | AN88: 0 | AO88: 0 | AP88: 0 | AQ88: FALSE | AR88: 0
B89: 82 | C89: ='DOLDURULMASI GEREKEN TABLO'!D102 -> 0 | D89: ='DOLDURULMASI GEREKEN TABLO'!E102 -> 0 | E89: ='DOLDURULMASI GEREKEN TABLO'!F102 -> 0 | F89: ='DOLDURULMASI GEREKEN TABLO'!G102 -> 0 | G89: 0 | H89: ='DOLDURULMASI GEREKEN TABLO'!H102 -> 00:00:00 | I89: 2026-01-01 | J89: ='DOLDURULMASI GEREKEN TABLO'!I102 -> MÜK.298 Ç YE GÖRE İLGİLİ GEÇİCİ VERGİ DÖNEMİNE AİT YDO İLE YD YAPILABİLİR | K89: ='DOLDURULMASI GEREKEN TABLO'!J102 -> 0 | L89: ='DOLDURULMASI GEREKEN TABLO'!K102 -> 0 | M89: ='DOLDURULMASI GEREKEN TABLO'!L102 -> 0 | N89: 46024 | O89: 0 | P89: 0 | Q89: 0 | R89: 0 | S89: 0 | T89: 0 | U89: 0 | W89: =IF(OR(D89="250- Arazi ve Arsalar",YEAR(H89)=2026),0,TRUNC('DOLDURULMASI GEREKEN TABLO'!N102,4)) -> 0.1151 | X89: 1 | Y89: 0 | Z89: 0 | AA89: 0 | AB89: 0 | AC89: 0 | AD89: 0 | AF89: 00:00:00 | AG89: ='DOLDURULMASI GEREKEN TABLO'!M102 -> 2026-06-30 | AH89: 0 | AI89: 0 | AJ89: 46204 | AK89: 127 | AL89: 126.5 | AM89: 127 | AN89: 0 | AO89: 0 | AP89: 0 | AQ89: FALSE | AR89: 0
B90: 83 | C90: ='DOLDURULMASI GEREKEN TABLO'!D103 -> 0 | D90: ='DOLDURULMASI GEREKEN TABLO'!E103 -> 0 | E90: ='DOLDURULMASI GEREKEN TABLO'!F103 -> 0 | F90: ='DOLDURULMASI GEREKEN TABLO'!G103 -> 0 | G90: 0 | H90: ='DOLDURULMASI GEREKEN TABLO'!H103 -> 00:00:00 | I90: 2026-01-01 | J90: ='DOLDURULMASI GEREKEN TABLO'!I103 -> MÜK.298 Ç YE GÖRE İLGİLİ GEÇİCİ VERGİ DÖNEMİNE AİT YDO İLE YD YAPILABİLİR | K90: ='DOLDURULMASI GEREKEN TABLO'!J103 -> 0 | L90: ='DOLDURULMASI GEREKEN TABLO'!K103 -> 0 | M90: ='DOLDURULMASI GEREKEN TABLO'!L103 -> 0 | N90: 46024 | O90: 0 | P90: 0 | Q90: 0 | R90: 0 | S90: 0 | T90: 0 | U90: 0 | W90: =IF(OR(D90="250- Arazi ve Arsalar",YEAR(H90)=2026),0,TRUNC('DOLDURULMASI GEREKEN TABLO'!N103,4)) -> 0.1151 | X90: 1 | Y90: 0 | Z90: 0 | AA90: 0 | AB90: 0 | AC90: 0 | AD90: 0 | AF90: 00:00:00 | AG90: ='DOLDURULMASI GEREKEN TABLO'!M103 -> 2026-06-30 | AH90: 0 | AI90: 0 | AJ90: 46204 | AK90: 127 | AL90: 126.5 | AM90: 127 | AN90: 0 | AO90: 0 | AP90: 0 | AQ90: FALSE | AR90: 0
B91: 84 | C91: ='DOLDURULMASI GEREKEN TABLO'!D104 -> 0 | D91: ='DOLDURULMASI GEREKEN TABLO'!E104 -> 0 | E91: ='DOLDURULMASI GEREKEN TABLO'!F104 -> 0 | F91: ='DOLDURULMASI GEREKEN TABLO'!G104 -> 0 | G91: 0 | H91: ='DOLDURULMASI GEREKEN TABLO'!H104 -> 00:00:00 | I91: 2026-01-01 | J91: ='DOLDURULMASI GEREKEN TABLO'!I104 -> MÜK.298 Ç YE GÖRE İLGİLİ GEÇİCİ VERGİ DÖNEMİNE AİT YDO İLE YD YAPILABİLİR | K91: ='DOLDURULMASI GEREKEN TABLO'!J104 -> 0 | L91: ='DOLDURULMASI GEREKEN TABLO'!K104 -> 0 | M91: ='DOLDURULMASI GEREKEN TABLO'!L104 -> 0 | N91: 46024 | O91: 0 | P91: 0 | Q91: 0 | R91: 0 | S91: 0 | T91: 0 | U91: 0 | W91: =IF(OR(D91="250- Arazi ve Arsalar",YEAR(H91)=2026),0,TRUNC('DOLDURULMASI GEREKEN TABLO'!N104,4)) -> 0.1151 | X91: 1 | Y91: 0 | Z91: 0 | AA91: 0 | AB91: 0 | AC91: 0 | AD91: 0 | AF91: 00:00:00 | AG91: ='DOLDURULMASI GEREKEN TABLO'!M104 -> 2026-06-30 | AH91: 0 | AI91: 0 | AJ91: 46204 | AK91: 127 | AL91: 126.5 | AM91: 127 | AN91: 0 | AO91: 0 | AP91: 0 | AQ91: FALSE | AR91: 0
B92: 85 | C92: ='DOLDURULMASI GEREKEN TABLO'!D105 -> 0 | D92: ='DOLDURULMASI GEREKEN TABLO'!E105 -> 0 | E92: ='DOLDURULMASI GEREKEN TABLO'!F105 -> 0 | F92: ='DOLDURULMASI GEREKEN TABLO'!G105 -> 0 | G92: 0 | H92: ='DOLDURULMASI GEREKEN TABLO'!H105 -> 00:00:00 | I92: 2026-01-01 | J92: ='DOLDURULMASI GEREKEN TABLO'!I105 -> MÜK.298 Ç YE GÖRE İLGİLİ GEÇİCİ VERGİ DÖNEMİNE AİT YDO İLE YD YAPILABİLİR | K92: ='DOLDURULMASI GEREKEN TABLO'!J105 -> 0 | L92: ='DOLDURULMASI GEREKEN TABLO'!K105 -> 0 | M92: ='DOLDURULMASI GEREKEN TABLO'!L105 -> 0 | N92: 46024 | O92: 0 | P92: 0 | Q92: 0 | R92: 0 | S92: 0 | T92: 0 | U92: 0 | W92: =IF(OR(D92="250- Arazi ve Arsalar",YEAR(H92)=2026),0,TRUNC('DOLDURULMASI GEREKEN TABLO'!N105,4)) -> 0.1151 | X92: 1 | Y92: 0 | Z92: 0 | AA92: 0 | AB92: 0 | AC92: 0 | AD92: 0 | AF92: 00:00:00 | AG92: ='DOLDURULMASI GEREKEN TABLO'!M105 -> 2026-06-30 | AH92: 0 | AI92: 0 | AJ92: 46204 | AK92: 127 | AL92: 126.5 | AM92: 127 | AN92: 0 | AO92: 0 | AP92: 0 | AQ92: FALSE | AR92: 0
B93: 86 | C93: ='DOLDURULMASI GEREKEN TABLO'!D106 -> 0 | D93: ='DOLDURULMASI GEREKEN TABLO'!E106 -> 0 | E93: ='DOLDURULMASI GEREKEN TABLO'!F106 -> 0 | F93: ='DOLDURULMASI GEREKEN TABLO'!G106 -> 0 | G93: 0 | H93: ='DOLDURULMASI GEREKEN TABLO'!H106 -> 00:00:00 | I93: 2026-01-01 | J93: ='DOLDURULMASI GEREKEN TABLO'!I106 -> MÜK.298 Ç YE GÖRE İLGİLİ GEÇİCİ VERGİ DÖNEMİNE AİT YDO İLE YD YAPILABİLİR | K93: ='DOLDURULMASI GEREKEN TABLO'!J106 -> 0 | L93: ='DOLDURULMASI GEREKEN TABLO'!K106 -> 0 | M93: ='DOLDURULMASI GEREKEN TABLO'!L106 -> 0 | N93: 46024 | O93: 0 | P93: 0 | Q93: 0 | R93: 0 | S93: 0 | T93: 0 | U93: 0 | W93: =IF(OR(D93="250- Arazi ve Arsalar",YEAR(H93)=2026),0,TRUNC('DOLDURULMASI GEREKEN TABLO'!N106,4)) -> 0.1151 | X93: 1 | Y93: 0 | Z93: 0 | AA93: 0 | AB93: 0 | AC93: 0 | AD93: 0 | AF93: 00:00:00 | AG93: ='DOLDURULMASI GEREKEN TABLO'!M106 -> 2026-06-30 | AH93: 0 | AI93: 0 | AJ93: 46204 | AK93: 127 | AL93: 126.5 | AM93: 127 | AN93: 0 | AO93: 0 | AP93: 0 | AQ93: FALSE | AR93: 0
B94: 87 | C94: ='DOLDURULMASI GEREKEN TABLO'!D107 -> 0 | D94: ='DOLDURULMASI GEREKEN TABLO'!E107 -> 0 | E94: ='DOLDURULMASI GEREKEN TABLO'!F107 -> 0 | F94: ='DOLDURULMASI GEREKEN TABLO'!G107 -> 0 | G94: 0 | H94: ='DOLDURULMASI GEREKEN TABLO'!H107 -> 00:00:00 | I94: 2026-01-01 | J94: ='DOLDURULMASI GEREKEN TABLO'!I107 -> MÜK.298 Ç YE GÖRE İLGİLİ GEÇİCİ VERGİ DÖNEMİNE AİT YDO İLE YD YAPILABİLİR | K94: ='DOLDURULMASI GEREKEN TABLO'!J107 -> 0 | L94: ='DOLDURULMASI GEREKEN TABLO'!K107 -> 0 | M94: ='DOLDURULMASI GEREKEN TABLO'!L107 -> 0 | N94: 46024 | O94: 0 | P94: 0 | Q94: 0 | R94: 0 | S94: 0 | T94: 0 | U94: 0 | W94: =IF(OR(D94="250- Arazi ve Arsalar",YEAR(H94)=2026),0,TRUNC('DOLDURULMASI GEREKEN TABLO'!N107,4)) -> 0.1151 | X94: 1 | Y94: 0 | Z94: 0 | AA94: 0 | AB94: 0 | AC94: 0 | AD94: 0 | AF94: 00:00:00 | AG94: ='DOLDURULMASI GEREKEN TABLO'!M107 -> 2026-06-30 | AH94: 0 | AI94: 0 | AJ94: 46204 | AK94: 127 | AL94: 126.5 | AM94: 127 | AN94: 0 | AO94: 0 | AP94: 0 | AQ94: FALSE | AR94: 0
B95: 88 | C95: ='DOLDURULMASI GEREKEN TABLO'!D108 -> 0 | D95: ='DOLDURULMASI GEREKEN TABLO'!E108 -> 0 | E95: ='DOLDURULMASI GEREKEN TABLO'!F108 -> 0 | F95: ='DOLDURULMASI GEREKEN TABLO'!G108 -> 0 | G95: 0 | H95: ='DOLDURULMASI GEREKEN TABLO'!H108 -> 00:00:00 | I95: 2026-01-01 | J95: ='DOLDURULMASI GEREKEN TABLO'!I108 -> MÜK.298 Ç YE GÖRE İLGİLİ GEÇİCİ VERGİ DÖNEMİNE AİT YDO İLE YD YAPILABİLİR | K95: ='DOLDURULMASI GEREKEN TABLO'!J108 -> 0 | L95: ='DOLDURULMASI GEREKEN TABLO'!K108 -> 0 | M95: ='DOLDURULMASI GEREKEN TABLO'!L108 -> 0 | N95: 46024 | O95: 0 | P95: 0 | Q95: 0 | R95: 0 | S95: 0 | T95: 0 | U95: 0 | W95: =IF(OR(D95="250- Arazi ve Arsalar",YEAR(H95)=2026),0,TRUNC('DOLDURULMASI GEREKEN TABLO'!N108,4)) -> 0.1151 | X95: 1 | Y95: 0 | Z95: 0 | AA95: 0 | AB95: 0 | AC95: 0 | AD95: 0 | AF95: 00:00:00 | AG95: ='DOLDURULMASI GEREKEN TABLO'!M108 -> 2026-06-30 | AH95: 0 | AI95: 0 | AJ95: 46204 | AK95: 127 | AL95: 126.5 | AM95: 127 | AN95: 0 | AO95: 0 | AP95: 0 | AQ95: FALSE | AR95: 0
B96: 89 | C96: ='DOLDURULMASI GEREKEN TABLO'!D109 -> 0 | D96: ='DOLDURULMASI GEREKEN TABLO'!E109 -> 0 | E96: ='DOLDURULMASI GEREKEN TABLO'!F109 -> 0 | F96: ='DOLDURULMASI GEREKEN TABLO'!G109 -> 0 | G96: 0 | H96: ='DOLDURULMASI GEREKEN TABLO'!H109 -> 00:00:00 | I96: 2026-01-01 | J96: ='DOLDURULMASI GEREKEN TABLO'!I109 -> MÜK.298 Ç YE GÖRE İLGİLİ GEÇİCİ VERGİ DÖNEMİNE AİT YDO İLE YD YAPILABİLİR | K96: ='DOLDURULMASI GEREKEN TABLO'!J109 -> 0 | L96: ='DOLDURULMASI GEREKEN TABLO'!K109 -> 0 | M96: ='DOLDURULMASI GEREKEN TABLO'!L109 -> 0 | N96: 46024 | O96: 0 | P96: 0 | Q96: 0 | R96: 0 | S96: 0 | T96: 0 | U96: 0 | W96: =IF(OR(D96="250- Arazi ve Arsalar",YEAR(H96)=2026),0,TRUNC('DOLDURULMASI GEREKEN TABLO'!N109,4)) -> 0.1151 | X96: 1 | Y96: 0 | Z96: 0 | AA96: 0 | AB96: 0 | AC96: 0 | AD96: 0 | AF96: 00:00:00 | AG96: ='DOLDURULMASI GEREKEN TABLO'!M109 -> 2026-06-30 | AH96: 0 | AI96: 0 | AJ96: 46204 | AK96: 127 | AL96: 126.5 | AM96: 127 | AN96: 0 | AO96: 0 | AP96: 0 | AQ96: FALSE | AR96: 0
B97: 90 | C97: ='DOLDURULMASI GEREKEN TABLO'!D110 -> 0 | D97: ='DOLDURULMASI GEREKEN TABLO'!E110 -> 0 | E97: ='DOLDURULMASI GEREKEN TABLO'!F110 -> 0 | F97: ='DOLDURULMASI GEREKEN TABLO'!G110 -> 0 | G97: 0 | H97: ='DOLDURULMASI GEREKEN TABLO'!H110 -> 00:00:00 | I97: 2026-01-01 | J97: ='DOLDURULMASI GEREKEN TABLO'!I110 -> MÜK.298 Ç YE GÖRE İLGİLİ GEÇİCİ VERGİ DÖNEMİNE AİT YDO İLE YD YAPILABİLİR | K97: ='DOLDURULMASI GEREKEN TABLO'!J110 -> 0 | L97: ='DOLDURULMASI GEREKEN TABLO'!K110 -> 0 | M97: ='DOLDURULMASI GEREKEN TABLO'!L110 -> 0 | N97: 46024 | O97: 0 | P97: 0 | Q97: 0 | R97: 0 | S97: 0 | T97: 0 | U97: 0 | W97: =IF(OR(D97="250- Arazi ve Arsalar",YEAR(H97)=2026),0,TRUNC('DOLDURULMASI GEREKEN TABLO'!N110,4)) -> 0.1151 | X97: 1 | Y97: 0 | Z97: 0 | AA97: 0 | AB97: 0 | AC97: 0 | AD97: 0 | AF97: 00:00:00 | AG97: ='DOLDURULMASI GEREKEN TABLO'!M110 -> 2026-06-30 | AH97: 0 | AI97: 0 | AJ97: 46204 | AK97: 127 | AL97: 126.5 | AM97: 127 | AN97: 0 | AO97: 0 | AP97: 0 | AQ97: FALSE | AR97: 0
B98: 91 | C98: ='DOLDURULMASI GEREKEN TABLO'!D111 -> 0 | D98: ='DOLDURULMASI GEREKEN TABLO'!E111 -> 0 | E98: ='DOLDURULMASI GEREKEN TABLO'!F111 -> 0 | F98: ='DOLDURULMASI GEREKEN TABLO'!G111 -> 0 | G98: 0 | H98: ='DOLDURULMASI GEREKEN TABLO'!H111 -> 00:00:00 | I98: 2026-01-01 | J98: ='DOLDURULMASI GEREKEN TABLO'!I111 -> MÜK.298 Ç YE GÖRE İLGİLİ GEÇİCİ VERGİ DÖNEMİNE AİT YDO İLE YD YAPILABİLİR | K98: ='DOLDURULMASI GEREKEN TABLO'!J111 -> 0 | L98: ='DOLDURULMASI GEREKEN TABLO'!K111 -> 0 | M98: ='DOLDURULMASI GEREKEN TABLO'!L111 -> 0 | N98: 46024 | O98: 0 | P98: 0 | Q98: 0 | R98: 0 | S98: 0 | T98: 0 | U98: 0 | W98: =IF(OR(D98="250- Arazi ve Arsalar",YEAR(H98)=2026),0,TRUNC('DOLDURULMASI GEREKEN TABLO'!N111,4)) -> 0.1151 | X98: 1 | Y98: 0 | Z98: 0 | AA98: 0 | AB98: 0 | AC98: 0 | AD98: 0 | AF98: 00:00:00 | AG98: ='DOLDURULMASI GEREKEN TABLO'!M111 -> 2026-06-30 | AH98: 0 | AI98: 0 | AJ98: 46204 | AK98: 127 | AL98: 126.5 | AM98: 127 | AN98: 0 | AO98: 0 | AP98: 0 | AQ98: FALSE | AR98: 0
B99: 92 | C99: ='DOLDURULMASI GEREKEN TABLO'!D112 -> 0 | D99: ='DOLDURULMASI GEREKEN TABLO'!E112 -> 0 | E99: ='DOLDURULMASI GEREKEN TABLO'!F112 -> 0 | F99: ='DOLDURULMASI GEREKEN TABLO'!G112 -> 0 | G99: 0 | H99: ='DOLDURULMASI GEREKEN TABLO'!H112 -> 00:00:00 | I99: 2026-01-01 | J99: ='DOLDURULMASI GEREKEN TABLO'!I112 -> MÜK.298 Ç YE GÖRE İLGİLİ GEÇİCİ VERGİ DÖNEMİNE AİT YDO İLE YD YAPILABİLİR | K99: ='DOLDURULMASI GEREKEN TABLO'!J112 -> 0 | L99: ='DOLDURULMASI GEREKEN TABLO'!K112 -> 0 | M99: ='DOLDURULMASI GEREKEN TABLO'!L112 -> 0 | N99: 46024 | O99: 0 | P99: 0 | Q99: 0 | R99: 0 | S99: 0 | T99: 0 | U99: 0 | W99: =IF(OR(D99="250- Arazi ve Arsalar",YEAR(H99)=2026),0,TRUNC('DOLDURULMASI GEREKEN TABLO'!N112,4)) -> 0.1151 | X99: 1 | Y99: 0 | Z99: 0 | AA99: 0 | AB99: 0 | AC99: 0 | AD99: 0 | AF99: 00:00:00 | AG99: ='DOLDURULMASI GEREKEN TABLO'!M112 -> 2026-06-30 | AH99: 0 | AI99: 0 | AJ99: 46204 | AK99: 127 | AL99: 126.5 | AM99: 127 | AN99: 0 | AO99: 0 | AP99: 0 | AQ99: FALSE | AR99: 0
B100: 93 | C100: ='DOLDURULMASI GEREKEN TABLO'!D113 -> 0 | D100: ='DOLDURULMASI GEREKEN TABLO'!E113 -> 0 | E100: ='DOLDURULMASI GEREKEN TABLO'!F113 -> 0 | F100: ='DOLDURULMASI GEREKEN TABLO'!G113 -> 0 | G100: 0 | H100: ='DOLDURULMASI GEREKEN TABLO'!H113 -> 00:00:00 | I100: 2026-01-01 | J100: ='DOLDURULMASI GEREKEN TABLO'!I113 -> MÜK.298 Ç YE GÖRE İLGİLİ GEÇİCİ VERGİ DÖNEMİNE AİT YDO İLE YD YAPILABİLİR | K100: ='DOLDURULMASI GEREKEN TABLO'!J113 -> 0 | L100: ='DOLDURULMASI GEREKEN TABLO'!K113 -> 0 | M100: ='DOLDURULMASI GEREKEN TABLO'!L113 -> 0 | N100: 46024 | O100: 0 | P100: 0 | Q100: 0 | R100: 0 | S100: 0 | T100: 0 | U100: 0 | W100: =IF(OR(D100="250- Arazi ve Arsalar",YEAR(H100)=2026),0,TRUNC('DOLDURULMASI GEREKEN TABLO'!N113,4)) -> 0.1151 | X100: 1 | Y100: 0 | Z100: 0 | AA100: 0 | AB100: 0 | AC100: 0 | AD100: 0 | AF100: 00:00:00 | AG100: ='DOLDURULMASI GEREKEN TABLO'!M113 -> 2026-06-30 | AH100: 0 | AI100: 0 | AJ100: 46204 | AK100: 127 | AL100: 126.5 | AM100: 127 | AN100: 0 | AO100: 0 | AP100: 0 | AQ100: FALSE | AR100: 0
B101: 94 | C101: ='DOLDURULMASI GEREKEN TABLO'!D114 -> 0 | D101: ='DOLDURULMASI GEREKEN TABLO'!E114 -> 0 | E101: ='DOLDURULMASI GEREKEN TABLO'!F114 -> 0 | F101: ='DOLDURULMASI GEREKEN TABLO'!G114 -> 0 | G101: 0 | H101: ='DOLDURULMASI GEREKEN TABLO'!H114 -> 00:00:00 | I101: 2026-01-01 | J101: ='DOLDURULMASI GEREKEN TABLO'!I114 -> MÜK.298 Ç YE GÖRE İLGİLİ GEÇİCİ VERGİ DÖNEMİNE AİT YDO İLE YD YAPILABİLİR | K101: ='DOLDURULMASI GEREKEN TABLO'!J114 -> 0 | L101: ='DOLDURULMASI GEREKEN TABLO'!K114 -> 0 | M101: ='DOLDURULMASI GEREKEN TABLO'!L114 -> 0 | N101: 46024 | O101: 0 | P101: 0 | Q101: 0 | R101: 0 | S101: 0 | T101: 0 | U101: 0 | W101: =IF(OR(D101="250- Arazi ve Arsalar",YEAR(H101)=2026),0,TRUNC('DOLDURULMASI GEREKEN TABLO'!N114,4)) -> 0.1151 | X101: 1 | Y101: 0 | Z101: 0 | AA101: 0 | AB101: 0 | AC101: 0 | AD101: 0 | AF101: 00:00:00 | AG101: ='DOLDURULMASI GEREKEN TABLO'!M114 -> 2026-06-30 | AH101: 0 | AI101: 0 | AJ101: 46204 | AK101: 127 | AL101: 126.5 | AM101: 127 | AN101: 0 | AO101: 0 | AP101: 0 | AQ101: FALSE | AR101: 0
B102: 95 | C102: ='DOLDURULMASI GEREKEN TABLO'!D115 -> 0 | D102: ='DOLDURULMASI GEREKEN TABLO'!E115 -> 0 | E102: ='DOLDURULMASI GEREKEN TABLO'!F115 -> 0 | F102: ='DOLDURULMASI GEREKEN TABLO'!G115 -> 0 | G102: 0 | H102: ='DOLDURULMASI GEREKEN TABLO'!H115 -> 00:00:00 | I102: 2026-01-01 | J102: ='DOLDURULMASI GEREKEN TABLO'!I115 -> MÜK.298 Ç YE GÖRE İLGİLİ GEÇİCİ VERGİ DÖNEMİNE AİT YDO İLE YD YAPILABİLİR | K102: ='DOLDURULMASI GEREKEN TABLO'!J115 -> 0 | L102: ='DOLDURULMASI GEREKEN TABLO'!K115 -> 0 | M102: ='DOLDURULMASI GEREKEN TABLO'!L115 -> 0 | N102: 46024 | O102: 0 | P102: 0 | Q102: 0 | R102: 0 | S102: 0 | T102: 0 | U102: 0 | W102: =IF(OR(D102="250- Arazi ve Arsalar",YEAR(H102)=2026),0,TRUNC('DOLDURULMASI GEREKEN TABLO'!N115,4)) -> 0.1151 | X102: 1 | Y102: 0 | Z102: 0 | AA102: 0 | AB102: 0 | AC102: 0 | AD102: 0 | AF102: 00:00:00 | AG102: ='DOLDURULMASI GEREKEN TABLO'!M115 -> 2026-06-30 | AH102: 0 | AI102: 0 | AJ102: 46204 | AK102: 127 | AL102: 126.5 | AM102: 127 | AN102: 0 | AO102: 0 | AP102: 0 | AQ102: FALSE | AR102: 0
B103: 96 | C103: ='DOLDURULMASI GEREKEN TABLO'!D116 -> 0 | D103: ='DOLDURULMASI GEREKEN TABLO'!E116 -> 0 | E103: ='DOLDURULMASI GEREKEN TABLO'!F116 -> 0 | F103: ='DOLDURULMASI GEREKEN TABLO'!G116 -> 0 | G103: 0 | H103: ='DOLDURULMASI GEREKEN TABLO'!H116 -> 00:00:00 | I103: 2026-01-01 | J103: ='DOLDURULMASI GEREKEN TABLO'!I116 -> MÜK.298 Ç YE GÖRE İLGİLİ GEÇİCİ VERGİ DÖNEMİNE AİT YDO İLE YD YAPILABİLİR | K103: ='DOLDURULMASI GEREKEN TABLO'!J116 -> 0 | L103: ='DOLDURULMASI GEREKEN TABLO'!K116 -> 0 | M103: ='DOLDURULMASI GEREKEN TABLO'!L116 -> 0 | N103: 46024 | O103: 0 | P103: 0 | Q103: 0 | R103: 0 | S103: 0 | T103: 0 | U103: 0 | W103: =IF(OR(D103="250- Arazi ve Arsalar",YEAR(H103)=2026),0,TRUNC('DOLDURULMASI GEREKEN TABLO'!N116,4)) -> 0.1151 | X103: 1 | Y103: 0 | Z103: 0 | AA103: 0 | AB103: 0 | AC103: 0 | AD103: 0 | AF103: 00:00:00 | AG103: ='DOLDURULMASI GEREKEN TABLO'!M116 -> 2026-06-30 | AH103: 0 | AI103: 0 | AJ103: 46204 | AK103: 127 | AL103: 126.5 | AM103: 127 | AN103: 0 | AO103: 0 | AP103: 0 | AQ103: FALSE | AR103: 0
B104: 97 | C104: ='DOLDURULMASI GEREKEN TABLO'!D117 -> 0 | D104: ='DOLDURULMASI GEREKEN TABLO'!E117 -> 0 | E104: ='DOLDURULMASI GEREKEN TABLO'!F117 -> 0 | F104: ='DOLDURULMASI GEREKEN TABLO'!G117 -> 0 | G104: 0 | H104: ='DOLDURULMASI GEREKEN TABLO'!H117 -> 00:00:00 | I104: 2026-01-01 | J104: ='DOLDURULMASI GEREKEN TABLO'!I117 -> MÜK.298 Ç YE GÖRE İLGİLİ GEÇİCİ VERGİ DÖNEMİNE AİT YDO İLE YD YAPILABİLİR | K104: ='DOLDURULMASI GEREKEN TABLO'!J117 -> 0 | L104: ='DOLDURULMASI GEREKEN TABLO'!K117 -> 0 | M104: ='DOLDURULMASI GEREKEN TABLO'!L117 -> 0 | N104: 46024 | O104: 0 | P104: 0 | Q104: 0 | R104: 0 | S104: 0 | T104: 0 | U104: 0 | W104: =IF(OR(D104="250- Arazi ve Arsalar",YEAR(H104)=2026),0,TRUNC('DOLDURULMASI GEREKEN TABLO'!N117,4)) -> 0.1151 | X104: 1 | Y104: 0 | Z104: 0 | AA104: 0 | AB104: 0 | AC104: 0 | AD104: 0 | AF104: 00:00:00 | AG104: ='DOLDURULMASI GEREKEN TABLO'!M117 -> 2026-06-30 | AH104: 0 | AI104: 0 | AJ104: 46204 | AK104: 127 | AL104: 126.5 | AM104: 127 | AN104: 0 | AO104: 0 | AP104: 0 | AQ104: FALSE | AR104: 0
B105: 98 | C105: ='DOLDURULMASI GEREKEN TABLO'!D118 -> 0 | D105: ='DOLDURULMASI GEREKEN TABLO'!E118 -> 0 | E105: ='DOLDURULMASI GEREKEN TABLO'!F118 -> 0 | F105: ='DOLDURULMASI GEREKEN TABLO'!G118 -> 0 | G105: 0 | H105: ='DOLDURULMASI GEREKEN TABLO'!H118 -> 00:00:00 | I105: 2026-01-01 | J105: ='DOLDURULMASI GEREKEN TABLO'!I118 -> MÜK.298 Ç YE GÖRE İLGİLİ GEÇİCİ VERGİ DÖNEMİNE AİT YDO İLE YD YAPILABİLİR | K105: ='DOLDURULMASI GEREKEN TABLO'!J118 -> 0 | L105: ='DOLDURULMASI GEREKEN TABLO'!K118 -> 0 | M105: ='DOLDURULMASI GEREKEN TABLO'!L118 -> 0 | N105: 46024 | O105: 0 | P105: 0 | Q105: 0 | R105: 0 | S105: 0 | T105: 0 | U105: 0 | W105: =IF(OR(D105="250- Arazi ve Arsalar",YEAR(H105)=2026),0,TRUNC('DOLDURULMASI GEREKEN TABLO'!N118,4)) -> 0.1151 | X105: 1 | Y105: 0 | Z105: 0 | AA105: 0 | AB105: 0 | AC105: 0 | AD105: 0 | AF105: 00:00:00 | AG105: ='DOLDURULMASI GEREKEN TABLO'!M118 -> 2026-06-30 | AH105: 0 | AI105: 0 | AJ105: 46204 | AK105: 127 | AL105: 126.5 | AM105: 127 | AN105: 0 | AO105: 0 | AP105: 0 | AQ105: FALSE | AR105: 0
B106: 99 | C106: ='DOLDURULMASI GEREKEN TABLO'!D119 -> 0 | D106: ='DOLDURULMASI GEREKEN TABLO'!E119 -> 0 | E106: ='DOLDURULMASI GEREKEN TABLO'!F119 -> 0 | F106: ='DOLDURULMASI GEREKEN TABLO'!G119 -> 0 | G106: 0 | H106: ='DOLDURULMASI GEREKEN TABLO'!H119 -> 00:00:00 | I106: 2026-01-01 | J106: ='DOLDURULMASI GEREKEN TABLO'!I119 -> MÜK.298 Ç YE GÖRE İLGİLİ GEÇİCİ VERGİ DÖNEMİNE AİT YDO İLE YD YAPILABİLİR | K106: ='DOLDURULMASI GEREKEN TABLO'!J119 -> 0 | L106: ='DOLDURULMASI GEREKEN TABLO'!K119 -> 0 | M106: ='DOLDURULMASI GEREKEN TABLO'!L119 -> 0 | N106: 46024 | O106: 0 | P106: 0 | Q106: 0 | R106: 0 | S106: 0 | T106: 0 | U106: 0 | W106: =IF(OR(D106="250- Arazi ve Arsalar",YEAR(H106)=2026),0,TRUNC('DOLDURULMASI GEREKEN TABLO'!N119,4)) -> 0.1151 | X106: 1 | Y106: 0 | Z106: 0 | AA106: 0 | AB106: 0 | AC106: 0 | AD106: 0 | AF106: 00:00:00 | AG106: ='DOLDURULMASI GEREKEN TABLO'!M119 -> 2026-06-30 | AH106: 0 | AI106: 0 | AJ106: 46204 | AK106: 127 | AL106: 126.5 | AM106: 127 | AN106: 0 | AO106: 0 | AP106: 0 | AQ106: FALSE | AR106: 0
B107: 100 | C107: ='DOLDURULMASI GEREKEN TABLO'!D120 -> 0 | D107: ='DOLDURULMASI GEREKEN TABLO'!E120 -> 0 | E107: ='DOLDURULMASI GEREKEN TABLO'!F120 -> 0 | F107: ='DOLDURULMASI GEREKEN TABLO'!G120 -> 0 | G107: 0 | H107: ='DOLDURULMASI GEREKEN TABLO'!H120 -> 00:00:00 | I107: 2026-01-01 | J107: ='DOLDURULMASI GEREKEN TABLO'!I120 -> MÜK.298 Ç YE GÖRE İLGİLİ GEÇİCİ VERGİ DÖNEMİNE AİT YDO İLE YD YAPILABİLİR | K107: ='DOLDURULMASI GEREKEN TABLO'!J120 -> 0 | L107: ='DOLDURULMASI GEREKEN TABLO'!K120 -> 0 | M107: ='DOLDURULMASI GEREKEN TABLO'!L120 -> 0 | N107: 46024 | O107: 0 | P107: 0 | Q107: 0 | R107: 0 | S107: 0 | T107: 0 | U107: 0 | W107: =IF(OR(D107="250- Arazi ve Arsalar",YEAR(H107)=2026),0,TRUNC('DOLDURULMASI GEREKEN TABLO'!N120,4)) -> 0.1151 | X107: 1 | Y107: 0 | Z107: 0 | AA107: 0 | AB107: 0 | AC107: 0 | AD107: 0 | AF107: 00:00:00 | AG107: ='DOLDURULMASI GEREKEN TABLO'!M120 -> 2026-06-30 | AH107: 0 | AI107: 0 | AJ107: 46204 | AK107: 127 | AL107: 126.5 | AM107: 127 | AN107: 0 | AO107: 0 | AP107: 0 | AQ107: FALSE | AR107: 0
B108: 101 | C108: ='DOLDURULMASI GEREKEN TABLO'!D121 -> 0 | D108: ='DOLDURULMASI GEREKEN TABLO'!E121 -> 0 | E108: ='DOLDURULMASI GEREKEN TABLO'!F121 -> 0 | F108: ='DOLDURULMASI GEREKEN TABLO'!G121 -> 0 | G108: 0 | H108: ='DOLDURULMASI GEREKEN TABLO'!H121 -> 00:00:00 | I108: 2026-01-01 | J108: ='DOLDURULMASI GEREKEN TABLO'!I121 -> MÜK.298 Ç YE GÖRE İLGİLİ GEÇİCİ VERGİ DÖNEMİNE AİT YDO İLE YD YAPILABİLİR | K108: ='DOLDURULMASI GEREKEN TABLO'!J121 -> 0 | L108: ='DOLDURULMASI GEREKEN TABLO'!K121 -> 0 | M108: ='DOLDURULMASI GEREKEN TABLO'!L121 -> 0 | N108: 46024 | O108: 0 | P108: 0 | Q108: 0 | R108: 0 | S108: 0 | T108: 0 | U108: 0 | W108: =IF(OR(D108="250- Arazi ve Arsalar",YEAR(H108)=2026),0,TRUNC('DOLDURULMASI GEREKEN TABLO'!N121,4)) -> 0.1151 | X108: 1 | Y108: 0 | Z108: 0 | AA108: 0 | AB108: 0 | AC108: 0 | AD108: 0 | AF108: 00:00:00 | AG108: ='DOLDURULMASI GEREKEN TABLO'!M121 -> 2026-06-30 | AH108: 0 | AI108: 0 | AJ108: 46204 | AK108: 127 | AL108: 126.5 | AM108: 127 | AN108: 0 | AO108: 0 | AP108: 0 | AQ108: FALSE | AR108: 0
B109: 102 | C109: ='DOLDURULMASI GEREKEN TABLO'!D122 -> 0 | D109: ='DOLDURULMASI GEREKEN TABLO'!E122 -> 0 | E109: ='DOLDURULMASI GEREKEN TABLO'!F122 -> 0 | F109: ='DOLDURULMASI GEREKEN TABLO'!G122 -> 0 | G109: 0 | H109: ='DOLDURULMASI GEREKEN TABLO'!H122 -> 00:00:00 | I109: 2026-01-01 | J109: ='DOLDURULMASI GEREKEN TABLO'!I122 -> MÜK.298 Ç YE GÖRE İLGİLİ GEÇİCİ VERGİ DÖNEMİNE AİT YDO İLE YD YAPILABİLİR | K109: ='DOLDURULMASI GEREKEN TABLO'!J122 -> 0 | L109: ='DOLDURULMASI GEREKEN TABLO'!K122 -> 0 | M109: ='DOLDURULMASI GEREKEN TABLO'!L122 -> 0 | N109: 46024 | O109: 0 | P109: 0 | Q109: 0 | R109: 0 | S109: 0 | T109: 0 | U109: 0 | W109: =IF(OR(D109="250- Arazi ve Arsalar",YEAR(H109)=2026),0,TRUNC('DOLDURULMASI GEREKEN TABLO'!N122,4)) -> 0.1151 | X109: 1 | Y109: 0 | Z109: 0 | AA109: 0 | AB109: 0 | AC109: 0 | AD109: 0 | AF109: 00:00:00 | AG109: ='DOLDURULMASI GEREKEN TABLO'!M122 -> 2026-06-30 | AH109: 0 | AI109: 0 | AJ109: 46204 | AK109: 127 | AL109: 126.5 | AM109: 127 | AN109: 0 | AO109: 0 | AP109: 0 | AQ109: FALSE | AR109: 0
B110: 103 | C110: ='DOLDURULMASI GEREKEN TABLO'!D123 -> 0 | D110: ='DOLDURULMASI GEREKEN TABLO'!E123 -> 0 | E110: ='DOLDURULMASI GEREKEN TABLO'!F123 -> 0 | F110: ='DOLDURULMASI GEREKEN TABLO'!G123 -> 0 | G110: 0 | H110: ='DOLDURULMASI GEREKEN TABLO'!H123 -> 00:00:00 | I110: 2026-01-01 | J110: ='DOLDURULMASI GEREKEN TABLO'!I123 -> MÜK.298 Ç YE GÖRE İLGİLİ GEÇİCİ VERGİ DÖNEMİNE AİT YDO İLE YD YAPILABİLİR | K110: ='DOLDURULMASI GEREKEN TABLO'!J123 -> 0 | L110: ='DOLDURULMASI GEREKEN TABLO'!K123 -> 0 | M110: ='DOLDURULMASI GEREKEN TABLO'!L123 -> 0 | N110: 46024 | O110: 0 | P110: 0 | Q110: 0 | R110: 0 | S110: 0 | T110: 0 | U110: 0 | W110: =IF(OR(D110="250- Arazi ve Arsalar",YEAR(H110)=2026),0,TRUNC('DOLDURULMASI GEREKEN TABLO'!N123,4)) -> 0.1151 | X110: 1 | Y110: 0 | Z110: 0 | AA110: 0 | AB110: 0 | AC110: 0 | AD110: 0 | AF110: 00:00:00 | AG110: ='DOLDURULMASI GEREKEN TABLO'!M123 -> 2026-06-30 | AH110: 0 | AI110: 0 | AJ110: 46204 | AK110: 127 | AL110: 126.5 | AM110: 127 | AN110: 0 | AO110: 0 | AP110: 0 | AQ110: FALSE | AR110: 0
B111: 104 | C111: ='DOLDURULMASI GEREKEN TABLO'!D124 -> 0 | D111: ='DOLDURULMASI GEREKEN TABLO'!E124 -> 0 | E111: ='DOLDURULMASI GEREKEN TABLO'!F124 -> 0 | F111: ='DOLDURULMASI GEREKEN TABLO'!G124 -> 0 | G111: 0 | H111: ='DOLDURULMASI GEREKEN TABLO'!H124 -> 00:00:00 | I111: 2026-01-01 | J111: ='DOLDURULMASI GEREKEN TABLO'!I124 -> MÜK.298 Ç YE GÖRE İLGİLİ GEÇİCİ VERGİ DÖNEMİNE AİT YDO İLE YD YAPILABİLİR | K111: ='DOLDURULMASI GEREKEN TABLO'!J124 -> 0 | L111: ='DOLDURULMASI GEREKEN TABLO'!K124 -> 0 | M111: ='DOLDURULMASI GEREKEN TABLO'!L124 -> 0 | N111: 46024 | O111: 0 | P111: 0 | Q111: 0 | R111: 0 | S111: 0 | T111: 0 | U111: 0 | W111: =IF(OR(D111="250- Arazi ve Arsalar",YEAR(H111)=2026),0,TRUNC('DOLDURULMASI GEREKEN TABLO'!N124,4)) -> 0.1151 | X111: 1 | Y111: 0 | Z111: 0 | AA111: 0 | AB111: 0 | AC111: 0 | AD111: 0 | AF111: 00:00:00 | AG111: ='DOLDURULMASI GEREKEN TABLO'!M124 -> 2026-06-30 | AH111: 0 | AI111: 0 | AJ111: 46204 | AK111: 127 | AL111: 126.5 | AM111: 127 | AN111: 0 | AO111: 0 | AP111: 0 | AQ111: FALSE | AR111: 0
B112: 105 | C112: ='DOLDURULMASI GEREKEN TABLO'!D125 -> 0 | D112: ='DOLDURULMASI GEREKEN TABLO'!E125 -> 0 | E112: ='DOLDURULMASI GEREKEN TABLO'!F125 -> 0 | F112: ='DOLDURULMASI GEREKEN TABLO'!G125 -> 0 | G112: 0 | H112: ='DOLDURULMASI GEREKEN TABLO'!H125 -> 00:00:00 | I112: 2026-01-01 | J112: ='DOLDURULMASI GEREKEN TABLO'!I125 -> MÜK.298 Ç YE GÖRE İLGİLİ GEÇİCİ VERGİ DÖNEMİNE AİT YDO İLE YD YAPILABİLİR | K112: ='DOLDURULMASI GEREKEN TABLO'!J125 -> 0 | L112: ='DOLDURULMASI GEREKEN TABLO'!K125 -> 0 | M112: ='DOLDURULMASI GEREKEN TABLO'!L125 -> 0 | N112: 46024 | O112: 0 | P112: 0 | Q112: 0 | R112: 0 | S112: 0 | T112: 0 | U112: 0 | W112: =IF(OR(D112="250- Arazi ve Arsalar",YEAR(H112)=2026),0,TRUNC('DOLDURULMASI GEREKEN TABLO'!N125,4)) -> 0.1151 | X112: 1 | Y112: 0 | Z112: 0 | AA112: 0 | AB112: 0 | AC112: 0 | AD112: 0 | AF112: 00:00:00 | AG112: ='DOLDURULMASI GEREKEN TABLO'!M125 -> 2026-06-30 | AH112: 0 | AI112: 0 | AJ112: 46204 | AK112: 127 | AL112: 126.5 | AM112: 127 | AN112: 0 | AO112: 0 | AP112: 0 | AQ112: FALSE | AR112: 0
B113: 106 | C113: ='DOLDURULMASI GEREKEN TABLO'!D126 -> 0 | D113: ='DOLDURULMASI GEREKEN TABLO'!E126 -> 0 | E113: ='DOLDURULMASI GEREKEN TABLO'!F126 -> 0 | F113: ='DOLDURULMASI GEREKEN TABLO'!G126 -> 0 | G113: 0 | H113: ='DOLDURULMASI GEREKEN TABLO'!H126 -> 00:00:00 | I113: 2026-01-01 | J113: ='DOLDURULMASI GEREKEN TABLO'!I126 -> MÜK.298 Ç YE GÖRE İLGİLİ GEÇİCİ VERGİ DÖNEMİNE AİT YDO İLE YD YAPILABİLİR | K113: ='DOLDURULMASI GEREKEN TABLO'!J126 -> 0 | L113: ='DOLDURULMASI GEREKEN TABLO'!K126 -> 0 | M113: ='DOLDURULMASI GEREKEN TABLO'!L126 -> 0 | N113: 46024 | O113: 0 | P113: 0 | Q113: 0 | R113: 0 | S113: 0 | T113: 0 | U113: 0 | W113: =IF(OR(D113="250- Arazi ve Arsalar",YEAR(H113)=2026),0,TRUNC('DOLDURULMASI GEREKEN TABLO'!N126,4)) -> 0.1151 | X113: 1 | Y113: 0 | Z113: 0 | AA113: 0 | AB113: 0 | AC113: 0 | AD113: 0 | AF113: 00:00:00 | AG113: ='DOLDURULMASI GEREKEN TABLO'!M126 -> 2026-06-30 | AH113: 0 | AI113: 0 | AJ113: 46204 | AK113: 127 | AL113: 126.5 | AM113: 127 | AN113: 0 | AO113: 0 | AP113: 0 | AQ113: FALSE | AR113: 0
B114: 107 | C114: ='DOLDURULMASI GEREKEN TABLO'!D127 -> 0 | D114: ='DOLDURULMASI GEREKEN TABLO'!E127 -> 0 | E114: ='DOLDURULMASI GEREKEN TABLO'!F127 -> 0 | F114: ='DOLDURULMASI GEREKEN TABLO'!G127 -> 0 | G114: 0 | H114: ='DOLDURULMASI GEREKEN TABLO'!H127 -> 00:00:00 | I114: 2026-01-01 | J114: ='DOLDURULMASI GEREKEN TABLO'!I127 -> MÜK.298 Ç YE GÖRE İLGİLİ GEÇİCİ VERGİ DÖNEMİNE AİT YDO İLE YD YAPILABİLİR | K114: ='DOLDURULMASI GEREKEN TABLO'!J127 -> 0 | L114: ='DOLDURULMASI GEREKEN TABLO'!K127 -> 0 | M114: ='DOLDURULMASI GEREKEN TABLO'!L127 -> 0 | N114: 46024 | O114: 0 | P114: 0 | Q114: 0 | R114: 0 | S114: 0 | T114: 0 | U114: 0 | W114: =IF(OR(D114="250- Arazi ve Arsalar",YEAR(H114)=2026),0,TRUNC('DOLDURULMASI GEREKEN TABLO'!N127,4)) -> 0.1151 | X114: 1 | Y114: 0 | Z114: 0 | AA114: 0 | AB114: 0 | AC114: 0 | AD114: 0 | AF114: 00:00:00 | AG114: ='DOLDURULMASI GEREKEN TABLO'!M127 -> 2026-06-30 | AH114: 0 | AI114: 0 | AJ114: 46204 | AK114: 127 | AL114: 126.5 | AM114: 127 | AN114: 0 | AO114: 0 | AP114: 0 | AQ114: FALSE | AR114: 0
B115: 108 | C115: ='DOLDURULMASI GEREKEN TABLO'!D128 -> 0 | D115: ='DOLDURULMASI GEREKEN TABLO'!E128 -> 0 | E115: ='DOLDURULMASI GEREKEN TABLO'!F128 -> 0 | F115: ='DOLDURULMASI GEREKEN TABLO'!G128 -> 0 | G115: 0 | H115: ='DOLDURULMASI GEREKEN TABLO'!H128 -> 00:00:00 | I115: 2026-01-01 | J115: ='DOLDURULMASI GEREKEN TABLO'!I128 -> MÜK.298 Ç YE GÖRE İLGİLİ GEÇİCİ VERGİ DÖNEMİNE AİT YDO İLE YD YAPILABİLİR | K115: ='DOLDURULMASI GEREKEN TABLO'!J128 -> 0 | L115: ='DOLDURULMASI GEREKEN TABLO'!K128 -> 0 | M115: ='DOLDURULMASI GEREKEN TABLO'!L128 -> 0 | N115: 46024 | O115: 0 | P115: 0 | Q115: 0 | R115: 0 | S115: 0 | T115: 0 | U115: 0 | W115: =IF(OR(D115="250- Arazi ve Arsalar",YEAR(H115)=2026),0,TRUNC('DOLDURULMASI GEREKEN TABLO'!N128,4)) -> 0.1151 | X115: 1 | Y115: 0 | Z115: 0 | AA115: 0 | AB115: 0 | AC115: 0 | AD115: 0 | AF115: 00:00:00 | AG115: ='DOLDURULMASI GEREKEN TABLO'!M128 -> 2026-06-30 | AH115: 0 | AI115: 0 | AJ115: 46204 | AK115: 127 | AL115: 126.5 | AM115: 127 | AN115: 0 | AO115: 0 | AP115: 0 | AQ115: FALSE | AR115: 0
B116: 109 | C116: ='DOLDURULMASI GEREKEN TABLO'!D129 -> 0 | D116: ='DOLDURULMASI GEREKEN TABLO'!E129 -> 0 | E116: ='DOLDURULMASI GEREKEN TABLO'!F129 -> 0 | F116: ='DOLDURULMASI GEREKEN TABLO'!G129 -> 0 | G116: 0 | H116: ='DOLDURULMASI GEREKEN TABLO'!H129 -> 00:00:00 | I116: 2026-01-01 | J116: ='DOLDURULMASI GEREKEN TABLO'!I129 -> MÜK.298 Ç YE GÖRE İLGİLİ GEÇİCİ VERGİ DÖNEMİNE AİT YDO İLE YD YAPILABİLİR | K116: ='DOLDURULMASI GEREKEN TABLO'!J129 -> 0 | L116: ='DOLDURULMASI GEREKEN TABLO'!K129 -> 0 | M116: ='DOLDURULMASI GEREKEN TABLO'!L129 -> 0 | N116: 46024 | O116: 0 | P116: 0 | Q116: 0 | R116: 0 | S116: 0 | T116: 0 | U116: 0 | W116: =IF(OR(D116="250- Arazi ve Arsalar",YEAR(H116)=2026),0,TRUNC('DOLDURULMASI GEREKEN TABLO'!N129,4)) -> 0.1151 | X116: 1 | Y116: 0 | Z116: 0 | AA116: 0 | AB116: 0 | AC116: 0 | AD116: 0 | AF116: 00:00:00 | AG116: ='DOLDURULMASI GEREKEN TABLO'!M129 -> 2026-06-30 | AH116: 0 | AI116: 0 | AJ116: 46204 | AK116: 127 | AL116: 126.5 | AM116: 127 | AN116: 0 | AO116: 0 | AP116: 0 | AQ116: FALSE | AR116: 0
B117: 110 | C117: ='DOLDURULMASI GEREKEN TABLO'!D130 -> 0 | D117: ='DOLDURULMASI GEREKEN TABLO'!E130 -> 0 | E117: ='DOLDURULMASI GEREKEN TABLO'!F130 -> 0 | F117: ='DOLDURULMASI GEREKEN TABLO'!G130 -> 0 | G117: 0 | H117: ='DOLDURULMASI GEREKEN TABLO'!H130 -> 00:00:00 | I117: 2026-01-01 | J117: ='DOLDURULMASI GEREKEN TABLO'!I130 -> MÜK.298 Ç YE GÖRE İLGİLİ GEÇİCİ VERGİ DÖNEMİNE AİT YDO İLE YD YAPILABİLİR | K117: ='DOLDURULMASI GEREKEN TABLO'!J130 -> 0 | L117: ='DOLDURULMASI GEREKEN TABLO'!K130 -> 0 | M117: ='DOLDURULMASI GEREKEN TABLO'!L130 -> 0 | N117: 46024 | O117: 0 | P117: 0 | Q117: 0 | R117: 0 | S117: 0 | T117: 0 | U117: 0 | W117: =IF(OR(D117="250- Arazi ve Arsalar",YEAR(H117)=2026),0,TRUNC('DOLDURULMASI GEREKEN TABLO'!N130,4)) -> 0.1151 | X117: 1 | Y117: 0 | Z117: 0 | AA117: 0 | AB117: 0 | AC117: 0 | AD117: 0 | AF117: 00:00:00 | AG117: ='DOLDURULMASI GEREKEN TABLO'!M130 -> 2026-06-30 | AH117: 0 | AI117: 0 | AJ117: 46204 | AK117: 127 | AL117: 126.5 | AM117: 127 | AN117: 0 | AO117: 0 | AP117: 0 | AQ117: FALSE | AR117: 0
B118: 111 | C118: ='DOLDURULMASI GEREKEN TABLO'!D131 -> 0 | D118: ='DOLDURULMASI GEREKEN TABLO'!E131 -> 0 | E118: ='DOLDURULMASI GEREKEN TABLO'!F131 -> 0 | F118: ='DOLDURULMASI GEREKEN TABLO'!G131 -> 0 | G118: 0 | H118: ='DOLDURULMASI GEREKEN TABLO'!H131 -> 00:00:00 | I118: 2026-01-01 | J118: ='DOLDURULMASI GEREKEN TABLO'!I131 -> MÜK.298 Ç YE GÖRE İLGİLİ GEÇİCİ VERGİ DÖNEMİNE AİT YDO İLE YD YAPILABİLİR | K118: ='DOLDURULMASI GEREKEN TABLO'!J131 -> 0 | L118: ='DOLDURULMASI GEREKEN TABLO'!K131 -> 0 | M118: ='DOLDURULMASI GEREKEN TABLO'!L131 -> 0 | N118: 46024 | O118: 0 | P118: 0 | Q118: 0 | R118: 0 | S118: 0 | T118: 0 | U118: 0 | W118: =IF(OR(D118="250- Arazi ve Arsalar",YEAR(H118)=2026),0,TRUNC('DOLDURULMASI GEREKEN TABLO'!N131,4)) -> 0.1151 | X118: 1 | Y118: 0 | Z118: 0 | AA118: 0 | AB118: 0 | AC118: 0 | AD118: 0 | AF118: 00:00:00 | AG118: ='DOLDURULMASI GEREKEN TABLO'!M131 -> 2026-06-30 | AH118: 0 | AI118: 0 | AJ118: 46204 | AK118: 127 | AL118: 126.5 | AM118: 127 | AN118: 0 | AO118: 0 | AP118: 0 | AQ118: FALSE | AR118: 0
B119: 112 | C119: ='DOLDURULMASI GEREKEN TABLO'!D132 -> 0 | D119: ='DOLDURULMASI GEREKEN TABLO'!E132 -> 0 | E119: ='DOLDURULMASI GEREKEN TABLO'!F132 -> 0 | F119: ='DOLDURULMASI GEREKEN TABLO'!G132 -> 0 | G119: 0 | H119: ='DOLDURULMASI GEREKEN TABLO'!H132 -> 00:00:00 | I119: 2026-01-01 | J119: ='DOLDURULMASI GEREKEN TABLO'!I132 -> MÜK.298 Ç YE GÖRE İLGİLİ GEÇİCİ VERGİ DÖNEMİNE AİT YDO İLE YD YAPILABİLİR | K119: ='DOLDURULMASI GEREKEN TABLO'!J132 -> 0 | L119: ='DOLDURULMASI GEREKEN TABLO'!K132 -> 0 | M119: ='DOLDURULMASI GEREKEN TABLO'!L132 -> 0 | N119: 46024 | O119: 0 | P119: 0 | Q119: 0 | R119: 0 | S119: 0 | T119: 0 | U119: 0 | W119: =IF(OR(D119="250- Arazi ve Arsalar",YEAR(H119)=2026),0,TRUNC('DOLDURULMASI GEREKEN TABLO'!N132,4)) -> 0.1151 | X119: 1 | Y119: 0 | Z119: 0 | AA119: 0 | AB119: 0 | AC119: 0 | AD119: 0 | AF119: 00:00:00 | AG119: ='DOLDURULMASI GEREKEN TABLO'!M132 -> 2026-06-30 | AH119: 0 | AI119: 0 | AJ119: 46204 | AK119: 127 | AL119: 126.5 | AM119: 127 | AN119: 0 | AO119: 0 | AP119: 0 | AQ119: FALSE | AR119: 0
B120: 113 | C120: ='DOLDURULMASI GEREKEN TABLO'!D133 -> 0 | D120: ='DOLDURULMASI GEREKEN TABLO'!E133 -> 0 | E120: ='DOLDURULMASI GEREKEN TABLO'!F133 -> 0 | F120: ='DOLDURULMASI GEREKEN TABLO'!G133 -> 0 | G120: 0 | H120: ='DOLDURULMASI GEREKEN TABLO'!H133 -> 00:00:00 | I120: 2026-01-01 | J120: ='DOLDURULMASI GEREKEN TABLO'!I133 -> MÜK.298 Ç YE GÖRE İLGİLİ GEÇİCİ VERGİ DÖNEMİNE AİT YDO İLE YD YAPILABİLİR | K120: ='DOLDURULMASI GEREKEN TABLO'!J133 -> 0 | L120: ='DOLDURULMASI GEREKEN TABLO'!K133 -> 0 | M120: ='DOLDURULMASI GEREKEN TABLO'!L133 -> 0 | N120: 46024 | O120: 0 | P120: 0 | Q120: 0 | R120: 0 | S120: 0 | T120: 0 | U120: 0 | W120: =IF(OR(D120="250- Arazi ve Arsalar",YEAR(H120)=2026),0,TRUNC('DOLDURULMASI GEREKEN TABLO'!N133,4)) -> 0.1151 | X120: 1 | Y120: 0 | Z120: 0 | AA120: 0 | AB120: 0 | AC120: 0 | AD120: 0 | AF120: 00:00:00 | AG120: ='DOLDURULMASI GEREKEN TABLO'!M133 -> 2026-06-30 | AH120: 0 | AI120: 0 | AJ120: 46204 | AK120: 127 | AL120: 126.5 | AM120: 127 | AN120: 0 | AO120: 0 | AP120: 0 | AQ120: FALSE | AR120: 0
B121: 114 | C121: ='DOLDURULMASI GEREKEN TABLO'!D134 -> 0 | D121: ='DOLDURULMASI GEREKEN TABLO'!E134 -> 0 | E121: ='DOLDURULMASI GEREKEN TABLO'!F134 -> 0 | F121: ='DOLDURULMASI GEREKEN TABLO'!G134 -> 0 | G121: 0 | H121: ='DOLDURULMASI GEREKEN TABLO'!H134 -> 00:00:00 | I121: 2026-01-01 | J121: ='DOLDURULMASI GEREKEN TABLO'!I134 -> MÜK.298 Ç YE GÖRE İLGİLİ GEÇİCİ VERGİ DÖNEMİNE AİT YDO İLE YD YAPILABİLİR | K121: ='DOLDURULMASI GEREKEN TABLO'!J134 -> 0 | L121: ='DOLDURULMASI GEREKEN TABLO'!K134 -> 0 | M121: ='DOLDURULMASI GEREKEN TABLO'!L134 -> 0 | N121: 46024 | O121: 0 | P121: 0 | Q121: 0 | R121: 0 | S121: 0 | T121: 0 | U121: 0 | W121: =IF(OR(D121="250- Arazi ve Arsalar",YEAR(H121)=2026),0,TRUNC('DOLDURULMASI GEREKEN TABLO'!N134,4)) -> 0.1151 | X121: 1 | Y121: 0 | Z121: 0 | AA121: 0 | AB121: 0 | AC121: 0 | AD121: 0 | AF121: 00:00:00 | AG121: ='DOLDURULMASI GEREKEN TABLO'!M134 -> 2026-06-30 | AH121: 0 | AI121: 0 | AJ121: 46204 | AK121: 127 | AL121: 126.5 | AM121: 127 | AN121: 0 | AO121: 0 | AP121: 0 | AQ121: FALSE | AR121: 0
B122: 115 | C122: ='DOLDURULMASI GEREKEN TABLO'!D135 -> 0 | D122: ='DOLDURULMASI GEREKEN TABLO'!E135 -> 0 | E122: ='DOLDURULMASI GEREKEN TABLO'!F135 -> 0 | F122: ='DOLDURULMASI GEREKEN TABLO'!G135 -> 0 | G122: 0 | H122: ='DOLDURULMASI GEREKEN TABLO'!H135 -> 00:00:00 | I122: 2026-01-01 | J122: ='DOLDURULMASI GEREKEN TABLO'!I135 -> MÜK.298 Ç YE GÖRE İLGİLİ GEÇİCİ VERGİ DÖNEMİNE AİT YDO İLE YD YAPILABİLİR | K122: ='DOLDURULMASI GEREKEN TABLO'!J135 -> 0 | L122: ='DOLDURULMASI GEREKEN TABLO'!K135 -> 0 | M122: ='DOLDURULMASI GEREKEN TABLO'!L135 -> 0 | N122: 46024 | O122: 0 | P122: 0 | Q122: 0 | R122: 0 | S122: 0 | T122: 0 | U122: 0 | W122: =IF(OR(D122="250- Arazi ve Arsalar",YEAR(H122)=2026),0,TRUNC('DOLDURULMASI GEREKEN TABLO'!N135,4)) -> 0.1151 | X122: 1 | Y122: 0 | Z122: 0 | AA122: 0 | AB122: 0 | AC122: 0 | AD122: 0 | AF122: 00:00:00 | AG122: ='DOLDURULMASI GEREKEN TABLO'!M135 -> 2026-06-30 | AH122: 0 | AI122: 0 | AJ122: 46204 | AK122: 127 | AL122: 126.5 | AM122: 127 | AN122: 0 | AO122: 0 | AP122: 0 | AQ122: FALSE | AR122: 0
B123: 116 | C123: ='DOLDURULMASI GEREKEN TABLO'!D136 -> 0 | D123: ='DOLDURULMASI GEREKEN TABLO'!E136 -> 0 | E123: ='DOLDURULMASI GEREKEN TABLO'!F136 -> 0 | F123: ='DOLDURULMASI GEREKEN TABLO'!G136 -> 0 | G123: 0 | H123: ='DOLDURULMASI GEREKEN TABLO'!H136 -> 00:00:00 | I123: 2026-01-01 | J123: ='DOLDURULMASI GEREKEN TABLO'!I136 -> MÜK.298 Ç YE GÖRE İLGİLİ GEÇİCİ VERGİ DÖNEMİNE AİT YDO İLE YD YAPILABİLİR | K123: ='DOLDURULMASI GEREKEN TABLO'!J136 -> 0 | L123: ='DOLDURULMASI GEREKEN TABLO'!K136 -> 0 | M123: ='DOLDURULMASI GEREKEN TABLO'!L136 -> 0 | N123: 46024 | O123: 0 | P123: 0 | Q123: 0 | R123: 0 | S123: 0 | T123: 0 | U123: 0 | W123: =IF(OR(D123="250- Arazi ve Arsalar",YEAR(H123)=2026),0,TRUNC('DOLDURULMASI GEREKEN TABLO'!N136,4)) -> 0.1151 | X123: 1 | Y123: 0 | Z123: 0 | AA123: 0 | AB123: 0 | AC123: 0 | AD123: 0 | AF123: 00:00:00 | AG123: ='DOLDURULMASI GEREKEN TABLO'!M136 -> 2026-06-30 | AH123: 0 | AI123: 0 | AJ123: 46204 | AK123: 127 | AL123: 126.5 | AM123: 127 | AN123: 0 | AO123: 0 | AP123: 0 | AQ123: FALSE | AR123: 0
B124: 117 | C124: ='DOLDURULMASI GEREKEN TABLO'!D137 -> 0 | D124: ='DOLDURULMASI GEREKEN TABLO'!E137 -> 0 | E124: ='DOLDURULMASI GEREKEN TABLO'!F137 -> 0 | F124: ='DOLDURULMASI GEREKEN TABLO'!G137 -> 0 | G124: 0 | H124: ='DOLDURULMASI GEREKEN TABLO'!H137 -> 00:00:00 | I124: 2026-01-01 | J124: ='DOLDURULMASI GEREKEN TABLO'!I137 -> MÜK.298 Ç YE GÖRE İLGİLİ GEÇİCİ VERGİ DÖNEMİNE AİT YDO İLE YD YAPILABİLİR | K124: ='DOLDURULMASI GEREKEN TABLO'!J137 -> 0 | L124: ='DOLDURULMASI GEREKEN TABLO'!K137 -> 0 | M124: ='DOLDURULMASI GEREKEN TABLO'!L137 -> 0 | N124: 46024 | O124: 0 | P124: 0 | Q124: 0 | R124: 0 | S124: 0 | T124: 0 | U124: 0 | W124: =IF(OR(D124="250- Arazi ve Arsalar",YEAR(H124)=2026),0,TRUNC('DOLDURULMASI GEREKEN TABLO'!N137,4)) -> 0.1151 | X124: 1 | Y124: 0 | Z124: 0 | AA124: 0 | AB124: 0 | AC124: 0 | AD124: 0 | AF124: 00:00:00 | AG124: ='DOLDURULMASI GEREKEN TABLO'!M137 -> 2026-06-30 | AH124: 0 | AI124: 0 | AJ124: 46204 | AK124: 127 | AL124: 126.5 | AM124: 127 | AN124: 0 | AO124: 0 | AP124: 0 | AQ124: FALSE | AR124: 0
B125: 118 | C125: ='DOLDURULMASI GEREKEN TABLO'!D138 -> 0 | D125: ='DOLDURULMASI GEREKEN TABLO'!E138 -> 0 | E125: ='DOLDURULMASI GEREKEN TABLO'!F138 -> 0 | F125: ='DOLDURULMASI GEREKEN TABLO'!G138 -> 0 | G125: 0 | H125: ='DOLDURULMASI GEREKEN TABLO'!H138 -> 00:00:00 | I125: 2026-01-01 | J125: ='DOLDURULMASI GEREKEN TABLO'!I138 -> MÜK.298 Ç YE GÖRE İLGİLİ GEÇİCİ VERGİ DÖNEMİNE AİT YDO İLE YD YAPILABİLİR | K125: ='DOLDURULMASI GEREKEN TABLO'!J138 -> 0 | L125: ='DOLDURULMASI GEREKEN TABLO'!K138 -> 0 | M125: ='DOLDURULMASI GEREKEN TABLO'!L138 -> 0 | N125: 46024 | O125: 0 | P125: 0 | Q125: 0 | R125: 0 | S125: 0 | T125: 0 | U125: 0 | W125: =IF(OR(D125="250- Arazi ve Arsalar",YEAR(H125)=2026),0,TRUNC('DOLDURULMASI GEREKEN TABLO'!N138,4)) -> 0.1151 | X125: 1 | Y125: 0 | Z125: 0 | AA125: 0 | AB125: 0 | AC125: 0 | AD125: 0 | AF125: 00:00:00 | AG125: ='DOLDURULMASI GEREKEN TABLO'!M138 -> 2026-06-30 | AH125: 0 | AI125: 0 | AJ125: 46204 | AK125: 127 | AL125: 126.5 | AM125: 127 | AN125: 0 | AO125: 0 | AP125: 0 | AQ125: FALSE | AR125: 0
B126: 119 | C126: ='DOLDURULMASI GEREKEN TABLO'!D139 -> 0 | D126: ='DOLDURULMASI GEREKEN TABLO'!E139 -> 0 | E126: ='DOLDURULMASI GEREKEN TABLO'!F139 -> 0 | F126: ='DOLDURULMASI GEREKEN TABLO'!G139 -> 0 | G126: 0 | H126: ='DOLDURULMASI GEREKEN TABLO'!H139 -> 00:00:00 | I126: 2026-01-01 | J126: ='DOLDURULMASI GEREKEN TABLO'!I139 -> MÜK.298 Ç YE GÖRE İLGİLİ GEÇİCİ VERGİ DÖNEMİNE AİT YDO İLE YD YAPILABİLİR | K126: ='DOLDURULMASI GEREKEN TABLO'!J139 -> 0 | L126: ='DOLDURULMASI GEREKEN TABLO'!K139 -> 0 | M126: ='DOLDURULMASI GEREKEN TABLO'!L139 -> 0 | N126: 46024 | O126: 0 | P126: 0 | Q126: 0 | R126: 0 | S126: 0 | T126: 0 | U126: 0 | W126: =IF(OR(D126="250- Arazi ve Arsalar",YEAR(H126)=2026),0,TRUNC('DOLDURULMASI GEREKEN TABLO'!N139,4)) -> 0.1151 | X126: 1 | Y126: 0 | Z126: 0 | AA126: 0 | AB126: 0 | AC126: 0 | AD126: 0 | AF126: 00:00:00 | AG126: ='DOLDURULMASI GEREKEN TABLO'!M139 -> 2026-06-30 | AH126: 0 | AI126: 0 | AJ126: 46204 | AK126: 127 | AL126: 126.5 | AM126: 127 | AN126: 0 | AO126: 0 | AP126: 0 | AQ126: FALSE | AR126: 0
B127: 120 | C127: ='DOLDURULMASI GEREKEN TABLO'!D140 -> 0 | D127: ='DOLDURULMASI GEREKEN TABLO'!E140 -> 0 | E127: ='DOLDURULMASI GEREKEN TABLO'!F140 -> 0 | F127: ='DOLDURULMASI GEREKEN TABLO'!G140 -> 0 | G127: 0 | H127: ='DOLDURULMASI GEREKEN TABLO'!H140 -> 00:00:00 | I127: 2026-01-01 | J127: ='DOLDURULMASI GEREKEN TABLO'!I140 -> MÜK.298 Ç YE GÖRE İLGİLİ GEÇİCİ VERGİ DÖNEMİNE AİT YDO İLE YD YAPILABİLİR | K127: ='DOLDURULMASI GEREKEN TABLO'!J140 -> 0 | L127: ='DOLDURULMASI GEREKEN TABLO'!K140 -> 0 | M127: ='DOLDURULMASI GEREKEN TABLO'!L140 -> 0 | N127: 46024 | O127: 0 | P127: 0 | Q127: 0 | R127: 0 | S127: 0 | T127: 0 | U127: 0 | W127: =IF(OR(D127="250- Arazi ve Arsalar",YEAR(H127)=2026),0,TRUNC('DOLDURULMASI GEREKEN TABLO'!N140,4)) -> 0.1151 | X127: 1 | Y127: 0 | Z127: 0 | AA127: 0 | AB127: 0 | AC127: 0 | AD127: 0 | AF127: 00:00:00 | AG127: ='DOLDURULMASI GEREKEN TABLO'!M140 -> 2026-06-30 | AH127: 0 | AI127: 0 | AJ127: 46204 | AK127: 127 | AL127: 126.5 | AM127: 127 | AN127: 0 | AO127: 0 | AP127: 0 | AQ127: FALSE | AR127: 0
B128: 121 | C128: ='DOLDURULMASI GEREKEN TABLO'!D141 -> 0 | D128: ='DOLDURULMASI GEREKEN TABLO'!E141 -> 0 | E128: ='DOLDURULMASI GEREKEN TABLO'!F141 -> 0 | F128: ='DOLDURULMASI GEREKEN TABLO'!G141 -> 0 | G128: 0 | H128: ='DOLDURULMASI GEREKEN TABLO'!H141 -> 00:00:00 | I128: 2026-01-01 | J128: ='DOLDURULMASI GEREKEN TABLO'!I141 -> MÜK.298 Ç YE GÖRE İLGİLİ GEÇİCİ VERGİ DÖNEMİNE AİT YDO İLE YD YAPILABİLİR | K128: ='DOLDURULMASI GEREKEN TABLO'!J141 -> 0 | L128: ='DOLDURULMASI GEREKEN TABLO'!K141 -> 0 | M128: ='DOLDURULMASI GEREKEN TABLO'!L141 -> 0 | N128: 46024 | O128: 0 | P128: 0 | Q128: 0 | R128: 0 | S128: 0 | T128: 0 | U128: 0 | W128: =IF(OR(D128="250- Arazi ve Arsalar",YEAR(H128)=2026),0,TRUNC('DOLDURULMASI GEREKEN TABLO'!N141,4)) -> 0.1151 | X128: 1 | Y128: 0 | Z128: 0 | AA128: 0 | AB128: 0 | AC128: 0 | AD128: 0 | AF128: 00:00:00 | AG128: ='DOLDURULMASI GEREKEN TABLO'!M141 -> 2026-06-30 | AH128: 0 | AI128: 0 | AJ128: 46204 | AK128: 127 | AL128: 126.5 | AM128: 127 | AN128: 0 | AO128: 0 | AP128: 0 | AQ128: FALSE | AR128: 0
B129: 122 | C129: ='DOLDURULMASI GEREKEN TABLO'!D142 -> 0 | D129: ='DOLDURULMASI GEREKEN TABLO'!E142 -> 0 | E129: ='DOLDURULMASI GEREKEN TABLO'!F142 -> 0 | F129: ='DOLDURULMASI GEREKEN TABLO'!G142 -> 0 | G129: 0 | H129: ='DOLDURULMASI GEREKEN TABLO'!H142 -> 00:00:00 | I129: 2026-01-01 | J129: ='DOLDURULMASI GEREKEN TABLO'!I142 -> MÜK.298 Ç YE GÖRE İLGİLİ GEÇİCİ VERGİ DÖNEMİNE AİT YDO İLE YD YAPILABİLİR | K129: ='DOLDURULMASI GEREKEN TABLO'!J142 -> 0 | L129: ='DOLDURULMASI GEREKEN TABLO'!K142 -> 0 | M129: ='DOLDURULMASI GEREKEN TABLO'!L142 -> 0 | N129: 46024 | O129: 0 | P129: 0 | Q129: 0 | R129: 0 | S129: 0 | T129: 0 | U129: 0 | W129: =IF(OR(D129="250- Arazi ve Arsalar",YEAR(H129)=2026),0,TRUNC('DOLDURULMASI GEREKEN TABLO'!N142,4)) -> 0.1151 | X129: 1 | Y129: 0 | Z129: 0 | AA129: 0 | AB129: 0 | AC129: 0 | AD129: 0 | AF129: 00:00:00 | AG129: ='DOLDURULMASI GEREKEN TABLO'!M142 -> 2026-06-30 | AH129: 0 | AI129: 0 | AJ129: 46204 | AK129: 127 | AL129: 126.5 | AM129: 127 | AN129: 0 | AO129: 0 | AP129: 0 | AQ129: FALSE | AR129: 0
B130: 123 | C130: ='DOLDURULMASI GEREKEN TABLO'!D143 -> 0 | D130: ='DOLDURULMASI GEREKEN TABLO'!E143 -> 0 | E130: ='DOLDURULMASI GEREKEN TABLO'!F143 -> 0 | F130: ='DOLDURULMASI GEREKEN TABLO'!G143 -> 0 | G130: 0 | H130: ='DOLDURULMASI GEREKEN TABLO'!H143 -> 00:00:00 | I130: 2026-01-01 | J130: ='DOLDURULMASI GEREKEN TABLO'!I143 -> MÜK.298 Ç YE GÖRE İLGİLİ GEÇİCİ VERGİ DÖNEMİNE AİT YDO İLE YD YAPILABİLİR | K130: ='DOLDURULMASI GEREKEN TABLO'!J143 -> 0 | L130: ='DOLDURULMASI GEREKEN TABLO'!K143 -> 0 | M130: ='DOLDURULMASI GEREKEN TABLO'!L143 -> 0 | N130: 46024 | O130: 0 | P130: 0 | Q130: 0 | R130: 0 | S130: 0 | T130: 0 | U130: 0 | W130: =IF(OR(D130="250- Arazi ve Arsalar",YEAR(H130)=2026),0,TRUNC('DOLDURULMASI GEREKEN TABLO'!N143,4)) -> 0.1151 | X130: 1 | Y130: 0 | Z130: 0 | AA130: 0 | AB130: 0 | AC130: 0 | AD130: 0 | AF130: 00:00:00 | AG130: ='DOLDURULMASI GEREKEN TABLO'!M143 -> 2026-06-30 | AH130: 0 | AI130: 0 | AJ130: 46204 | AK130: 127 | AL130: 126.5 | AM130: 127 | AN130: 0 | AO130: 0 | AP130: 0 | AQ130: FALSE | AR130: 0
B131: 124 | C131: ='DOLDURULMASI GEREKEN TABLO'!D144 -> 0 | D131: ='DOLDURULMASI GEREKEN TABLO'!E144 -> 0 | E131: ='DOLDURULMASI GEREKEN TABLO'!F144 -> 0 | F131: ='DOLDURULMASI GEREKEN TABLO'!G144 -> 0 | G131: 0 | H131: ='DOLDURULMASI GEREKEN TABLO'!H144 -> 00:00:00 | I131: 2026-01-01 | J131: ='DOLDURULMASI GEREKEN TABLO'!I144 -> MÜK.298 Ç YE GÖRE İLGİLİ GEÇİCİ VERGİ DÖNEMİNE AİT YDO İLE YD YAPILABİLİR | K131: ='DOLDURULMASI GEREKEN TABLO'!J144 -> 0 | L131: ='DOLDURULMASI GEREKEN TABLO'!K144 -> 0 | M131: ='DOLDURULMASI GEREKEN TABLO'!L144 -> 0 | N131: 46024 | O131: 0 | P131: 0 | Q131: 0 | R131: 0 | S131: 0 | T131: 0 | U131: 0 | W131: =IF(OR(D131="250- Arazi ve Arsalar",YEAR(H131)=2026),0,TRUNC('DOLDURULMASI GEREKEN TABLO'!N144,4)) -> 0.1151 | X131: 1 | Y131: 0 | Z131: 0 | AA131: 0 | AB131: 0 | AC131: 0 | AD131: 0 | AF131: 00:00:00 | AG131: ='DOLDURULMASI GEREKEN TABLO'!M144 -> 2026-06-30 | AH131: 0 | AI131: 0 | AJ131: 46204 | AK131: 127 | AL131: 126.5 | AM131: 127 | AN131: 0 | AO131: 0 | AP131: 0 | AQ131: FALSE | AR131: 0
B132: 125 | C132: ='DOLDURULMASI GEREKEN TABLO'!D145 -> 0 | D132: ='DOLDURULMASI GEREKEN TABLO'!E145 -> 0 | E132: ='DOLDURULMASI GEREKEN TABLO'!F145 -> 0 | F132: ='DOLDURULMASI GEREKEN TABLO'!G145 -> 0 | G132: 0 | H132: ='DOLDURULMASI GEREKEN TABLO'!H145 -> 00:00:00 | I132: 2026-01-01 | J132: ='DOLDURULMASI GEREKEN TABLO'!I145 -> MÜK.298 Ç YE GÖRE İLGİLİ GEÇİCİ VERGİ DÖNEMİNE AİT YDO İLE YD YAPILABİLİR | K132: ='DOLDURULMASI GEREKEN TABLO'!J145 -> 0 | L132: ='DOLDURULMASI GEREKEN TABLO'!K145 -> 0 | M132: ='DOLDURULMASI GEREKEN TABLO'!L145 -> 0 | N132: 46024 | O132: 0 | P132: 0 | Q132: 0 | R132: 0 | S132: 0 | T132: 0 | U132: 0 | W132: =IF(OR(D132="250- Arazi ve Arsalar",YEAR(H132)=2026),0,TRUNC('DOLDURULMASI GEREKEN TABLO'!N145,4)) -> 0.1151 | X132: 1 | Y132: 0 | Z132: 0 | AA132: 0 | AB132: 0 | AC132: 0 | AD132: 0 | AF132: 00:00:00 | AG132: ='DOLDURULMASI GEREKEN TABLO'!M145 -> 2026-06-30 | AH132: 0 | AI132: 0 | AJ132: 46204 | AK132: 127 | AL132: 126.5 | AM132: 127 | AN132: 0 | AO132: 0 | AP132: 0 | AQ132: FALSE | AR132: 0
B133: 126 | C133: ='DOLDURULMASI GEREKEN TABLO'!D146 -> 0 | D133: ='DOLDURULMASI GEREKEN TABLO'!E146 -> 0 | E133: ='DOLDURULMASI GEREKEN TABLO'!F146 -> 0 | F133: ='DOLDURULMASI GEREKEN TABLO'!G146 -> 0 | G133: 0 | H133: ='DOLDURULMASI GEREKEN TABLO'!H146 -> 00:00:00 | I133: 2026-01-01 | J133: ='DOLDURULMASI GEREKEN TABLO'!I146 -> MÜK.298 Ç YE GÖRE İLGİLİ GEÇİCİ VERGİ DÖNEMİNE AİT YDO İLE YD YAPILABİLİR | K133: ='DOLDURULMASI GEREKEN TABLO'!J146 -> 0 | L133: ='DOLDURULMASI GEREKEN TABLO'!K146 -> 0 | M133: ='DOLDURULMASI GEREKEN TABLO'!L146 -> 0 | N133: 46024 | O133: 0 | P133: 0 | Q133: 0 | R133: 0 | S133: 0 | T133: 0 | U133: 0 | W133: =IF(OR(D133="250- Arazi ve Arsalar",YEAR(H133)=2026),0,TRUNC('DOLDURULMASI GEREKEN TABLO'!N146,4)) -> 0.1151 | X133: 1 | Y133: 0 | Z133: 0 | AA133: 0 | AB133: 0 | AC133: 0 | AD133: 0 | AF133: 00:00:00 | AG133: ='DOLDURULMASI GEREKEN TABLO'!M146 -> 2026-06-30 | AH133: 0 | AI133: 0 | AJ133: 46204 | AK133: 127 | AL133: 126.5 | AM133: 127 | AN133: 0 | AO133: 0 | AP133: 0 | AQ133: FALSE | AR133: 0
B134: 127 | C134: ='DOLDURULMASI GEREKEN TABLO'!D147 -> 0 | D134: ='DOLDURULMASI GEREKEN TABLO'!E147 -> 0 | E134: ='DOLDURULMASI GEREKEN TABLO'!F147 -> 0 | F134: ='DOLDURULMASI GEREKEN TABLO'!G147 -> 0 | G134: 0 | H134: ='DOLDURULMASI GEREKEN TABLO'!H147 -> 00:00:00 | I134: 2026-01-01 | J134: ='DOLDURULMASI GEREKEN TABLO'!I147 -> MÜK.298 Ç YE GÖRE İLGİLİ GEÇİCİ VERGİ DÖNEMİNE AİT YDO İLE YD YAPILABİLİR | K134: ='DOLDURULMASI GEREKEN TABLO'!J147 -> 0 | L134: ='DOLDURULMASI GEREKEN TABLO'!K147 -> 0 | M134: ='DOLDURULMASI GEREKEN TABLO'!L147 -> 0 | N134: 46024 | O134: 0 | P134: 0 | Q134: 0 | R134: 0 | S134: 0 | T134: 0 | U134: 0 | W134: =IF(OR(D134="250- Arazi ve Arsalar",YEAR(H134)=2026),0,TRUNC('DOLDURULMASI GEREKEN TABLO'!N147,4)) -> 0.1151 | X134: 1 | Y134: 0 | Z134: 0 | AA134: 0 | AB134: 0 | AC134: 0 | AD134: 0 | AF134: 00:00:00 | AG134: ='DOLDURULMASI GEREKEN TABLO'!M147 -> 2026-06-30 | AH134: 0 | AI134: 0 | AJ134: 46204 | AK134: 127 | AL134: 126.5 | AM134: 127 | AN134: 0 | AO134: 0 | AP134: 0 | AQ134: FALSE | AR134: 0
B135: 128 | C135: ='DOLDURULMASI GEREKEN TABLO'!D148 -> 0 | D135: ='DOLDURULMASI GEREKEN TABLO'!E148 -> 0 | E135: ='DOLDURULMASI GEREKEN TABLO'!F148 -> 0 | F135: ='DOLDURULMASI GEREKEN TABLO'!G148 -> 0 | G135: 0 | H135: ='DOLDURULMASI GEREKEN TABLO'!H148 -> 00:00:00 | I135: 2026-01-01 | J135: ='DOLDURULMASI GEREKEN TABLO'!I148 -> MÜK.298 Ç YE GÖRE İLGİLİ GEÇİCİ VERGİ DÖNEMİNE AİT YDO İLE YD YAPILABİLİR | K135: ='DOLDURULMASI GEREKEN TABLO'!J148 -> 0 | L135: ='DOLDURULMASI GEREKEN TABLO'!K148 -> 0 | M135: ='DOLDURULMASI GEREKEN TABLO'!L148 -> 0 | N135: 46024 | O135: 0 | P135: 0 | Q135: 0 | R135: 0 | S135: 0 | T135: 0 | U135: 0 | W135: =IF(OR(D135="250- Arazi ve Arsalar",YEAR(H135)=2026),0,TRUNC('DOLDURULMASI GEREKEN TABLO'!N148,4)) -> 0.1151 | X135: 1 | Y135: 0 | Z135: 0 | AA135: 0 | AB135: 0 | AC135: 0 | AD135: 0 | AF135: 00:00:00 | AG135: ='DOLDURULMASI GEREKEN TABLO'!M148 -> 2026-06-30 | AH135: 0 | AI135: 0 | AJ135: 46204 | AK135: 127 | AL135: 126.5 | AM135: 127 | AN135: 0 | AO135: 0 | AP135: 0 | AQ135: FALSE | AR135: 0
B136: 129 | C136: ='DOLDURULMASI GEREKEN TABLO'!D149 -> 0 | D136: ='DOLDURULMASI GEREKEN TABLO'!E149 -> 0 | E136: ='DOLDURULMASI GEREKEN TABLO'!F149 -> 0 | F136: ='DOLDURULMASI GEREKEN TABLO'!G149 -> 0 | G136: 0 | H136: ='DOLDURULMASI GEREKEN TABLO'!H149 -> 00:00:00 | I136: 2026-01-01 | J136: ='DOLDURULMASI GEREKEN TABLO'!I149 -> MÜK.298 Ç YE GÖRE İLGİLİ GEÇİCİ VERGİ DÖNEMİNE AİT YDO İLE YD YAPILABİLİR | K136: ='DOLDURULMASI GEREKEN TABLO'!J149 -> 0 | L136: ='DOLDURULMASI GEREKEN TABLO'!K149 -> 0 | M136: ='DOLDURULMASI GEREKEN TABLO'!L149 -> 0 | N136: 46024 | O136: 0 | P136: 0 | Q136: 0 | R136: =IFERROR(IF(D136="250- Arazi ve Arsalar",0, IF(Q136=F136,K136, IF(AND(L136="NORMAL AMORTİSMAN",M136="HAYIR"),K136*G136*Q136, IF(AND(L136="NORMAL AMORTİSMAN",M136="EVET"),K136*G136*Q136, IF(AND(L136="AZALAN BAKİYELERE GÖRE AMORTİSMAN",M136="HAYIR"),VDB(K136,0,IF(F136<=4,4,F136),0,Q136,2,TRUE), IF(AND(L136="AZALAN BAKİYELERE GÖRE AMORTİSMAN",M136="EVET",Q136<=1),(DDB(K136,0,IF(F136<=4,4,F136),1,2)/12)*(12-MONTH(H136)+1), IF(AND(L136="AZALAN BAKİYELERE GÖRE AMORTİSMAN",M136="EVET",AND(Q136<=2,Q136>1)),(DDB(K136,0,IF(F136<=4,4,F136),1,2)/12)*(12-MONTH(H136)+1)+DDB(K136,0,IF(F136<=4,4,F136),2,2), IF(AND(L136="AZALAN BAKİYELERE GÖRE AMORTİSMAN",M136="EVET",AND(Q136<=3,Q136>2)),(DDB(K136,0,IF(F136<=4,4,F136),1,2)/12)*(12-MONTH(H136)+1)+DDB(K136,0,IF(F136<=4,4,F136),2,2)+DDB(K136,0,IF(F136<=4,4,F136),3,2), IF(AND(L136="AZALAN BAKİYELERE GÖRE AMORTİSMAN",M136="EVET",AND(Q136<=4,Q136>3)),(DDB(K136,0,IF(F136<=4,4,F136),1,2)/12)*(12-MONTH(H136)+1)+DDB(K136,0,IF(F136<=4,4,F136),2,2)+DDB(K136,0,IF(F136<=4,4,F136),3,2)+DDB(K136,0,IF(F136<=4,4,F136),4,2), IF(AND(L136="AZALAN BAKİYELERE GÖRE AMORTİSMAN",M136="EVET",AND(Q136<=5,Q136>4)),K136,0)))))))))),0) -> 0 | S136: 0 | T136: 0 | U136: 0 | W136: =IF(OR(D136="250- Arazi ve Arsalar",YEAR(H136)=2026),0,TRUNC('DOLDURULMASI GEREKEN TABLO'!N149,4)) -> 0.1151 | X136: 1 | Y136: 0 | Z136: 0 | AA136: 0 | AB136: 0 | AC136: 0 | AD136: 0 | AF136: 00:00:00 | AG136: ='DOLDURULMASI GEREKEN TABLO'!M149 -> 2026-06-30 | AH136: 0 | AI136: 0 | AJ136: 46204 | AK136: 127 | AL136: 126.5 | AM136: 127 | AN136: 0 | AO136: 0 | AP136: 0 | AQ136: FALSE | AR136: 0
B137: 130 | C137: ='DOLDURULMASI GEREKEN TABLO'!D150 -> 0 | D137: ='DOLDURULMASI GEREKEN TABLO'!E150 -> 0 | E137: ='DOLDURULMASI GEREKEN TABLO'!F150 -> 0 | F137: ='DOLDURULMASI GEREKEN TABLO'!G150 -> 0 | G137: =IFERROR(IF(L137="AZALAN BAKİYELERE GÖRE AMORTİSMAN",MIN(1/F137,1/4),1/F137),0) -> 0 | H137: ='DOLDURULMASI GEREKEN TABLO'!H150 -> 00:00:00 | I137: 2026-01-01 | J137: ='DOLDURULMASI GEREKEN TABLO'!I150 -> MÜK.298 Ç YE GÖRE İLGİLİ GEÇİCİ VERGİ DÖNEMİNE AİT YDO İLE YD YAPILABİLİR | K137: ='DOLDURULMASI GEREKEN TABLO'!J150 -> 0 | L137: ='DOLDURULMASI GEREKEN TABLO'!K150 -> 0 | M137: ='DOLDURULMASI GEREKEN TABLO'!L150 -> 0 | N137: =MAX( IFERROR((I137-H137)+1,0),0) -> 46024 | O137: =IFERROR( MIN(YEAR(I137)-YEAR(H137),F137),0) -> 0 | P137: =MAX(IFERROR(MIN((( (YEAR(I137)-YEAR(H137))*12+(MONTH(I137)-MONTH(H137)))/12),F137),0),0) -> 0 | Q137: =IF(AND(M137="EVET",O137<F137),P137,O137) -> 0 | R137: 0 | S137: =K137 -> 0 | T137: =R137 -> 0 | U137: =S137-T137 -> 0 | W137: =IF(OR(D137="250- Arazi ve Arsalar",YEAR(H137)=2026),0,TRUNC('DOLDURULMASI GEREKEN TABLO'!N150,4)) -> 0.1151 | X137: =IF(E137="HAYIR",(1+W137),1) -> 1 | Y137: =X137*S137 -> 0 | Z137: =T137*X137 -> 0 | AA137: =Y137-Z137 -> 0 | AB137: =IFERROR(IF(Y137-S137<0,0,Y137-S137),0) -> 0 | AC137: =IFERROR(IF(Z137-T137<0,0,Z137-T137),0) -> 0 | AD137: =IFERROR(IF((AB137-AC137)<0,0,(AB137-AC137)),0) -> 0 | AF137: =H137 -> 00:00:00 | AG137: ='DOLDURULMASI GEREKEN TABLO'!M150 -> 2026-06-30 | AH137: =L137 -> 0 | AI137: =M137 -> 0 | AJ137: =(AG137-AF137)+1 -> 46204 | AK137: =YEAR(AG137)-YEAR(AF137)+1 -> 127 | AL137: =(((YEAR(AG137)-YEAR(AF137))*12)+(MONTH(AG137)-MONTH(AF137)+1))/12 -> 126.5 | AM137: =IF(AI137="EVET",AL137,AK137) -> 127 | AN137: =IFERROR( IF(D137="250- Arazi ve Arsalar",0, IF(AK137=F137,Y137, IF(AND(L137="NORMAL AMORTİSMAN",M137="HAYIR"),Y137*G137*IF(AK137>1,AK137-0.5,AK137), IF(AND(L137="NORMAL AMORTİSMAN",M137="EVET"), Y137*G137*IF(AK137>1,AK137-0.5,AK137), IF(AND(L137="AZALAN BAKİYELERE GÖRE AMORTİSMAN",M137="HAYIR"),VDB(Y137,0,IF(F137<=4,4,F137),0,IF(AK137>1,AK137-0.5,AK137),2,TRUE), IF(AND(L137="AZALAN BAKİYELERE GÖRE AMORTİSMAN",M137="EVET",AK137<1), (DDB(Y137,0,IF(F137<=4,4,F137),1,2)/12)*(12-MONTH(H137)+1), IF(AND(L137="AZALAN BAKİYELERE GÖRE AMORTİSMAN",M137="EVET",AND(AK137<=2,AK137>1)), (DDB(Y137,0,IF(F137<=4,4,F137),1,2)/12)*(12-MONTH(H137)+1) + DDB(Y137,0,IF(F137<=4,4,F137),2,2)/4*2, IF(AND(L137="AZALAN BAKİYELERE GÖRE AMORTİSMAN",M137="EVET",AND(AK137<=3,AK137>2)), (DDB(Y137,0,IF(F137<=4,4,F137),1,2)/12)*(12-MONTH(H137)+1)+DDB(Y137,0,IF(F137<=4,4,F137),2,2)+ DDB(Y137,0,IF(F137<=4,4,F137),3,2)/4*2, IF(AND(L137="AZALAN BAKİYELERE GÖRE AMORTİSMAN",M137="EVET",AND(AK137<=4,AK137>3)), (DDB(Y137,0,IF(F137<=4,4,F137),1,2)/12)*(12-MONTH(H137)+1)+DDB(Y137,0,IF(F137<=4,4,F137),2,2)+DDB(Y137,0,IF(F137<=4,4,F137),3,2)+DDB(Y137,0,IF(F137<=4,4,F137),4,2)/4*2, IF(AND(L137="AZALAN BAKİYELERE GÖRE AMORTİSMAN",M137="EVET",AND(AK137<=5,AK137>4)), ((DDB(Y137,0,IF(F137<=4,4,F137),1,2)/12)*(12-MONTH(H137)+1) + DDB(Y137,0,IF(F137<=4,4,F137),2,2) + DDB(Y137,0,IF(F137<=4,4,F137),3,2)+ DDB(Y137,0,IF(F137<=4,4,F137),4,2))+ Y137- ( (DDB(Y137,0,IF(F137<=4,4,F137),1,2)/12)*(12-MONTH(H137)+1) + DDB(Y137,0,IF(F137<=4,4,F137),2,2) + DDB(Y137,0,IF(F137<=4,4,F137),3,2)+ DDB(Y137,0,IF(F137<=4,4,F137),4,2)), DDB(Y137,0,IF(F137<=4,4,F137),AK137-0.5,2) ) ) ) ) ) ) ) ) ) ), 0) -> 0 | AO137: 0 | AP137: =IF(AN137-AO137<=0,0,AN137-AO137) -> 0 | AQ137: FALSE | AR137: 0
B138: 131 | C138: ='DOLDURULMASI GEREKEN TABLO'!D151 -> 0 | D138: ='DOLDURULMASI GEREKEN TABLO'!E151 -> 0 | E138: ='DOLDURULMASI GEREKEN TABLO'!F151 -> 0 | F138: ='DOLDURULMASI GEREKEN TABLO'!G151 -> 0 | G138: 0 | H138: ='DOLDURULMASI GEREKEN TABLO'!H151 -> 00:00:00 | I138: 2026-01-01 | J138: ='DOLDURULMASI GEREKEN TABLO'!I151 -> MÜK.298 Ç YE GÖRE İLGİLİ GEÇİCİ VERGİ DÖNEMİNE AİT YDO İLE YD YAPILABİLİR | K138: ='DOLDURULMASI GEREKEN TABLO'!J151 -> 0 | L138: ='DOLDURULMASI GEREKEN TABLO'!K151 -> 0 | M138: ='DOLDURULMASI GEREKEN TABLO'!L151 -> 0 | N138: 46024 | O138: 0 | P138: 0 | Q138: 0 | R138: 0 | S138: 0 | T138: 0 | U138: 0 | W138: =IF(OR(D138="250- Arazi ve Arsalar",YEAR(H138)=2026),0,TRUNC('DOLDURULMASI GEREKEN TABLO'!N151,4)) -> 0.1151 | X138: 1 | Y138: 0 | Z138: 0 | AA138: 0 | AB138: 0 | AC138: 0 | AD138: 0 | AF138: 00:00:00 | AG138: ='DOLDURULMASI GEREKEN TABLO'!M151 -> 2026-06-30 | AH138: 0 | AI138: 0 | AJ138: 46204 | AK138: 127 | AL138: 126.5 | AM138: 127 | AN138: 0 | AO138: 0 | AP138: 0 | AQ138: FALSE | AR138: 0
B139: 132 | C139: ='DOLDURULMASI GEREKEN TABLO'!D152 -> 0 | D139: ='DOLDURULMASI GEREKEN TABLO'!E152 -> 0 | E139: ='DOLDURULMASI GEREKEN TABLO'!F152 -> 0 | F139: ='DOLDURULMASI GEREKEN TABLO'!G152 -> 0 | G139: 0 | H139: ='DOLDURULMASI GEREKEN TABLO'!H152 -> 00:00:00 | I139: 2026-01-01 | J139: ='DOLDURULMASI GEREKEN TABLO'!I152 -> MÜK.298 Ç YE GÖRE İLGİLİ GEÇİCİ VERGİ DÖNEMİNE AİT YDO İLE YD YAPILABİLİR | K139: ='DOLDURULMASI GEREKEN TABLO'!J152 -> 0 | L139: ='DOLDURULMASI GEREKEN TABLO'!K152 -> 0 | M139: ='DOLDURULMASI GEREKEN TABLO'!L152 -> 0 | N139: 46024 | O139: 0 | P139: 0 | Q139: 0 | R139: 0 | S139: 0 | T139: 0 | U139: 0 | W139: =IF(OR(D139="250- Arazi ve Arsalar",YEAR(H139)=2026),0,TRUNC('DOLDURULMASI GEREKEN TABLO'!N152,4)) -> 0.1151 | X139: 1 | Y139: 0 | Z139: 0 | AA139: 0 | AB139: 0 | AC139: 0 | AD139: 0 | AF139: 00:00:00 | AG139: ='DOLDURULMASI GEREKEN TABLO'!M152 -> 2026-06-30 | AH139: 0 | AI139: 0 | AJ139: 46204 | AK139: 127 | AL139: 126.5 | AM139: 127 | AN139: 0 | AO139: 0 | AP139: 0 | AQ139: FALSE | AR139: 0
B140: 133 | C140: ='DOLDURULMASI GEREKEN TABLO'!D153 -> 0 | D140: ='DOLDURULMASI GEREKEN TABLO'!E153 -> 0 | E140: ='DOLDURULMASI GEREKEN TABLO'!F153 -> 0 | F140: ='DOLDURULMASI GEREKEN TABLO'!G153 -> 0 | G140: 0 | H140: ='DOLDURULMASI GEREKEN TABLO'!H153 -> 00:00:00 | I140: 2026-01-01 | J140: ='DOLDURULMASI GEREKEN TABLO'!I153 -> MÜK.298 Ç YE GÖRE İLGİLİ GEÇİCİ VERGİ DÖNEMİNE AİT YDO İLE YD YAPILABİLİR | K140: ='DOLDURULMASI GEREKEN TABLO'!J153 -> 0 | L140: ='DOLDURULMASI GEREKEN TABLO'!K153 -> 0 | M140: ='DOLDURULMASI GEREKEN TABLO'!L153 -> 0 | N140: 46024 | O140: 0 | P140: 0 | Q140: 0 | R140: 0 | S140: 0 | T140: 0 | U140: 0 | W140: =IF(OR(D140="250- Arazi ve Arsalar",YEAR(H140)=2026),0,TRUNC('DOLDURULMASI GEREKEN TABLO'!N153,4)) -> 0.1151 | X140: 1 | Y140: 0 | Z140: 0 | AA140: 0 | AB140: 0 | AC140: 0 | AD140: 0 | AF140: 00:00:00 | AG140: ='DOLDURULMASI GEREKEN TABLO'!M153 -> 2026-06-30 | AH140: 0 | AI140: 0 | AJ140: 46204 | AK140: 127 | AL140: 126.5 | AM140: 127 | AN140: 0 | AO140: 0 | AP140: 0 | AQ140: FALSE | AR140: 0
B141: 134 | C141: ='DOLDURULMASI GEREKEN TABLO'!D154 -> 0 | D141: ='DOLDURULMASI GEREKEN TABLO'!E154 -> 0 | E141: ='DOLDURULMASI GEREKEN TABLO'!F154 -> 0 | F141: ='DOLDURULMASI GEREKEN TABLO'!G154 -> 0 | G141: 0 | H141: ='DOLDURULMASI GEREKEN TABLO'!H154 -> 00:00:00 | I141: 2026-01-01 | J141: ='DOLDURULMASI GEREKEN TABLO'!I154 -> MÜK.298 Ç YE GÖRE İLGİLİ GEÇİCİ VERGİ DÖNEMİNE AİT YDO İLE YD YAPILABİLİR | K141: ='DOLDURULMASI GEREKEN TABLO'!J154 -> 0 | L141: ='DOLDURULMASI GEREKEN TABLO'!K154 -> 0 | M141: ='DOLDURULMASI GEREKEN TABLO'!L154 -> 0 | N141: 46024 | O141: 0 | P141: 0 | Q141: 0 | R141: 0 | S141: 0 | T141: 0 | U141: 0 | W141: =IF(OR(D141="250- Arazi ve Arsalar",YEAR(H141)=2026),0,TRUNC('DOLDURULMASI GEREKEN TABLO'!N154,4)) -> 0.1151 | X141: 1 | Y141: 0 | Z141: 0 | AA141: 0 | AB141: 0 | AC141: 0 | AD141: 0 | AF141: 00:00:00 | AG141: ='DOLDURULMASI GEREKEN TABLO'!M154 -> 2026-06-30 | AH141: 0 | AI141: 0 | AJ141: 46204 | AK141: 127 | AL141: 126.5 | AM141: 127 | AN141: 0 | AO141: 0 | AP141: 0 | AQ141: FALSE | AR141: 0
B142: 135 | C142: ='DOLDURULMASI GEREKEN TABLO'!D155 -> 0 | D142: ='DOLDURULMASI GEREKEN TABLO'!E155 -> 0 | E142: ='DOLDURULMASI GEREKEN TABLO'!F155 -> 0 | F142: ='DOLDURULMASI GEREKEN TABLO'!G155 -> 0 | G142: 0 | H142: ='DOLDURULMASI GEREKEN TABLO'!H155 -> 00:00:00 | I142: 2026-01-01 | J142: ='DOLDURULMASI GEREKEN TABLO'!I155 -> MÜK.298 Ç YE GÖRE İLGİLİ GEÇİCİ VERGİ DÖNEMİNE AİT YDO İLE YD YAPILABİLİR | K142: ='DOLDURULMASI GEREKEN TABLO'!J155 -> 0 | L142: ='DOLDURULMASI GEREKEN TABLO'!K155 -> 0 | M142: ='DOLDURULMASI GEREKEN TABLO'!L155 -> 0 | N142: 46024 | O142: 0 | P142: 0 | Q142: 0 | R142: 0 | S142: 0 | T142: 0 | U142: 0 | W142: =IF(OR(D142="250- Arazi ve Arsalar",YEAR(H142)=2026),0,TRUNC('DOLDURULMASI GEREKEN TABLO'!N155,4)) -> 0.1151 | X142: 1 | Y142: 0 | Z142: 0 | AA142: 0 | AB142: 0 | AC142: 0 | AD142: 0 | AF142: 00:00:00 | AG142: ='DOLDURULMASI GEREKEN TABLO'!M155 -> 2026-06-30 | AH142: 0 | AI142: 0 | AJ142: 46204 | AK142: 127 | AL142: 126.5 | AM142: 127 | AN142: 0 | AO142: 0 | AP142: 0 | AQ142: FALSE | AR142: 0
B143: 136 | C143: ='DOLDURULMASI GEREKEN TABLO'!D156 -> 0 | D143: ='DOLDURULMASI GEREKEN TABLO'!E156 -> 0 | E143: ='DOLDURULMASI GEREKEN TABLO'!F156 -> 0 | F143: ='DOLDURULMASI GEREKEN TABLO'!G156 -> 0 | G143: 0 | H143: ='DOLDURULMASI GEREKEN TABLO'!H156 -> 00:00:00 | I143: 2026-01-01 | J143: ='DOLDURULMASI GEREKEN TABLO'!I156 -> MÜK.298 Ç YE GÖRE İLGİLİ GEÇİCİ VERGİ DÖNEMİNE AİT YDO İLE YD YAPILABİLİR | K143: ='DOLDURULMASI GEREKEN TABLO'!J156 -> 0 | L143: ='DOLDURULMASI GEREKEN TABLO'!K156 -> 0 | M143: ='DOLDURULMASI GEREKEN TABLO'!L156 -> 0 | N143: 46024 | O143: 0 | P143: 0 | Q143: 0 | R143: 0 | S143: 0 | T143: 0 | U143: 0 | W143: =IF(OR(D143="250- Arazi ve Arsalar",YEAR(H143)=2026),0,TRUNC('DOLDURULMASI GEREKEN TABLO'!N156,4)) -> 0.1151 | X143: 1 | Y143: 0 | Z143: 0 | AA143: 0 | AB143: 0 | AC143: 0 | AD143: 0 | AF143: 00:00:00 | AG143: ='DOLDURULMASI GEREKEN TABLO'!M156 -> 2026-06-30 | AH143: 0 | AI143: 0 | AJ143: 46204 | AK143: 127 | AL143: 126.5 | AM143: 127 | AN143: 0 | AO143: 0 | AP143: 0 | AQ143: FALSE | AR143: 0
B144: 137 | C144: ='DOLDURULMASI GEREKEN TABLO'!D157 -> 0 | D144: ='DOLDURULMASI GEREKEN TABLO'!E157 -> 0 | E144: ='DOLDURULMASI GEREKEN TABLO'!F157 -> 0 | F144: ='DOLDURULMASI GEREKEN TABLO'!G157 -> 0 | G144: 0 | H144: ='DOLDURULMASI GEREKEN TABLO'!H157 -> 00:00:00 | I144: 2026-01-01 | J144: ='DOLDURULMASI GEREKEN TABLO'!I157 -> MÜK.298 Ç YE GÖRE İLGİLİ GEÇİCİ VERGİ DÖNEMİNE AİT YDO İLE YD YAPILABİLİR | K144: ='DOLDURULMASI GEREKEN TABLO'!J157 -> 0 | L144: ='DOLDURULMASI GEREKEN TABLO'!K157 -> 0 | M144: ='DOLDURULMASI GEREKEN TABLO'!L157 -> 0 | N144: 46024 | O144: 0 | P144: 0 | Q144: 0 | R144: 0 | S144: 0 | T144: 0 | U144: 0 | W144: =IF(OR(D144="250- Arazi ve Arsalar",YEAR(H144)=2026),0,TRUNC('DOLDURULMASI GEREKEN TABLO'!N157,4)) -> 0.1151 | X144: 1 | Y144: 0 | Z144: 0 | AA144: 0 | AB144: 0 | AC144: 0 | AD144: 0 | AF144: 00:00:00 | AG144: ='DOLDURULMASI GEREKEN TABLO'!M157 -> 2026-06-30 | AH144: 0 | AI144: 0 | AJ144: 46204 | AK144: 127 | AL144: 126.5 | AM144: 127 | AN144: 0 | AO144: 0 | AP144: 0 | AQ144: FALSE | AR144: 0
B145: 138 | C145: ='DOLDURULMASI GEREKEN TABLO'!D158 -> 0 | D145: ='DOLDURULMASI GEREKEN TABLO'!E158 -> 0 | E145: ='DOLDURULMASI GEREKEN TABLO'!F158 -> 0 | F145: ='DOLDURULMASI GEREKEN TABLO'!G158 -> 0 | G145: 0 | H145: ='DOLDURULMASI GEREKEN TABLO'!H158 -> 00:00:00 | I145: 2026-01-01 | J145: ='DOLDURULMASI GEREKEN TABLO'!I158 -> MÜK.298 Ç YE GÖRE İLGİLİ GEÇİCİ VERGİ DÖNEMİNE AİT YDO İLE YD YAPILABİLİR | K145: ='DOLDURULMASI GEREKEN TABLO'!J158 -> 0 | L145: ='DOLDURULMASI GEREKEN TABLO'!K158 -> 0 | M145: ='DOLDURULMASI GEREKEN TABLO'!L158 -> 0 | N145: 46024 | O145: 0 | P145: 0 | Q145: 0 | R145: 0 | S145: 0 | T145: 0 | U145: 0 | W145: =IF(OR(D145="250- Arazi ve Arsalar",YEAR(H145)=2026),0,TRUNC('DOLDURULMASI GEREKEN TABLO'!N158,4)) -> 0.1151 | X145: 1 | Y145: 0 | Z145: 0 | AA145: 0 | AB145: 0 | AC145: 0 | AD145: 0 | AF145: 00:00:00 | AG145: ='DOLDURULMASI GEREKEN TABLO'!M158 -> 2026-06-30 | AH145: 0 | AI145: 0 | AJ145: 46204 | AK145: 127 | AL145: 126.5 | AM145: 127 | AN145: 0 | AO145: =Z145 -> 0 | AP145: 0 | AQ145: =IF(AND(AM145=F145, AH145="AZALAN BAKİYELERE GÖRE AMORTİSMAN",AI145="EVET"),(DDB(Y145,0,IF(F145<=4,4,F145),1,2)/12)*(12-(12-MONTH(H145)+1)),IF(AND(AM145=F145,AH145="NORMAL AMORTİSMAN",AI145="EVET"),(Y145*(G145*2)/12)*(12-(12-MONTH(H145)+1)))) -> FALSE | AR145: =MAX( AP145-AQ145,0) -> 0
B146: 139 | C146: ='DOLDURULMASI GEREKEN TABLO'!D159 -> 0 | D146: ='DOLDURULMASI GEREKEN TABLO'!E159 -> 0 | E146: ='DOLDURULMASI GEREKEN TABLO'!F159 -> 0 | F146: ='DOLDURULMASI GEREKEN TABLO'!G159 -> 0 | G146: 0 | H146: ='DOLDURULMASI GEREKEN TABLO'!H159 -> 00:00:00 | I146: 2026-01-01 | J146: ='DOLDURULMASI GEREKEN TABLO'!I159 -> MÜK.298 Ç YE GÖRE İLGİLİ GEÇİCİ VERGİ DÖNEMİNE AİT YDO İLE YD YAPILABİLİR | K146: ='DOLDURULMASI GEREKEN TABLO'!J159 -> 0 | L146: ='DOLDURULMASI GEREKEN TABLO'!K159 -> 0 | M146: ='DOLDURULMASI GEREKEN TABLO'!L159 -> 0 | N146: 46024 | O146: 0 | P146: 0 | Q146: 0 | R146: 0 | S146: 0 | T146: 0 | U146: 0 | W146: =IF(OR(D146="250- Arazi ve Arsalar",YEAR(H146)=2026),0,TRUNC('DOLDURULMASI GEREKEN TABLO'!N159,4)) -> 0.1151 | X146: 1 | Y146: 0 | Z146: 0 | AA146: 0 | AB146: 0 | AC146: 0 | AD146: 0 | AF146: 00:00:00 | AG146: ='DOLDURULMASI GEREKEN TABLO'!M159 -> 2026-06-30 | AH146: 0 | AI146: 0 | AJ146: 46204 | AK146: 127 | AL146: 126.5 | AM146: 127 | AN146: 0 | AO146: 0 | AP146: 0 | AQ146: FALSE | AR146: 0
B147: 140 | C147: ='DOLDURULMASI GEREKEN TABLO'!D160 -> 0 | D147: ='DOLDURULMASI GEREKEN TABLO'!E160 -> 0 | E147: ='DOLDURULMASI GEREKEN TABLO'!F160 -> 0 | F147: ='DOLDURULMASI GEREKEN TABLO'!G160 -> 0 | G147: 0 | H147: ='DOLDURULMASI GEREKEN TABLO'!H160 -> 00:00:00 | I147: 2026-01-01 | J147: ='DOLDURULMASI GEREKEN TABLO'!I160 -> MÜK.298 Ç YE GÖRE İLGİLİ GEÇİCİ VERGİ DÖNEMİNE AİT YDO İLE YD YAPILABİLİR | K147: ='DOLDURULMASI GEREKEN TABLO'!J160 -> 0 | L147: ='DOLDURULMASI GEREKEN TABLO'!K160 -> 0 | M147: ='DOLDURULMASI GEREKEN TABLO'!L160 -> 0 | N147: 46024 | O147: 0 | P147: 0 | Q147: 0 | R147: 0 | S147: 0 | T147: 0 | U147: 0 | W147: =IF(OR(D147="250- Arazi ve Arsalar",YEAR(H147)=2026),0,TRUNC('DOLDURULMASI GEREKEN TABLO'!N160,4)) -> 0.1151 | X147: 1 | Y147: 0 | Z147: 0 | AA147: 0 | AB147: 0 | AC147: 0 | AD147: 0 | AF147: 00:00:00 | AG147: ='DOLDURULMASI GEREKEN TABLO'!M160 -> 2026-06-30 | AH147: 0 | AI147: 0 | AJ147: 46204 | AK147: 127 | AL147: 126.5 | AM147: 127 | AN147: 0 | AO147: 0 | AP147: 0 | AQ147: FALSE | AR147: 0
B148: 141 | C148: ='DOLDURULMASI GEREKEN TABLO'!D161 -> 0 | D148: ='DOLDURULMASI GEREKEN TABLO'!E161 -> 0 | E148: ='DOLDURULMASI GEREKEN TABLO'!F161 -> 0 | F148: ='DOLDURULMASI GEREKEN TABLO'!G161 -> 0 | G148: 0 | H148: ='DOLDURULMASI GEREKEN TABLO'!H161 -> 00:00:00 | I148: 2026-01-01 | J148: ='DOLDURULMASI GEREKEN TABLO'!I161 -> MÜK.298 Ç YE GÖRE İLGİLİ GEÇİCİ VERGİ DÖNEMİNE AİT YDO İLE YD YAPILABİLİR | K148: ='DOLDURULMASI GEREKEN TABLO'!J161 -> 0 | L148: ='DOLDURULMASI GEREKEN TABLO'!K161 -> 0 | M148: ='DOLDURULMASI GEREKEN TABLO'!L161 -> 0 | N148: 46024 | O148: 0 | P148: 0 | Q148: 0 | R148: 0 | S148: 0 | T148: 0 | U148: 0 | W148: =IF(OR(D148="250- Arazi ve Arsalar",YEAR(H148)=2026),0,TRUNC('DOLDURULMASI GEREKEN TABLO'!N161,4)) -> 0.1151 | X148: 1 | Y148: 0 | Z148: 0 | AA148: 0 | AB148: 0 | AC148: 0 | AD148: 0 | AF148: 00:00:00 | AG148: ='DOLDURULMASI GEREKEN TABLO'!M161 -> 2026-06-30 | AH148: 0 | AI148: 0 | AJ148: 46204 | AK148: 127 | AL148: 126.5 | AM148: 127 | AN148: 0 | AO148: 0 | AP148: 0 | AQ148: FALSE | AR148: 0
B149: 142 | C149: ='DOLDURULMASI GEREKEN TABLO'!D162 -> 0 | D149: ='DOLDURULMASI GEREKEN TABLO'!E162 -> 0 | E149: ='DOLDURULMASI GEREKEN TABLO'!F162 -> 0 | F149: ='DOLDURULMASI GEREKEN TABLO'!G162 -> 0 | G149: 0 | H149: ='DOLDURULMASI GEREKEN TABLO'!H162 -> 00:00:00 | I149: 2026-01-01 | J149: ='DOLDURULMASI GEREKEN TABLO'!I162 -> MÜK.298 Ç YE GÖRE İLGİLİ GEÇİCİ VERGİ DÖNEMİNE AİT YDO İLE YD YAPILABİLİR | K149: ='DOLDURULMASI GEREKEN TABLO'!J162 -> 0 | L149: ='DOLDURULMASI GEREKEN TABLO'!K162 -> 0 | M149: ='DOLDURULMASI GEREKEN TABLO'!L162 -> 0 | N149: 46024 | O149: 0 | P149: 0 | Q149: 0 | R149: 0 | S149: 0 | T149: 0 | U149: 0 | W149: =IF(OR(D149="250- Arazi ve Arsalar",YEAR(H149)=2026),0,TRUNC('DOLDURULMASI GEREKEN TABLO'!N162,4)) -> 0.1151 | X149: 1 | Y149: 0 | Z149: 0 | AA149: 0 | AB149: 0 | AC149: 0 | AD149: 0 | AF149: 00:00:00 | AG149: ='DOLDURULMASI GEREKEN TABLO'!M162 -> 2026-06-30 | AH149: 0 | AI149: 0 | AJ149: 46204 | AK149: 127 | AL149: 126.5 | AM149: 127 | AN149: 0 | AO149: 0 | AP149: 0 | AQ149: FALSE | AR149: 0
B150: 143 | C150: ='DOLDURULMASI GEREKEN TABLO'!D163 -> 0 | D150: ='DOLDURULMASI GEREKEN TABLO'!E163 -> 0 | E150: ='DOLDURULMASI GEREKEN TABLO'!F163 -> 0 | F150: ='DOLDURULMASI GEREKEN TABLO'!G163 -> 0 | G150: 0 | H150: ='DOLDURULMASI GEREKEN TABLO'!H163 -> 00:00:00 | I150: 2026-01-01 | J150: ='DOLDURULMASI GEREKEN TABLO'!I163 -> MÜK.298 Ç YE GÖRE İLGİLİ GEÇİCİ VERGİ DÖNEMİNE AİT YDO İLE YD YAPILABİLİR | K150: ='DOLDURULMASI GEREKEN TABLO'!J163 -> 0 | L150: ='DOLDURULMASI GEREKEN TABLO'!K163 -> 0 | M150: ='DOLDURULMASI GEREKEN TABLO'!L163 -> 0 | N150: 46024 | O150: 0 | P150: 0 | Q150: 0 | R150: 0 | S150: 0 | T150: 0 | U150: 0 | W150: =IF(OR(D150="250- Arazi ve Arsalar",YEAR(H150)=2026),0,TRUNC('DOLDURULMASI GEREKEN TABLO'!N163,4)) -> 0.1151 | X150: 1 | Y150: 0 | Z150: 0 | AA150: 0 | AB150: 0 | AC150: 0 | AD150: 0 | AF150: 00:00:00 | AG150: ='DOLDURULMASI GEREKEN TABLO'!M163 -> 2026-06-30 | AH150: 0 | AI150: 0 | AJ150: 46204 | AK150: 127 | AL150: 126.5 | AM150: 127 | AN150: 0 | AO150: 0 | AP150: 0 | AQ150: FALSE | AR150: 0
B151: 144 | C151: ='DOLDURULMASI GEREKEN TABLO'!D164 -> 0 | D151: ='DOLDURULMASI GEREKEN TABLO'!E164 -> 0 | E151: ='DOLDURULMASI GEREKEN TABLO'!F164 -> 0 | F151: ='DOLDURULMASI GEREKEN TABLO'!G164 -> 0 | G151: 0 | H151: ='DOLDURULMASI GEREKEN TABLO'!H164 -> 00:00:00 | I151: 2026-01-01 | J151: ='DOLDURULMASI GEREKEN TABLO'!I164 -> MÜK.298 Ç YE GÖRE İLGİLİ GEÇİCİ VERGİ DÖNEMİNE AİT YDO İLE YD YAPILABİLİR | K151: ='DOLDURULMASI GEREKEN TABLO'!J164 -> 0 | L151: ='DOLDURULMASI GEREKEN TABLO'!K164 -> 0 | M151: ='DOLDURULMASI GEREKEN TABLO'!L164 -> 0 | N151: 46024 | O151: 0 | P151: 0 | Q151: 0 | R151: 0 | S151: 0 | T151: 0 | U151: 0 | W151: =IF(OR(D151="250- Arazi ve Arsalar",YEAR(H151)=2026),0,TRUNC('DOLDURULMASI GEREKEN TABLO'!N164,4)) -> 0.1151 | X151: 1 | Y151: 0 | Z151: 0 | AA151: 0 | AB151: 0 | AC151: 0 | AD151: 0 | AF151: 00:00:00 | AG151: ='DOLDURULMASI GEREKEN TABLO'!M164 -> 2026-06-30 | AH151: 0 | AI151: 0 | AJ151: 46204 | AK151: 127 | AL151: 126.5 | AM151: 127 | AN151: 0 | AO151: 0 | AP151: 0 | AQ151: FALSE | AR151: 0
B152: 145 | C152: ='DOLDURULMASI GEREKEN TABLO'!D165 -> 0 | D152: ='DOLDURULMASI GEREKEN TABLO'!E165 -> 0 | E152: ='DOLDURULMASI GEREKEN TABLO'!F165 -> 0 | F152: ='DOLDURULMASI GEREKEN TABLO'!G165 -> 0 | G152: 0 | H152: ='DOLDURULMASI GEREKEN TABLO'!H165 -> 00:00:00 | I152: 2026-01-01 | J152: ='DOLDURULMASI GEREKEN TABLO'!I165 -> MÜK.298 Ç YE GÖRE İLGİLİ GEÇİCİ VERGİ DÖNEMİNE AİT YDO İLE YD YAPILABİLİR | K152: ='DOLDURULMASI GEREKEN TABLO'!J165 -> 0 | L152: ='DOLDURULMASI GEREKEN TABLO'!K165 -> 0 | M152: ='DOLDURULMASI GEREKEN TABLO'!L165 -> 0 | N152: 46024 | O152: 0 | P152: 0 | Q152: 0 | R152: 0 | S152: 0 | T152: 0 | U152: 0 | W152: =IF(OR(D152="250- Arazi ve Arsalar",YEAR(H152)=2026),0,TRUNC('DOLDURULMASI GEREKEN TABLO'!N165,4)) -> 0.1151 | X152: 1 | Y152: 0 | Z152: 0 | AA152: 0 | AB152: 0 | AC152: 0 | AD152: 0 | AF152: 00:00:00 | AG152: ='DOLDURULMASI GEREKEN TABLO'!M165 -> 2026-06-30 | AH152: 0 | AI152: 0 | AJ152: 46204 | AK152: 127 | AL152: 126.5 | AM152: 127 | AN152: 0 | AO152: 0 | AP152: 0 | AQ152: FALSE | AR152: 0
B153: 146 | C153: ='DOLDURULMASI GEREKEN TABLO'!D166 -> 0 | D153: ='DOLDURULMASI GEREKEN TABLO'!E166 -> 0 | E153: ='DOLDURULMASI GEREKEN TABLO'!F166 -> 0 | F153: ='DOLDURULMASI GEREKEN TABLO'!G166 -> 0 | G153: 0 | H153: ='DOLDURULMASI GEREKEN TABLO'!H166 -> 00:00:00 | I153: 2026-01-01 | J153: ='DOLDURULMASI GEREKEN TABLO'!I166 -> MÜK.298 Ç YE GÖRE İLGİLİ GEÇİCİ VERGİ DÖNEMİNE AİT YDO İLE YD YAPILABİLİR | K153: ='DOLDURULMASI GEREKEN TABLO'!J166 -> 0 | L153: ='DOLDURULMASI GEREKEN TABLO'!K166 -> 0 | M153: ='DOLDURULMASI GEREKEN TABLO'!L166 -> 0 | N153: 46024 | O153: 0 | P153: 0 | Q153: 0 | R153: 0 | S153: 0 | T153: 0 | U153: 0 | W153: =IF(OR(D153="250- Arazi ve Arsalar",YEAR(H153)=2026),0,TRUNC('DOLDURULMASI GEREKEN TABLO'!N166,4)) -> 0.1151 | X153: 1 | Y153: 0 | Z153: 0 | AA153: 0 | AB153: 0 | AC153: 0 | AD153: 0 | AF153: 00:00:00 | AG153: ='DOLDURULMASI GEREKEN TABLO'!M166 -> 2026-06-30 | AH153: 0 | AI153: 0 | AJ153: 46204 | AK153: 127 | AL153: 126.5 | AM153: 127 | AN153: 0 | AO153: 0 | AP153: 0 | AQ153: FALSE | AR153: 0
B154: 147 | C154: ='DOLDURULMASI GEREKEN TABLO'!D167 -> 0 | D154: ='DOLDURULMASI GEREKEN TABLO'!E167 -> 0 | E154: ='DOLDURULMASI GEREKEN TABLO'!F167 -> 0 | F154: ='DOLDURULMASI GEREKEN TABLO'!G167 -> 0 | G154: 0 | H154: ='DOLDURULMASI GEREKEN TABLO'!H167 -> 00:00:00 | I154: 2026-01-01 | J154: ='DOLDURULMASI GEREKEN TABLO'!I167 -> MÜK.298 Ç YE GÖRE İLGİLİ GEÇİCİ VERGİ DÖNEMİNE AİT YDO İLE YD YAPILABİLİR | K154: ='DOLDURULMASI GEREKEN TABLO'!J167 -> 0 | L154: ='DOLDURULMASI GEREKEN TABLO'!K167 -> 0 | M154: ='DOLDURULMASI GEREKEN TABLO'!L167 -> 0 | N154: 46024 | O154: 0 | P154: 0 | Q154: 0 | R154: 0 | S154: 0 | T154: 0 | U154: 0 | W154: =IF(OR(D154="250- Arazi ve Arsalar",YEAR(H154)=2026),0,TRUNC('DOLDURULMASI GEREKEN TABLO'!N167,4)) -> 0.1151 | X154: 1 | Y154: 0 | Z154: 0 | AA154: 0 | AB154: 0 | AC154: 0 | AD154: 0 | AF154: 00:00:00 | AG154: ='DOLDURULMASI GEREKEN TABLO'!M167 -> 2026-06-30 | AH154: 0 | AI154: 0 | AJ154: 46204 | AK154: 127 | AL154: 126.5 | AM154: 127 | AN154: 0 | AO154: 0 | AP154: 0 | AQ154: FALSE | AR154: 0
B155: 148 | C155: ='DOLDURULMASI GEREKEN TABLO'!D168 -> 0 | D155: ='DOLDURULMASI GEREKEN TABLO'!E168 -> 0 | E155: ='DOLDURULMASI GEREKEN TABLO'!F168 -> 0 | F155: ='DOLDURULMASI GEREKEN TABLO'!G168 -> 0 | G155: 0 | H155: ='DOLDURULMASI GEREKEN TABLO'!H168 -> 00:00:00 | I155: 2026-01-01 | J155: ='DOLDURULMASI GEREKEN TABLO'!I168 -> MÜK.298 Ç YE GÖRE İLGİLİ GEÇİCİ VERGİ DÖNEMİNE AİT YDO İLE YD YAPILABİLİR | K155: ='DOLDURULMASI GEREKEN TABLO'!J168 -> 0 | L155: ='DOLDURULMASI GEREKEN TABLO'!K168 -> 0 | M155: ='DOLDURULMASI GEREKEN TABLO'!L168 -> 0 | N155: 46024 | O155: 0 | P155: 0 | Q155: 0 | R155: 0 | S155: 0 | T155: 0 | U155: 0 | W155: =IF(OR(D155="250- Arazi ve Arsalar",YEAR(H155)=2026),0,TRUNC('DOLDURULMASI GEREKEN TABLO'!N168,4)) -> 0.1151 | X155: 1 | Y155: 0 | Z155: 0 | AA155: 0 | AB155: 0 | AC155: 0 | AD155: 0 | AF155: 00:00:00 | AG155: ='DOLDURULMASI GEREKEN TABLO'!M168 -> 2026-06-30 | AH155: 0 | AI155: 0 | AJ155: 46204 | AK155: 127 | AL155: 126.5 | AM155: 127 | AN155: 0 | AO155: 0 | AP155: 0 | AQ155: FALSE | AR155: 0
B156: 149 | C156: ='DOLDURULMASI GEREKEN TABLO'!D169 -> 0 | D156: ='DOLDURULMASI GEREKEN TABLO'!E169 -> 0 | E156: ='DOLDURULMASI GEREKEN TABLO'!F169 -> 0 | F156: ='DOLDURULMASI GEREKEN TABLO'!G169 -> 0 | G156: 0 | H156: ='DOLDURULMASI GEREKEN TABLO'!H169 -> 00:00:00 | I156: 2026-01-01 | J156: ='DOLDURULMASI GEREKEN TABLO'!I169 -> MÜK.298 Ç YE GÖRE İLGİLİ GEÇİCİ VERGİ DÖNEMİNE AİT YDO İLE YD YAPILABİLİR | K156: ='DOLDURULMASI GEREKEN TABLO'!J169 -> 0 | L156: ='DOLDURULMASI GEREKEN TABLO'!K169 -> 0 | M156: ='DOLDURULMASI GEREKEN TABLO'!L169 -> 0 | N156: 46024 | O156: 0 | P156: 0 | Q156: 0 | R156: 0 | S156: 0 | T156: 0 | U156: 0 | W156: =IF(OR(D156="250- Arazi ve Arsalar",YEAR(H156)=2026),0,TRUNC('DOLDURULMASI GEREKEN TABLO'!N169,4)) -> 0.1151 | X156: 1 | Y156: 0 | Z156: 0 | AA156: 0 | AB156: 0 | AC156: 0 | AD156: 0 | AF156: 00:00:00 | AG156: ='DOLDURULMASI GEREKEN TABLO'!M169 -> 2026-06-30 | AH156: 0 | AI156: 0 | AJ156: 46204 | AK156: 127 | AL156: 126.5 | AM156: 127 | AN156: 0 | AO156: 0 | AP156: 0 | AQ156: FALSE | AR156: 0
B157: 150 | C157: ='DOLDURULMASI GEREKEN TABLO'!D170 -> 0 | D157: ='DOLDURULMASI GEREKEN TABLO'!E170 -> 0 | E157: ='DOLDURULMASI GEREKEN TABLO'!F170 -> 0 | F157: ='DOLDURULMASI GEREKEN TABLO'!G170 -> 0 | G157: 0 | H157: ='DOLDURULMASI GEREKEN TABLO'!H170 -> 00:00:00 | I157: 2026-01-01 | J157: ='DOLDURULMASI GEREKEN TABLO'!I170 -> MÜK.298 Ç YE GÖRE İLGİLİ GEÇİCİ VERGİ DÖNEMİNE AİT YDO İLE YD YAPILABİLİR | K157: ='DOLDURULMASI GEREKEN TABLO'!J170 -> 0 | L157: ='DOLDURULMASI GEREKEN TABLO'!K170 -> 0 | M157: ='DOLDURULMASI GEREKEN TABLO'!L170 -> 0 | N157: 46024 | O157: 0 | P157: 0 | Q157: 0 | R157: 0 | S157: 0 | T157: 0 | U157: 0 | W157: =IF(OR(D157="250- Arazi ve Arsalar",YEAR(H157)=2026),0,TRUNC('DOLDURULMASI GEREKEN TABLO'!N170,4)) -> 0.1151 | X157: 1 | Y157: 0 | Z157: 0 | AA157: 0 | AB157: 0 | AC157: 0 | AD157: 0 | AF157: 00:00:00 | AG157: ='DOLDURULMASI GEREKEN TABLO'!M170 -> 2026-06-30 | AH157: 0 | AI157: 0 | AJ157: 46204 | AK157: 127 | AL157: 126.5 | AM157: 127 | AN157: 0 | AO157: 0 | AP157: 0 | AQ157: FALSE | AR157: 0
B158: 151 | C158: ='DOLDURULMASI GEREKEN TABLO'!D171 -> 0 | D158: ='DOLDURULMASI GEREKEN TABLO'!E171 -> 0 | E158: ='DOLDURULMASI GEREKEN TABLO'!F171 -> 0 | F158: ='DOLDURULMASI GEREKEN TABLO'!G171 -> 0 | G158: 0 | H158: ='DOLDURULMASI GEREKEN TABLO'!H171 -> 00:00:00 | I158: 2026-01-01 | J158: ='DOLDURULMASI GEREKEN TABLO'!I171 -> MÜK.298 Ç YE GÖRE İLGİLİ GEÇİCİ VERGİ DÖNEMİNE AİT YDO İLE YD YAPILABİLİR | K158: ='DOLDURULMASI GEREKEN TABLO'!J171 -> 0 | L158: ='DOLDURULMASI GEREKEN TABLO'!K171 -> 0 | M158: ='DOLDURULMASI GEREKEN TABLO'!L171 -> 0 | N158: 46024 | O158: 0 | P158: 0 | Q158: 0 | R158: 0 | S158: 0 | T158: 0 | U158: 0 | W158: =IF(OR(D158="250- Arazi ve Arsalar",YEAR(H158)=2026),0,TRUNC('DOLDURULMASI GEREKEN TABLO'!N171,4)) -> 0.1151 | X158: 1 | Y158: 0 | Z158: 0 | AA158: 0 | AB158: 0 | AC158: 0 | AD158: 0 | AF158: 00:00:00 | AG158: ='DOLDURULMASI GEREKEN TABLO'!M171 -> 2026-06-30 | AH158: 0 | AI158: 0 | AJ158: 46204 | AK158: 127 | AL158: 126.5 | AM158: 127 | AN158: 0 | AO158: 0 | AP158: 0 | AQ158: FALSE | AR158: 0
B159: 152 | C159: ='DOLDURULMASI GEREKEN TABLO'!D172 -> 0 | D159: ='DOLDURULMASI GEREKEN TABLO'!E172 -> 0 | E159: ='DOLDURULMASI GEREKEN TABLO'!F172 -> 0 | F159: ='DOLDURULMASI GEREKEN TABLO'!G172 -> 0 | G159: 0 | H159: ='DOLDURULMASI GEREKEN TABLO'!H172 -> 00:00:00 | I159: 2026-01-01 | J159: ='DOLDURULMASI GEREKEN TABLO'!I172 -> MÜK.298 Ç YE GÖRE İLGİLİ GEÇİCİ VERGİ DÖNEMİNE AİT YDO İLE YD YAPILABİLİR | K159: ='DOLDURULMASI GEREKEN TABLO'!J172 -> 0 | L159: ='DOLDURULMASI GEREKEN TABLO'!K172 -> 0 | M159: ='DOLDURULMASI GEREKEN TABLO'!L172 -> 0 | N159: 46024 | O159: 0 | P159: 0 | Q159: 0 | R159: 0 | S159: 0 | T159: 0 | U159: 0 | W159: =IF(OR(D159="250- Arazi ve Arsalar",YEAR(H159)=2026),0,TRUNC('DOLDURULMASI GEREKEN TABLO'!N172,4)) -> 0.1151 | X159: 1 | Y159: 0 | Z159: 0 | AA159: 0 | AB159: 0 | AC159: 0 | AD159: 0 | AF159: 00:00:00 | AG159: ='DOLDURULMASI GEREKEN TABLO'!M172 -> 2026-06-30 | AH159: 0 | AI159: 0 | AJ159: 46204 | AK159: 127 | AL159: 126.5 | AM159: 127 | AN159: 0 | AO159: 0 | AP159: 0 | AQ159: FALSE | AR159: 0
B160: 153 | C160: ='DOLDURULMASI GEREKEN TABLO'!D173 -> 0 | D160: ='DOLDURULMASI GEREKEN TABLO'!E173 -> 0 | E160: ='DOLDURULMASI GEREKEN TABLO'!F173 -> 0 | F160: ='DOLDURULMASI GEREKEN TABLO'!G173 -> 0 | G160: 0 | H160: ='DOLDURULMASI GEREKEN TABLO'!H173 -> 00:00:00 | I160: 2026-01-01 | J160: ='DOLDURULMASI GEREKEN TABLO'!I173 -> MÜK.298 Ç YE GÖRE İLGİLİ GEÇİCİ VERGİ DÖNEMİNE AİT YDO İLE YD YAPILABİLİR | K160: ='DOLDURULMASI GEREKEN TABLO'!J173 -> 0 | L160: ='DOLDURULMASI GEREKEN TABLO'!K173 -> 0 | M160: ='DOLDURULMASI GEREKEN TABLO'!L173 -> 0 | N160: 46024 | O160: 0 | P160: 0 | Q160: 0 | R160: 0 | S160: 0 | T160: 0 | U160: 0 | W160: =IF(OR(D160="250- Arazi ve Arsalar",YEAR(H160)=2026),0,TRUNC('DOLDURULMASI GEREKEN TABLO'!N173,4)) -> 0.1151 | X160: 1 | Y160: 0 | Z160: 0 | AA160: 0 | AB160: 0 | AC160: 0 | AD160: 0 | AF160: 00:00:00 | AG160: ='DOLDURULMASI GEREKEN TABLO'!M173 -> 2026-06-30 | AH160: 0 | AI160: 0 | AJ160: 46204 | AK160: 127 | AL160: 126.5 | AM160: 127 | AN160: 0 | AO160: 0 | AP160: 0 | AQ160: FALSE | AR160: 0
B161: 154 | C161: ='DOLDURULMASI GEREKEN TABLO'!D174 -> 0 | D161: ='DOLDURULMASI GEREKEN TABLO'!E174 -> 0 | E161: ='DOLDURULMASI GEREKEN TABLO'!F174 -> 0 | F161: ='DOLDURULMASI GEREKEN TABLO'!G174 -> 0 | G161: 0 | H161: ='DOLDURULMASI GEREKEN TABLO'!H174 -> 00:00:00 | I161: 2026-01-01 | J161: ='DOLDURULMASI GEREKEN TABLO'!I174 -> MÜK.298 Ç YE GÖRE İLGİLİ GEÇİCİ VERGİ DÖNEMİNE AİT YDO İLE YD YAPILABİLİR | K161: ='DOLDURULMASI GEREKEN TABLO'!J174 -> 0 | L161: ='DOLDURULMASI GEREKEN TABLO'!K174 -> 0 | M161: ='DOLDURULMASI GEREKEN TABLO'!L174 -> 0 | N161: 46024 | O161: 0 | P161: 0 | Q161: 0 | R161: 0 | S161: 0 | T161: 0 | U161: 0 | W161: =IF(OR(D161="250- Arazi ve Arsalar",YEAR(H161)=2026),0,TRUNC('DOLDURULMASI GEREKEN TABLO'!N174,4)) -> 0.1151 | X161: 1 | Y161: 0 | Z161: 0 | AA161: 0 | AB161: 0 | AC161: 0 | AD161: 0 | AF161: 00:00:00 | AG161: ='DOLDURULMASI GEREKEN TABLO'!M174 -> 2026-06-30 | AH161: 0 | AI161: 0 | AJ161: 46204 | AK161: 127 | AL161: 126.5 | AM161: 127 | AN161: 0 | AO161: 0 | AP161: 0 | AQ161: FALSE | AR161: 0
B162: 155 | C162: ='DOLDURULMASI GEREKEN TABLO'!D175 -> 0 | D162: ='DOLDURULMASI GEREKEN TABLO'!E175 -> 0 | E162: ='DOLDURULMASI GEREKEN TABLO'!F175 -> 0 | F162: ='DOLDURULMASI GEREKEN TABLO'!G175 -> 0 | G162: 0 | H162: ='DOLDURULMASI GEREKEN TABLO'!H175 -> 00:00:00 | I162: 2026-01-01 | J162: ='DOLDURULMASI GEREKEN TABLO'!I175 -> MÜK.298 Ç YE GÖRE İLGİLİ GEÇİCİ VERGİ DÖNEMİNE AİT YDO İLE YD YAPILABİLİR | K162: ='DOLDURULMASI GEREKEN TABLO'!J175 -> 0 | L162: ='DOLDURULMASI GEREKEN TABLO'!K175 -> 0 | M162: ='DOLDURULMASI GEREKEN TABLO'!L175 -> 0 | N162: 46024 | O162: 0 | P162: 0 | Q162: 0 | R162: 0 | S162: 0 | T162: 0 | U162: 0 | W162: =IF(OR(D162="250- Arazi ve Arsalar",YEAR(H162)=2026),0,TRUNC('DOLDURULMASI GEREKEN TABLO'!N175,4)) -> 0.1151 | X162: 1 | Y162: 0 | Z162: 0 | AA162: 0 | AB162: 0 | AC162: 0 | AD162: 0 | AF162: 00:00:00 | AG162: ='DOLDURULMASI GEREKEN TABLO'!M175 -> 2026-06-30 | AH162: 0 | AI162: 0 | AJ162: 46204 | AK162: 127 | AL162: 126.5 | AM162: 127 | AN162: 0 | AO162: 0 | AP162: 0 | AQ162: FALSE | AR162: 0
B163: 156 | C163: ='DOLDURULMASI GEREKEN TABLO'!D176 -> 0 | D163: ='DOLDURULMASI GEREKEN TABLO'!E176 -> 0 | E163: ='DOLDURULMASI GEREKEN TABLO'!F176 -> 0 | F163: ='DOLDURULMASI GEREKEN TABLO'!G176 -> 0 | G163: 0 | H163: ='DOLDURULMASI GEREKEN TABLO'!H176 -> 00:00:00 | I163: 2026-01-01 | J163: ='DOLDURULMASI GEREKEN TABLO'!I176 -> MÜK.298 Ç YE GÖRE İLGİLİ GEÇİCİ VERGİ DÖNEMİNE AİT YDO İLE YD YAPILABİLİR | K163: ='DOLDURULMASI GEREKEN TABLO'!J176 -> 0 | L163: ='DOLDURULMASI GEREKEN TABLO'!K176 -> 0 | M163: ='DOLDURULMASI GEREKEN TABLO'!L176 -> 0 | N163: 46024 | O163: 0 | P163: 0 | Q163: 0 | R163: 0 | S163: 0 | T163: 0 | U163: 0 | W163: =IF(OR(D163="250- Arazi ve Arsalar",YEAR(H163)=2026),0,TRUNC('DOLDURULMASI GEREKEN TABLO'!N176,4)) -> 0.1151 | X163: 1 | Y163: 0 | Z163: 0 | AA163: 0 | AB163: 0 | AC163: 0 | AD163: 0 | AF163: 00:00:00 | AG163: ='DOLDURULMASI GEREKEN TABLO'!M176 -> 2026-06-30 | AH163: 0 | AI163: 0 | AJ163: 46204 | AK163: 127 | AL163: 126.5 | AM163: 127 | AN163: 0 | AO163: 0 | AP163: 0 | AQ163: FALSE | AR163: 0
B164: 157 | C164: ='DOLDURULMASI GEREKEN TABLO'!D177 -> 0 | D164: ='DOLDURULMASI GEREKEN TABLO'!E177 -> 0 | E164: ='DOLDURULMASI GEREKEN TABLO'!F177 -> 0 | F164: ='DOLDURULMASI GEREKEN TABLO'!G177 -> 0 | G164: 0 | H164: ='DOLDURULMASI GEREKEN TABLO'!H177 -> 00:00:00 | I164: 2026-01-01 | J164: ='DOLDURULMASI GEREKEN TABLO'!I177 -> MÜK.298 Ç YE GÖRE İLGİLİ GEÇİCİ VERGİ DÖNEMİNE AİT YDO İLE YD YAPILABİLİR | K164: ='DOLDURULMASI GEREKEN TABLO'!J177 -> 0 | L164: ='DOLDURULMASI GEREKEN TABLO'!K177 -> 0 | M164: ='DOLDURULMASI GEREKEN TABLO'!L177 -> 0 | N164: 46024 | O164: 0 | P164: 0 | Q164: 0 | R164: 0 | S164: 0 | T164: 0 | U164: 0 | W164: =IF(OR(D164="250- Arazi ve Arsalar",YEAR(H164)=2026),0,TRUNC('DOLDURULMASI GEREKEN TABLO'!N177,4)) -> 0.1151 | X164: 1 | Y164: 0 | Z164: 0 | AA164: 0 | AB164: 0 | AC164: 0 | AD164: 0 | AF164: 00:00:00 | AG164: ='DOLDURULMASI GEREKEN TABLO'!M177 -> 2026-06-30 | AH164: 0 | AI164: 0 | AJ164: 46204 | AK164: 127 | AL164: 126.5 | AM164: 127 | AN164: 0 | AO164: 0 | AP164: 0 | AQ164: FALSE | AR164: 0
B165: 158 | C165: ='DOLDURULMASI GEREKEN TABLO'!D178 -> 0 | D165: ='DOLDURULMASI GEREKEN TABLO'!E178 -> 0 | E165: ='DOLDURULMASI GEREKEN TABLO'!F178 -> 0 | F165: ='DOLDURULMASI GEREKEN TABLO'!G178 -> 0 | G165: 0 | H165: ='DOLDURULMASI GEREKEN TABLO'!H178 -> 00:00:00 | I165: 2026-01-01 | J165: ='DOLDURULMASI GEREKEN TABLO'!I178 -> MÜK.298 Ç YE GÖRE İLGİLİ GEÇİCİ VERGİ DÖNEMİNE AİT YDO İLE YD YAPILABİLİR | K165: ='DOLDURULMASI GEREKEN TABLO'!J178 -> 0 | L165: ='DOLDURULMASI GEREKEN TABLO'!K178 -> 0 | M165: ='DOLDURULMASI GEREKEN TABLO'!L178 -> 0 | N165: 46024 | O165: 0 | P165: 0 | Q165: 0 | R165: 0 | S165: 0 | T165: 0 | U165: 0 | W165: =IF(OR(D165="250- Arazi ve Arsalar",YEAR(H165)=2026),0,TRUNC('DOLDURULMASI GEREKEN TABLO'!N178,4)) -> 0.1151 | X165: 1 | Y165: 0 | Z165: 0 | AA165: 0 | AB165: 0 | AC165: 0 | AD165: 0 | AF165: 00:00:00 | AG165: ='DOLDURULMASI GEREKEN TABLO'!M178 -> 2026-06-30 | AH165: 0 | AI165: 0 | AJ165: 46204 | AK165: 127 | AL165: 126.5 | AM165: 127 | AN165: 0 | AO165: 0 | AP165: 0 | AQ165: FALSE | AR165: 0
B166: 159 | C166: ='DOLDURULMASI GEREKEN TABLO'!D179 -> 0 | D166: ='DOLDURULMASI GEREKEN TABLO'!E179 -> 0 | E166: ='DOLDURULMASI GEREKEN TABLO'!F179 -> 0 | F166: ='DOLDURULMASI GEREKEN TABLO'!G179 -> 0 | G166: 0 | H166: ='DOLDURULMASI GEREKEN TABLO'!H179 -> 00:00:00 | I166: 2026-01-01 | J166: ='DOLDURULMASI GEREKEN TABLO'!I179 -> MÜK.298 Ç YE GÖRE İLGİLİ GEÇİCİ VERGİ DÖNEMİNE AİT YDO İLE YD YAPILABİLİR | K166: ='DOLDURULMASI GEREKEN TABLO'!J179 -> 0 | L166: ='DOLDURULMASI GEREKEN TABLO'!K179 -> 0 | M166: ='DOLDURULMASI GEREKEN TABLO'!L179 -> 0 | N166: 46024 | O166: 0 | P166: 0 | Q166: 0 | R166: 0 | S166: 0 | T166: 0 | U166: 0 | W166: =IF(OR(D166="250- Arazi ve Arsalar",YEAR(H166)=2026),0,TRUNC('DOLDURULMASI GEREKEN TABLO'!N179,4)) -> 0.1151 | X166: 1 | Y166: 0 | Z166: 0 | AA166: 0 | AB166: 0 | AC166: 0 | AD166: 0 | AF166: 00:00:00 | AG166: ='DOLDURULMASI GEREKEN TABLO'!M179 -> 2026-06-30 | AH166: 0 | AI166: 0 | AJ166: 46204 | AK166: 127 | AL166: 126.5 | AM166: 127 | AN166: 0 | AO166: 0 | AP166: 0 | AQ166: FALSE | AR166: 0
B167: 160 | C167: ='DOLDURULMASI GEREKEN TABLO'!D180 -> 0 | D167: ='DOLDURULMASI GEREKEN TABLO'!E180 -> 0 | E167: ='DOLDURULMASI GEREKEN TABLO'!F180 -> 0 | F167: ='DOLDURULMASI GEREKEN TABLO'!G180 -> 0 | G167: 0 | H167: ='DOLDURULMASI GEREKEN TABLO'!H180 -> 00:00:00 | I167: 2026-01-01 | J167: ='DOLDURULMASI GEREKEN TABLO'!I180 -> MÜK.298 Ç YE GÖRE İLGİLİ GEÇİCİ VERGİ DÖNEMİNE AİT YDO İLE YD YAPILABİLİR | K167: ='DOLDURULMASI GEREKEN TABLO'!J180 -> 0 | L167: ='DOLDURULMASI GEREKEN TABLO'!K180 -> 0 | M167: ='DOLDURULMASI GEREKEN TABLO'!L180 -> 0 | N167: 46024 | O167: 0 | P167: 0 | Q167: 0 | R167: 0 | S167: 0 | T167: 0 | U167: 0 | W167: =IF(OR(D167="250- Arazi ve Arsalar",YEAR(H167)=2026),0,TRUNC('DOLDURULMASI GEREKEN TABLO'!N180,4)) -> 0.1151 | X167: 1 | Y167: 0 | Z167: 0 | AA167: 0 | AB167: 0 | AC167: 0 | AD167: 0 | AF167: 00:00:00 | AG167: ='DOLDURULMASI GEREKEN TABLO'!M180 -> 2026-06-30 | AH167: 0 | AI167: 0 | AJ167: 46204 | AK167: 127 | AL167: 126.5 | AM167: 127 | AN167: 0 | AO167: 0 | AP167: 0 | AQ167: FALSE | AR167: 0
B168: 161 | C168: ='DOLDURULMASI GEREKEN TABLO'!D181 -> 0 | D168: ='DOLDURULMASI GEREKEN TABLO'!E181 -> 0 | E168: ='DOLDURULMASI GEREKEN TABLO'!F181 -> 0 | F168: ='DOLDURULMASI GEREKEN TABLO'!G181 -> 0 | G168: 0 | H168: ='DOLDURULMASI GEREKEN TABLO'!H181 -> 00:00:00 | I168: 2026-01-01 | J168: ='DOLDURULMASI GEREKEN TABLO'!I181 -> MÜK.298 Ç YE GÖRE İLGİLİ GEÇİCİ VERGİ DÖNEMİNE AİT YDO İLE YD YAPILABİLİR | K168: ='DOLDURULMASI GEREKEN TABLO'!J181 -> 0 | L168: ='DOLDURULMASI GEREKEN TABLO'!K181 -> 0 | M168: ='DOLDURULMASI GEREKEN TABLO'!L181 -> 0 | N168: 46024 | O168: 0 | P168: 0 | Q168: 0 | R168: 0 | S168: 0 | T168: 0 | U168: 0 | W168: =IF(OR(D168="250- Arazi ve Arsalar",YEAR(H168)=2026),0,TRUNC('DOLDURULMASI GEREKEN TABLO'!N181,4)) -> 0.1151 | X168: 1 | Y168: 0 | Z168: 0 | AA168: 0 | AB168: 0 | AC168: 0 | AD168: 0 | AF168: 00:00:00 | AG168: ='DOLDURULMASI GEREKEN TABLO'!M181 -> 2026-06-30 | AH168: 0 | AI168: 0 | AJ168: 46204 | AK168: 127 | AL168: 126.5 | AM168: 127 | AN168: 0 | AO168: 0 | AP168: 0 | AQ168: FALSE | AR168: 0
B169: 162 | C169: ='DOLDURULMASI GEREKEN TABLO'!D182 -> 0 | D169: ='DOLDURULMASI GEREKEN TABLO'!E182 -> 0 | E169: ='DOLDURULMASI GEREKEN TABLO'!F182 -> 0 | F169: ='DOLDURULMASI GEREKEN TABLO'!G182 -> 0 | G169: 0 | H169: ='DOLDURULMASI GEREKEN TABLO'!H182 -> 00:00:00 | I169: 2026-01-01 | J169: ='DOLDURULMASI GEREKEN TABLO'!I182 -> MÜK.298 Ç YE GÖRE İLGİLİ GEÇİCİ VERGİ DÖNEMİNE AİT YDO İLE YD YAPILABİLİR | K169: ='DOLDURULMASI GEREKEN TABLO'!J182 -> 0 | L169: ='DOLDURULMASI GEREKEN TABLO'!K182 -> 0 | M169: ='DOLDURULMASI GEREKEN TABLO'!L182 -> 0 | N169: 46024 | O169: 0 | P169: 0 | Q169: 0 | R169: 0 | S169: 0 | T169: 0 | U169: 0 | W169: =IF(OR(D169="250- Arazi ve Arsalar",YEAR(H169)=2026),0,TRUNC('DOLDURULMASI GEREKEN TABLO'!N182,4)) -> 0.1151 | X169: 1 | Y169: 0 | Z169: 0 | AA169: 0 | AB169: 0 | AC169: 0 | AD169: 0 | AF169: 00:00:00 | AG169: ='DOLDURULMASI GEREKEN TABLO'!M182 -> 2026-06-30 | AH169: 0 | AI169: 0 | AJ169: 46204 | AK169: 127 | AL169: 126.5 | AM169: 127 | AN169: 0 | AO169: 0 | AP169: 0 | AQ169: FALSE | AR169: 0
B170: 163 | C170: ='DOLDURULMASI GEREKEN TABLO'!D183 -> 0 | D170: ='DOLDURULMASI GEREKEN TABLO'!E183 -> 0 | E170: ='DOLDURULMASI GEREKEN TABLO'!F183 -> 0 | F170: ='DOLDURULMASI GEREKEN TABLO'!G183 -> 0 | G170: 0 | H170: ='DOLDURULMASI GEREKEN TABLO'!H183 -> 00:00:00 | I170: 2026-01-01 | J170: ='DOLDURULMASI GEREKEN TABLO'!I183 -> MÜK.298 Ç YE GÖRE İLGİLİ GEÇİCİ VERGİ DÖNEMİNE AİT YDO İLE YD YAPILABİLİR | K170: ='DOLDURULMASI GEREKEN TABLO'!J183 -> 0 | L170: ='DOLDURULMASI GEREKEN TABLO'!K183 -> 0 | M170: ='DOLDURULMASI GEREKEN TABLO'!L183 -> 0 | N170: 46024 | O170: 0 | P170: 0 | Q170: 0 | R170: 0 | S170: 0 | T170: 0 | U170: 0 | W170: =IF(OR(D170="250- Arazi ve Arsalar",YEAR(H170)=2026),0,TRUNC('DOLDURULMASI GEREKEN TABLO'!N183,4)) -> 0.1151 | X170: 1 | Y170: 0 | Z170: 0 | AA170: 0 | AB170: 0 | AC170: 0 | AD170: 0 | AF170: 00:00:00 | AG170: ='DOLDURULMASI GEREKEN TABLO'!M183 -> 2026-06-30 | AH170: 0 | AI170: 0 | AJ170: 46204 | AK170: 127 | AL170: 126.5 | AM170: 127 | AN170: 0 | AO170: 0 | AP170: 0 | AQ170: FALSE | AR170: 0
B171: 164 | C171: ='DOLDURULMASI GEREKEN TABLO'!D184 -> 0 | D171: ='DOLDURULMASI GEREKEN TABLO'!E184 -> 0 | E171: ='DOLDURULMASI GEREKEN TABLO'!F184 -> 0 | F171: ='DOLDURULMASI GEREKEN TABLO'!G184 -> 0 | G171: 0 | H171: ='DOLDURULMASI GEREKEN TABLO'!H184 -> 00:00:00 | I171: 2026-01-01 | J171: ='DOLDURULMASI GEREKEN TABLO'!I184 -> MÜK.298 Ç YE GÖRE İLGİLİ GEÇİCİ VERGİ DÖNEMİNE AİT YDO İLE YD YAPILABİLİR | K171: ='DOLDURULMASI GEREKEN TABLO'!J184 -> 0 | L171: ='DOLDURULMASI GEREKEN TABLO'!K184 -> 0 | M171: ='DOLDURULMASI GEREKEN TABLO'!L184 -> 0 | N171: 46024 | O171: 0 | P171: 0 | Q171: 0 | R171: 0 | S171: 0 | T171: 0 | U171: 0 | W171: =IF(OR(D171="250- Arazi ve Arsalar",YEAR(H171)=2026),0,TRUNC('DOLDURULMASI GEREKEN TABLO'!N184,4)) -> 0.1151 | X171: 1 | Y171: 0 | Z171: 0 | AA171: 0 | AB171: 0 | AC171: 0 | AD171: 0 | AF171: 00:00:00 | AG171: ='DOLDURULMASI GEREKEN TABLO'!M184 -> 2026-06-30 | AH171: 0 | AI171: 0 | AJ171: 46204 | AK171: 127 | AL171: 126.5 | AM171: 127 | AN171: 0 | AO171: 0 | AP171: 0 | AQ171: FALSE | AR171: 0
B172: 165 | C172: ='DOLDURULMASI GEREKEN TABLO'!D185 -> 0 | D172: ='DOLDURULMASI GEREKEN TABLO'!E185 -> 0 | E172: ='DOLDURULMASI GEREKEN TABLO'!F185 -> 0 | F172: ='DOLDURULMASI GEREKEN TABLO'!G185 -> 0 | G172: 0 | H172: ='DOLDURULMASI GEREKEN TABLO'!H185 -> 00:00:00 | I172: 2026-01-01 | J172: ='DOLDURULMASI GEREKEN TABLO'!I185 -> MÜK.298 Ç YE GÖRE İLGİLİ GEÇİCİ VERGİ DÖNEMİNE AİT YDO İLE YD YAPILABİLİR | K172: ='DOLDURULMASI GEREKEN TABLO'!J185 -> 0 | L172: ='DOLDURULMASI GEREKEN TABLO'!K185 -> 0 | M172: ='DOLDURULMASI GEREKEN TABLO'!L185 -> 0 | N172: 46024 | O172: 0 | P172: 0 | Q172: 0 | R172: 0 | S172: 0 | T172: 0 | U172: 0 | W172: =IF(OR(D172="250- Arazi ve Arsalar",YEAR(H172)=2026),0,TRUNC('DOLDURULMASI GEREKEN TABLO'!N185,4)) -> 0.1151 | X172: 1 | Y172: 0 | Z172: 0 | AA172: 0 | AB172: 0 | AC172: 0 | AD172: 0 | AF172: 00:00:00 | AG172: ='DOLDURULMASI GEREKEN TABLO'!M185 -> 2026-06-30 | AH172: 0 | AI172: 0 | AJ172: 46204 | AK172: 127 | AL172: 126.5 | AM172: 127 | AN172: 0 | AO172: 0 | AP172: 0 | AQ172: FALSE | AR172: 0
B173: 166 | C173: ='DOLDURULMASI GEREKEN TABLO'!D186 -> 0 | D173: ='DOLDURULMASI GEREKEN TABLO'!E186 -> 0 | E173: ='DOLDURULMASI GEREKEN TABLO'!F186 -> 0 | F173: ='DOLDURULMASI GEREKEN TABLO'!G186 -> 0 | G173: 0 | H173: ='DOLDURULMASI GEREKEN TABLO'!H186 -> 00:00:00 | I173: 2026-01-01 | J173: ='DOLDURULMASI GEREKEN TABLO'!I186 -> MÜK.298 Ç YE GÖRE İLGİLİ GEÇİCİ VERGİ DÖNEMİNE AİT YDO İLE YD YAPILABİLİR | K173: ='DOLDURULMASI GEREKEN TABLO'!J186 -> 0 | L173: ='DOLDURULMASI GEREKEN TABLO'!K186 -> 0 | M173: ='DOLDURULMASI GEREKEN TABLO'!L186 -> 0 | N173: 46024 | O173: 0 | P173: 0 | Q173: 0 | R173: 0 | S173: 0 | T173: 0 | U173: 0 | W173: =IF(OR(D173="250- Arazi ve Arsalar",YEAR(H173)=2026),0,TRUNC('DOLDURULMASI GEREKEN TABLO'!N186,4)) -> 0.1151 | X173: 1 | Y173: 0 | Z173: 0 | AA173: 0 | AB173: 0 | AC173: 0 | AD173: 0 | AF173: 00:00:00 | AG173: ='DOLDURULMASI GEREKEN TABLO'!M186 -> 2026-06-30 | AH173: 0 | AI173: 0 | AJ173: 46204 | AK173: 127 | AL173: 126.5 | AM173: 127 | AN173: 0 | AO173: 0 | AP173: 0 | AQ173: FALSE | AR173: 0
B174: 167 | C174: ='DOLDURULMASI GEREKEN TABLO'!D187 -> 0 | D174: ='DOLDURULMASI GEREKEN TABLO'!E187 -> 0 | E174: ='DOLDURULMASI GEREKEN TABLO'!F187 -> 0 | F174: ='DOLDURULMASI GEREKEN TABLO'!G187 -> 0 | G174: 0 | H174: ='DOLDURULMASI GEREKEN TABLO'!H187 -> 00:00:00 | I174: 2026-01-01 | J174: ='DOLDURULMASI GEREKEN TABLO'!I187 -> MÜK.298 Ç YE GÖRE İLGİLİ GEÇİCİ VERGİ DÖNEMİNE AİT YDO İLE YD YAPILABİLİR | K174: ='DOLDURULMASI GEREKEN TABLO'!J187 -> 0 | L174: ='DOLDURULMASI GEREKEN TABLO'!K187 -> 0 | M174: ='DOLDURULMASI GEREKEN TABLO'!L187 -> 0 | N174: 46024 | O174: 0 | P174: 0 | Q174: 0 | R174: 0 | S174: 0 | T174: 0 | U174: 0 | W174: =IF(OR(D174="250- Arazi ve Arsalar",YEAR(H174)=2026),0,TRUNC('DOLDURULMASI GEREKEN TABLO'!N187,4)) -> 0.1151 | X174: 1 | Y174: 0 | Z174: 0 | AA174: 0 | AB174: 0 | AC174: 0 | AD174: 0 | AF174: 00:00:00 | AG174: ='DOLDURULMASI GEREKEN TABLO'!M187 -> 2026-06-30 | AH174: 0 | AI174: 0 | AJ174: 46204 | AK174: 127 | AL174: 126.5 | AM174: 127 | AN174: 0 | AO174: 0 | AP174: 0 | AQ174: FALSE | AR174: 0
B175: 168 | C175: ='DOLDURULMASI GEREKEN TABLO'!D188 -> 0 | D175: ='DOLDURULMASI GEREKEN TABLO'!E188 -> 0 | E175: ='DOLDURULMASI GEREKEN TABLO'!F188 -> 0 | F175: ='DOLDURULMASI GEREKEN TABLO'!G188 -> 0 | G175: 0 | H175: ='DOLDURULMASI GEREKEN TABLO'!H188 -> 00:00:00 | I175: 2026-01-01 | J175: ='DOLDURULMASI GEREKEN TABLO'!I188 -> MÜK.298 Ç YE GÖRE İLGİLİ GEÇİCİ VERGİ DÖNEMİNE AİT YDO İLE YD YAPILABİLİR | K175: ='DOLDURULMASI GEREKEN TABLO'!J188 -> 0 | L175: ='DOLDURULMASI GEREKEN TABLO'!K188 -> 0 | M175: ='DOLDURULMASI GEREKEN TABLO'!L188 -> 0 | N175: 46024 | O175: 0 | P175: 0 | Q175: 0 | R175: 0 | S175: 0 | T175: 0 | U175: 0 | W175: =IF(OR(D175="250- Arazi ve Arsalar",YEAR(H175)=2026),0,TRUNC('DOLDURULMASI GEREKEN TABLO'!N188,4)) -> 0.1151 | X175: 1 | Y175: 0 | Z175: 0 | AA175: 0 | AB175: 0 | AC175: 0 | AD175: 0 | AF175: 00:00:00 | AG175: ='DOLDURULMASI GEREKEN TABLO'!M188 -> 2026-06-30 | AH175: 0 | AI175: 0 | AJ175: 46204 | AK175: 127 | AL175: 126.5 | AM175: 127 | AN175: 0 | AO175: 0 | AP175: 0 | AQ175: FALSE | AR175: 0
B176: 169 | C176: ='DOLDURULMASI GEREKEN TABLO'!D189 -> 0 | D176: ='DOLDURULMASI GEREKEN TABLO'!E189 -> 0 | E176: ='DOLDURULMASI GEREKEN TABLO'!F189 -> 0 | F176: ='DOLDURULMASI GEREKEN TABLO'!G189 -> 0 | G176: 0 | H176: ='DOLDURULMASI GEREKEN TABLO'!H189 -> 00:00:00 | I176: 2026-01-01 | J176: ='DOLDURULMASI GEREKEN TABLO'!I189 -> MÜK.298 Ç YE GÖRE İLGİLİ GEÇİCİ VERGİ DÖNEMİNE AİT YDO İLE YD YAPILABİLİR | K176: ='DOLDURULMASI GEREKEN TABLO'!J189 -> 0 | L176: ='DOLDURULMASI GEREKEN TABLO'!K189 -> 0 | M176: ='DOLDURULMASI GEREKEN TABLO'!L189 -> 0 | N176: 46024 | O176: 0 | P176: 0 | Q176: 0 | R176: 0 | S176: 0 | T176: 0 | U176: 0 | W176: =IF(OR(D176="250- Arazi ve Arsalar",YEAR(H176)=2026),0,TRUNC('DOLDURULMASI GEREKEN TABLO'!N189,4)) -> 0.1151 | X176: 1 | Y176: 0 | Z176: 0 | AA176: 0 | AB176: 0 | AC176: 0 | AD176: 0 | AF176: 00:00:00 | AG176: ='DOLDURULMASI GEREKEN TABLO'!M189 -> 2026-06-30 | AH176: 0 | AI176: 0 | AJ176: 46204 | AK176: 127 | AL176: 126.5 | AM176: 127 | AN176: 0 | AO176: 0 | AP176: 0 | AQ176: FALSE | AR176: 0
B177: 170 | C177: ='DOLDURULMASI GEREKEN TABLO'!D190 -> 0 | D177: ='DOLDURULMASI GEREKEN TABLO'!E190 -> 0 | E177: ='DOLDURULMASI GEREKEN TABLO'!F190 -> 0 | F177: ='DOLDURULMASI GEREKEN TABLO'!G190 -> 0 | G177: 0 | H177: ='DOLDURULMASI GEREKEN TABLO'!H190 -> 00:00:00 | I177: 2026-01-01 | J177: ='DOLDURULMASI GEREKEN TABLO'!I190 -> MÜK.298 Ç YE GÖRE İLGİLİ GEÇİCİ VERGİ DÖNEMİNE AİT YDO İLE YD YAPILABİLİR | K177: ='DOLDURULMASI GEREKEN TABLO'!J190 -> 0 | L177: ='DOLDURULMASI GEREKEN TABLO'!K190 -> 0 | M177: ='DOLDURULMASI GEREKEN TABLO'!L190 -> 0 | N177: 46024 | O177: 0 | P177: 0 | Q177: 0 | R177: 0 | S177: 0 | T177: 0 | U177: 0 | W177: =IF(OR(D177="250- Arazi ve Arsalar",YEAR(H177)=2026),0,TRUNC('DOLDURULMASI GEREKEN TABLO'!N190,4)) -> 0.1151 | X177: 1 | Y177: 0 | Z177: 0 | AA177: 0 | AB177: 0 | AC177: 0 | AD177: 0 | AF177: 00:00:00 | AG177: ='DOLDURULMASI GEREKEN TABLO'!M190 -> 2026-06-30 | AH177: 0 | AI177: 0 | AJ177: 46204 | AK177: 127 | AL177: 126.5 | AM177: 127 | AN177: 0 | AO177: 0 | AP177: 0 | AQ177: FALSE | AR177: 0
B178: 171 | C178: ='DOLDURULMASI GEREKEN TABLO'!D191 -> 0 | D178: ='DOLDURULMASI GEREKEN TABLO'!E191 -> 0 | E178: ='DOLDURULMASI GEREKEN TABLO'!F191 -> 0 | F178: ='DOLDURULMASI GEREKEN TABLO'!G191 -> 0 | G178: 0 | H178: ='DOLDURULMASI GEREKEN TABLO'!H191 -> 00:00:00 | I178: 2026-01-01 | J178: ='DOLDURULMASI GEREKEN TABLO'!I191 -> MÜK.298 Ç YE GÖRE İLGİLİ GEÇİCİ VERGİ DÖNEMİNE AİT YDO İLE YD YAPILABİLİR | K178: ='DOLDURULMASI GEREKEN TABLO'!J191 -> 0 | L178: ='DOLDURULMASI GEREKEN TABLO'!K191 -> 0 | M178: ='DOLDURULMASI GEREKEN TABLO'!L191 -> 0 | N178: 46024 | O178: 0 | P178: 0 | Q178: 0 | R178: 0 | S178: 0 | T178: 0 | U178: 0 | W178: =IF(OR(D178="250- Arazi ve Arsalar",YEAR(H178)=2026),0,TRUNC('DOLDURULMASI GEREKEN TABLO'!N191,4)) -> 0.1151 | X178: 1 | Y178: 0 | Z178: 0 | AA178: 0 | AB178: 0 | AC178: 0 | AD178: 0 | AF178: 00:00:00 | AG178: ='DOLDURULMASI GEREKEN TABLO'!M191 -> 2026-06-30 | AH178: 0 | AI178: 0 | AJ178: 46204 | AK178: 127 | AL178: 126.5 | AM178: 127 | AN178: 0 | AO178: 0 | AP178: 0 | AQ178: FALSE | AR178: 0
B179: 172 | C179: ='DOLDURULMASI GEREKEN TABLO'!D192 -> 0 | D179: ='DOLDURULMASI GEREKEN TABLO'!E192 -> 0 | E179: ='DOLDURULMASI GEREKEN TABLO'!F192 -> 0 | F179: ='DOLDURULMASI GEREKEN TABLO'!G192 -> 0 | G179: 0 | H179: ='DOLDURULMASI GEREKEN TABLO'!H192 -> 00:00:00 | I179: 2026-01-01 | J179: ='DOLDURULMASI GEREKEN TABLO'!I192 -> MÜK.298 Ç YE GÖRE İLGİLİ GEÇİCİ VERGİ DÖNEMİNE AİT YDO İLE YD YAPILABİLİR | K179: ='DOLDURULMASI GEREKEN TABLO'!J192 -> 0 | L179: ='DOLDURULMASI GEREKEN TABLO'!K192 -> 0 | M179: ='DOLDURULMASI GEREKEN TABLO'!L192 -> 0 | N179: 46024 | O179: 0 | P179: 0 | Q179: 0 | R179: 0 | S179: 0 | T179: 0 | U179: 0 | W179: =IF(OR(D179="250- Arazi ve Arsalar",YEAR(H179)=2026),0,TRUNC('DOLDURULMASI GEREKEN TABLO'!N192,4)) -> 0.1151 | X179: 1 | Y179: 0 | Z179: 0 | AA179: 0 | AB179: 0 | AC179: 0 | AD179: 0 | AF179: 00:00:00 | AG179: ='DOLDURULMASI GEREKEN TABLO'!M192 -> 2026-06-30 | AH179: 0 | AI179: 0 | AJ179: 46204 | AK179: 127 | AL179: 126.5 | AM179: 127 | AN179: 0 | AO179: 0 | AP179: 0 | AQ179: FALSE | AR179: 0
B180: 173 | C180: ='DOLDURULMASI GEREKEN TABLO'!D193 -> 0 | D180: ='DOLDURULMASI GEREKEN TABLO'!E193 -> 0 | E180: ='DOLDURULMASI GEREKEN TABLO'!F193 -> 0 | F180: ='DOLDURULMASI GEREKEN TABLO'!G193 -> 0 | G180: 0 | H180: ='DOLDURULMASI GEREKEN TABLO'!H193 -> 00:00:00 | I180: 2026-01-01 | J180: ='DOLDURULMASI GEREKEN TABLO'!I193 -> MÜK.298 Ç YE GÖRE İLGİLİ GEÇİCİ VERGİ DÖNEMİNE AİT YDO İLE YD YAPILABİLİR | K180: ='DOLDURULMASI GEREKEN TABLO'!J193 -> 0 | L180: ='DOLDURULMASI GEREKEN TABLO'!K193 -> 0 | M180: ='DOLDURULMASI GEREKEN TABLO'!L193 -> 0 | N180: 46024 | O180: 0 | P180: 0 | Q180: 0 | R180: 0 | S180: 0 | T180: 0 | U180: 0 | W180: =IF(OR(D180="250- Arazi ve Arsalar",YEAR(H180)=2026),0,TRUNC('DOLDURULMASI GEREKEN TABLO'!N193,4)) -> 0.1151 | X180: 1 | Y180: 0 | Z180: 0 | AA180: 0 | AB180: 0 | AC180: 0 | AD180: 0 | AF180: 00:00:00 | AG180: ='DOLDURULMASI GEREKEN TABLO'!M193 -> 2026-06-30 | AH180: 0 | AI180: 0 | AJ180: 46204 | AK180: 127 | AL180: 126.5 | AM180: 127 | AN180: 0 | AO180: 0 | AP180: 0 | AQ180: FALSE | AR180: 0
B181: 174 | C181: ='DOLDURULMASI GEREKEN TABLO'!D194 -> 0 | D181: ='DOLDURULMASI GEREKEN TABLO'!E194 -> 0 | E181: ='DOLDURULMASI GEREKEN TABLO'!F194 -> 0 | F181: ='DOLDURULMASI GEREKEN TABLO'!G194 -> 0 | G181: 0 | H181: ='DOLDURULMASI GEREKEN TABLO'!H194 -> 00:00:00 | I181: 2026-01-01 | J181: ='DOLDURULMASI GEREKEN TABLO'!I194 -> MÜK.298 Ç YE GÖRE İLGİLİ GEÇİCİ VERGİ DÖNEMİNE AİT YDO İLE YD YAPILABİLİR | K181: ='DOLDURULMASI GEREKEN TABLO'!J194 -> 0 | L181: ='DOLDURULMASI GEREKEN TABLO'!K194 -> 0 | M181: ='DOLDURULMASI GEREKEN TABLO'!L194 -> 0 | N181: 46024 | O181: 0 | P181: 0 | Q181: 0 | R181: 0 | S181: 0 | T181: 0 | U181: 0 | W181: =IF(OR(D181="250- Arazi ve Arsalar",YEAR(H181)=2026),0,TRUNC('DOLDURULMASI GEREKEN TABLO'!N194,4)) -> 0.1151 | X181: 1 | Y181: 0 | Z181: 0 | AA181: 0 | AB181: 0 | AC181: 0 | AD181: 0 | AF181: 00:00:00 | AG181: ='DOLDURULMASI GEREKEN TABLO'!M194 -> 2026-06-30 | AH181: 0 | AI181: 0 | AJ181: 46204 | AK181: 127 | AL181: 126.5 | AM181: 127 | AN181: 0 | AO181: 0 | AP181: 0 | AQ181: FALSE | AR181: 0
B182: 175 | C182: ='DOLDURULMASI GEREKEN TABLO'!D195 -> 0 | D182: ='DOLDURULMASI GEREKEN TABLO'!E195 -> 0 | E182: ='DOLDURULMASI GEREKEN TABLO'!F195 -> 0 | F182: ='DOLDURULMASI GEREKEN TABLO'!G195 -> 0 | G182: 0 | H182: ='DOLDURULMASI GEREKEN TABLO'!H195 -> 00:00:00 | I182: 2026-01-01 | J182: ='DOLDURULMASI GEREKEN TABLO'!I195 -> MÜK.298 Ç YE GÖRE İLGİLİ GEÇİCİ VERGİ DÖNEMİNE AİT YDO İLE YD YAPILABİLİR | K182: ='DOLDURULMASI GEREKEN TABLO'!J195 -> 0 | L182: ='DOLDURULMASI GEREKEN TABLO'!K195 -> 0 | M182: ='DOLDURULMASI GEREKEN TABLO'!L195 -> 0 | N182: 46024 | O182: 0 | P182: 0 | Q182: 0 | R182: 0 | S182: 0 | T182: 0 | U182: 0 | W182: =IF(OR(D182="250- Arazi ve Arsalar",YEAR(H182)=2026),0,TRUNC('DOLDURULMASI GEREKEN TABLO'!N195,4)) -> 0.1151 | X182: 1 | Y182: 0 | Z182: 0 | AA182: 0 | AB182: 0 | AC182: 0 | AD182: 0 | AF182: 00:00:00 | AG182: ='DOLDURULMASI GEREKEN TABLO'!M195 -> 2026-06-30 | AH182: 0 | AI182: 0 | AJ182: 46204 | AK182: 127 | AL182: 126.5 | AM182: 127 | AN182: 0 | AO182: 0 | AP182: 0 | AQ182: FALSE | AR182: 0
B183: 176 | C183: ='DOLDURULMASI GEREKEN TABLO'!D196 -> 0 | D183: ='DOLDURULMASI GEREKEN TABLO'!E196 -> 0 | E183: ='DOLDURULMASI GEREKEN TABLO'!F196 -> 0 | F183: ='DOLDURULMASI GEREKEN TABLO'!G196 -> 0 | G183: 0 | H183: ='DOLDURULMASI GEREKEN TABLO'!H196 -> 00:00:00 | I183: 2026-01-01 | J183: ='DOLDURULMASI GEREKEN TABLO'!I196 -> MÜK.298 Ç YE GÖRE İLGİLİ GEÇİCİ VERGİ DÖNEMİNE AİT YDO İLE YD YAPILABİLİR | K183: ='DOLDURULMASI GEREKEN TABLO'!J196 -> 0 | L183: ='DOLDURULMASI GEREKEN TABLO'!K196 -> 0 | M183: ='DOLDURULMASI GEREKEN TABLO'!L196 -> 0 | N183: 46024 | O183: 0 | P183: 0 | Q183: 0 | R183: 0 | S183: 0 | T183: 0 | U183: 0 | W183: =IF(OR(D183="250- Arazi ve Arsalar",YEAR(H183)=2026),0,TRUNC('DOLDURULMASI GEREKEN TABLO'!N196,4)) -> 0.1151 | X183: 1 | Y183: 0 | Z183: 0 | AA183: 0 | AB183: 0 | AC183: 0 | AD183: 0 | AF183: 00:00:00 | AG183: ='DOLDURULMASI GEREKEN TABLO'!M196 -> 2026-06-30 | AH183: 0 | AI183: 0 | AJ183: 46204 | AK183: 127 | AL183: 126.5 | AM183: 127 | AN183: 0 | AO183: 0 | AP183: 0 | AQ183: FALSE | AR183: 0
B184: 177 | C184: ='DOLDURULMASI GEREKEN TABLO'!D197 -> 0 | D184: ='DOLDURULMASI GEREKEN TABLO'!E197 -> 0 | E184: ='DOLDURULMASI GEREKEN TABLO'!F197 -> 0 | F184: ='DOLDURULMASI GEREKEN TABLO'!G197 -> 0 | G184: 0 | H184: ='DOLDURULMASI GEREKEN TABLO'!H197 -> 00:00:00 | I184: 2026-01-01 | J184: ='DOLDURULMASI GEREKEN TABLO'!I197 -> MÜK.298 Ç YE GÖRE İLGİLİ GEÇİCİ VERGİ DÖNEMİNE AİT YDO İLE YD YAPILABİLİR | K184: ='DOLDURULMASI GEREKEN TABLO'!J197 -> 0 | L184: ='DOLDURULMASI GEREKEN TABLO'!K197 -> 0 | M184: ='DOLDURULMASI GEREKEN TABLO'!L197 -> 0 | N184: 46024 | O184: 0 | P184: 0 | Q184: 0 | R184: 0 | S184: 0 | T184: 0 | U184: 0 | W184: =IF(OR(D184="250- Arazi ve Arsalar",YEAR(H184)=2026),0,TRUNC('DOLDURULMASI GEREKEN TABLO'!N197,4)) -> 0.1151 | X184: 1 | Y184: 0 | Z184: 0 | AA184: 0 | AB184: 0 | AC184: 0 | AD184: 0 | AF184: 00:00:00 | AG184: ='DOLDURULMASI GEREKEN TABLO'!M197 -> 2026-06-30 | AH184: 0 | AI184: 0 | AJ184: 46204 | AK184: 127 | AL184: 126.5 | AM184: 127 | AN184: 0 | AO184: 0 | AP184: 0 | AQ184: FALSE | AR184: 0
B185: 178 | C185: ='DOLDURULMASI GEREKEN TABLO'!D198 -> 0 | D185: ='DOLDURULMASI GEREKEN TABLO'!E198 -> 0 | E185: ='DOLDURULMASI GEREKEN TABLO'!F198 -> 0 | F185: ='DOLDURULMASI GEREKEN TABLO'!G198 -> 0 | G185: 0 | H185: ='DOLDURULMASI GEREKEN TABLO'!H198 -> 00:00:00 | I185: 2026-01-01 | J185: ='DOLDURULMASI GEREKEN TABLO'!I198 -> MÜK.298 Ç YE GÖRE İLGİLİ GEÇİCİ VERGİ DÖNEMİNE AİT YDO İLE YD YAPILABİLİR | K185: ='DOLDURULMASI GEREKEN TABLO'!J198 -> 0 | L185: ='DOLDURULMASI GEREKEN TABLO'!K198 -> 0 | M185: ='DOLDURULMASI GEREKEN TABLO'!L198 -> 0 | N185: 46024 | O185: 0 | P185: 0 | Q185: 0 | R185: 0 | S185: 0 | T185: 0 | U185: 0 | W185: =IF(OR(D185="250- Arazi ve Arsalar",YEAR(H185)=2026),0,TRUNC('DOLDURULMASI GEREKEN TABLO'!N198,4)) -> 0.1151 | X185: 1 | Y185: 0 | Z185: 0 | AA185: 0 | AB185: 0 | AC185: 0 | AD185: 0 | AF185: 00:00:00 | AG185: ='DOLDURULMASI GEREKEN TABLO'!M198 -> 2026-06-30 | AH185: 0 | AI185: 0 | AJ185: 46204 | AK185: 127 | AL185: 126.5 | AM185: 127 | AN185: 0 | AO185: 0 | AP185: 0 | AQ185: FALSE | AR185: 0
B186: 179 | C186: ='DOLDURULMASI GEREKEN TABLO'!D199 -> 0 | D186: ='DOLDURULMASI GEREKEN TABLO'!E199 -> 0 | E186: ='DOLDURULMASI GEREKEN TABLO'!F199 -> 0 | F186: ='DOLDURULMASI GEREKEN TABLO'!G199 -> 0 | G186: 0 | H186: ='DOLDURULMASI GEREKEN TABLO'!H199 -> 00:00:00 | I186: 2026-01-01 | J186: ='DOLDURULMASI GEREKEN TABLO'!I199 -> MÜK.298 Ç YE GÖRE İLGİLİ GEÇİCİ VERGİ DÖNEMİNE AİT YDO İLE YD YAPILABİLİR | K186: ='DOLDURULMASI GEREKEN TABLO'!J199 -> 0 | L186: ='DOLDURULMASI GEREKEN TABLO'!K199 -> 0 | M186: ='DOLDURULMASI GEREKEN TABLO'!L199 -> 0 | N186: 46024 | O186: 0 | P186: 0 | Q186: 0 | R186: 0 | S186: 0 | T186: 0 | U186: 0 | W186: =IF(OR(D186="250- Arazi ve Arsalar",YEAR(H186)=2026),0,TRUNC('DOLDURULMASI GEREKEN TABLO'!N199,4)) -> 0.1151 | X186: 1 | Y186: 0 | Z186: 0 | AA186: 0 | AB186: 0 | AC186: 0 | AD186: 0 | AF186: 00:00:00 | AG186: ='DOLDURULMASI GEREKEN TABLO'!M199 -> 2026-06-30 | AH186: 0 | AI186: 0 | AJ186: 46204 | AK186: 127 | AL186: 126.5 | AM186: 127 | AN186: 0 | AO186: 0 | AP186: 0 | AQ186: FALSE | AR186: 0
B187: 180 | C187: ='DOLDURULMASI GEREKEN TABLO'!D200 -> 0 | D187: ='DOLDURULMASI GEREKEN TABLO'!E200 -> 0 | E187: ='DOLDURULMASI GEREKEN TABLO'!F200 -> 0 | F187: ='DOLDURULMASI GEREKEN TABLO'!G200 -> 0 | G187: 0 | H187: ='DOLDURULMASI GEREKEN TABLO'!H200 -> 00:00:00 | I187: 2026-01-01 | J187: ='DOLDURULMASI GEREKEN TABLO'!I200 -> MÜK.298 Ç YE GÖRE İLGİLİ GEÇİCİ VERGİ DÖNEMİNE AİT YDO İLE YD YAPILABİLİR | K187: ='DOLDURULMASI GEREKEN TABLO'!J200 -> 0 | L187: ='DOLDURULMASI GEREKEN TABLO'!K200 -> 0 | M187: ='DOLDURULMASI GEREKEN TABLO'!L200 -> 0 | N187: 46024 | O187: 0 | P187: 0 | Q187: 0 | R187: 0 | S187: 0 | T187: 0 | U187: 0 | W187: =IF(OR(D187="250- Arazi ve Arsalar",YEAR(H187)=2026),0,TRUNC('DOLDURULMASI GEREKEN TABLO'!N200,4)) -> 0.1151 | X187: 1 | Y187: 0 | Z187: 0 | AA187: 0 | AB187: 0 | AC187: 0 | AD187: 0 | AF187: 00:00:00 | AG187: ='DOLDURULMASI GEREKEN TABLO'!M200 -> 2026-06-30 | AH187: 0 | AI187: 0 | AJ187: 46204 | AK187: 127 | AL187: 126.5 | AM187: 127 | AN187: 0 | AO187: 0 | AP187: 0 | AQ187: FALSE | AR187: 0
B188: 181 | C188: ='DOLDURULMASI GEREKEN TABLO'!D201 -> 0 | D188: ='DOLDURULMASI GEREKEN TABLO'!E201 -> 0 | E188: ='DOLDURULMASI GEREKEN TABLO'!F201 -> 0 | F188: ='DOLDURULMASI GEREKEN TABLO'!G201 -> 0 | G188: 0 | H188: ='DOLDURULMASI GEREKEN TABLO'!H201 -> 00:00:00 | I188: 2026-01-01 | J188: ='DOLDURULMASI GEREKEN TABLO'!I201 -> MÜK.298 Ç YE GÖRE İLGİLİ GEÇİCİ VERGİ DÖNEMİNE AİT YDO İLE YD YAPILABİLİR | K188: ='DOLDURULMASI GEREKEN TABLO'!J201 -> 0 | L188: ='DOLDURULMASI GEREKEN TABLO'!K201 -> 0 | M188: ='DOLDURULMASI GEREKEN TABLO'!L201 -> 0 | N188: 46024 | O188: 0 | P188: 0 | Q188: 0 | R188: 0 | S188: 0 | T188: 0 | U188: 0 | W188: =IF(OR(D188="250- Arazi ve Arsalar",YEAR(H188)=2026),0,TRUNC('DOLDURULMASI GEREKEN TABLO'!N201,4)) -> 0.1151 | X188: 1 | Y188: 0 | Z188: 0 | AA188: 0 | AB188: 0 | AC188: 0 | AD188: 0 | AF188: 00:00:00 | AG188: ='DOLDURULMASI GEREKEN TABLO'!M201 -> 2026-06-30 | AH188: 0 | AI188: 0 | AJ188: 46204 | AK188: 127 | AL188: 126.5 | AM188: 127 | AN188: 0 | AO188: 0 | AP188: 0 | AQ188: FALSE | AR188: 0
B189: 182 | C189: ='DOLDURULMASI GEREKEN TABLO'!D202 -> 0 | D189: ='DOLDURULMASI GEREKEN TABLO'!E202 -> 0 | E189: ='DOLDURULMASI GEREKEN TABLO'!F202 -> 0 | F189: ='DOLDURULMASI GEREKEN TABLO'!G202 -> 0 | G189: 0 | H189: ='DOLDURULMASI GEREKEN TABLO'!H202 -> 00:00:00 | I189: 2026-01-01 | J189: ='DOLDURULMASI GEREKEN TABLO'!I202 -> MÜK.298 Ç YE GÖRE İLGİLİ GEÇİCİ VERGİ DÖNEMİNE AİT YDO İLE YD YAPILABİLİR | K189: ='DOLDURULMASI GEREKEN TABLO'!J202 -> 0 | L189: ='DOLDURULMASI GEREKEN TABLO'!K202 -> 0 | M189: ='DOLDURULMASI GEREKEN TABLO'!L202 -> 0 | N189: 46024 | O189: 0 | P189: 0 | Q189: 0 | R189: 0 | S189: 0 | T189: 0 | U189: 0 | W189: =IF(OR(D189="250- Arazi ve Arsalar",YEAR(H189)=2026),0,TRUNC('DOLDURULMASI GEREKEN TABLO'!N202,4)) -> 0.1151 | X189: 1 | Y189: 0 | Z189: 0 | AA189: 0 | AB189: 0 | AC189: 0 | AD189: 0 | AF189: 00:00:00 | AG189: ='DOLDURULMASI GEREKEN TABLO'!M202 -> 2026-06-30 | AH189: 0 | AI189: 0 | AJ189: 46204 | AK189: 127 | AL189: 126.5 | AM189: 127 | AN189: 0 | AO189: 0 | AP189: 0 | AQ189: FALSE | AR189: 0
B190: 183 | C190: ='DOLDURULMASI GEREKEN TABLO'!D203 -> 0 | D190: ='DOLDURULMASI GEREKEN TABLO'!E203 -> 0 | E190: ='DOLDURULMASI GEREKEN TABLO'!F203 -> 0 | F190: ='DOLDURULMASI GEREKEN TABLO'!G203 -> 0 | G190: 0 | H190: ='DOLDURULMASI GEREKEN TABLO'!H203 -> 00:00:00 | I190: 2026-01-01 | J190: ='DOLDURULMASI GEREKEN TABLO'!I203 -> MÜK.298 Ç YE GÖRE İLGİLİ GEÇİCİ VERGİ DÖNEMİNE AİT YDO İLE YD YAPILABİLİR | K190: ='DOLDURULMASI GEREKEN TABLO'!J203 -> 0 | L190: ='DOLDURULMASI GEREKEN TABLO'!K203 -> 0 | M190: ='DOLDURULMASI GEREKEN TABLO'!L203 -> 0 | N190: 46024 | O190: 0 | P190: 0 | Q190: 0 | R190: 0 | S190: 0 | T190: 0 | U190: 0 | W190: =IF(OR(D190="250- Arazi ve Arsalar",YEAR(H190)=2026),0,TRUNC('DOLDURULMASI GEREKEN TABLO'!N203,4)) -> 0.1151 | X190: 1 | Y190: 0 | Z190: 0 | AA190: 0 | AB190: 0 | AC190: 0 | AD190: 0 | AF190: 00:00:00 | AG190: ='DOLDURULMASI GEREKEN TABLO'!M203 -> 2026-06-30 | AH190: 0 | AI190: 0 | AJ190: 46204 | AK190: 127 | AL190: 126.5 | AM190: 127 | AN190: 0 | AO190: 0 | AP190: 0 | AQ190: FALSE | AR190: 0
B191: 184 | C191: ='DOLDURULMASI GEREKEN TABLO'!D204 -> 0 | D191: ='DOLDURULMASI GEREKEN TABLO'!E204 -> 0 | E191: ='DOLDURULMASI GEREKEN TABLO'!F204 -> 0 | F191: ='DOLDURULMASI GEREKEN TABLO'!G204 -> 0 | G191: 0 | H191: ='DOLDURULMASI GEREKEN TABLO'!H204 -> 00:00:00 | I191: 2026-01-01 | J191: ='DOLDURULMASI GEREKEN TABLO'!I204 -> MÜK.298 Ç YE GÖRE İLGİLİ GEÇİCİ VERGİ DÖNEMİNE AİT YDO İLE YD YAPILABİLİR | K191: ='DOLDURULMASI GEREKEN TABLO'!J204 -> 0 | L191: ='DOLDURULMASI GEREKEN TABLO'!K204 -> 0 | M191: ='DOLDURULMASI GEREKEN TABLO'!L204 -> 0 | N191: 46024 | O191: 0 | P191: 0 | Q191: 0 | R191: 0 | S191: 0 | T191: 0 | U191: 0 | W191: =IF(OR(D191="250- Arazi ve Arsalar",YEAR(H191)=2026),0,TRUNC('DOLDURULMASI GEREKEN TABLO'!N204,4)) -> 0.1151 | X191: 1 | Y191: 0 | Z191: 0 | AA191: 0 | AB191: 0 | AC191: 0 | AD191: 0 | AF191: 00:00:00 | AG191: ='DOLDURULMASI GEREKEN TABLO'!M204 -> 2026-06-30 | AH191: 0 | AI191: 0 | AJ191: 46204 | AK191: 127 | AL191: 126.5 | AM191: 127 | AN191: 0 | AO191: 0 | AP191: 0 | AQ191: FALSE | AR191: 0
B192: 185 | C192: ='DOLDURULMASI GEREKEN TABLO'!D205 -> 0 | D192: ='DOLDURULMASI GEREKEN TABLO'!E205 -> 0 | E192: ='DOLDURULMASI GEREKEN TABLO'!F205 -> 0 | F192: ='DOLDURULMASI GEREKEN TABLO'!G205 -> 0 | G192: 0 | H192: ='DOLDURULMASI GEREKEN TABLO'!H205 -> 00:00:00 | I192: 2026-01-01 | J192: ='DOLDURULMASI GEREKEN TABLO'!I205 -> MÜK.298 Ç YE GÖRE İLGİLİ GEÇİCİ VERGİ DÖNEMİNE AİT YDO İLE YD YAPILABİLİR | K192: ='DOLDURULMASI GEREKEN TABLO'!J205 -> 0 | L192: ='DOLDURULMASI GEREKEN TABLO'!K205 -> 0 | M192: ='DOLDURULMASI GEREKEN TABLO'!L205 -> 0 | N192: 46024 | O192: 0 | P192: 0 | Q192: 0 | R192: 0 | S192: 0 | T192: 0 | U192: 0 | W192: =IF(OR(D192="250- Arazi ve Arsalar",YEAR(H192)=2026),0,TRUNC('DOLDURULMASI GEREKEN TABLO'!N205,4)) -> 0.1151 | X192: 1 | Y192: 0 | Z192: 0 | AA192: 0 | AB192: 0 | AC192: 0 | AD192: 0 | AF192: 00:00:00 | AG192: ='DOLDURULMASI GEREKEN TABLO'!M205 -> 2026-06-30 | AH192: 0 | AI192: 0 | AJ192: 46204 | AK192: 127 | AL192: 126.5 | AM192: 127 | AN192: 0 | AO192: 0 | AP192: 0 | AQ192: FALSE | AR192: 0
B193: 186 | C193: ='DOLDURULMASI GEREKEN TABLO'!D206 -> 0 | D193: ='DOLDURULMASI GEREKEN TABLO'!E206 -> 0 | E193: ='DOLDURULMASI GEREKEN TABLO'!F206 -> 0 | F193: ='DOLDURULMASI GEREKEN TABLO'!G206 -> 0 | G193: 0 | H193: ='DOLDURULMASI GEREKEN TABLO'!H206 -> 00:00:00 | I193: 2026-01-01 | J193: ='DOLDURULMASI GEREKEN TABLO'!I206 -> MÜK.298 Ç YE GÖRE İLGİLİ GEÇİCİ VERGİ DÖNEMİNE AİT YDO İLE YD YAPILABİLİR | K193: ='DOLDURULMASI GEREKEN TABLO'!J206 -> 0 | L193: ='DOLDURULMASI GEREKEN TABLO'!K206 -> 0 | M193: ='DOLDURULMASI GEREKEN TABLO'!L206 -> 0 | N193: 46024 | O193: 0 | P193: 0 | Q193: 0 | R193: 0 | S193: 0 | T193: 0 | U193: 0 | W193: =IF(OR(D193="250- Arazi ve Arsalar",YEAR(H193)=2026),0,TRUNC('DOLDURULMASI GEREKEN TABLO'!N206,4)) -> 0.1151 | X193: 1 | Y193: 0 | Z193: 0 | AA193: 0 | AB193: 0 | AC193: 0 | AD193: 0 | AF193: 00:00:00 | AG193: ='DOLDURULMASI GEREKEN TABLO'!M206 -> 2026-06-30 | AH193: 0 | AI193: 0 | AJ193: 46204 | AK193: 127 | AL193: 126.5 | AM193: 127 | AN193: 0 | AO193: 0 | AP193: 0 | AQ193: FALSE | AR193: 0
B194: 187 | C194: ='DOLDURULMASI GEREKEN TABLO'!D207 -> 0 | D194: ='DOLDURULMASI GEREKEN TABLO'!E207 -> 0 | E194: ='DOLDURULMASI GEREKEN TABLO'!F207 -> 0 | F194: ='DOLDURULMASI GEREKEN TABLO'!G207 -> 0 | G194: 0 | H194: ='DOLDURULMASI GEREKEN TABLO'!H207 -> 00:00:00 | I194: 2026-01-01 | J194: ='DOLDURULMASI GEREKEN TABLO'!I207 -> MÜK.298 Ç YE GÖRE İLGİLİ GEÇİCİ VERGİ DÖNEMİNE AİT YDO İLE YD YAPILABİLİR | K194: ='DOLDURULMASI GEREKEN TABLO'!J207 -> 0 | L194: ='DOLDURULMASI GEREKEN TABLO'!K207 -> 0 | M194: ='DOLDURULMASI GEREKEN TABLO'!L207 -> 0 | N194: 46024 | O194: 0 | P194: 0 | Q194: 0 | R194: 0 | S194: 0 | T194: 0 | U194: 0 | W194: =IF(OR(D194="250- Arazi ve Arsalar",YEAR(H194)=2026),0,TRUNC('DOLDURULMASI GEREKEN TABLO'!N207,4)) -> 0.1151 | X194: 1 | Y194: 0 | Z194: 0 | AA194: 0 | AB194: 0 | AC194: 0 | AD194: 0 | AF194: 00:00:00 | AG194: ='DOLDURULMASI GEREKEN TABLO'!M207 -> 2026-06-30 | AH194: 0 | AI194: 0 | AJ194: 46204 | AK194: 127 | AL194: 126.5 | AM194: 127 | AN194: 0 | AO194: 0 | AP194: 0 | AQ194: FALSE | AR194: 0
B195: 188 | C195: ='DOLDURULMASI GEREKEN TABLO'!D208 -> 0 | D195: ='DOLDURULMASI GEREKEN TABLO'!E208 -> 0 | E195: ='DOLDURULMASI GEREKEN TABLO'!F208 -> 0 | F195: ='DOLDURULMASI GEREKEN TABLO'!G208 -> 0 | G195: 0 | H195: ='DOLDURULMASI GEREKEN TABLO'!H208 -> 00:00:00 | I195: 2026-01-01 | J195: ='DOLDURULMASI GEREKEN TABLO'!I208 -> MÜK.298 Ç YE GÖRE İLGİLİ GEÇİCİ VERGİ DÖNEMİNE AİT YDO İLE YD YAPILABİLİR | K195: ='DOLDURULMASI GEREKEN TABLO'!J208 -> 0 | L195: ='DOLDURULMASI GEREKEN TABLO'!K208 -> 0 | M195: ='DOLDURULMASI GEREKEN TABLO'!L208 -> 0 | N195: 46024 | O195: 0 | P195: 0 | Q195: 0 | R195: 0 | S195: 0 | T195: 0 | U195: 0 | W195: =IF(OR(D195="250- Arazi ve Arsalar",YEAR(H195)=2026),0,TRUNC('DOLDURULMASI GEREKEN TABLO'!N208,4)) -> 0.1151 | X195: 1 | Y195: 0 | Z195: 0 | AA195: 0 | AB195: 0 | AC195: 0 | AD195: 0 | AF195: 00:00:00 | AG195: ='DOLDURULMASI GEREKEN TABLO'!M208 -> 2026-06-30 | AH195: 0 | AI195: 0 | AJ195: 46204 | AK195: 127 | AL195: 126.5 | AM195: 127 | AN195: 0 | AO195: 0 | AP195: 0 | AQ195: FALSE | AR195: 0
B196: 189 | C196: ='DOLDURULMASI GEREKEN TABLO'!D209 -> 0 | D196: ='DOLDURULMASI GEREKEN TABLO'!E209 -> 0 | E196: ='DOLDURULMASI GEREKEN TABLO'!F209 -> 0 | F196: ='DOLDURULMASI GEREKEN TABLO'!G209 -> 0 | G196: 0 | H196: ='DOLDURULMASI GEREKEN TABLO'!H209 -> 00:00:00 | I196: 2026-01-01 | J196: ='DOLDURULMASI GEREKEN TABLO'!I209 -> MÜK.298 Ç YE GÖRE İLGİLİ GEÇİCİ VERGİ DÖNEMİNE AİT YDO İLE YD YAPILABİLİR | K196: ='DOLDURULMASI GEREKEN TABLO'!J209 -> 0 | L196: ='DOLDURULMASI GEREKEN TABLO'!K209 -> 0 | M196: ='DOLDURULMASI GEREKEN TABLO'!L209 -> 0 | N196: 46024 | O196: 0 | P196: 0 | Q196: 0 | R196: 0 | S196: 0 | T196: 0 | U196: 0 | W196: =IF(OR(D196="250- Arazi ve Arsalar",YEAR(H196)=2026),0,TRUNC('DOLDURULMASI GEREKEN TABLO'!N209,4)) -> 0.1151 | X196: 1 | Y196: 0 | Z196: 0 | AA196: 0 | AB196: 0 | AC196: 0 | AD196: 0 | AF196: 00:00:00 | AG196: ='DOLDURULMASI GEREKEN TABLO'!M209 -> 2026-06-30 | AH196: 0 | AI196: 0 | AJ196: 46204 | AK196: 127 | AL196: 126.5 | AM196: 127 | AN196: 0 | AO196: 0 | AP196: 0 | AQ196: FALSE | AR196: 0
B197: 190 | C197: ='DOLDURULMASI GEREKEN TABLO'!D210 -> 0 | D197: ='DOLDURULMASI GEREKEN TABLO'!E210 -> 0 | E197: ='DOLDURULMASI GEREKEN TABLO'!F210 -> 0 | F197: ='DOLDURULMASI GEREKEN TABLO'!G210 -> 0 | G197: 0 | H197: ='DOLDURULMASI GEREKEN TABLO'!H210 -> 00:00:00 | I197: 2026-01-01 | J197: ='DOLDURULMASI GEREKEN TABLO'!I210 -> MÜK.298 Ç YE GÖRE İLGİLİ GEÇİCİ VERGİ DÖNEMİNE AİT YDO İLE YD YAPILABİLİR | K197: ='DOLDURULMASI GEREKEN TABLO'!J210 -> 0 | L197: ='DOLDURULMASI GEREKEN TABLO'!K210 -> 0 | M197: ='DOLDURULMASI GEREKEN TABLO'!L210 -> 0 | N197: 46024 | O197: 0 | P197: 0 | Q197: 0 | R197: 0 | S197: 0 | T197: 0 | U197: 0 | W197: =IF(OR(D197="250- Arazi ve Arsalar",YEAR(H197)=2026),0,TRUNC('DOLDURULMASI GEREKEN TABLO'!N210,4)) -> 0.1151 | X197: 1 | Y197: 0 | Z197: 0 | AA197: 0 | AB197: 0 | AC197: 0 | AD197: 0 | AF197: 00:00:00 | AG197: ='DOLDURULMASI GEREKEN TABLO'!M210 -> 2026-06-30 | AH197: 0 | AI197: 0 | AJ197: 46204 | AK197: 127 | AL197: 126.5 | AM197: 127 | AN197: 0 | AO197: 0 | AP197: 0 | AQ197: FALSE | AR197: 0
B198: 191 | C198: ='DOLDURULMASI GEREKEN TABLO'!D211 -> 0 | D198: ='DOLDURULMASI GEREKEN TABLO'!E211 -> 0 | E198: ='DOLDURULMASI GEREKEN TABLO'!F211 -> 0 | F198: ='DOLDURULMASI GEREKEN TABLO'!G211 -> 0 | G198: 0 | H198: ='DOLDURULMASI GEREKEN TABLO'!H211 -> 00:00:00 | I198: 2026-01-01 | J198: ='DOLDURULMASI GEREKEN TABLO'!I211 -> MÜK.298 Ç YE GÖRE İLGİLİ GEÇİCİ VERGİ DÖNEMİNE AİT YDO İLE YD YAPILABİLİR | K198: ='DOLDURULMASI GEREKEN TABLO'!J211 -> 0 | L198: ='DOLDURULMASI GEREKEN TABLO'!K211 -> 0 | M198: ='DOLDURULMASI GEREKEN TABLO'!L211 -> 0 | N198: 46024 | O198: 0 | P198: 0 | Q198: 0 | R198: 0 | S198: 0 | T198: 0 | U198: 0 | W198: =IF(OR(D198="250- Arazi ve Arsalar",YEAR(H198)=2026),0,TRUNC('DOLDURULMASI GEREKEN TABLO'!N211,4)) -> 0.1151 | X198: 1 | Y198: 0 | Z198: 0 | AA198: 0 | AB198: 0 | AC198: 0 | AD198: 0 | AF198: 00:00:00 | AG198: ='DOLDURULMASI GEREKEN TABLO'!M211 -> 2026-06-30 | AH198: 0 | AI198: 0 | AJ198: 46204 | AK198: 127 | AL198: 126.5 | AM198: 127 | AN198: 0 | AO198: 0 | AP198: 0 | AQ198: FALSE | AR198: 0
